Workbook

Sheet Load Data
A1: day # | B1: Date | C1: wkday# | D1: weekday | E1: 0 | F1: =E1+1 -> 1 | G1: =F1+1 -> 2 | H1: 3 | I1: 4 | J1: 5 | K1: 6 | L1: 7 | M1: 8 | N1: 9 | O1: 10 | P1: 11 | Q1: 12 | R1: 13 | S1: 14 | T1: 15 | U1: 16 | V1: 17 | W1: 18 | X1: 19 | Y1: 20 | Z1: 21 | AA1: 22 | AB1: 23 | AC1: sum(row) | AD1: Moving average | AE1: Season | AF1: day type | AG1: Group | AH1: 0.1 | AR1: =0.00000001 -> 1e-08
A2: 1 | B2: 2010-01-01 | C2: 5 | D2: Friday | E2: 22116.21805 | F2: 22116.21805 | G2: 21389.04755 | H2: 20722.3791 | I2: 20123.47802 | J2: 20061.47911 | K2: 20039.17671 | L2: 20284.83792 | M2: 21506.40246 | N2: 23005.80737 | O2: 23860.8794 | P2: 24208.79383 | Q2: 24138.53158 | R2: 23863.43016 | S2: 23308.45041 | T2: 22556.88485 | U2: 22213.85099 | V2: 22118.39484 | W2: 22209.81502 | X2: 22647.84284 | Y2: 24450.54327 | Z2: 24799.69392 | AA2: 23444.73963 | AB2: 21929.03642 | AC2: =SUM(E2:AB2) -> 537115.9315 | AE2: =IF(AND(A2>$AJ$6,A2<$AJ$7),"s2",IF(A2<=$AJ$6,"s1","s3")) -> s1 | AF2: d2 | AG2: =AE2&AF2 -> s1d2 | AT2: Average working day calculation
A3: =A2+1 -> 2 | B3: 2010-01-01T23:59:59.998 | C3: 6 | D3: Saturday | E3: 20902.55392 | F3: 20512.02438 | G3: 20200.61976 | H3: 19997.03666 | I3: 19955.56656 | J3: 20038.05777 | K3: 20303.77729 | L3: 21018.24939 | M3: 22595.87738 | N3: 24238.32739 | O3: 25017.71101 | P3: 25027.80331 | Q3: 24918.57651 | R3: 24704.3566 | S3: 24030.187 | T3: 23487.02553 | U3: 23276.23451 | V3: 23358.72041 | W3: 23829.34211 | X3: 24459.20405 | Y3: 25788.75016 | Z3: 25543.55126 | AA3: 23933.77488 | AB3: 22572.78257 | AC3: 549710.1104 | AE3: =IF(AND(A3>$AJ$6,A3<$AJ$7),"s2",IF(A3<=$AJ$6,"s1","s3")) -> s1 | AF3: d2 | AG3: =AE3&AF3 -> s1d2 | AI3: Start Day | AJ3: End Day | AK3: Days | AL3: Days frac | AM3: Energy | AN3: Energy frac | AO3: Max Power | AP3: Row (Max) | AQ3: Column (Max)
A4: =A3+1 -> 3 | B4: 2010-01-02T23:59:59.998 | C4: 7 | D4: Sunday | E4: 21345.28876 | F4: 20524.06347 | G4: 20096.4094 | H4: 19798.6902 | I4: 19758.74621 | J4: 19788.6794 | K4: 20070.12085 | L4: 20803.84157 | M4: 22624.65648 | N4: 24289.24211 | O4: 25054.72563 | P4: 24920.43936 | Q4: 24859.06225 | R4: 24532.53755 | S4: 23889.46251 | T4: 23284.83671 | U4: 22957.32096 | V4: 22858.96094 | W4: 23145.40544 | X4: 24190.27597 | Y4: 26120.94497 | Z4: 26018.55803 | AA4: 24320.78152 | AB4: 22881.8596 | AC4: 548134.9099 | AE4: s1 | AF4: d2 | AG4: s1d2 | AO4: MW
A5: 4 | B5: 2010-01-03T23:59:59.998 | C5: 1 | D5: Monday | E5: 21508.33419 | F5: 21169.26075 | G5: 20868.42812 | H5: 20690.14721 | I5: 20673.66699 | J5: 21252.15316 | K5: 22574.59626 | L5: 24168.47463 | M5: 26145.63953 | N5: 27957.89595 | O5: 28658.62378 | P5: 29086.0908 | Q5: 29100.44262 | R5: 28852.51346 | S5: 28547.34129 | T5: 28440.43542 | U5: 28491.01863 | V5: 28432.6388 | W5: 28404.25989 | X5: 28211.46671 | Y5: 29001.19414 | Z5: 28970.85406 | AA5: 27110.4679 | AB5: 24862.17608 | AC5: 623178.1204 | AE5: s1 | AF5: d1 | AG5: s1d1 | AH5: Annual | AI5: 1 | AJ5: 365 | AK5: =AJ5-AI5+1 -> 365 | AM5: =AM19 -> 250420.931 | AO5: =findmax(OFFSET($E$2,$AI5-1,0,$AK5,24),AI5) -> 37240.22764 | AP5: 193 | AQ5: 20
A6: 5 | B6: 2010-01-04T23:59:59.998 | C6: 2 | D6: Tuesday | E6: 23336.60323 | F6: 22306.95184 | G6: 21913.36196 | H6: 21724.7857 | I6: 21810.00288 | J6: 22260.82355 | K6: 23512.48683 | L6: 25069.73195 | M6: 26911.52513 | N6: 28518.20309 | O6: 28849.41209 | P6: 29170.19636 | Q6: 29218.26526 | R6: 29058.54304 | S6: 28749.86014 | T6: 28826.09879 | U6: 28858.28785 | V6: 28879.23344 | W6: 28591.73873 | X6: 28485.99687 | Y6: 29641.46071 | Z6: 29352.62459 | AA6: 27485.83562 | AB6: 25293.97699 | AC6: 637826.0066 | AE6: s1 | AF6: d1 | AG6: s1d1 | AH6: s1 | AI6: 1 | AJ6: 134 | AK6: =AJ6-AI6+1 -> 134 | AL6: =AK6/AK$5 -> 0.3671232877 | AM6: =SUMIF($AP$13:$AP$18,AH6,$AM$13:$AM$18) -> 89287.89621 | AN6: =AM6/$AM$5 -> 0.356551251 | AO6: =findmax(OFFSET($E$2,$AI6-1,0,$AK6,24),AI6) -> 34288.35228 | AP6: 130 | AQ6: 20
A7: 6 | B7: 2010-01-05T23:59:59.998 | C7: 3 | D7: Wednesday | E7: 23607.55562 | F7: 22766.99674 | G7: 22449.46067 | H7: 22261.39386 | I7: 22247.75717 | J7: 22734.13454 | K7: 24392.09946 | L7: 25968.36804 | M7: 27378.67165 | N7: 28902.99156 | O7: 29167.85085 | P7: 29570.46966 | Q7: 29403.34061 | R7: 29352.20434 | S7: 29010.24756 | T7: 29172.33062 | U7: 29338.14919 | V7: 29317.03169 | W7: 28915.46987 | X7: 28838.78028 | Y7: 29871.34084 | Z7: 29644.61185 | AA7: 27722.89467 | AB7: 25359.63369 | AC7: 647393.785 | AE7: s1 | AF7: d1 | AG7: s1d1 | AH7: s2 | AI7: =AJ6+1 -> 135 | AJ7: =AI7+108-1 -> 242 | AK7: =AJ7-AI7+1 -> 108 | AL7: =AK7/AK$5 -> 0.295890411 | AM7: =SUMIF($AP$13:$AP$18,AH7,$AM$13:$AM$18) -> 76615.38874 | AN7: =AM7/$AM$5 -> 0.3059464257 | AO7: =findmax(OFFSET($E$2,$AI7-1,0,$AK7,24),AI7) -> 37240.22764 | AP7: 193 | AQ7: 20
A8: 7 | B8: 2010-01-06T23:59:59.998 | C8: 4 | D8: Thursday | E8: 23962.15906 | F8: 22983.99246 | G8: 22577.82122 | H8: 22403.4058 | I8: 22397.36726 | J8: 22906.99595 | K8: 24419.47194 | L8: 26141.68169 | M8: 27579.79951 | N8: 29129.17264 | O8: 29565.82947 | P8: 30155.68488 | Q8: 30047.7815 | R8: 29810.55633 | S8: 29617.6919 | T8: 29615.39473 | U8: 29747.47021 | V8: 29717.64824 | W8: 29535.1731 | X8: 29269.42503 | Y8: 30345.58422 | Z8: 29844.76681 | AA8: 27964.11131 | AB8: 25856.42791 | AC8: 655595.4132 | AE8: s1 | AF8: d1 | AG8: s1d1 | AH8: s3 | AI8: =AJ7+1 -> 243 | AJ8: 365 | AK8: =AJ8-AI8+1 -> 123 | AL8: =AK8/AK$5 -> 0.3369863014 | AM8: =SUMIF($AP$13:$AP$18,AH8,$AM$13:$AM$18) -> 84517.646 | AN8: =AM8/$AM$5 -> 0.3375023233 | AO8: =findmax(OFFSET($E$2,$AI8-1,0,$AK8,24),AI8) -> 34925.67905 | AP8: 243 | AQ8: 21
A9: 8 | B9: 2010-01-07T23:59:59.998 | C9: 5 | D9: Friday | E9: 24293.10039 | F9: 23327.52289 | G9: 22975.00674 | H9: 22841.97614 | I9: 22797.99748 | J9: 23310.19263 | K9: 24833.88631 | L9: 26644.90694 | M9: 28269.40758 | N9: 29999.36294 | O9: 30356.23393 | P9: 30579.49066 | Q9: 30619.21202 | R9: 30294.38293 | S9: 29740.81345 | T9: 29502.29762 | U9: 29380.32181 | V9: 29084.25811 | W9: 28787.06013 | X9: 28440.98392 | Y9: 29578.90053 | Z9: 29217.92653 | AA9: 27509.79364 | AB9: 25556.03449 | AC9: 657941.0698 | AE9: s1 | AF9: d1 | AG9: s1d1 | AO9: Load factor | AP9: =AM19/(AO5*8.67) -> 0.7756025016
A10: 9 | B10: 2010-01-08T23:59:59.998 | C10: 6 | D10: Saturday | E10: 24408.31526 | F10: 23484.58191 | G10: 23016.42147 | H10: 22720.15759 | I10: 22688.40244 | J10: 22805.99182 | K10: 23154.52248 | L10: 24166.26459 | M10: 26169.40439 | N10: 28163.40153 | O10: 28844.46937 | P10: 28780.38869 | Q10: 28583.22022 | R10: 28207.17396 | S10: 27707.37966 | T10: 27029.39515 | U10: 26630.25408 | V10: 26689.60146 | W10: 26978.64037 | X10: 27148.23146 | Y10: 28290.1596 | Z10: 28231.10854 | AA10: 26546.99639 | AB10: 24816.25715 | AC10: 625260.7396 | AE10: s1 | AF10: d2 | AG10: s1d2
A11: 10 | B11: 2010-01-09T23:59:59.998 | C11: 7 | D11: Sunday | E11: 23336.116 | F11: 22336.03321 | G11: 21831.98531 | H11: 21546.87449 | I11: 21405.15907 | J11: 21519.96993 | K11: 21811.71015 | L11: 22758.07894 | M11: 24892.08174 | N11: 26796.01172 | O11: 27539.9906 | P11: 27701.9528 | Q11: 27561.31299 | R11: 27155.78587 | S11: 26509.52592 | T11: 25831.92217 | U11: 25444.70776 | V11: 25378.75121 | W11: 25588.35992 | X11: 26279.90441 | Y11: 28115.10893 | Z11: 28089.63399 | AA11: 26052.72846 | AB11: 24364.28154 | AC11: 599847.9871 | AE11: s1 | AF11: d2 | AG11: s1d2 | AT11: Energy (GWh)
A12: 11 | B12: 2010-01-10T23:59:59.998 | C12: 1 | D12: Monday | E12: 23023.41648 | F12: 21897.18506 | G12: 21636.88972 | H12: 21479.09771 | I12: 21549.20389 | J12: 22146.47867 | K12: 23654.87128 | L12: 25611.52315 | M12: 27451.72036 | N12: 29323.29577 | O12: 29831.95197 | P12: 30382.10587 | Q12: 30290.23726 | R12: 29989.37901 | S12: 29777.26944 | T12: 29706.12431 | U12: 29854.64223 | V12: 29685.51635 | W12: 29478.6599 | X12: 29197.87617 | Y12: 30295.1026 | Z12: 29972.83769 | AA12: 27885.69402 | AB12: 25508.99997 | AC12: 649630.0789 | AD12: =W14 -> 29803.67849 | AE12: s1 | AF12: d1 | AG12: s1d1 | AJ12: Days | AK12: Duration | AL12: Duration(N) | AM12: Energy (GWh) | AN12: Energy share | AO12: Share (N) | AT12: 0 | AU12: =AT12+1 -> 1 | AV12: =AU12+1 -> 2 | AW12: 3 | AX12: 4 | AY12: 5 | AZ12: 6 | BA12: 7 | BB12: 8 | BC12: 9 | BD12: 10 | BE12: 11 | BF12: 12 | BG12: 13 | BH12: 14 | BI12: 15 | BJ12: 16 | BK12: 17 | BL12: 18 | BM12: 19 | BN12: 20 | BO12: 21 | BP12: 22 | BQ12: 23
A13: 12 | B13: 2010-01-11T23:59:59.998 | C13: 2 | D13: Tuesday | E13: 23922.58333 | F13: 23019.07498 | G13: 22654.92643 | H13: 22532.01919 | I13: 22541.48807 | J13: 22980.98413 | K13: 24664.42088 | L13: 26369.36386 | M13: 27956.25827 | N13: 29586.80807 | O13: 29792.29176 | P13: 30209.48185 | Q13: 30018.26589 | R13: 29886.03834 | S13: 29584.66431 | T13: 29551.9137 | U13: 29743.29243 | V13: 29966.7793 | W13: 29485.96678 | X13: 29470.11381 | Y13: 30380.31004 | Z13: 29953.47522 | AA13: 28095.07031 | AB13: 25785.70007 | AC13: 658151.2911 | AD13: =AD12*(1-$AH$1)+W13*$AH$1 -> 29771.90732 | AE13: s1 | AF13: d1 | AG13: s1d1 | AJ13: =COUNTIF($AG$2:$AG$366,$AR13) -> 91 | AK13: =AJ13/AJ$19 -> 0.2493150685 | AL13: =AJ13/(AJ13+AJ14) -> 0.6791044776 | AM13: =SUMIF($AG$2:$AG$366,AR13,$AC$2:$AC$366)/1000 -> 62484.14971 | AN13: =AM13/$AM$19 -> 0.249516482 | AO13: =AM13/(AM13+AM14) -> 0.6998053752 | AP13: s1 | AQ13: d1 | AR13: =AP13&AQ13 -> s1d1 | AS13: Pre-winter weekday | AT13: =SUMIF($AG$2:$AG$366,$AP13&$AQ13,E$2:E$366)/1000 -> 2248.418101 | AU13: =SUMIF($AG$2:$AG$366,$AP13&$AQ13,F$2:F$366)/1000 -> 2172.59981 | AV13: 2142.118164 | AW13: 2127.973989 | AX13: 2136.366641 | AY13: 2204.564174 | AZ13: 2436.66611 | BA13: 2702.714549 | BB13: 2742.201373 | BC13: 2804.837245 | BD13: 2802.719105 | BE13: 2824.559969 | BF13: 2819.351744 | BG13: 2795.203219 | BH13: 2762.484326 | BI13: 2761.183656 | BJ13: 2777.128559 | BK13: 2781.022005 | BL13: 2795.211198 | BM13: 2872.115008 | BN13: 2919.028731 | BO13: 2817.614568 | BP13: 2621.835601 | BQ13: 2416.231867
A14: 13 | B14: 2010-01-12T23:59:59.998 | C14: 3 | D14: Wednesday | E14: 24122.97098 | F14: 23513.93855 | G14: 23221.5011 | H14: 23101.7702 | I14: 23153.85402 | J14: 23793.56452 | K14: 26083.90523 | L14: 28028.26479 | M14: 28611.28633 | N14: 29650.47625 | O14: 29767.40939 | P14: 30381.8946 | Q14: 30472.68965 | R14: 30165.18089 | S14: 29962.99827 | T14: 30015.34077 | U14: 30281.99076 | V14: 30318.8814 | W14: 29803.67849 | X14: 29534.90303 | Y14: 30754.38578 | Z14: 30415.72402 | AA14: 28383.41112 | AB14: 26113.19723 | AC14: 669653.2174 | AD14: 29775.08444 | AE14: s1 | AF14: d1 | AG14: s1d1 | AJ14: 43 | AK14: 0.1178082192 | AL14: =1-AL13 -> 0.3208955224 | AM14: 26803.74651 | AN14: 0.107034769 | AO14: =1-AO13 -> 0.3001946248 | AP14: s1 | AQ14: d2 | AR14: s1d2 | AS14: pre-winter weekend | AT14: 1040.791903 | AU14: 1002.516453 | AV14: 980.5984208 | AW14: 969.4486101 | AX14: 965.2453864 | AY14: 971.4886021 | AZ14: 993.8716389 | BA14: 1045.180722 | BB14: 1131.901117 | BC14: 1207.751109 | BD14: 1228.403027 | BE14: 1223.237147 | BF14: 1212.572603 | BG14: 1197.286695 | BH14: 1167.451419 | BI14: 1137.924112 | BJ14: 1125.557696 | BK14: 1129.265255 | BL14: 1156.5694 | BM14: 1224.681174 | BN14: 1265.702025 | BO14: 1221.562845 | BP14: 1139.589341 | BQ14: 1065.149806
A15: 14 | B15: 2010-01-13T23:59:59.998 | C15: 4 | D15: Thursday | E15: 24497.46112 | F15: 23776.07797 | G15: 23429.00675 | H15: 23287.20579 | I15: 23429.25771 | J15: 24093.58613 | K15: 26227.93038 | L15: 28228.55814 | M15: 28977.92793 | N15: 29943.66145 | O15: 30257.55491 | P15: 30796.44796 | Q15: 30551.79703 | R15: 30270.11235 | S15: 30083.63818 | T15: 30167.75697 | U15: 30167.03565 | V15: 30149.71665 | W15: 29714.86769 | X15: 29447.34331 | Y15: 30728.93656 | Z15: 30454.98967 | AA15: 28272.59186 | AB15: 26243.15271 | AC15: 673196.6149 | AD15: 29769.06276 | AE15: s1 | AF15: d1 | AG15: s1d1 | AJ15: 73 | AK15: 0.2 | AL15: =AJ15/(AJ15+AJ16) -> 0.6822429907 | AM15: 53571.3139 | AN15: 0.2139250649 | AO15: =AM15/(AM15+AM16) -> 0.6992239389 | AP15: s2 | AQ15: d1 | AR15: s2d1 | AS15: winter weekday | AT15: 1897.959776 | AU15: 1818.496116 | AV15: 1786.594072 | AW15: 1774.36371 | AX15: 1785.72024 | AY15: 1858.696039 | AZ15: 2064.870024 | BA15: 2362.512894 | BB15: 2423.36332 | BC15: 2453.120857 | BD15: 2426.789247 | BE15: 2430.017786 | BF15: 2404.855984 | BG15: 2360.161374 | BH15: 2315.585839 | BI15: 2302.191803 | BJ15: 2313.168977 | BK15: 2346.219173 | BL15: 2470.042595 | BM15: 2608.186292 | BN15: 2557.259595 | BO15: 2458.571796 | BP15: 2279.486935 | BQ15: 2073.079449
A16: 15 | B16: 2010-01-14T23:59:59.998 | C16: 5 | D16: Friday | E16: 24768.43866 | F16: 24090.09577 | G16: 23612.09944 | H16: 23519.60016 | I16: 23553.28396 | J16: 24153.51247 | K16: 26484.41863 | L16: 28446.43098 | M16: 29217.81494 | N16: 30602.14771 | O16: 30598.15063 | P16: 31069.35449 | Q16: 31113.98985 | R16: 30769.97239 | S16: 30419.90622 | T16: 30090.58184 | U16: 29755.28483 | V16: 29415.92361 | W16: 28959.54669 | X16: 28669.67397 | Y16: 29969.94853 | Z16: 30000.67786 | AA16: 28234.64898 | AB16: 26476.69807 | AC16: 673992.2007 | AD16: 29688.11116 | AE16: s1 | AF16: d1 | AG16: s1d1 | AJ16: 34 | AK16: 0.09315068493 | AL16: =1-AL15 -> 0.3177570093 | AM16: 23044.07484 | AN16: 0.09202136081 | AO16: =1-AO15 -> 0.3007760611 | AP16: s2 | AQ16: d2 | AR16: s2d2 | AS16: winter weekend | AT16: 881.0117105 | AU16: 839.803086 | AV16: 817.3706992 | AW16: 806.0096559 | AX16: 803.4753894 | AY16: 810.159443 | AZ16: 833.609554 | BA16: 889.9762309 | BB16: 971.1381081 | BC16: 1051.092375 | BD16: 1073.647111 | BE16: 1064.594807 | BF16: 1047.197082 | BG16: 1028.296176 | BH16: 999.4111863 | BI16: 972.2512733 | BJ16: 959.3689276 | BK16: 971.8425869 | BL16: 1041.726383 | BM16: 1127.440613 | BN16: 1113.234265 | BO16: 1057.90585 | BP16: 980.2782196 | BQ16: 903.2341106
A17: 16 | B17: 2010-01-15T23:59:59.998 | C17: 6 | D17: Saturday | E17: 25147.96971 | F17: 24294.91479 | G17: 23773.40422 | H17: 23565.62303 | I17: 23416.99351 | J17: 23467.38848 | K17: 24041.90785 | L17: 25005.62969 | M17: 26938.84651 | N17: 28549.18287 | O17: 29303.08943 | P17: 29078.02659 | Q17: 28951.52689 | R17: 28499.75809 | S17: 27868.55859 | T17: 27282.52409 | U17: 26830.17915 | V17: 26776.71233 | W17: 27040.54405 | X17: 27345.0504 | Y17: 28786.98961 | Z17: 28676.00771 | AA17: 26983.47278 | AB17: 25186.17976 | AC17: 636810.4801 | AD17: 29423.35445 | AE17: s1 | AF17: d2 | AG17: s1d2 | AJ17: 87 | AK17: 0.2383561644 | AL17: =AJ17/(AJ17+AJ18) -> 0.7016129032 | AM17: 60714.69604 | AN17: 0.2424505644 | AO17: =AM17/(AM17+AM18) -> 0.7183670974 | AP17: s3 | AQ17: d1 | AR17: s3d1 | AS17: post-winter weekday | AT17: 2193.154562 | AU17: 2112.75166 | AV17: 2083.221265 | AW17: 2069.76671 | AX17: 2078.436235 | AY17: 2150.610947 | AZ17: 2366.433759 | BA17: 2604.766355 | BB17: 2670.64266 | BC17: 2731.969859 | BD17: 2725.837161 | BE17: 2747.575303 | BF17: 2741.684445 | BG17: 2714.974765 | BH17: 2682.821473 | BI17: 2677.757283 | BJ17: 2691.598907 | BK17: 2698.192998 | BL17: 2701.473503 | BM17: 2779.860658 | BN17: 2849.613866 | BO17: 2740.544042 | BP17: 2545.123753 | BQ17: 2355.883865
A18: 17 | B18: 2010-01-16T23:59:59.998 | C18: 7 | D18: Sunday | E18: 23641.37461 | F18: 22913.07145 | G18: 22430.72167 | H18: 22076.10509 | I18: 21951.72166 | J18: 22040.72393 | K18: 22486.57988 | L18: 23526.41683 | M18: 25375.03471 | N18: 27040.65551 | O18: 27686.83752 | P18: 27748.53904 | Q18: 27694.56473 | R18: 27413.10733 | S18: 26939.09648 | T18: 26139.17995 | U18: 25683.64144 | V18: 25652.53638 | W18: 25982.41046 | X18: 26673.14957 | Y18: 28406.44643 | Z18: 28368.01323 | AA18: 26649.8645 | AB18: 24851.94905 | AC18: 609371.7415 | AD18: 29079.26005 | AE18: s1 | AF18: d2 | AG18: s1d2 | AJ18: 37 | AK18: 0.101369863 | AL18: =1-AL17 -> 0.2983870968 | AM18: 23802.94996 | AN18: 0.09505175895 | AO18: =1-AO17 -> 0.2816329026 | AP18: s3 | AQ18: d2 | AR18: s3d2 | AS18: post-winter weekend | AT18: 921.3657594 | AU18: 881.7578743 | AV18: 862.6913761 | AW18: 851.6962462 | AX18: 849.6238333 | AY18: 858.0791381 | AZ18: 882.7571392 | BA18: 946.0577112 | BB18: 1024.749866 | BC18: 1084.598862 | BD18: 1098.913146 | BE18: 1092.377582 | BF18: 1080.832066 | BG18: 1064.891814 | BH18: 1038.066731 | BI18: 1012.663408 | BJ18: 1000.750646 | BK18: 1002.614467 | BL18: 1020.439899 | BM18: 1076.339873 | BN18: 1122.395497 | BO18: 1081.918788 | BP18: 1006.395312 | BQ18: 940.9729296
A19: 18 | B19: 2010-01-17T23:59:59.998 | C19: 1 | D19: Monday | E19: 23648.56539 | F19: 22802.18231 | G19: 22404.07391 | H19: 22413.5552 | I19: 22497.93054 | J19: 23154.47411 | K19: 25506.68772 | L19: 27684.04818 | M19: 28548.45424 | N19: 30031.64866 | O19: 30377.41868 | P19: 30939.40837 | Q19: 30945.98922 | R19: 30649.88737 | S19: 30590.93913 | T19: 30540.34684 | U19: 30662.86484 | V19: 30583.10079 | W19: 30137.00821 | X19: 29869.3002 | Y19: 31402.10675 | Z19: 31117.76192 | AA19: 29173.42999 | AB19: 26413.56024 | AC19: 672094.7428 | AD19: 29185.03486 | AE19: s1 | AF19: d1 | AG19: s1d1 | AI19: Total | AJ19: =SUM(AJ13:AJ18) -> 365 | AK19: =SUM(AK13:AK18) -> 1 | AM19: =SUM(AM13:AM18) -> 250420.931 | AN19: =SUM(AN13:AN18) -> 1
A20: 19 | B20: 2010-01-18T23:59:59.998 | C20: 2 | D20: Tuesday | E20: 25047.29316 | F20: 24093.64025 | G20: 23730.85995 | H20: 23419.64409 | I20: 23517.57257 | J20: 24132.61369 | K20: 26508.00593 | L20: 28513.09511 | M20: 29232.20202 | N20: 30524.2777 | O20: 30531.88977 | P20: 30817.23478 | Q20: 30951.00669 | R20: 30817.12766 | S20: 30671.26084 | T20: 30565.84122 | U20: 30839.85274 | V20: 30651.53834 | W20: 30244.99488 | X20: 30090.53483 | Y20: 31367.86345 | Z20: 31390.16452 | AA20: 29297.23653 | AB20: 26695.40411 | AC20: 683651.1548 | AD20: 29291.03087 | AE20: s1 | AF20: d1 | AG20: s1d1
A21: 20 | B21: 2010-01-19T23:59:59.998 | C21: 3 | D21: Wednesday | E21: 24958.00075 | F21: 23808.73694 | G21: 23519.32257 | H21: 23454.74262 | I21: 23523.96189 | J21: 24223.41708 | K21: 27058.13964 | L21: 29231.67302 | M21: 29367.95442 | N21: 30324.83615 | O21: 30436.28246 | P21: 30682.29511 | Q21: 30779.20559 | R21: 30607.67419 | S21: 30421.71059 | T21: 30500.65767 | U21: 30912.45688 | V21: 30583.07639 | W21: 30315.90652 | X21: 30505.46691 | Y21: 31359.14117 | Z21: 30942.31497 | AA21: 28784.34449 | AB21: 26223.86337 | AC21: 682525.1814 | AD21: 29393.51843 | AE21: s1 | AF21: d1 | AG21: s1d1 | AQ21: max blocks | AR21: Characterization | AT21: 0 | AU21: =AT21+1 -> 1 | AV21: =AU21+1 -> 2 | AW21: 3 | AX21: 4 | AY21: 5 | AZ21: 6 | BA21: 7 | BB21: 8 | BC21: 9 | BD21: 10 | BE21: 11 | BF21: 12 | BG21: 13 | BH21: 14 | BI21: 15 | BJ21: 16 | BK21: 17 | BL21: 18 | BM21: 19 | BN21: 20 | BO21: 21 | BP21: 22 | BQ21: 23
A22: 21 | B22: 2010-01-20T23:59:59.998 | C22: 4 | D22: Thursday | E22: 24532.17402 | F22: 23853.98167 | G22: 23600.18824 | H22: 23402.44159 | I22: 23415.87839 | J22: 24212.55095 | K22: 26994.92316 | L22: 29332.27728 | M22: 29441.62358 | N22: 30147.91322 | O22: 30400.95074 | P22: 30673.44845 | Q22: 30785.84239 | R22: 30513.76617 | S22: 30382.97832 | T22: 30476.08027 | U22: 30647.11708 | V22: 30641.76971 | W22: 30411.07081 | X22: 30183.09214 | Y22: 31486.68354 | Z22: 31082.94944 | AA22: 29113.39947 | AB22: 26962.98197 | AC22: 682696.0826 | AD22: 29495.27367 | AE22: s1 | AF22: d1 | AG22: s1d1 | AP22: 1 | AQ22: =MAX(AT22:BQ22) -> 3 | AR22: =AR13 -> s1d1 | AS22: =AP22 -> 1 | AT22: 1 | AU22: 1 | AV22: 1 | AW22: 1 | AX22: 1 | AY22: 1 | AZ22: 1 | BA22: 2 | BB22: 2 | BC22: 2 | BD22: 2 | BE22: 2 | BF22: 2 | BG22: 2 | BH22: 2 | BI22: 2 | BJ22: 2 | BK22: 2 | BL22: 3 | BM22: 3 | BN22: 3 | BO22: 3 | BP22: 1 | BQ22: 1
A23: 22 | B23: 2010-01-21T23:59:59.998 | C23: 5 | D23: Friday | E23: 25174.2114 | F23: 24158.1261 | G23: 23757.56377 | H23: 23539.83832 | I23: 23588.40899 | J23: 24310.16527 | K23: 27001.02443 | L23: 29913.27963 | M23: 29963.97003 | N23: 30697.44606 | O23: 31107.24839 | P23: 31176.52895 | Q23: 31128.43363 | R23: 30931.91445 | S23: 30502.69399 | T23: 30396.77978 | U23: 30257.52084 | V23: 29742.77946 | W23: 29342.06395 | X23: 29220.19373 | Y23: 30599.58646 | Z23: 30304.17543 | AA23: 28135.63933 | AB23: 26273.32114 | AC23: 681222.9135 | AD23: 29479.9527 | AE23: s1 | AF23: d1 | AG23: s1d1 | AP23: =AP22+1 -> 2 | AQ23: 3 | AR23: s1d2 | AS23: 2 | AT23: 1 | AU23: 1 | AV23: 1 | AW23: 1 | AX23: 1 | AY23: 1 | AZ23: 1 | BA23: 1 | BB23: 2 | BC23: 2 | BD23: 2 | BE23: 2 | BF23: 2 | BG23: 2 | BH23: 2 | BI23: 2 | BJ23: 2 | BK23: 2 | BL23: 3 | BM23: 3 | BN23: 3 | BO23: 3 | BP23: 1 | BQ23: 1
A24: 23 | B24: 2010-01-22T23:59:59.998 | C24: 6 | D24: Saturday | E24: 25341.55882 | F24: 24348.28696 | G24: 23776.06134 | H24: 23413.77878 | I24: 23329.11399 | J24: 23583.41009 | K24: 24037.66724 | L24: 25247.666 | M24: 27199.7384 | N24: 29011.36853 | O24: 29310.88848 | P24: 28976.3202 | Q24: 28870.76831 | R24: 28534.69754 | S24: 27813.72639 | T24: 27281.5713 | U24: 26982.04937 | V24: 27020.35216 | W24: 27199.21726 | X24: 27773.14957 | Y24: 29091.12642 | Z24: 29076.67376 | AA24: 26994.04045 | AB24: 25226.81576 | AC24: 639440.0472 | AD24: 29251.87915 | AE24: s1 | AF24: d2 | AG24: s1d2 | AP24: =AP23+1 -> 3 | AQ24: 5 | AR24: s2d1 | AS24: 3 | AT24: 1 | AU24: 1 | AV24: 1 | AW24: 1 | AX24: 1 | AY24: 1 | AZ24: 1 | BA24: 2 | BB24: 2 | BC24: 2 | BD24: 2 | BE24: 3 | BF24: 3 | BG24: 3 | BH24: 3 | BI24: 3 | BJ24: 3 | BK24: 3 | BL24: 4 | BM24: 4 | BN24: 4 | BO24: 5 | BP24: 5 | BQ24: 1
A25: 24 | B25: 2010-01-23T23:59:59.998 | C25: 7 | D25: Sunday | E25: 23538.03912 | F25: 22623.67945 | G25: 22186.66972 | H25: 22000.87736 | I25: 21902.58412 | J25: 22140.79566 | K25: 22458.96657 | L25: 23708.6312 | M25: 25873.36514 | N25: 27470.75352 | O25: 27938.42694 | P25: 27978.41176 | Q25: 27939.16131 | R25: 27549.35449 | S25: 26709.70697 | T25: 26171.07841 | U25: 25902.35506 | V25: 26128.52239 | W25: 26763.02015 | X25: 27515.82129 | Y25: 29151.09987 | Z25: 29100.23225 | AA25: 26758.23561 | AB25: 24595.38764 | AC25: 614105.176 | AD25: 29002.99325 | AE25: s1 | AF25: d2 | AG25: s1d2 | AP25: =AP24+1 -> 4 | AQ25: 3 | AR25: s2d2 | AS25: 4 | AT25: 1 | AU25: 1 | AV25: 1 | AW25: 1 | AX25: 1 | AY25: 1 | AZ25: 1 | BA25: 1 | BB25: 2 | BC25: 2 | BD25: 2 | BE25: 2 | BF25: 2 | BG25: 2 | BH25: 2 | BI25: 2 | BJ25: 2 | BK25: 2 | BL25: 3 | BM25: 3 | BN25: 3 | BO25: 3 | BP25: 1 | BQ25: 1
A26: 25 | B26: 2010-01-24T23:59:59.998 | C26: 1 | D26: Monday | E26: 23382.83642 | F26: 22677.32672 | G26: 22418.25707 | H26: 22332.14355 | I26: 22526.55706 | J26: 23290.91274 | K26: 26246.20608 | L26: 29026.41957 | M26: 29500.8145 | N26: 30520.5165 | O26: 30684.28243 | P26: 30921.07074 | Q26: 31068.96554 | R26: 30995.6015 | S26: 30723.0911 | T26: 30840.31387 | U26: 31040.21584 | V26: 30926.3549 | W26: 30515.827 | X26: 30410.11834 | Y26: 32016.58121 | Z26: 31628.48726 | AA26: 29364.69833 | AB26: 26874.20214 | AC26: 679931.8004 | AD26: 29154.27663 | AE26: s1 | AF26: d1 | AG26: s1d1 | AP26: =AP25+1 -> 5 | AQ26: 3 | AR26: s3d1 | AS26: 5 | AT26: 1 | AU26: 1 | AV26: 1 | AW26: 1 | AX26: 1 | AY26: 1 | AZ26: 1 | BA26: 1 | BB26: 2 | BC26: 2 | BD26: 2 | BE26: 2 | BF26: 2 | BG26: 2 | BH26: 2 | BI26: 2 | BJ26: 2 | BK26: 2 | BL26: 3 | BM26: 3 | BN26: 3 | BO26: 3 | BP26: 1 | BQ26: 1
A27: 26 | B27: 2010-01-25T23:59:59.998 | C27: 2 | D27: Tuesday | E27: 25285.74825 | F27: 24340.94686 | G27: 24065.62842 | H27: 23891.97499 | I27: 24027.39293 | J27: 24741.41267 | K27: 27459.08128 | L27: 29740.40561 | M27: 29900.17961 | N27: 30610.49175 | O27: 30636.20061 | P27: 31039.02981 | Q27: 31128.99569 | R27: 30975.85831 | S27: 30701.87724 | T27: 30753.26288 | U27: 31061.72947 | V27: 31121.71613 | W27: 30892.71896 | X27: 30800.46264 | Y27: 31931.55697 | Z27: 31350.31524 | AA27: 29093.75211 | AB27: 26614.58025 | AC27: 692165.3186 | AD27: 29328.12086 | AE27: s1 | AF27: d1 | AG27: s1d1 | AP27: =AP26+1 -> 6 | AQ27: 3 | AR27: s3d2 | AS27: 6 | AT27: 1 | AU27: 1 | AV27: 1 | AW27: 1 | AX27: 1 | AY27: 1 | AZ27: 1 | BA27: 1 | BB27: 2 | BC27: 2 | BD27: 2 | BE27: 2 | BF27: 2 | BG27: 2 | BH27: 2 | BI27: 2 | BJ27: 2 | BK27: 2 | BL27: 3 | BM27: 3 | BN27: 3 | BO27: 3 | BP27: 1 | BQ27: 1
A28: 27 | B28: 2010-01-26T23:59:59.998 | C28: 3 | D28: Wednesday | E28: 25123.34912 | F28: 24378.09619 | G28: 24035.06032 | H28: 23824.07446 | I28: 23882.22618 | J28: 24715.12056 | K28: 27251.06587 | L28: 29775.14031 | M28: 29975.88082 | N28: 30707.43145 | O28: 30884.87682 | P28: 31140.50415 | Q28: 31216.04165 | R28: 30958.66807 | S28: 30508.66959 | T28: 30569.52791 | U28: 30977.63291 | V28: 30822.13564 | W28: 30544.41856 | X28: 30510.04069 | Y28: 31723.04251 | Z28: 31179.56419 | AA28: 28936.32743 | AB28: 26680.85925 | AC28: 690319.7547 | AD28: 29449.75063 | AE28: s1 | AF28: d1 | AG28: s1d1 | AP28: Total blcks | AQ28: =SUM(AQ22:AQ27) -> 20
A29: 28 | B29: 2010-01-27T23:59:59.998 | C29: 4 | D29: Thursday | E29: 25207.20217 | F29: 24211.84393 | G29: 23864.12432 | H29: 23782.02252 | I29: 23841.8619 | J29: 24623.94459 | K29: 27249.70669 | L29: 29809.45796 | M29: 30124.78005 | N29: 30947.90501 | O29: 30922.13944 | P29: 31166.55095 | Q29: 31108.95048 | R29: 30988.94123 | S29: 30495.24179 | T29: 30646.36479 | U29: 30855.75848 | V29: 30955.65638 | W29: 30755.70014 | X29: 30768.51108 | Y29: 31949.04233 | Z29: 31474.34755 | AA29: 29078.72478 | AB29: 26698.0444 | AC29: 691526.823 | AD29: 29580.34558 | AE29: s1 | AF29: d1 | AG29: s1d1
A30: 29 | B30: 2010-01-28T23:59:59.998 | C30: 5 | D30: Friday | E30: 25312.06702 | F30: 24502.24749 | G30: 24143.81986 | H30: 23977.76313 | I30: 24027.96884 | J30: 24850.03635 | K30: 27557.16128 | L30: 30034.25457 | M30: 30255.9352 | N30: 31027.63679 | O30: 31134.17617 | P30: 31483.47715 | Q30: 31423.37348 | R30: 31092.56516 | S30: 30483.83556 | T30: 30310.29798 | U30: 29975.28244 | V30: 29700.92752 | W30: 29373.0006 | X30: 29424.66237 | Y30: 30803.35566 | Z30: 30617.63195 | AA30: 28695.17062 | AB30: 26956.28648 | AC30: 687162.9337 | AD30: 29559.61108 | AE30: s1 | AF30: d1 | AG30: s1d1 | AP30: select day | AQ30: 1 | AR30: =VLOOKUP(AQ30,$AP$22:$AR$27,3,FALSE) -> s1d1 | AS30: avg pwr | AT30: =SUMIF($AR$13:$AR$18,$AR30,AT$13:AT$18)/SUMIF($AR$13:$AR$18,$AR30,$AK$13:$AK$18)/8.76*24 -> 24707.89122 | AU30: =SUMIF($AR$13:$AR$18,$AR30,AU$13:AU$18)/SUMIF($AR$13:$AR$18,$AR30,$AK$13:$AK$18)/8.76*24 -> 23874.72318 | AV30: 23539.76004 | AW30: 23384.32955 | AX30: 23476.5565 | AY30: 24225.97993 | AZ30: 26776.55066 | BA30: 29700.15988 | BB30: 30134.08102 | BC30: 30822.38731 | BD30: 30799.11105 | BE30: 31039.12053 | BF30: 30981.88729 | BG30: 30716.51889 | BH30: 30356.97061 | BI30: 30342.67754 | BJ30: 30517.89625 | BK30: 30560.68138 | BL30: 30716.60657 | BM30: 31561.70338 | BN30: 32077.2388 | BO30: 30962.79745 | BP30: 28811.38023 | BQ30: 26551.99854
A31: 30 | B31: 2010-01-29T23:59:59.998 | C31: 6 | D31: Saturday | E31: 25578.00401 | F31: 24437.64124 | G31: 24006.26862 | H31: 23800.94444 | I31: 23665.03485 | J31: 23974.1821 | K31: 24381.26993 | L31: 25437.61443 | M31: 27385.75191 | N31: 29177.94843 | O31: 29405.61485 | P31: 29156.11092 | Q31: 28789.4236 | R31: 28498.40285 | S31: 27801.6729 | T31: 27032.77512 | U31: 26757.15872 | V31: 26851.27813 | W31: 26881.71124 | X31: 27219.26092 | Y31: 28941.59954 | Z31: 28651.09038 | AA31: 26719.11774 | AB31: 25132.75406 | AC31: 639682.6309 | AD31: 29291.8211 | AE31: s1 | AF31: d2 | AG31: s1d2 | AR31: =VLOOKUP(AR30,AR13:AS18,2,FALSE) -> Pre-winter weekday | AS31: day with peak | AT31: =OFFSET($E$1,$AP$5,AT$12) -> 25156.21783 | AU31: =OFFSET($E$1,$AP$5,AU$12) -> 23877.12354 | AV31: 23610.5294 | AW31: 23474.52463 | AX31: 23766.58572 | AY31: 24897.58682 | AZ31: 28028.37481 | BA31: 32580.20486 | BB31: 33508.50045 | BC31: 34146.53088 | BD31: 34113.28118 | BE31: 34325.47926 | BF31: 33793.00205 | BG31: 33006.04682 | BH31: 32409.40277 | BI31: 32117.57654 | BJ31: 32459.28911 | BK31: 33002.18426 | BL31: 35021.99309 | BM31: 37240.22764 | BN31: 36661.2247 | BO31: 35232.70098 | BP31: 32048.33426 | BQ31: 28620.47162
A32: 31 | B32: 2010-01-30T23:59:59.998 | C32: 7 | D32: Sunday | E32: 23802.3808 | F32: 22902.18253 | G32: 22370.11002 | H32: 22093.69371 | I32: 21927.97326 | J32: 22107.04511 | K32: 22431.84826 | L32: 23731.41571 | M32: 25919.3125 | N32: 27617.35122 | O32: 28085.27591 | P32: 28178.20909 | Q32: 28007.84374 | R32: 27633.94129 | S32: 26929.67208 | T32: 26101.63166 | U32: 25727.41935 | V32: 25781.90438 | W32: 26214.95257 | X32: 27025.92745 | Y32: 29308.81624 | Z32: 29135.81283 | AA32: 26942.48826 | AB32: 24968.09553 | AC32: 614945.3035 | AD32: 28984.13425 | AE32: s1 | AF32: d2 | AG32: s1d2 | AS32: blck avg w/o corr | AT32: =SUMIF($AR$51:$AR$90,$AR30&"b"&SUMIF($AR$22:$AR$27,$AR30,AT$22:AT$27),$BB$51:$BB$90) -> 25038.79665 | AU32: 25038.79665 | AV32: 25038.79665 | AW32: 25038.79665 | AX32: 25038.79665 | AY32: 25038.79665 | AZ32: 25038.79665 | BA32: 30542.86289 | BB32: 30542.86289 | BC32: 30542.86289 | BD32: 30542.86289 | BE32: 30542.86289 | BF32: 30542.86289 | BG32: 30542.86289 | BH32: 30542.86289 | BI32: 30542.86289 | BJ32: 30542.86289 | BK32: 30542.86289 | BL32: 31329.58655 | BM32: 31329.58655 | BN32: 31329.58655 | BO32: 31329.58655 | BP32: 25038.79665 | BQ32: 25038.79665
A33: 32 | B33: 2010-01-31T23:59:59.998 | C33: 1 | D33: Monday | E33: 23528.80897 | F33: 22516.029 | G33: 22227.39788 | H33: 22048.59867 | I33: 22174.57264 | J33: 23043.40992 | K33: 25743.77543 | L33: 28653.78418 | M33: 29071.18044 | N33: 30224.34082 | O33: 30503.97931 | P33: 30889.93718 | Q33: 30770.86087 | R33: 30633.04675 | S33: 30408.69333 | T33: 30469.23617 | U33: 30764.97449 | V33: 30861.75781 | W33: 30471.09409 | X33: 30524.48597 | Y33: 31861.62469 | Z33: 31106.41418 | AA33: 28806.42311 | AB33: 26301.81493 | AC33: 673606.2408 | AD33: 29132.83023 | AE33: s1 | AF33: d1 | AG33: s1d1 | AS33: blck avg w corr | AT33: =SUMIF($AR$51:$AR$90,$AR30&"b"&SUMIF($AR$22:$AR$27,$AR30,AT$22:AT$27),$BH$51:$BH$90) -> 24985.15582 | AU33: 24985.15582 | AV33: 24985.15582 | AW33: 24985.15582 | AX33: 24985.15582 | AY33: 24985.15582 | AZ33: 24985.15582 | BA33: 30477.43064 | BB33: 30477.43064 | BC33: 30477.43064 | BD33: 30477.43064 | BE33: 30477.43064 | BF33: 30477.43064 | BG33: 30477.43064 | BH33: 30477.43064 | BI33: 30477.43064 | BJ33: 30477.43064 | BK33: 30477.43064 | BL33: 31262.4689 | BM33: 31262.4689 | BN33: 31262.4689 | BO33: 31262.4689 | BP33: 24985.15582 | BQ33: 24985.15582
A34: 33 | B34: 2010-02-01T23:59:59.998 | C34: 2 | D34: Tuesday | E34: 24895.11458 | F34: 23860.41358 | G34: 23504.06309 | H34: 23330.92446 | I34: 23475.67459 | J34: 24449.80564 | K34: 27330.62651 | L34: 29929.3835 | M34: 29950.12392 | N34: 30628.46985 | O34: 30666.37426 | P34: 30951.03193 | Q34: 30873.12662 | R34: 30612.27011 | S34: 30390.85176 | T34: 30547.84485 | U34: 30783.62322 | V34: 30915.53082 | W34: 30851.48822 | X34: 30922.88744 | Y34: 32130.6233 | Z34: 31215.61748 | AA34: 28838.69015 | AB34: 26440.11551 | AC34: 687494.6754 | AD34: 29304.69603 | AE34: s1 | AF34: d1 | AG34: s1d1
A35: 34 | B35: 2010-02-02T23:59:59.998 | C35: 3 | D35: Wednesday | E35: 24952.17044 | F35: 24256.02715 | G35: 23862.47214 | H35: 23784.45567 | I35: 23861.04567 | J35: 24500.2458 | K35: 27104.08824 | L35: 29931.52766 | M35: 30051.03602 | N35: 30642.69315 | O35: 30709.23199 | P35: 30910.68476 | Q35: 30901.55889 | R35: 30888.36314 | S35: 30579.20675 | T35: 30743.25785 | U35: 31028.99032 | V35: 31264.26054 | W35: 31036.56966 | X35: 31038.98871 | Y35: 31986.91294 | Z35: 31218.58685 | AA35: 28844.0456 | AB35: 26430.82387 | AC35: 690527.2438 | AD35: 29477.88339 | AE35: s1 | AF35: d1 | AG35: s1d1
A36: 35 | B36: 2010-02-03T23:59:59.998 | C36: 4 | D36: Thursday | E36: 24844.13448 | F36: 24062.44885 | G36: 23676.60409 | H36: 23605.90977 | I36: 23634.49503 | J36: 24483.42829 | K36: 27459.11994 | L36: 30220.7022 | M36: 30243.04764 | N36: 30871.18772 | O36: 30838.73824 | P36: 31195.19447 | Q36: 31227.31435 | R36: 30950.77321 | S36: 30618.69757 | T36: 30615.83726 | U36: 30991.27183 | V36: 31045.03901 | W36: 30948.18441 | X36: 30986.77357 | Y36: 32277.47034 | Z36: 31589.86803 | AA36: 29197.87036 | AB36: 26705.61436 | AC36: 692289.725 | AD36: 29624.91349 | AE36: s1 | AF36: d1 | AG36: s1d1
A37: 36 | B37: 2010-02-04T23:59:59.998 | C37: 5 | D37: Friday | E37: 25158.48707 | F37: 24321.55124 | G37: 23965.59814 | H37: 23793.2903 | I37: 23858.3678 | J37: 24762.81541 | K37: 27630.57531 | L37: 30300.14709 | M37: 30522.76825 | N37: 31329.77787 | O37: 31181.48709 | P37: 31573.96347 | Q37: 31489.73252 | R37: 31190.12844 | S37: 30600.11295 | T37: 30249.93681 | U37: 30088.85349 | V37: 29811.86597 | W37: 29567.01245 | X37: 29603.13829 | Y37: 31147.90199 | Z37: 30811.92766 | AA37: 28757.48572 | AB37: 26822.16385 | AC37: 688539.0892 | AD37: 29619.12339 | AE37: s1 | AF37: d1 | AG37: s1d1
A38: 37 | B38: 2010-02-05T23:59:59.998 | C38: 6 | D38: Saturday | E38: 25190.67669 | F38: 24292.07169 | G38: 23715.42528 | H38: 23417.82475 | I38: 23247.63202 | J38: 23434.2979 | K38: 24222.63976 | L38: 25598.72688 | M38: 27713.42196 | N38: 29556.35978 | O38: 29812.60145 | P38: 29549.7007 | Q38: 29294.30802 | R38: 28903.67181 | S38: 28140.04963 | T38: 27606.36322 | U38: 27151.67858 | V38: 27246.31427 | W38: 27395.71176 | X38: 27911.40167 | Y38: 29535.16019 | Z38: 29082.54925 | AA38: 27193.11855 | AB38: 25210.75015 | AC38: 644422.456 | AD38: 29396.78223 | AE38: s1 | AF38: d2 | AG38: s1d2
A39: 38 | B39: 2010-02-06T23:59:59.998 | C39: 7 | D39: Sunday | E39: 23753.62008 | F39: 22780.75556 | G39: 22208.14998 | H39: 21735.52743 | I39: 21695.15112 | J39: 21956.41 | K39: 22279.48237 | L39: 23671.81339 | M39: 25919.44013 | N39: 27670.83031 | O39: 28197.43857 | P39: 28230.59683 | Q39: 28194.85172 | R39: 27786.7655 | S39: 27067.7428 | T39: 26243.97129 | U39: 25900.27394 | V39: 25912.09986 | W39: 26340.33716 | X39: 27373.83323 | Y39: 29538.51473 | Z39: 28908.80216 | AA39: 26717.85946 | AB39: 24531.52618 | AC39: 614615.7938 | AD39: 29091.13772 | AE39: s1 | AF39: d2 | AG39: s1d2
A40: 39 | B40: 2010-02-07T23:59:59.998 | C40: 1 | D40: Monday | E40: 23082.2121 | F40: 22635.85121 | G40: 22360.99722 | H40: 22326.2199 | I40: 22431.35665 | J40: 23254.43932 | K40: 26106.78669 | L40: 28974.89459 | M40: 29243.58907 | N40: 30435.60083 | O40: 30777.51145 | P40: 31161.44672 | Q40: 31329.68927 | R40: 31067.70048 | S40: 30716.67487 | T40: 30890.85241 | U40: 31202.04251 | V40: 31064.79447 | W40: 30832.53178 | X40: 30658.06194 | Y40: 32136.67357 | Z40: 31321.0853 | AA40: 28962.2588 | AB40: 26350.46016 | AC40: 679323.7313 | AD40: 29265.27713 | AE40: s1 | AF40: d1 | AG40: s1d1
A41: 40 | B41: 2010-02-08T23:59:59.998 | C41: 2 | D41: Tuesday | E41: 24968.59078 | F41: 24255.06856 | G41: 23945.74986 | H41: 23711.85278 | I41: 23812.20054 | J41: 24537.41903 | K41: 27298.41923 | L41: 30052.27956 | M41: 29867.63844 | N41: 30653.53729 | O41: 30624.91435 | P41: 30830.28338 | Q41: 30871.26812 | R41: 30643.37272 | S41: 30567.70711 | T41: 30510.31575 | U41: 30816.25678 | V41: 30805.63722 | W41: 30630.72805 | X41: 30779.10589 | Y41: 31955.17634 | Z41: 30894.25258 | AA41: 28867.39296 | AB41: 26280.81359 | AC41: 688179.9809 | AD41: 29401.82222 | AE41: s1 | AF41: d1 | AG41: s1d1
A42: 41 | B42: 2010-02-09T23:59:59.998 | C42: 3 | D42: Wednesday | E42: 25206.95691 | F42: 24300.53766 | G42: 23887.13937 | H42: 23637.28733 | I42: 23748.5809 | J42: 24480.2262 | K42: 27316.66368 | L42: 30061.66788 | M42: 30068.28435 | N42: 30647.99214 | O42: 30813.59068 | P42: 31272.43697 | Q42: 31131.01473 | R42: 31007.69885 | S42: 30633.97964 | T42: 30775.69517 | U42: 31106.20756 | V42: 31242.59249 | W42: 31099.34437 | X42: 31356.29585 | Y42: 32225.46513 | Z42: 31009.79855 | AA42: 28769.82951 | AB42: 26523.64361 | AC42: 692322.9295 | AD42: 29571.57443 | AE42: s1 | AF42: d1 | AG42: s1d1
A43: 42 | B43: 2010-02-10T23:59:59.998 | C43: 4 | D43: Thursday | E43: 24974.92515 | F43: 24169.91175 | G43: 23753.64439 | H43: 23430.59658 | I43: 23562.90225 | J43: 24374.63007 | K43: 27465.88934 | L43: 30404.59911 | M43: 30156.45725 | N43: 30707.50672 | O43: 30829.0385 | P43: 31129.77872 | Q43: 31141.04513 | R43: 30905.16543 | S43: 30732.36538 | T43: 30848.46365 | U43: 31104.87911 | V43: 31244.28056 | W43: 31073.64757 | X43: 31338.04489 | Y43: 32485.93396 | Z43: 31526.74596 | AA43: 29082.42829 | AB43: 26609.7358 | AC43: 693052.6156 | AD43: 29721.78175 | AE43: s1 | AF43: d1 | AG43: s1d1
A44: 43 | B44: 2010-02-11T23:59:59.998 | C44: 5 | D44: Friday | E44: 25257.96727 | F44: 24131.04624 | G44: 23659.64014 | H44: 23659.93189 | I44: 23911.88177 | J44: 24686.14565 | K44: 27652.96634 | L44: 30379.89558 | M44: 30445.52115 | N44: 31198.88247 | O44: 31140.85625 | P44: 31513.66894 | Q44: 31416.88729 | R44: 30961.0692 | S44: 30579.83987 | T44: 30276.9499 | U44: 30006.75175 | V44: 29557.21022 | W44: 29310.64916 | X44: 29506.66516 | Y44: 31264.08046 | Z44: 30674.63401 | AA44: 28649.20815 | AB44: 26570.65811 | AC44: 686413.007 | AD44: 29680.66849 | AE44: s1 | AF44: d1 | AG44: s1d1
A45: 44 | B45: 2010-02-12T23:59:59.998 | C45: 6 | D45: Saturday | E45: 25238.58473 | F45: 24380.10505 | G45: 23772.90076 | H45: 23521.95576 | I45: 23510.08049 | J45: 23682.51681 | K45: 24383.27347 | L45: 25579.85662 | M45: 27522.30039 | N45: 29449.38556 | O45: 29682.69515 | P45: 29491.23343 | Q45: 29122.58118 | R45: 28901.28913 | S45: 28110.68207 | T45: 27528.70234 | U45: 27458.7885 | V45: 27216.77451 | W45: 27530.8047 | X45: 28343.85982 | Y45: 29841.9727 | Z45: 28885.06662 | AA45: 27078.79028 | AB45: 25117.9587 | AC45: 645352.1588 | AD45: 29465.68211 | AE45: s1 | AF45: d2 | AG45: s1d2
A46: 45 | B46: 2010-02-13T23:59:59.998 | C46: 7 | D46: Sunday | E46: 23796.10937 | F46: 23114.25784 | G46: 22540.99934 | H46: 22266.07278 | I46: 22041.56882 | J46: 22167.4374 | K46: 22559.95212 | L46: 23616.2322 | M46: 25747.50149 | N46: 27413.64704 | O46: 27988.81551 | P46: 27694.83 | Q46: 27834.96383 | R46: 27672.92925 | S46: 26867.01667 | T46: 26168.90281 | U46: 25824.8446 | V46: 25970.26417 | W46: 26379.19968 | X46: 27153.39174 | Y46: 29503.55982 | Z46: 29156.10856 | AA46: 26831.02406 | AB46: 24975.78108 | AC46: 615285.4102 | AD46: 29157.03387 | AE46: s1 | AF46: d2 | AG46: s1d2
A47: 46 | B47: 2010-02-14T23:59:59.998 | C47: 1 | D47: Monday | E47: 23658.97949 | F47: 22792.55467 | G47: 22489.43245 | H47: 22327.12694 | I47: 22489.90269 | J47: 23145.58589 | K47: 25816.82067 | L47: 29165.63822 | M47: 29419.43917 | N47: 30472.86832 | O47: 30907.12458 | P47: 31435.48864 | Q47: 31526.8974 | R47: 31149.10987 | S47: 30859.4509 | T47: 30867.61058 | U47: 31126.61843 | V47: 31037.41933 | W47: 30801.17411 | X47: 31102.87037 | Y47: 32605.07771 | Z47: 31824.69567 | AA47: 29290.51328 | AB47: 26992.89829 | AC47: 683305.2977 | AD47: 29321.44789 | AE47: s1 | AF47: d1 | AG47: s1d1
A48: 47 | B48: 2010-02-15T23:59:59.998 | C48: 2 | D48: Tuesday | E48: 25414.78812 | F48: 24665.30565 | G48: 24428.9791 | H48: 24160.80924 | I48: 24234.17662 | J48: 24978.88353 | K48: 27665.79464 | L48: 30464.88369 | M48: 30369.10467 | N48: 31068.89135 | O48: 30952.16238 | P48: 31219.21684 | Q48: 31269.72609 | R48: 31087.96381 | S48: 30737.04577 | T48: 30896.87981 | U48: 31293.03238 | V48: 31321.3984 | W48: 30960.5839 | X48: 31140.9267 | Y48: 32632.28733 | Z48: 31818.80842 | AA48: 29394.11901 | AB48: 26831.36434 | AC48: 699007.1318 | AD48: 29485.36149 | AE48: s1 | AF48: d1 | AG48: s1d1
A49: 48 | B49: 2010-02-16T23:59:59.998 | C49: 3 | D49: Wednesday | E49: 25515.20926 | F49: 24640.5479 | G49: 24389.86524 | H49: 24218.62527 | I49: 24270.31592 | J49: 24968.76163 | K49: 27640.89937 | L49: 30407.59447 | M49: 30346.88483 | N49: 30883.28125 | O49: 30956.51086 | P49: 31219.24127 | Q49: 31347.16801 | R49: 31142.88223 | S49: 30957.11165 | T49: 30982.66299 | U49: 31149.71296 | V49: 31148.8163 | W49: 30942.28842 | X49: 31295.07849 | Y49: 32634.87206 | Z49: 31632.46624 | AA49: 29455.5745 | AB49: 27118.87622 | AC49: 699265.2473 | AD49: 29631.05418 | AE49: s1 | AF49: d1 | AG49: s1d1 | AS49: week | AT49: season | AU49: day | AV49: block | AW49: Peak | AX49: Duration | AY49: Duration (%) | AZ49: Duration (N) | BA49: Energy | BB49: Avg Pwr | BC49: Engy sh w p | BD49: Engy err | BE49: Engy w Cor | BF49: share w corr | BG49: share (N) | BH49: Pwr w Cor | BI49: Rank | BJ49: Ordered Pwr | BK49: Cum duration
A50: 49 | B50: 2010-02-17T23:59:59.998 | C50: 4 | D50: Thursday | E50: 25796.79616 | F50: 24902.2457 | G50: 24515.10143 | H50: 24256.52357 | I50: 24262.29708 | J50: 25001.97458 | K50: 27772.6597 | L50: 30429.76351 | M50: 30456.39721 | N50: 30983.32556 | O50: 30944.01619 | P50: 31291.08132 | Q50: 31322.49397 | R50: 31051.66506 | S50: 30618.51687 | T50: 30781.48003 | U50: 31084.49912 | V50: 31164.22508 | W50: 30876.62621 | X50: 31045.71135 | Y50: 32633.52236 | Z50: 31539.73712 | AA50: 29401.75745 | AB50: 27014.85887 | AC50: 699147.2755 | AD50: 29755.61139 | AE50: s1 | AF50: d1 | AG50: s1d1 | AX50: hrs | AY50: % | BA50: GWh | BB50: MW | BC50: % | BE50: GWh | BF50: % | BH50: MW | BJ50: MW
A51: 50 | B51: 2010-02-18T23:59:59.998 | C51: 5 | D51: Friday | E51: 25540.12107 | F51: 24702.80682 | G51: 24386.71469 | H51: 24250.72127 | I51: 24282.08358 | J51: 25106.91886 | K51: 27703.53932 | L51: 30411.57471 | M51: 30650.11578 | N51: 31468.77645 | O51: 31469.61447 | P51: 31806.686 | Q51: 31799.01466 | R51: 31517.3962 | S51: 30954.60972 | T51: 30647.88922 | U51: 30411.60183 | V51: 30097.28299 | W51: 29916.77962 | X51: 30175.05002 | Y51: 31744.66486 | Z51: 30790.48542 | AA51: 28916.65964 | AB51: 27109.29933 | AC51: 695860.4065 | AD51: 29771.72821 | AE51: s1 | AF51: d1 | AG51: s1d1 | AQ51: 1 | AR51: =IF(AQ51>$AQ$28,"","s"&AT51&"d"&AU51&"b"&AV51) -> s1d1b1 | AS51: =SUMIF($AR$22:$AR$27,LEFT(AR51,4),$AP$22:$AP$27) -> 1 | AT51: 1 | AU51: 1 | AV51: 1 | AX51: =IF(AQ51>$AQ$28,"",COUNTIF(OFFSET($AS$21,$AS51,1,1,24),AV51)) -> 9 | AY51: =IF(AQ51>$AQ$28,"",AX51/24*SUMIF($AR$13:$AR$18,LEFT($AR51,4),$AK$13:$AK$18)) -> 0.09349315068 | AZ51: =IF(AQ51>$AQ$28,"",AY51/SUMIF($AR$51:$AR$90,LEFT(AR51,4)&"*",$AY$51:$AY$90)) -> 0.375 | BA51: =IF(AQ51>$AQ$28,"",SUMIF(OFFSET($AS$21,$AS51,1,1,24),$AV51,OFFSET($AS$12,$AS51,1,1,24))) -> 20506.77446 | BB51: =IF(AQ51>$AQ$28,"",BA51/AY51/8.76) -> 25038.79665 | BC51: =IF(AQ51>$AQ$28,"",BA51/SUMIF($AW$51:$AW$90,"",$BA$51:$BA$90)) -> 0.08446459659 | BD51: =IF(AQ51>$AQ$28,"",IF(AW51,$AO$5*AY51*8.76-BA51,0)) -> 0 | BE51: =IF(AQ51>$AQ$28,"",IF(AW51,BD51+BA51,BA51-BC51*SUM($BD$51:$BD$90))) -> 20462.84261 | BF51: =IF(AQ51>$AQ$28,"",BE51/$AM$19) -> 0.08171378701 | BG51: =IF(AQ51>$AQ$28,"",BF51/SUMIF($AR$51:$AR$90,LEFT(AR51,4)&"*",$BF$51:$BF$90)) -> 0.3281916222 | BH51: =IF(AQ51>$AQ$28,"",BE51/AY51/8.76) -> 24985.15582 | BI51: =IF(AQ51>$AQ$28,"",RANK(BH51,$BH$51:$BH$90)) -> 18 | BJ51: =SUMIF($BI$51:$BI$90,AQ51,$BH$51:$BH$90) -> 37240.22764 | BK51: =SUMIF($BI$51:$BI$90,AQ51,$AY$51:$AY$90)*8760 -> 219
A52: 51 | B52: 2010-02-19T23:59:59.998 | C52: 6 | D52: Saturday | E52: 25709.51086 | F52: 24681.99654 | G52: 24232.89127 | H52: 23964.94109 | I52: 23851.48399 | J52: 24153.75306 | K52: 24797.38185 | L52: 26025.64256 | M52: 28011.67102 | N52: 29759.10192 | O52: 29991.76076 | P52: 29723.38289 | Q52: 29473.66542 | R52: 29181.83064 | S52: 28319.36899 | T52: 27652.10278 | U52: 27325.79199 | V52: 27309.66431 | W52: 27722.68887 | X52: 28673.33888 | Y52: 30408.38823 | Z52: 29229.65264 | AA52: 27410.18309 | AB52: 25640.16287 | AC52: 653250.3565 | AD52: 29566.82428 | AE52: s1 | AF52: d2 | AG52: s1d2 | AQ52: =AQ51+1 -> 2 | AR52: s1d1b2 | AS52: 1 | AT52: =IF(AQ52>$AQ$28,"",IF(AU52+AV52=2,AT51+1,AT51)) -> 1 | AU52: =IF(AQ52>$AQ$28,"",IF(AND(AU51=2,AV52=1),1,IF(AV52=1,AU51+1,AU51))) -> 1 | AV52: =IF(AQ52>$AQ$28,"",IF(SUMIF($AR$22:$AR$27,"s"&AT51&"d"&AU51,$AQ$22:$AQ$27)=AV51,1,AV51+1)) -> 2 | AX52: =IF(AQ52>$AQ$28,"",COUNTIF(OFFSET($AS$21,$AS52,1,1,24),AV52)) -> 11 | AY52: =IF(AQ52>$AQ$28,"",AX52/24*SUMIF($AR$13:$AR$18,LEFT($AR52,4),$AK$13:$AK$18)) -> 0.1142694064 | AZ52: =IF(AQ52>$AQ$28,"",AY52/SUMIF($AR$51:$AR$90,LEFT(AR52,4)&"*",$AY$51:$AY$90)) -> 0.4583333333 | BA52: 30573.40575 | BB52: 30542.86289 | BC52: 0.1259276728 | BD52: 0 | BE52: 30507.90807 | BF52: 0.1218265101 | BG52: =IF(AQ52>$AQ$28,"",BF52/SUMIF($AR$51:$AR$90,LEFT(AR52,4)&"*",$BF$51:$BF$90)) -> 0.4892985804 | BH52: 30477.43064 | BI52: 9 | BJ52: 33031.09322 | BK52: =SUMIF($BI$51:$BI$90,AQ52,$AY$51:$AY$90)*8760+BK51 -> 511
A53: 52 | B53: 2010-02-20T23:59:59.998 | C53: 7 | D53: Sunday | E53: 24293.39918 | F53: 23284.8123 | G53: 22809.09491 | H53: 22463.05054 | I53: 22382.62613 | J53: 22438.62144 | K53: 22927.97757 | L53: 24029.50946 | M53: 26122.15469 | N53: 27739.84327 | O53: 28382.80338 | P53: 28359.17182 | Q53: 28139.57686 | R53: 27746.86909 | S53: 27066.71817 | T53: 26407.4664 | U53: 26092.91084 | V53: 26170.09529 | W53: 26696.22743 | X53: 28027.76079 | Y53: 30164.95781 | Z53: 29130.91748 | AA53: 27075.90445 | AB53: 24950.11072 | AC53: 622902.58 | AD53: 29279.76459 | AE53: s1 | AF53: d2 | AG53: s1d2 | AQ53: =AQ52+1 -> 3 | AR53: s1d1b3 | AS53: 1 | AT53: 1 | AU53: 1 | AV53: 3 | AX53: 4 | AY53: 0.04155251142 | AZ53: 0.1666666667 | BA53: 11403.9695 | BB53: 31329.58655 | BC53: 0.04697138918 | BD53: 0 | BE53: 11379.53868 | BF53: 0.04544164355 | BG53: 0.1825097974 | BH53: 31262.4689 | BI53: 7 | BJ53: 32382.93388 | BK53: 657
A54: 53 | B54: 2010-02-21T23:59:59.998 | C54: 1 | D54: Monday | E54: 23781.29557 | F54: 22956.85671 | G54: 22740.24762 | H54: 22634.01204 | I54: 22734.52035 | J54: 23432.1393 | K54: 26192.91848 | L54: 29529.24695 | M54: 29824.38748 | N54: 30813.62053 | O54: 31057.32126 | P54: 31382.78867 | Q54: 31461.4224 | R54: 31279.64949 | S54: 30920.29694 | T54: 30932.01485 | U54: 31161.21076 | V54: 31162.58295 | W54: 30959.72849 | X54: 31403.37044 | Y54: 32908.19131 | Z54: 31668.1076 | AA54: 29420.4402 | AB54: 26702.26284 | AC54: 687058.6332 | AD54: 29447.76098 | AE54: s1 | AF54: d1 | AG54: s1d1 | AQ54: 4 | AR54: s1d2b1 | AS54: 2 | AT54: 1 | AU54: 2 | AV54: 1 | AX54: 10 | AY54: 0.04908675799 | AZ54: 0.4166666667 | BA54: 10173.88088 | BB54: 23660.1881 | BC54: 0.04190482255 | BD54: 0 | BE54: 10152.08529 | BF54: 0.04054008286 | BG54: 0.3795693591 | BH54: 23609.50067 | BI54: 20 | BJ54: 32166.16907 | BK54: 1168
A55: 54 | B55: 2010-02-22T23:59:59.998 | C55: 2 | D55: Tuesday | E55: 25295.4881 | F55: 24444.07332 | G55: 24162.98796 | H55: 23911.62917 | I55: 24060.02725 | J55: 24869.78255 | K55: 27637.786 | L55: 30431.12812 | M55: 30487.34489 | N55: 31192.0583 | O55: 31213.69795 | P55: 31514.29151 | Q55: 31475.70333 | R55: 31216.64345 | S55: 31064.78093 | T55: 31096.89385 | U55: 31300.00617 | V55: 31372.97269 | W55: 31137.01591 | X55: 31361.07498 | Y55: 32782.89046 | Z55: 31563.10405 | AA55: 29325.40698 | AB55: 26705.1435 | AC55: 699621.9314 | AD55: 29616.68647 | AE55: s1 | AF55: d1 | AG55: s1d1 | AQ55: 5 | AR55: s1d2b2 | AS55: 2 | AT55: 1 | AU55: 2 | AV55: 2 | AX55: 10 | AY55: 0.04908675799 | AZ55: 0.4166666667 | BA55: 11761.35018 | BB55: 27351.97716 | BC55: 0.04844339125 | BD55: 0 | BE55: 11736.15374 | BF55: 0.04686570604 | BG55: 0.4387950086 | BH55: 27293.38078 | BI55: 14 | BJ55: 31845.65318 | BK55: 1304
A56: 55 | B56: 2010-02-23T23:59:59.998 | C56: 3 | D56: Wednesday | E56: 25368.33658 | F56: 24618.73068 | G56: 24348.27259 | H56: 24101.13007 | I56: 24241.0572 | J56: 25017.64057 | K56: 27884.21616 | L56: 30479.8558 | M56: 30427.64333 | N56: 31141.98298 | O56: 31207.44106 | P56: 31472.04549 | Q56: 31500.38494 | R56: 31375.45635 | S56: 31020.01929 | T56: 31107.88707 | U56: 31387.95111 | V56: 31454.62196 | W56: 31288.61285 | X56: 31343.98368 | Y56: 32787.4336 | Z56: 31850.71736 | AA56: 29709.6455 | AB56: 27283.7155 | AC56: 702418.7817 | AD56: 29783.87911 | AE56: s1 | AF56: d1 | AG56: s1d1 | AQ56: 6 | AR56: s1d2b3 | AS56: 2 | AT56: 1 | AU56: 2 | AV56: 3 | AX56: 4 | AY56: 0.0196347032 | AZ56: 0.1666666667 | BA56: 4868.515444 | BB56: 28305.32235 | BC56: 0.02005274861 | BD56: 0 | BE56: 4858.085581 | BF56: 0.01939967862 | BG56: 0.1816356323 | BH56: 28244.68361 | BI56: 13 | BJ56: 31746.47562 | BK56: 1652
A57: 56 | B57: 2010-02-24T23:59:59.998 | C57: 4 | D57: Thursday | E57: 25766.68719 | F57: 24824.32661 | G57: 24398.38646 | H57: 24141.92573 | I57: 24317.60449 | J57: 25105.33503 | K57: 27872.18338 | L57: 30472.13564 | M57: 30421.65379 | N57: 31087.96081 | O57: 31259.11421 | P57: 31478.03294 | Q57: 31481.80639 | R57: 31389.55286 | S57: 31194.92303 | T57: 31088.44813 | U57: 31440.95288 | V57: 31465.84614 | W57: 31222.73141 | X57: 31625.96357 | Y57: 32767.59712 | Z57: 31504.36436 | AA57: 29329.41148 | AB57: 27288.7789 | AC57: 702945.7226 | AD57: 29927.76434 | AE57: s1 | AF57: d1 | AG57: s1d1 | AQ57: 7 | AR57: s2d1b1 | AS57: 3 | AT57: 2 | AU57: 1 | AV57: 1 | AX57: 8 | AY57: 0.06666666667 | AZ57: 0.3333333333 | BA57: 15059.77943 | BB57: 25787.29354 | BC57: 0.06202916976 | BD57: 0 | BE57: 15027.51673 | BF57: 0.06000902829 | BG57: 0.278323289 | BH57: 25732.0492 | BI57: 16 | BJ57: 31262.4689 | BK57: 2016
A58: 57 | B58: 2010-02-25T23:59:59.998 | C58: 5 | D58: Friday | E58: 25875.07811 | F58: 24857.42156 | G58: 24453.64082 | H58: 24291.82478 | I58: 24258.36507 | J58: 25032.58043 | K58: 27826.95961 | L58: 30437.25028 | M58: 30645.98438 | N58: 31456.1622 | O58: 31515.1321 | P58: 31801.85761 | Q58: 31636.59532 | R58: 31374.6476 | S58: 30636.03714 | T58: 30543.60008 | U58: 30235.28639 | V58: 29737.34326 | W58: 29568.72243 | X58: 29908.4313 | Y58: 31302.79544 | Z58: 30364.90365 | AA58: 28517.25065 | AB58: 26693.03386 | AC58: 692970.904 | AD58: 29891.86015 | AE58: s1 | AF58: d1 | AG58: s1d1 | AQ58: 8 | AR58: s2d1b2 | AS58: 3 | AT58: 2 | AU58: 1 | AV58: 2 | AX58: 4 | AY58: 0.03333333333 | AZ58: 0.1666666667 | BA58: 9665.786319 | BB58: 33102.00794 | BC58: 0.03981205059 | BD58: 0 | BE58: 9645.07922 | BF58: 0.03851546747 | BG58: 0.1786356468 | BH58: 33031.09322 | BI58: 2 | BJ58: 31063.25815 | BK58: 2886
A59: 58 | B59: 2010-02-26T23:59:59.998 | C59: 6 | D59: Saturday | E59: 25338.919 | F59: 24855.20408 | G59: 24394.63313 | H59: 24015.09284 | I59: 23925.60602 | J59: 24102.46091 | K59: 24850.25059 | L59: 26180.58743 | M59: 28088.26117 | N59: 29710.01035 | O59: 29999.99162 | P59: 29554.32101 | Q59: 29332.20238 | R59: 29243.74383 | S59: 28459.02812 | T59: 27703.22335 | U59: 27497.8043 | V59: 27509.05303 | W59: 27924.14647 | X59: 28875.40872 | Y59: 30662.90387 | Z59: 29328.96386 | AA59: 27390.83983 | AB59: 25684.63758 | AC59: 654627.2935 | AD59: 29695.08878 | AE59: s1 | AF59: d2 | AG59: s1d2 | AQ59: 9 | AR59: s2d1b3 | AS59: 3 | AT59: 2 | AU59: 1 | AV59: 3 | AX59: 7 | AY59: 0.05833333333 | AZ59: 0.2916666667 | BA59: 16472.20094 | BB59: 32235.22688 | BC59: 0.0678467406 | BD59: 0 | BE59: 16436.9124 | BF59: 0.06563713478 | BG59: 0.3044265796 | BH59: 32166.16907 | BI59: 4 | BJ59: 30477.43064 | BK59: 3887
A60: 59 | B60: 2010-02-27T23:59:59.998 | C60: 7 | D60: Sunday | E60: 24222.67853 | F60: 22919.29609 | G60: 22362.24085 | H60: 22091.12053 | I60: 21996.14772 | J60: 22141.05254 | K60: 22693.40248 | L60: 23770.36794 | M60: 25871.95037 | N60: 27608.56155 | O60: 28192.5417 | P60: 28158.48444 | Q60: 28055.48988 | R60: 27605.83682 | S60: 26870.17914 | T60: 26163.62835 | U60: 25859.80642 | V60: 25834.58002 | W60: 26464.01102 | X60: 27913.39642 | Y60: 30055.44986 | Z60: 29004.76382 | AA60: 26653.73992 | AB60: 24666.24857 | AC60: 617174.975 | AD60: 29371.98101 | AE60: s1 | AF60: d2 | AG60: s1d2 | AQ60: 10 | AR60: s2d1b4 | AS60: 3 | AT60: 2 | AU60: 1 | AV60: 4 | AW60: 1 | AX60: 3 | AY60: 0.025 | AZ60: 0.125 | BA60: 7635.488482 | BB60: 34865.24421 | BC60: 0.03144953175 | BD60: 520.1213721 | BE60: 8155.609854 | BF60: 0.03256760457 | BG60: 0.1510493183 | BH60: 37240.22764 | BI60: 1 | BJ60: 29756.23267 | BK60: 4227
A61: 60 | B61: 2010-02-28T23:59:59.998 | C61: 1 | D61: Monday | E61: 23486.69726 | F61: 22694.80887 | G61: 22581.02577 | H61: 22484.72696 | I61: 22642.54795 | J61: 23419.56361 | K61: 26182.72202 | L61: 29414.22218 | M61: 29695.89004 | N61: 30562.91692 | O61: 30682.9435 | P61: 30937.78089 | Q61: 30877.75962 | R61: 30705.09669 | S61: 30398.91591 | T61: 30318.05732 | U61: 30660.82077 | V61: 30745.33693 | W61: 30514.78325 | X61: 31189.30424 | Y61: 33060.16668 | Z61: 31765.94496 | AA61: 29221.24549 | AB61: 26669.90985 | AC61: 680913.1876 | AD61: 29486.26123 | AE61: s1 | AF61: d1 | AG61: s1d1 | AQ61: 11 | AR61: s2d1b5 | AS61: 3 | AT61: 2 | AU61: 1 | AV61: 5 | AX61: 2 | AY61: 0.01666666667 | AZ61: 0.08333333333 | BA61: 4738.058732 | BB61: 32452.45707 | BC61: 0.01951541527 | BD61: 0 | BE61: 4727.908347 | BF61: 0.01887984494 | BG61: 0.08756516627 | BH61: 32382.93388 | BI61: 3 | BJ61: 28999.18773 | BK61: 4375
A62: 61 | B62: 2010-03-01T23:59:59.998 | C62: 2 | D62: Tuesday | E62: 25271.75267 | F62: 24409.50445 | G62: 24090.53738 | H62: 24005.29989 | I62: 23933.60667 | J62: 24666.55298 | K62: 27426.18824 | L62: 30331.19643 | M62: 30122.66096 | N62: 30576.3364 | O62: 30499.27609 | P62: 30777.55687 | Q62: 30775.37884 | R62: 30600.69154 | S62: 30221.94207 | T62: 30389.97446 | U62: 30738.72001 | V62: 30814.18382 | W62: 30690.35076 | X62: 31381.01399 | Y62: 33033.50343 | Z62: 31554.06046 | AA62: 29259.59902 | AB62: 26757.65067 | AC62: 692327.5381 | AD62: 29606.67018 | AE62: s1 | AF62: d1 | AG62: s1d1 | AQ62: 12 | AR62: s2d2b1 | AS62: 4 | AT62: 2 | AU62: 2 | AV62: 1 | AX62: 10 | AY62: 0.03881278539 | AZ62: 0.4166666667 | BA62: 8564.928099 | BB62: 25190.965 | BC62: 0.03527776629 | BD62: 0 | BE62: 8546.579379 | BF62: 0.03412885395 | BG62: 0.3716759366 | BH62: 25136.99817 | BI62: 17 | BJ62: 28318.81991 | BK62: 4745
A63: 62 | B63: 2010-03-02T23:59:59.998 | C63: 3 | D63: Wednesday | E63: 25368.22705 | F63: 24442.30612 | G63: 24151.88929 | H63: 24045.35672 | I63: 24191.10477 | J63: 24892.58311 | K63: 27704.14305 | L63: 30617.92416 | M63: 30347.90592 | N63: 30807.54665 | O63: 30643.46641 | P63: 30712.90775 | Q63: 30809.48291 | R63: 30662.79421 | S63: 30297.71224 | T63: 30491.07224 | U63: 30889.35057 | V63: 31099.53349 | W63: 30832.66791 | X63: 31659.2702 | Y63: 32937.22166 | Z63: 31485.20898 | AA63: 29206.41856 | AB63: 26975.54329 | AC63: 695271.6373 | AD63: 29729.26996 | AE63: s1 | AF63: d1 | AG63: s1d1 | AQ63: 13 | AR63: s2d2b2 | AS63: 4 | AT63: 2 | AU63: 2 | AV63: 2 | AX63: 10 | AY63: 0.03881278539 | AZ63: 0.4166666667 | BA63: 10138.83963 | BB63: 29820.11657 | BC63: 0.04176049243 | BD63: 0 | BE63: 10117.11911 | BF63: 0.04040045323 | BG63: 0.4399759896 | BH63: 29756.23267 | BI63: 10 | BJ63: 28244.68361 | BK63: 4917
A64: 63 | B64: 2010-03-03T23:59:59.998 | C64: 4 | D64: Thursday | E64: 25516.1927 | F64: 24698.26434 | G64: 24229.30113 | H64: 24164.59506 | I64: 24103.86217 | J64: 24980.62659 | K64: 27595.8486 | L64: 30586.02266 | M64: 30454.71103 | N64: 30888.66875 | O64: 30655.03169 | P64: 30993.83031 | Q64: 31043.40106 | R64: 30921.57408 | S64: 30720.79236 | T64: 30764.80843 | U64: 30837.68383 | V64: 31096.4043 | W64: 30806.18576 | X64: 31546.45352 | Y64: 33023.50238 | Z64: 31519.80283 | AA64: 29013.69214 | AB64: 27096.14874 | AC64: 697257.4045 | AD64: 29836.96154 | AE64: s1 | AF64: d1 | AG64: s1d1 | AQ64: 14 | AR64: s2d2b3 | AS64: 4 | AT64: 2 | AU64: 2 | AV64: 3 | AX64: 4 | AY64: 0.01552511416 | AZ64: 0.1666666667 | BA64: 4340.307111 | BB64: 31914.02287 | BC64: 0.0178771308 | BD64: 0 | BE64: 4331.008833 | BF64: 0.01729491547 | BG64: 0.1883480739 | BH64: 31845.65318 | BI64: 5 | BJ64: 27293.38078 | BK64: 5347
A65: 64 | B65: 2010-03-04T23:59:59.998 | C65: 5 | D65: Friday | E65: 25691.57639 | F65: 24702.73308 | G65: 24406.94682 | H65: 24214.31186 | I65: 24277.7611 | J65: 24946.62121 | K65: 27775.15585 | L65: 30882.32208 | M65: 30871.26003 | N65: 31384.78394 | O65: 31336.65946 | P65: 31492.81591 | Q65: 31506.67332 | R65: 31317.17195 | S65: 30778.67209 | T65: 30672.15903 | U65: 30469.93739 | V65: 30169.52431 | W65: 29919.71891 | X65: 30421.90987 | Y65: 31946.40105 | Z65: 30730.14854 | AA65: 28768.22877 | AB65: 26963.03305 | AC65: 695646.526 | AD65: 29845.23727 | AE65: s1 | AF65: d1 | AG65: s1d1 | AQ65: 15 | AR65: s3d1b1 | AS65: 5 | AT65: 3 | AU65: 1 | AV65: 1 | AX65: 10 | AY65: 0.09931506849 | AZ65: 0.4166666667 | BA65: 22560.14911 | BB65: 25931.20587 | BC65: 0.09292216568 | BD65: 0 | BE65: 22511.81831 | BF65: 0.08989591334 | BG65: 0.3715764153 | BH65: 25875.65323 | BI65: 15 | BJ65: 25875.65323 | BK65: 6217
A66: 65 | B66: 2010-03-05T23:59:59.998 | C66: 6 | D66: Saturday | E66: 25688.26489 | F66: 24551.21136 | G66: 24082.62163 | H66: 23960.47532 | I66: 23943.05942 | J66: 23997.49323 | K66: 24820.60026 | L66: 26173.22923 | M66: 28272.61052 | N66: 29992.03965 | O66: 30243.85762 | P66: 29882.94278 | Q66: 29490.0439 | R66: 29267.8144 | S66: 28695.67637 | T66: 27738.43889 | U66: 27490.80902 | V66: 27480.05051 | W66: 27611.53052 | X66: 29020.1049 | Y66: 30666.8489 | Z66: 29260.25336 | AA66: 27349.61159 | AB66: 25614.5786 | AC66: =SUM(E66:AB66) -> 655294.1669 | AD66: 29621.8666 | AE66: s1 | AF66: d2 | AG66: s1d2 | AQ66: 16 | AR66: s3d1b2 | AS66: 5 | AT66: 3 | AU66: 1 | AV66: 2 | AX66: 10 | AY66: 0.09931506849 | AZ66: 0.4166666667 | BA66: 27083.05486 | BB66: 31129.94811 | BC66: 0.1115513953 | BD66: 0 | BE66: 27025.03459 | BF66: 0.1079184335 | BG66: 0.44607083 | BH66: 31063.25815 | BI66: 8 | BJ66: 25732.0492 | BK66: 6801
A67: 66 | B67: 2010-03-06T23:59:59.998 | C67: 7 | D67: Sunday | E67: 24168.2908 | F67: 23084.45803 | G67: 22556.55506 | H67: 22353.5641 | I67: 22291.13853 | J67: 22358.5821 | K67: 22871.66877 | L67: 24167.80139 | M67: 26351.80437 | N67: 28073.72868 | O67: 28461.06005 | P67: 28446.98742 | Q67: 28396.85686 | R67: 28153.42265 | S67: 27301.60172 | T67: 26449.93751 | U67: 26142.38425 | V67: 26270.95102 | W67: 26553.45198 | X67: 28387.37807 | Y67: 30474.5367 | Z67: 29010.68678 | AA67: 26757.69419 | AB67: 24962.53621 | AC67: 624047.0772 | AD67: 29315.02514 | AE67: =IF(AND(A67>$AJ$6,A67<$AJ$7),"s2",IF(A67<=$AJ$6,"s1","s3")) -> s1 | AF67: d2 | AG67: =AE67&AF67 -> s1d2 | AQ67: 17 | AR67: s3d1b3 | AS67: 5 | AT67: 3 | AU67: 1 | AV67: 3 | AX67: 4 | AY67: 0.0397260274 | AZ67: 0.1666666667 | BA67: 11071.49207 | BB67: 31814.63238 | BC67: 0.04560196014 | BD67: 0 | BE67: 11047.77352 | BF67: 0.04411681353 | BG67: 0.1823527546 | BH67: 31746.47562 | BI67: 6 | BJ67: 25136.99817 | BK67: 7141
A68: =A67+1 -> 67 | B68: 2010-03-07T23:59:59.998 | C68: 1 | D68: Monday | E68: 23771.48012 | F68: 22946.98419 | G68: 22746.06947 | H68: 22732.74301 | I68: 22807.18296 | J68: 23577.65941 | K68: 26323.61986 | L68: 29788.95857 | M68: 30011.89841 | N68: 30843.71007 | O68: 31074.75678 | P68: 31505.90305 | Q68: 31408.59378 | R68: 31330.67091 | S68: 30950.46869 | T68: 31011.64177 | U68: 31231.6123 | V68: 31332.48901 | W68: 31126.51453 | X68: 32066.84042 | Y68: 32854.77711 | Z68: 31210.37064 | AA68: 28948.65185 | AB68: 26551.1877 | AC68: 688154.7846 | AD68: 29496.17408 | AE68: s1 | AF68: d1 | AG68: s1d1 | AQ68: 18 | AR68: s3d2b1 | AS68: 6 | AT68: 3 | AU68: 2 | AV68: 1 | AX68: 10 | AY68: 0.04223744292 | AZ68: 0.4166666667 | BA68: 9001.397319 | BB68: 24328.10086 | BC68: 0.03707552326 | BD68: 0 | BE68: 8982.113547 | BF68: 0.03586806228 | BG68: 0.3781630988 | BH68: 24275.98256 | BI68: 19 | BJ68: 24985.15582 | BK68: 7960
A69: 68 | B69: 2010-03-08T23:59:59.998 | C69: 2 | D69: Tuesday | E69: 25342.40993 | F69: 24600.87718 | G69: 24241.94834 | H69: 24127.08578 | I69: 24164.18768 | J69: 24971.56251 | K69: 27811.4988 | L69: 30873.58287 | M69: 30631.42632 | N69: 31129.48019 | O69: 30986.32855 | P69: 31388.48475 | Q69: 31224.2689 | R69: 31134.64687 | S69: 30861.04439 | T69: 31034.90666 | U69: 31531.66238 | V69: 31756.04185 | W69: 31618.7731 | X69: 32336.83097 | Y69: 33112.15494 | Z69: 31641.58371 | AA69: 29255.75798 | AB69: 27141.62947 | AC69: 702918.1741 | AD69: 29708.43398 | AE69: s1 | AF69: d1 | AG69: s1d1 | AQ69: 19 | AR69: s3d2b2 | AS69: 6 | AT69: 3 | AU69: 2 | AV69: 2 | AX69: 10 | AY69: 0.04223744292 | AZ69: 0.4166666667 | BA69: 10500.45859 | BB69: 28379.61781 | BC69: 0.04324995141 | BD69: 0 | BE69: 10477.96336 | BF69: 0.04184140409 | BG69: 0.4411410604 | BH69: 28318.81991 | BI69: 12 | BJ69: 24275.98256 | BK69: 8330
A70: 69 | B70: 2010-03-09T23:59:59.998 | C70: 3 | D70: Wednesday | E70: 25749.62168 | F70: 24720.89175 | G70: 24285.54936 | H70: 24142.24145 | I70: 24256.58952 | J70: 25016.05156 | K70: 27830.75763 | L70: 30747.05548 | M70: 30683.34226 | N70: 31238.74716 | O70: 31107.89345 | P70: 31429.72933 | Q70: 31379.73211 | R70: 31152.7797 | S70: 30927.19295 | T70: 31087.44772 | U70: 31314.22599 | V70: 31514.90528 | W70: 31165.07065 | X70: 32123.66602 | Y70: 33004.44948 | Z70: 31523.88381 | AA70: 29182.40578 | AB70: 26964.20622 | AC70: 702548.4364 | AD70: 29854.09765 | AE70: s1 | AF70: d1 | AG70: s1d1 | AQ70: 20 | AR70: s3d2b3 | AS70: 6 | AT70: 3 | AU70: 2 | AV70: 3 | AX70: 4 | AY70: 0.01689497717 | AZ70: 0.1666666667 | BA70: 4301.094056 | BB70: 29061.44632 | BC70: 0.01771561759 | BD70: 0 | BE70: 4291.879785 | BF70: 0.01713866237 | BG70: 0.1806958407 | BH70: 28999.18773 | BI70: 11 | BJ70: 23609.50067 | BK70: 8760
A71: 70 | B71: 2010-03-10T23:59:59.998 | C71: 4 | D71: Thursday | E71: 25642.83109 | F71: 24783.22639 | G71: 24440.5637 | H71: 24229.31749 | I71: 24306.34635 | J71: 25094.79586 | K71: 27822.65064 | L71: 30874.67372 | M71: 30695.656 | N71: 31257.02313 | O71: 31165.23314 | P71: 31474.93057 | Q71: 31353.3675 | R71: 31243.16629 | S71: 30955.91954 | T71: 31174.08641 | U71: 31512.11208 | V71: 31672.46205 | W71: 31262.65986 | X71: 32382.38442 | Y71: 33230.07039 | Z71: 31660.19938 | AA71: 29307.82108 | AB71: 26991.51191 | AC71: 704533.009 | AD71: 29994.95387 | AE71: s1 | AF71: d1 | AG71: s1d1 | AQ71: 21 | AS71: 0 | BJ71: 0 | BK71: 8760
A72: 71 | B72: 2010-03-11T23:59:59.998 | C72: 5 | D72: Friday | E72: 25628.7657 | F72: 24840.39148 | G72: 24514.36649 | H72: 24325.17344 | I72: 24398.03134 | J72: 25071.09109 | K72: 27796.46173 | L72: 31006.36234 | M72: 31121.71364 | N72: 31869.68848 | O72: 31736.88316 | P72: 32007.38223 | Q72: 31914.44439 | R72: 31537.54299 | S72: 31117.12335 | T72: 30948.56426 | U72: 30795.68728 | V72: 30393.32834 | W72: 30233.04179 | X72: 31176.87669 | Y72: 32079.01407 | Z72: 30607.93434 | AA72: 28706.65733 | AB72: 26992.48486 | AC72: 700819.0108 | AD72: 30018.76266 | AE72: s1 | AF72: d1 | AG72: s1d1 | AQ72: 22 | AS72: 0 | BJ72: 0 | BK72: 8760
A73: 72 | B73: 2010-03-12T23:59:59.998 | C73: 6 | D73: Saturday | E73: 25595.6143 | F73: 24660.34895 | G73: 24131.30286 | H73: 23929.00495 | I73: 23949.90221 | J73: 24053.55707 | K73: 24829.04914 | L73: 26304.90498 | M73: 28333.67584 | N73: 30162.15718 | O73: 30340.5928 | P73: 30099.6103 | Q73: 29799.21195 | R73: 29443.5142 | S73: 28793.00592 | T73: 28090.49313 | U73: 27788.59619 | V73: 27710.41723 | W73: 28081.49818 | X73: 29579.64673 | Y73: 30713.61298 | Z73: 29178.24146 | AA73: 27305.52891 | AB73: 25680.4491 | AC73: 658553.9366 | AD73: 29825.03621 | AE73: s1 | AF73: d2 | AG73: s1d2 | AQ73: 23 | AS73: 0 | BJ73: 0 | BK73: 8760
A74: 73 | B74: 2010-03-13T23:59:59.998 | C74: 7 | D74: Sunday | E74: 24286.6436 | F74: 23148.3374 | G74: 22662.75115 | H74: 22492.64324 | I74: 22397.06508 | J74: 22429.46934 | K74: 22907.51669 | L74: 24171.03579 | M74: 26379.29676 | N74: 28138.41666 | O74: 28562.13501 | P74: 28545.36705 | Q74: 28471.11326 | R74: 28127.81699 | S74: 27328.55504 | T74: 26429.18345 | U74: 26120.82159 | V74: 26255.31809 | W74: 26598.46403 | X74: 28446.40584 | Y74: 30485.58756 | Z74: 28978.07326 | AA74: 26772.51851 | AB74: 24884.91064 | AC74: 625019.446 | AD74: 29502.37899 | AE74: s1 | AF74: d2 | AG74: s1d2 | AQ74: 24 | AS74: 0 | BJ74: 0 | BK74: 8760
A75: 74 | B75: 2010-03-14T23:59:59.998 | C75: 1 | D75: Monday | E75: 23653.42456 | F75: 22966.92965 | G75: 22718.03802 | H75: 22733.01254 | I75: 22824.16355 | J75: 23646.12085 | K75: 26420.11276 | L75: 29832.89248 | M75: 29996.13071 | N75: 30779.29163 | O75: 30915.46265 | P75: 31333.40179 | Q75: 31280.02643 | R75: 31206.95517 | S75: 30822.17088 | T75: 30880.10956 | U75: 31119.75601 | V75: 31241.38678 | W75: 31098.7311 | X75: 32172.96759 | Y75: 32978.27732 | Z75: 31325.75178 | AA75: 29002.80652 | AB75: 26398.90143 | AC75: 687346.8217 | AD75: 29662.0142 | AE75: s1 | AF75: d1 | AG75: s1d1 | AQ75: 25 | AS75: 0 | BJ75: 0 | BK75: 8760
A76: 75 | B76: 2010-03-15T23:59:59.998 | C76: 2 | D76: Tuesday | E76: 25203.33079 | F76: 24483.63023 | G76: 24169.4439 | H76: 24058.62434 | I76: 24086.56212 | J76: 24866.17502 | K76: 27739.80296 | L76: 30807.00817 | M76: 30622.26219 | N76: 31125.43719 | O76: 30989.83248 | P76: 31361.53143 | Q76: 31194.35071 | R76: 31063.75964 | S76: 30787.19228 | T76: 30974.80075 | U76: 31440.02108 | V76: 31598.09539 | W76: 31628.72432 | X76: 32335.46179 | Y76: 33117.79363 | Z76: 31622.42534 | AA76: 29209.64629 | AB76: 26964.54614 | AC76: 701450.4582 | AD76: 29858.68522 | AE76: s1 | AF76: d1 | AG76: s1d1 | AQ76: =AQ75+1 -> 26 | AS76: 0 | BJ76: 0 | BK76: 8760
A77: 76 | B77: 2010-03-16T23:59:59.998 | C77: 3 | D77: Wednesday | E77: 25577.65948 | F77: 24606.8792 | G77: 24200.91593 | H77: 23991.57238 | I77: 24106.45952 | J77: 24836.54244 | K77: 27656.9087 | L77: 30676.70731 | M77: 30639.40834 | N77: 31198.58672 | O77: 31076.89713 | P77: 31377.17035 | Q77: 31257.90309 | R77: 31052.51334 | S77: 30771.94182 | T77: 30933.81378 | U77: 31130.9434 | V77: 31365.31434 | W77: 31237.01451 | X77: 32283.20818 | Y77: 33008.20144 | Z77: 31478.31119 | AA77: 29139.25895 | AB77: 26769.60323 | AC77: 700373.7348 | AD77: =AD76*(1-$AH$1)+W77*$AH$1 -> 29996.51814 | AE77: s1 | AF77: d1 | AG77: s1d1 | AQ77: 27 | AS77: 0 | BJ77: 0 | BK77: 8760
A78: 77 | B78: 2010-03-17T23:59:59.998 | C78: 4 | D78: Thursday | E78: 25454.15783 | F78: 24415.23849 | G78: 24100.63233 | H78: 23949.8072 | I78: 23966.12351 | J78: 24686.9099 | K78: 27291.6807 | L78: 30455.61909 | M78: 30934.24492 | N78: 31433.2417 | O78: 31258.1995 | P78: 31464.38861 | Q78: 31418.34576 | R78: 31138.71172 | S78: 30741.59155 | T78: 30748.31016 | U78: 31224.50218 | V78: 31360.79561 | W78: 31647.50341 | X78: 32739.73399 | Y78: 33054.58546 | Z78: 31444.79259 | AA78: 29312.22764 | AB78: 26872.60032 | AC78: 701113.9441 | AD78: 30161.61667 | AE78: s1 | AF78: d1 | AG78: s1d1 | AQ78: 28 | AS78: 0 | BJ78: 0 | BK78: 8760
A79: 78 | B79: 2010-03-18T23:59:59.998 | C79: 5 | D79: Friday | E79: 25495.75914 | F79: 24488.0151 | G79: 24212.79033 | H79: 24015.53986 | I79: 24120.26445 | J79: 24942.80671 | K79: 27636.32135 | L79: 30813.75966 | M79: 31058.50915 | N79: 31645.0435 | O79: 31604.53931 | P79: 31852.1916 | Q79: 31719.62936 | R79: 31332.59389 | S79: 30738.07828 | T79: 30555.09665 | U79: 30292.38544 | V79: 30321.64843 | W79: 30456.50646 | X79: 31530.7394 | Y79: 32253.86327 | Z79: 30737.38844 | AA79: 28694.48077 | AB79: 26696.3923 | AC79: 697214.3428 | AD79: 30191.10565 | AE79: s1 | AF79: d1 | AG79: s1d1 | AQ79: 29 | AS79: 0 | BJ79: 0 | BK79: 8760
A80: 79 | B80: 2010-03-19T23:59:59.998 | C80: 6 | D80: Saturday | E80: 25323.32212 | F80: 24814.66343 | G80: 24353.86059 | H80: 24092.66368 | I80: 24094.22494 | J80: 24210.52007 | K80: 25017.56121 | L80: 26524.54235 | M80: 28609.10172 | N80: 30052.81425 | O80: 30371.89157 | P80: 30029.2205 | Q80: 29506.78756 | R80: 29140.52275 | S80: 28414.7342 | T80: 27651.86976 | U80: 27320.43381 | V80: 27178.87134 | W80: 27738.38016 | X80: 29450.61198 | Y80: 30306.72789 | Z80: 28833.80406 | AA80: 27250.77609 | AB80: 25846.38647 | AC80: 656134.2925 | AD80: 29945.8331 | AE80: s1 | AF80: d2 | AG80: s1d2 | AQ80: 30 | AS80: 0 | BJ80: 0 | BK80: 8760
A81: 80 | B81: 2010-03-20T23:59:59.998 | C81: 7 | D81: Sunday | E81: 24383.57425 | F81: 23468.30707 | G81: 22891.43066 | H81: 22613.90475 | I81: 22598.27179 | J81: 22691.3736 | K81: 23100.86809 | L81: 24228.39719 | M81: 26436.12957 | N81: 28057.45748 | O81: 28397.88152 | P81: 28314.74166 | Q81: 28122.62116 | R81: 27623.78197 | S81: 26790.13629 | T81: 25958.73764 | U81: 25745.27042 | V81: 25714.9356 | W81: 26120.52333 | X81: 28377.65831 | Y81: 29552.85154 | Z81: 28323.72975 | AA81: 26433.98309 | AB81: 25032.96401 | AC81: 620979.5308 | AD81: 29563.30212 | AE81: s1 | AF81: d2 | AG81: s1d2 | AQ81: 31 | AS81: 0 | BJ81: 0 | BK81: 8760
A82: 81 | B82: 2010-03-21T23:59:59.998 | C82: 1 | D82: Monday | E82: 23769.01335 | F82: 23152.20544 | G82: 22754.4823 | H82: 22697.1832 | I82: 22700.55374 | J82: 22692.68915 | K82: 23070.18908 | L82: 24107.19037 | M82: 25750.88798 | N82: 27612.54685 | O82: 28512.47972 | P82: 28646.17761 | Q82: 28321.40993 | R82: 27974.31762 | S82: 27072.13773 | T82: 26498.02325 | U82: 26721.60208 | V82: 27169.88325 | W82: 28333.84136 | X82: 30216.84695 | Y82: 31163.96731 | Z82: 29455.45626 | AA82: 27214.40067 | AB82: 25083.02619 | AC82: 630690.5114 | AD82: 29440.35605 | AE82: s1 | AF82: d2 | AG82: s1d2 | AQ82: =AQ81+1 -> 32 | AS82: 0 | BJ82: 0 | BK82: 8760
A83: 82 | B83: 2010-03-22T23:59:59.998 | C83: 2 | D83: Tuesday | E83: 23797.45138 | F83: 23211.75155 | G83: 23073.55962 | H83: 22940.98524 | I83: 23047.71885 | J83: 23822.94192 | K83: 25954.24359 | L83: 29901.84064 | M83: 30766.42647 | N83: 31201.20647 | O83: 31069.11927 | P83: 31225.38228 | Q83: 31264.50823 | R83: 31131.95849 | S83: 30746.53958 | T83: 30842.25299 | U83: 31096.33273 | V83: 31268.00236 | W83: 31581.79733 | X83: 32755.69931 | Y83: 33111.47491 | Z83: 31400.0918 | AA83: 29023.96549 | AB83: 26824.637 | AC83: 691059.8875 | AD83: 29654.50018 | AE83: s1 | AF83: d1 | AG83: s1d1 | AQ83: 33 | AS83: 0 | BJ83: 0 | BK83: 8760
A84: 83 | B84: 2010-03-23T23:59:59.998 | C84: 3 | D84: Wednesday | E84: 25356.60134 | F84: 24569.18042 | G84: 24237.65654 | H84: 24102.37205 | I84: 24241.97121 | J84: 24879.45235 | K84: 27477.25317 | L84: 30491.61644 | M84: 30721.9823 | N84: 31223.90648 | O84: 31076.70049 | P84: 31355.03535 | Q84: 31308.97348 | R84: 31079.32551 | S84: 30649.44563 | T84: 30736.57385 | U84: 30989.28064 | V84: 31159.1233 | W84: 31273.31465 | X84: 32786.92372 | Y84: 33080.24693 | Z84: 31416.45033 | AA84: 29271.24436 | AB84: 27109.90301 | AC84: 700594.5335 | AD84: 29816.38162 | AE84: s1 | AF84: d1 | AG84: s1d1 | AQ84: 34 | AS84: 0 | BJ84: 0 | BK84: 8760
A85: 84 | B85: 2010-03-24T23:59:59.998 | C85: 4 | D85: Thursday | E85: 25715.96762 | F85: 24864.60596 | G85: 24408.15639 | H85: 24333.56351 | I85: 24404.27791 | J85: 25080.09798 | K85: 27594.08068 | L85: 30616.88721 | M85: 30742.53496 | N85: 31120.81253 | O85: 30857.89148 | P85: 31043.37506 | Q85: 31062.25494 | R85: 30833.16072 | S85: 30476.50313 | T85: 30536.51707 | U85: 30734.63771 | V85: 30939.40706 | W85: 31028.61678 | X85: 32496.49964 | Y85: 32867.39789 | Z85: 31178.14719 | AA85: 29101.36613 | AB85: 26818.40042 | AC85: 698855.16 | AD85: 29937.60514 | AE85: s1 | AF85: d1 | AG85: s1d1 | AQ85: 35 | AS85: 0 | BJ85: 0 | BK85: 8760
A86: 85 | B86: 2010-03-25T23:59:59.998 | C86: 5 | D86: Friday | E86: 25462.94968 | F86: 24625.73293 | G86: 24289.2278 | H86: 24146.1311 | I86: 24160.10967 | J86: 24952.80813 | K86: 27325.34374 | L86: 30110.3793 | M86: 30874.07874 | N86: 31547.43809 | O86: 31495.91574 | P86: 31564.68836 | Q86: 31447.24059 | R86: 31144.76419 | S86: 30456.57609 | T86: 30124.79299 | U86: 29853.94206 | V86: 29643.02938 | W86: 29872.04863 | X86: 31474.46028 | Y86: 31932.75084 | Z86: 30396.59459 | AA86: 28548.777 | AB86: 26856.21439 | AC86: 692305.9943 | AD86: 29931.04949 | AE86: s1 | AF86: d1 | AG86: s1d1 | AQ86: 36 | AS86: 0 | BJ86: 0 | BK86: 8760
A87: 86 | B87: 2010-03-26T23:59:59.998 | C87: 6 | D87: Saturday | E87: 25711.19548 | F87: 25096.2706 | G87: 24589.42816 | H87: 24334.4573 | I87: 24244.85429 | J87: 24380.14557 | K87: 25210.20433 | L87: 26633.95501 | M87: 28647.54704 | N87: 30347.00638 | O87: 30309.39991 | P87: 29876.59294 | Q87: 29557.53565 | R87: 29213.5774 | S87: 28592.24497 | T87: 27971.26498 | U87: 27817.40799 | V87: 27750.37628 | W87: 28052.58204 | X87: 30181.95313 | Y87: 30649.49729 | Z87: 29170.3169 | AA87: 27467.84093 | AB87: 25926.88481 | AC87: 661732.5394 | AD87: 29743.20274 | AE87: s1 | AF87: d2 | AG87: s1d2 | AQ87: 37 | AS87: 0 | BJ87: 0 | BK87: 8760
A88: 87 | B88: 2010-03-27T23:59:59.998 | C88: 7 | D88: Sunday | E88: 24574.86288 | F88: 23711.03115 | G88: 23192.69842 | H88: 22982.50011 | I88: 22894.54651 | J88: 22863.45851 | K88: 23268.55578 | L88: 24437.01203 | M88: 26670.7313 | N88: 28212.23187 | O88: 28707.11755 | P88: 28612.22365 | Q88: 28301.0088 | R88: 28017.14958 | S88: 27111.18745 | T88: 26452.92768 | U88: 26003.74343 | V88: 26202.72967 | W88: 26694.01609 | X88: 29275.97679 | Y88: 30291.94142 | Z88: 28914.23859 | AA88: 26993.97627 | AB88: 25401.82393 | AC88: 629787.6895 | AD88: 29438.28408 | AE88: s1 | AF88: d2 | AG88: s1d2 | AQ88: 38 | AS88: 0 | BJ88: 0 | BK88: 8760
A89: 88 | B89: 2010-03-28T23:59:59.998 | C89: 1 | D89: Monday | E89: 24261.6383 | F89: 23047.31687 | G89: 22833.08254 | H89: 22760.15704 | I89: 22853.48227 | J89: 23553.79905 | K89: 25385.61335 | L89: 27829.77565 | M89: 29502.31528 | N89: 30883.08073 | O89: 31106.05166 | P89: 31439.9419 | Q89: 31493.84111 | R89: 31255.51134 | S89: 30942.72112 | T89: 30950.99089 | U89: 31242.59933 | V89: 31297.98246 | W89: 31406.07129 | X89: 32889.27549 | Y89: 32583.08971 | Z89: 30893.4498 | AA89: 28971.39394 | AB89: 26741.80632 | AC89: 686124.9875 | AD89: 29635.0628 | AE89: s1 | AF89: d1 | AG89: s1d1 | AQ89: 39 | AS89: 0 | BJ89: 0 | BK89: 8760
A90: 89 | B90: 2010-03-29T23:59:59.998 | C90: 2 | D90: Tuesday | E90: 25237.80612 | F90: 24555.86787 | G90: 24227.2279 | H90: 24057.98823 | I90: 24069.179 | J90: 24658.18826 | K90: 26473.37564 | L90: 28652.22192 | M90: 30098.8587 | N90: 31197.04211 | O90: 31111.08393 | P90: 31318.26112 | Q90: 31162.66929 | R90: 31030.14394 | S90: 30697.25521 | T90: 30706.11612 | U90: 30994.29517 | V90: 31237.66189 | W90: 31513.14358 | X90: 32992.6284 | Y90: 32598.27084 | Z90: 30865.84737 | AA90: 28872.04354 | AB90: 26724.91302 | AC90: 695052.0892 | AD90: 29822.87088 | AE90: s1 | AF90: d1 | AG90: s1d1 | AQ90: =AQ89+1 -> 40 | AS90: 0 | BJ90: 0 | BK90: 8760
A91: 90 | B91: 2010-03-30T23:59:59.998 | C91: 3 | D91: Wednesday | E91: 25294.75308 | F91: 24481.87628 | G91: 24081.17956 | H91: 23921.62982 | I91: 23929.11634 | J91: 24667.48135 | K91: 26441.54777 | L91: 28666.43237 | M91: 30141.97647 | N91: 31155.28531 | O91: 31065.35559 | P91: 31241.69909 | Q91: 31242.4394 | R91: 30938.25553 | S91: 30628.36084 | T91: 30530.03745 | U91: 30753.14533 | V91: 30734.39881 | W91: 30863.92583 | X91: 32640.29373 | Y91: 32419.67162 | Z91: 30991.48629 | AA91: 28958.28077 | AB91: 26812.74833 | AC91: 692601.3769 | AD91: 29926.97637 | AE91: s1 | AF91: d1 | AG91: s1d1
A92: 91 | B92: 2010-03-31T23:59:59.998 | C92: 4 | D92: Thursday | E92: 25378.97123 | F92: 24507.89052 | G92: 24084.32485 | H92: 23827.93988 | I92: 23946.39876 | J92: 24570.08133 | K92: 26333.8625 | L92: 28439.46528 | M92: 30139.69485 | N92: 31182.42263 | O92: 31091.24489 | P92: 31084.44583 | Q92: 30884.35434 | R92: 30434.79615 | S92: 29880.57904 | T92: 29473.26398 | U92: 29337.28236 | V92: 29170.77275 | W92: 29335.13715 | X92: 30976.28299 | Y92: 30597.91614 | Z92: 29071.64317 | AA92: 27355.02284 | AB92: 25631.03882 | AC92: 676734.8323 | AD92: 29867.79245 | AE92: s1 | AF92: d1 | AG92: s1d1
A93: 92 | B93: 2010-04-01T23:59:59.998 | C93: 5 | D93: Friday | E93: 24055.31543 | F93: 23043.30395 | G93: 22482.25751 | H93: 22195.76292 | I93: 22002.87178 | J93: 22289.17679 | K93: 22680.11331 | L93: 23479.11249 | M93: 25021.7133 | N93: 26368.4862 | O93: 26617.8844 | P93: 26727.12209 | Q93: 26469.44407 | R93: 26063.53764 | S93: 25580.48704 | T93: 24991.75717 | U93: 24742.94844 | V93: 24904.35976 | W93: 25590.23774 | X93: 27671.01513 | Y93: 27651.13908 | Z93: 26452.76389 | AA93: 25050.2601 | AB93: 23724.6238 | AC93: 595855.694 | AD93: 29440.03698 | AE93: s1 | AF93: d2 | AG93: s1d2
A94: 93 | B94: 2010-04-02T23:59:59.998 | C94: 6 | D94: Saturday | E94: 22562.49174 | F94: 21732.0387 | G94: 21370.81171 | H94: 21180.47632 | I94: 21138.28948 | J94: 21326.88113 | K94: 21883.82008 | L94: 23028.68109 | M94: 24852.12867 | N94: 26702.35109 | O94: 27123.73844 | P94: 26862.91374 | Q94: 26362.06729 | R94: 26217.49269 | S94: 25882.11961 | T94: 25272.00781 | U94: 25063.08133 | V94: 25231.27963 | W94: 25947.04165 | X94: 28235.4053 | Y94: 27882.99236 | Z94: 26507.35342 | AA94: 24970.25203 | AB94: 23763.83527 | AC94: 591099.5506 | AD94: 29090.73745 | AE94: s1 | AF94: d2 | AG94: s1d2
A95: 94 | B95: 2010-04-03T23:59:59.998 | C95: 7 | D95: Sunday | E95: 22494.86777 | F95: 21737.66634 | G95: 21245.2435 | H95: 21039.90131 | I95: 21003.01744 | J95: 21096.93117 | K95: 21577.6119 | L95: 22428.92026 | M95: 24230.72669 | N95: 26019.11163 | O95: 26706.72108 | P95: 26735.56939 | Q95: 26563.16856 | R95: 26049.79997 | S95: 25279.69688 | T95: 24483.63922 | U95: 24059.03893 | V95: 24179.81057 | W95: 24971.34593 | X95: 27515.54719 | Y95: 27539.40226 | Z95: 25922.66847 | AA95: 24360.52573 | AB95: 23006.87475 | AC95: 580247.8069 | AD95: 28678.79829 | AE95: s1 | AF95: d2 | AG95: s1d2
A96: 95 | B96: 2010-04-04T23:59:59.998 | C96: 1 | D96: Monday | E96: 21829.38791 | F96: 21135.12826 | G96: 20691.74854 | H96: 20593.31271 | I96: 20424.38869 | J96: 20597.258 | K96: 21273.57234 | L96: 22079.1213 | M96: 23854.95507 | N96: 25873.50657 | O96: 26934.85214 | P96: 27382.39896 | Q96: 27015.32383 | R96: 26546.4058 | S96: 25970.06111 | T96: 25576.34578 | U96: 25509.18712 | V96: 25907.73576 | W96: 27085.00945 | X96: 29366.34508 | Y96: 29180.63915 | Z96: 27509.549 | AA96: 25635.09482 | AB96: 23634.77428 | AC96: 591606.1017 | AD96: 28519.41941 | AE96: s1 | AF96: d2 | AG96: s1d2
A97: 96 | B97: 2010-04-05T23:59:59.998 | C97: 2 | D97: Tuesday | E97: 22390.12049 | F97: 21779.14466 | G97: 21525.9742 | H97: 21395.97464 | I97: 21591.56226 | J97: 22303.56272 | K97: 24238.65136 | L97: 26873.40518 | M97: 28909.74121 | N97: 30372.88242 | O97: 30597.61881 | P97: 30775.67723 | Q97: 30821.25707 | R97: 30524.45661 | S97: 30194.85394 | T97: 30231.82824 | U97: 30373.44227 | V97: 30649.51743 | W97: 31065.30295 | X97: 33015.43628 | Y97: 32431.33953 | Z97: 30642.64149 | AA97: 28368.48683 | AB97: 26009.16317 | AC97: 667082.041 | AD97: 28774.00776 | AE97: s1 | AF97: d1 | AG97: s1d1
A98: 97 | B98: 2010-04-06T23:59:59.998 | C98: 3 | D98: Wednesday | E98: 24419.4218 | F98: 24462.41397 | G98: 24039.19886 | H98: 23919.69967 | I98: 23952.43894 | J98: 24673.75433 | K98: 26406.48344 | L98: 28560.91767 | M98: 30093.7228 | N98: 31072.73132 | O98: 31089.56285 | P98: 31279.81949 | Q98: 31230.0543 | R98: 30986.93865 | S98: 30674.84521 | T98: 30589.06778 | U98: 30743.65544 | V98: 30742.60193 | W98: 30878.40193 | X98: 32617.72227 | Y98: 32384.01698 | Z98: 30957.70872 | AA98: 28908.90118 | AB98: 26862.7713 | AC98: 691546.8508 | AD98: 28984.44718 | AE98: s1 | AF98: d1 | AG98: s1d1
A99: 98 | B99: 2010-04-07T23:59:59.998 | C99: 4 | D99: Thursday | E99: 25449.42159 | F99: 24446.70009 | G99: 24108.41913 | H99: 23865.03135 | I99: 24017.42146 | J99: 24656.61747 | K99: 26611.59623 | L99: 29116.61135 | M99: 30249.54955 | N99: 31166.4692 | O99: 30903.75796 | P99: 31056.8002 | Q99: 31089.23471 | R99: 30954.52516 | S99: 30618.67 | T99: 30581.38619 | U99: 30794.81851 | V99: 30810.31243 | W99: 30940.02346 | X99: 32543.31245 | Y99: 32452.06311 | Z99: 30906.84114 | AA99: 28742.33178 | AB99: 26662.39024 | AC99: 692744.3047 | AD99: 29180.00481 | AE99: s1 | AF99: d1 | AG99: s1d1
A100: 99 | B100: 2010-04-08T23:59:59.998 | C100: 5 | D100: Friday | E100: 25372.01065 | F100: 24450.60433 | G100: 24173.9989 | H100: 24069.72639 | I100: 24190.2261 | J100: 24915.24293 | K100: 26921.65141 | L100: 29361.16166 | M100: 30792.16933 | N100: 31883.18986 | O100: 31742.76412 | P100: 31919.58628 | Q100: 31850.37123 | R100: 31531.82361 | S100: 30828.35089 | T100: 30550.35136 | U100: 30286.74903 | V100: 30005.9648 | W100: 30123.57823 | X100: 31780.85847 | Y100: 31862.62099 | Z100: 30424.03239 | AA100: 28608.00265 | AB100: 26890.0509 | AC100: 694535.0865 | AD100: 29274.36215 | AE100: s1 | AF100: d1 | AG100: s1d1
A101: 100 | B101: 2010-04-09T23:59:59.998 | C101: 6 | D101: Saturday | E101: 25744.28463 | F101: 24897.19174 | G101: 24417.07012 | H101: 24174.33659 | I101: 24091.6656 | J101: 24288.17187 | K101: 24963.20944 | L101: 26304.13186 | M101: 28304.97867 | N101: 30001.37768 | O101: 30182.16145 | P101: 29877.02614 | Q101: 29425.06821 | R101: 29110.13206 | S101: 28599.26625 | T101: 27925.12216 | U101: 27600.07835 | V101: 27626.98723 | W101: 28154.66996 | X101: 30334.57676 | Y101: 30465.21793 | Z101: 28803.14451 | AA101: 27225.03589 | AB101: 25577.01286 | AC101: 658091.918 | AD101: 29162.39293 | AE101: s1 | AF101: d2 | AG101: s1d2
A102: 101 | B102: 2010-04-10T23:59:59.998 | C102: 7 | D102: Sunday | E102: 24076.2312 | F102: 23172.77424 | G102: 22642.96476 | H102: 22469.95051 | I102: 22350.50348 | J102: 22500.10435 | K102: 22981.39818 | L102: 24218.77487 | M102: 26477.41956 | N102: 28181.41082 | O102: 28362.86756 | P102: 28400.97694 | Q102: 28113.18463 | R102: 27770.88234 | S102: 27098.6954 | T102: 26428.34199 | U102: 26007.65601 | V102: 26133.70996 | W102: 26879.05528 | X102: 29378.02009 | Y102: 29997.36945 | Z102: 28336.57994 | AA102: 26430.98688 | AB102: 24765.38646 | AC102: 623175.2449 | AD102: 28934.05917 | AE102: s1 | AF102: d2 | AG102: s1d2
A103: 102 | B103: 2010-04-11T23:59:59.998 | C103: 1 | D103: Monday | E103: 23538.11884 | F103: 23233.05665 | G103: 22985.30386 | H103: 22805.91209 | I103: 23075.20564 | J103: 23758.69585 | K103: 26447.93439 | L103: 30001.64965 | M103: 30291.91467 | N103: 30672.44567 | O103: 30706.41263 | P103: 30707.06764 | Q103: 30654.26883 | R103: 30455.29186 | S103: 30130.28971 | T103: 30171.28439 | U103: 30524.37297 | V103: 30626.26888 | W103: 31105.97049 | X103: 32900.36885 | Y103: 32531.74085 | Z103: 30805.38366 | AA103: 28592.47749 | AB103: 26304.11673 | AC103: 683025.5523 | AD103: 29151.2503 | AE103: s1 | AF103: d1 | AG103: s1d1
A104: 103 | B104: 2010-04-12T23:59:59.998 | C104: 2 | D104: Tuesday | E104: 24832.07449 | F104: 24058.04997 | G104: 23796.92266 | H104: 23601.9475 | I104: 23787.61888 | J104: 24552.56852 | K104: 27110.58032 | L104: 30427.09479 | M104: 30410.35491 | N104: 30565.75442 | O104: 30517.01414 | P104: 30801.31342 | Q104: 30904.17488 | R104: 30305.46741 | S104: 30010.07785 | T104: 30057.51226 | U104: 30314.88487 | V104: 30560.51418 | W104: 31109.7316 | X104: 32858.97699 | Y104: 32524.28134 | Z104: 30748.07229 | AA104: 28511.24564 | AB104: 26440.70805 | AC104: 688806.9414 | AD104: 29347.09843 | AE104: s1 | AF104: d1 | AG104: s1d1
A105: 104 | B105: 2010-04-13T23:59:59.998 | C105: 3 | D105: Wednesday | E105: 25046.30377 | F105: 24059.09843 | G105: 23732.54481 | H105: 23549.09265 | I105: 23761.08668 | J105: 24527.72787 | K105: 27181.33646 | L105: 30565.61283 | M105: 30780.97552 | N105: 30982.61908 | O105: 30812.85876 | P105: 30928.81443 | Q105: 30773.55314 | R105: 30510.49137 | S105: 30212.06732 | T105: 30296.91537 | U105: 30484.60914 | V105: 30752.29586 | W105: 31171.29299 | X105: 33043.99435 | Y105: 32451.05339 | Z105: 31116.92744 | AA105: 28885.5809 | AB105: 26480.57976 | AC105: 692107.4323 | AD105: 29529.51789 | AE105: s1 | AF105: d1 | AG105: s1d1
A106: 105 | B106: 2010-04-14T23:59:59.998 | C106: 4 | D106: Thursday | E106: 24993.45492 | F106: 23904.86782 | G106: 23523.84674 | H106: 23366.87108 | I106: 23566.61862 | J106: 24314.46094 | K106: 26772.15782 | L106: 30302.20713 | M106: 30506.29315 | N106: 30768.98512 | O106: 30609.96052 | P106: 30866.94387 | Q106: 30986.72808 | R106: 30355.97667 | S106: 30106.69949 | T106: 30165.08907 | U106: 30527.97743 | V106: 30611.18034 | W106: 31161.44326 | X106: 33019.81262 | Y106: 32211.75978 | Z106: 30710.63698 | AA106: 28470.35848 | AB106: 26268.55185 | AC106: 688092.8818 | AD106: 29692.71042 | AE106: s1 | AF106: d1 | AG106: s1d1
A107: 106 | B107: 2010-04-15T23:59:59.998 | C107: 5 | D107: Friday | E107: 24965.36253 | F107: 24255.54871 | G107: 23837.78778 | H107: 23690.87774 | I107: 23765.34952 | J107: 24615.45146 | K107: 27240.28349 | L107: 30616.9526 | M107: 30924.7286 | N107: 31328.12562 | O107: 31101.49389 | P107: 31357.73314 | Q107: 31225.46944 | R107: 30873.28452 | S107: 30237.31922 | T107: 30077.52005 | U107: 29906.23116 | V107: 29560.04021 | W107: 30183.17324 | X107: 32153.87322 | Y107: 31475.25879 | Z107: 30015.17227 | AA107: 28238.82888 | AB107: 26367.56327 | AC107: 688013.4294 | AD107: 29741.7567 | AE107: s1 | AF107: d1 | AG107: s1d1
A108: 107 | B108: 2010-04-16T23:59:59.998 | C108: 6 | D108: Saturday | E108: 25075.02292 | F108: 24304.45252 | G108: 23771.4952 | H108: 23404.95793 | I108: 23307.00335 | J108: 23527.6281 | K108: 24369.10551 | L108: 25751.29751 | M108: 27902.61283 | N108: 29802.2893 | O108: 30149.02513 | P108: 29977.09413 | Q108: 29585.09704 | R108: 29149.60025 | S108: 28408.28533 | T108: 27648.8962 | U108: 27258.21988 | V108: 27239.51532 | W108: 28007.86061 | X108: 30559.57126 | Y108: 29929.40082 | Z108: 28517.00171 | AA108: 26695.44448 | AB108: 25095.1141 | AC108: 649435.9914 | AD108: 29568.3671 | AE108: s1 | AF108: d2 | AG108: s1d2
A109: 108 | B109: 2010-04-17T23:59:59.998 | C109: 7 | D109: Sunday | E109: 23743.14846 | F109: 22853.30121 | G109: 22399.21186 | H109: 22114.6575 | I109: 22078.95875 | J109: 22175.685 | K109: 22621.94727 | L109: 23851.65773 | M109: 26187.70234 | N109: 28133.61496 | O109: 28657.31571 | P109: 28610.71648 | Q109: 28502.54499 | R109: 28080.21737 | S109: 27299.00848 | T109: 26473.41811 | U109: 26226.64243 | V109: 26294.39855 | W109: 27319.19248 | X109: 30056.79241 | Y109: 30016.6908 | Z109: 28367.51502 | AA109: 26300.51392 | AB109: 24573.43129 | AC109: 622938.2831 | AD109: 29343.44963 | AE109: s1 | AF109: d2 | AG109: s1d2
A110: 109 | B110: 2010-04-18T23:59:59.998 | C110: 1 | D110: Monday | E110: 23310.38719 | F110: 22653.4416 | G110: 22400.36421 | H110: 22327.57755 | I110: 22456.94516 | J110: 23274.57485 | K110: 26112.71252 | L110: 29920.74145 | M110: 30298.79367 | N110: 30776.9633 | O110: 30786.75976 | P110: 30876.79137 | Q110: 30707.22953 | R110: 30641.69109 | S110: 30166.09491 | T110: 30185.77075 | U110: 30534.68248 | V110: 30746.50807 | W110: 31476.58691 | X110: 33238.47133 | Y110: 32469.47607 | Z110: 30958.53347 | AA110: 28589.09571 | AB110: 26112.55392 | AC110: 681022.7469 | AD110: 29556.76336 | AE110: s1 | AF110: d1 | AG110: s1d1
A111: 110 | B111: 2010-04-19T23:59:59.998 | C111: 2 | D111: Tuesday | E111: 24633.17731 | F111: 23761.90025 | G111: 23475.82599 | H111: 23220.85172 | I111: 23313.03198 | J111: 24243.27437 | K111: 26837.82097 | L111: 30463.37008 | M111: 30831.87971 | N111: 30951.39798 | O111: 30903.09212 | P111: 31054.32119 | Q111: 30994.81321 | R111: 30646.75916 | S111: 30305.45384 | T111: 30211.46275 | U111: 30617.16092 | V111: 30984.09741 | W111: 31709.71039 | X111: 33408.58713 | Y111: 32538.10168 | Z111: 30861.48822 | AA111: 28642.79712 | AB111: 26300.41651 | AC111: 690910.792 | AD111: 29772.05806 | AE111: s1 | AF111: d1 | AG111: s1d1
A112: 111 | B112: 2010-04-20T23:59:59.998 | C112: 3 | D112: Wednesday | E112: 24754.58911 | F112: 23997.59097 | G112: 23690.81952 | H112: 23562.43135 | I112: 23616.40306 | J112: 24548.30128 | K112: 27205.94257 | L112: 30706.07916 | M112: 30853.96595 | N112: 30803.1269 | O112: 30343.817 | P112: 30539.75856 | Q112: 30337.64364 | R112: 29956.12587 | S112: 29622.48826 | T112: 29609.66767 | U112: 30022.41774 | V112: 30156.77421 | W112: 31127.59862 | X112: 33026.7126 | Y112: 32287.01189 | Z112: 30875.12474 | AA112: 28853.02906 | AB112: 26467.27107 | AC112: 686964.6908 | AD112: 29907.61212 | AE112: s1 | AF112: d1 | AG112: s1d1
A113: 112 | B113: 2010-04-21T23:59:59.998 | C113: 4 | D113: Thursday | E113: 24901.53798 | F113: 24540.08531 | G113: 24162.03005 | H113: 23934.17116 | I113: 23980.62943 | J113: 24893.48967 | K113: 27590.80151 | L113: 31078.30535 | M113: 31231.96404 | N113: 31250.25955 | O113: 30879.32269 | P113: 30912.99397 | Q113: 30693.24937 | R113: 30413.65044 | S113: 29923.73303 | T113: 29963.49742 | U113: 30278.91884 | V113: 30181.69663 | W113: 30850.771 | X113: 32876.29089 | Y113: 32359.99521 | Z113: 31048.56352 | AA113: 28810.95749 | AB113: 26818.03555 | AC113: 693574.9501 | AD113: 30001.92801 | AE113: s1 | AF113: d1 | AG113: s1d1
A114: 113 | B114: 2010-04-22T23:59:59.998 | C114: 5 | D114: Friday | E114: 25392.27478 | F114: 24960.26376 | G114: 24333.08933 | H114: 23946.6292 | I114: 24024.96004 | J114: 24161.3123 | K114: 27709.9259 | L114: 31131.22668 | M114: 31365.24625 | N114: 31559.71747 | O114: 31303.56581 | P114: 31170.05426 | Q114: 31089.63228 | R114: 30592.20574 | S114: 29855.93388 | T114: 29625.73725 | U114: 29448.41705 | V114: 29215.16499 | W114: 29879.72145 | X114: 31871.2677 | Y114: 31316.41621 | Z114: 29989.26064 | AA114: 28246.63806 | AB114: 26783.19628 | AC114: 688971.8573 | AD114: 29989.70735 | AE114: s1 | AF114: d1 | AG114: s1d1
A115: 114 | B115: 2010-04-23T23:59:59.998 | C115: 6 | D115: Saturday | E115: 25383.07605 | F115: 23927.88981 | G115: 23422.40834 | H115: 23134.08364 | I115: 23077.43354 | J115: 23260.73689 | K115: 24004.05543 | L115: 25562.16738 | M115: 27575.40996 | N115: 29523.80225 | O115: 29837.59847 | P115: 29394.85019 | Q115: 28861.13875 | R115: 28412.10721 | S115: 27783.67544 | T115: 27135.98371 | U115: 26821.47392 | V115: 27043.19235 | W115: 28289.86234 | X115: 30690.92872 | Y115: 30199.76089 | Z115: 28781.94904 | AA115: 26912.13924 | AB115: 25261.41387 | AC115: 644297.1374 | AD115: 29819.72285 | AE115: s1 | AF115: d2 | AG115: s1d2
A116: 115 | B116: 2010-04-24T23:59:59.998 | C116: 7 | D116: Sunday | E116: 23796.55769 | F116: 23055.41463 | G116: 22525.00983 | H116: 22304.26179 | I116: 22134.16106 | J116: 22275.95435 | K116: 22687.08445 | L116: 24103.14567 | M116: 26328.35368 | N116: 28169.45179 | O116: 28673.21535 | P116: 28603.56787 | Q116: 28392.68896 | R116: 27910.38162 | S116: 27113.88392 | T116: 26208.72647 | U116: 25871.15782 | V116: 26101.36434 | W116: 27472.14806 | X116: 30271.73586 | Y116: 30044.70416 | Z116: 28517.01468 | AA116: 26608.33622 | AB116: 24833.81211 | AC116: 624002.1324 | AD116: 29584.96537 | AE116: s1 | AF116: d2 | AG116: s1d2
A117: 116 | B117: 2010-04-25T23:59:59.998 | C117: 1 | D117: Monday | E117: 23501.63648 | F117: 23010.08991 | G117: 22717.88951 | H117: 22544.20013 | I117: 22634.66966 | J117: 23153.53108 | K117: 25118.53163 | L117: 28242.30566 | M117: 29847.60139 | N117: 30906.81669 | O117: 31197.86269 | P117: 31130.31723 | Q117: 30814.10911 | R117: 30213.51914 | S117: 29560.72297 | T117: 29356.4528 | U117: 29424.28566 | V117: 29614.55568 | W117: 30598.78694 | X117: 32589.06183 | Y117: 31670.19516 | Z117: 30180.05622 | AA117: 28326.92017 | AB117: 25878.51471 | AC117: 672232.6325 | AD117: 29686.34753 | AE117: s1 | AF117: d1 | AG117: s1d1
A118: 117 | B118: 2010-04-26T23:59:59.998 | C118: 2 | D118: Tuesday | E118: 24289.15884 | F118: 23015.41994 | G118: 22637.37823 | H118: 22455.34371 | I118: 22392.71107 | J118: 22504.01831 | K118: 23028.52816 | L118: 24327.18608 | M118: 26201.02896 | N118: 28281.06352 | O118: 29276.07555 | P118: 29354.66117 | Q118: 28942.29128 | R118: 28406.4885 | S118: 27829.70199 | T118: 27310.18803 | U118: 27279.39231 | V118: 27813.49809 | W118: 29454.80907 | X118: 32046.8257 | Y118: 31513.64824 | Z118: 29837.75775 | AA118: 27512.40472 | AB118: 25198.80509 | AC118: 640908.3843 | AD118: 29663.19368 | AE118: s1 | AF118: d2 | AG118: s1d2
A119: 118 | B119: 2010-04-27T23:59:59.998 | C119: 3 | D119: Wednesday | E119: 23826.84978 | F119: 22468.27127 | G119: 22143.42662 | H119: 22132.48929 | I119: 22243.0715 | J119: 23111.60487 | K119: 25789.51385 | L119: 29915.73421 | M119: 30324.76052 | N119: 30632.42705 | O119: 30406.49327 | P119: 30535.02289 | Q119: 30261.68132 | R119: 29942.40615 | S119: 29549.59995 | T119: 29502.59155 | U119: 29945.49397 | V119: 30314.68001 | W119: 31333.07098 | X119: 33300.97621 | Y119: 32476.5286 | Z119: 30957.68259 | AA119: 28663.69695 | AB119: 26297.49038 | AC119: 676075.5638 | AD119: 29830.18141 | AE119: s1 | AF119: d1 | AG119: s1d1
A120: 119 | B120: 2010-04-28T23:59:59.998 | C120: 4 | D120: Thursday | E120: 24653.09983 | F120: 23695.81454 | G120: 23312.86109 | H120: 23269.88733 | I120: 23362.22321 | J120: 24266.87774 | K120: 26896.40087 | L120: 30456.81804 | M120: 30680.05594 | N120: 30790.85519 | O120: 30424.33143 | P120: 30551.10028 | Q120: 30409.3823 | R120: 30033.9131 | S120: 29630.48107 | T120: 29625.02034 | U120: 30013.57321 | V120: 30301.8987 | W120: 31449.20742 | X120: 33261.42358 | Y120: 32367.94886 | Z120: 30877.14938 | AA120: 28710.52403 | AB120: 26309.94534 | AC120: 685350.7928 | AD120: 29992.08401 | AE120: s1 | AF120: d1 | AG120: s1d1
A121: 120 | B121: 2010-04-29T23:59:59.998 | C121: 5 | D121: Friday | E121: 24648.16732 | F121: 23907.32004 | G121: 23601.67563 | H121: 23386.73707 | I121: 23496.24905 | J121: 24381.398 | K121: 26700.841 | L121: 30612.52546 | M121: 30962.73077 | N121: 31197.06546 | O121: 30593.97983 | P121: 30635.41693 | Q121: 30416.39716 | R121: 30188.76125 | S121: 29581.5182 | T121: 29190.34142 | U121: 29103.38288 | V121: 28984.65457 | W121: 30047.7155 | X121: 31869.12621 | Y121: 31081.99821 | Z121: 29826.07151 | AA121: 28020.28128 | AB121: 26095.80606 | AC121: 678530.1608 | AD121: 29997.64716 | AE121: s1 | AF121: d1 | AG121: s1d1
A122: 121 | B122: 2010-04-30T23:59:59.998 | C122: 6 | D122: Saturday | E122: 24668.42743 | F122: 23580.7642 | G122: 23020.96296 | H122: 22726.65274 | I122: 22614.8858 | J122: 22858.96942 | K122: 23454.49147 | L122: 25031.28708 | M122: 26913.57598 | N122: 28758.1651 | O122: 29161.41518 | P122: 28862.54548 | Q122: 28422.40223 | R122: 28022.0983 | S122: 27320.30636 | T122: 26717.49977 | U122: 26423.63771 | V122: 26723.45579 | W122: 27898.11206 | X122: 30186.83034 | Y122: 29586.24431 | Z122: 28225.86605 | AA122: 26508.53086 | AB122: 24924.46673 | AC122: 632611.5933 | AD122: 29787.69365 | AE122: s1 | AF122: d2 | AG122: s1d2
A123: 122 | B123: 2010-05-01T23:59:59.998 | C123: 7 | D123: Sunday | E123: 23510.46571 | F123: 22370.96637 | G123: 21666.23481 | H123: 21510.65675 | I123: 21470.50606 | J123: 21850.91196 | K123: 22402.98925 | L123: 23918.81472 | M123: 26144.81161 | N123: 28192.70358 | O123: 28697.81648 | P123: 28385.65256 | Q123: 28083.30312 | R123: 27745.56375 | S123: 27047.12435 | T123: 26419.43647 | U123: 26132.89379 | V123: 26380.33658 | W123: 27859.8358 | X123: 30518.38609 | Y123: 29982.42836 | Z123: 28211.96692 | AA123: 26285.78161 | AB123: 24863.42698 | AC123: 619653.0137 | AD123: 29594.90787 | AE123: s1 | AF123: d2 | AG123: s1d2
A124: 123 | B124: 2010-05-02T23:59:59.998 | C124: 1 | D124: Monday | E124: 23372.0781 | F124: 22263.44571 | G124: 21924.832 | H124: 21761.65139 | I124: 21954.74283 | J124: 22977.78455 | K124: 26004.20572 | L124: 30127.14613 | M124: 30493.32505 | N124: 30730.09473 | O124: 30521.30546 | P124: 30504.04047 | Q124: 30356.99716 | R124: 29989.42537 | S124: 29509.39536 | T124: 29618.63762 | U124: 29933.25408 | V124: 30215.69339 | W124: 31483.55848 | X124: 33694.12772 | Y124: 33087.07362 | Z124: 31473.20432 | AA124: 29038.81064 | AB124: 26315.67143 | AC124: 677350.5013 | AD124: 29783.77293 | AE124: s1 | AF124: d1 | AG124: s1d1
A125: 124 | B125: 2010-05-03T23:59:59.998 | C125: 2 | D125: Tuesday | E125: 24765.22105 | F125: 23777.28559 | G125: 23350.92742 | H125: 23137.64897 | I125: 23242.10883 | J125: 24190.79077 | K125: 27052.62372 | L125: 30907.8153 | M125: 30886.2463 | N125: 30770.57412 | O125: 30244.74029 | P125: 30232.44265 | Q125: 30070.82848 | R125: 29389.88161 | S125: 29392.52965 | T125: 29558.51022 | U125: 30100.57557 | V125: 30652.39265 | W125: 32079.93479 | X125: 33662.73637 | Y125: 32847.97052 | Z125: 31500.028 | AA125: 29074.54917 | AB125: 26462.62504 | AC125: 687350.9871 | AD125: 30013.38912 | AE125: s1 | AF125: d1 | AG125: s1d1
A126: 125 | B126: 2010-05-04T23:59:59.998 | C126: 3 | D126: Wednesday | E126: 24855.38631 | F126: 24007.06151 | G126: 23669.49427 | H126: 23516.8767 | I126: 23580.83897 | J126: 24349.08298 | K126: 27224.14244 | L126: 31175.37353 | M126: 31159.67901 | N126: 30817.96265 | O126: 30411.96702 | P126: 30445.82917 | Q126: 30338.98295 | R126: 29990.38429 | S126: 29640.69914 | T126: 29725.13811 | U126: 30008.87915 | V126: 30343.24679 | W126: 31872.61403 | X126: 33695.71477 | Y126: 32732.66284 | Z126: 31327.80515 | AA126: 29090.90651 | AB126: 26559.61963 | AC126: 690540.3479 | AD126: 30199.31161 | AE126: s1 | AF126: d1 | AG126: s1d1
A127: 126 | B127: 2010-05-05T23:59:59.998 | C127: 4 | D127: Thursday | E127: 24937.6821 | F127: 23974.57958 | G127: 23590.17035 | H127: 23434.6694 | I127: 23591.61639 | J127: 24426.9444 | K127: 27281.09629 | L127: 31160.76507 | M127: 31272.92271 | N127: 31102.82897 | O127: 30686.91729 | P127: 30669.28784 | Q127: 30464.44374 | R127: 30152.53054 | S127: 29753.60577 | T127: 29865.83497 | U127: 30284.55158 | V127: 30728.69295 | W127: 32040.41207 | X127: 33859.58176 | Y127: 32967.91431 | Z127: 31620.6276 | AA127: 29315.01213 | AB127: 26757.35084 | AC127: 693940.0387 | AD127: 30383.42165 | AE127: s1 | AF127: d1 | AG127: s1d1
A128: 127 | B128: 2010-05-06T23:59:59.998 | C128: 5 | D128: Friday | E128: 25008.72251 | F128: 24115.432 | G128: 23760.6324 | H128: 23590.77136 | I128: 23682.04606 | J128: 24550.52181 | K128: 27476.26442 | L128: 31416.65012 | M128: 31773.0005 | N128: 31892.41169 | O128: 31439.97627 | P128: 31343.19811 | Q128: 31124.1583 | R128: 30588.08021 | S128: 30100.79271 | T128: 29820.03179 | U128: 29688.89312 | V128: 29769.84399 | W128: 31007.0817 | X128: 32935.7176 | Y128: 31925.25093 | Z128: 30693.41126 | AA128: 28853.7695 | AB128: 26867.67584 | AC128: 693424.3342 | AD128: 30445.78766 | AE128: s1 | AF128: d1 | AG128: s1d1
A129: 128 | B129: 2010-05-07T23:59:59.998 | C129: 6 | D129: Saturday | E129: 25400.64059 | F129: 24195.83171 | G129: 23628.88335 | H129: 23346.13345 | I129: 23282.71245 | J129: 23597.42295 | K129: 24345.33337 | L129: 26181.82516 | M129: 28487.8677 | N129: 30272.17702 | O129: 30759.15525 | P129: 30341.44212 | Q129: 29685.37852 | R129: 29266.38347 | S129: 28611.54555 | T129: 27974.66934 | U129: 27795.80008 | V129: 27916.97994 | W129: 29522.41762 | X129: 31526.73804 | Y129: 30730.55547 | Z129: 29166.8585 | AA129: 27308.28208 | AB129: 25430.83558 | AC129: 658775.8693 | AD129: 30353.45065 | AE129: s1 | AF129: d2 | AG129: s1d2
A130: 129 | B130: 2010-05-08T23:59:59.998 | C130: 7 | D130: Sunday | E130: 23960.72699 | F130: 23006.27965 | G130: 22347.55472 | H130: 22129.97938 | I130: 21987.59137 | J130: 22057.1897 | K130: 22570.25801 | L130: 24005.14737 | M130: 26488.87393 | N130: 28555.40816 | O130: 29060.21172 | P130: 28750.02908 | Q130: 28421.28115 | R130: 27938.20468 | S130: 27120.05681 | T130: 26444.01764 | U130: 26098.34802 | V130: 26250.51828 | W130: 28046.96811 | X130: 30835.66449 | Y130: 30513.76819 | Z130: 28862.85502 | AA130: 26541.72273 | AB130: 24759.85793 | AC130: =SUM(E130:AB130) -> 626752.5131 | AD130: 30122.8024 | AE130: s1 | AF130: d2 | AG130: s1d2
A131: 130 | B131: 2010-05-09T23:59:59.998 | C131: 1 | D131: Monday | E131: 23436.90319 | F131: 22602.66576 | G131: 22371.76721 | H131: 22240.90438 | I131: 22406.845 | J131: 23476.59938 | K131: 26565.43231 | L131: 30763.93736 | M131: 31109.34439 | N131: 31269.49328 | O131: 31003.23422 | P131: 31042.39252 | Q131: 31070.08584 | R131: 30719.40034 | S131: 30386.36615 | T131: 30298.57805 | U131: 30667.05032 | V131: 30949.87383 | W131: 32313.25826 | X131: 34288.35228 | Y131: 33261.30506 | Z131: 31671.11513 | AA131: 29170.67194 | AB131: 26446.0861 | AC131: 689531.6623 | AD131: 30341.84799 | AE131: =IF(AND(A131>$AJ$6,A131<$AJ$7),"s2",IF(A131<=$AJ$6,"s1","s3")) -> s1 | AF131: d1 | AG131: =AE131&AF131 -> s1d1
A132: =A131+1 -> 131 | B132: 2010-05-10T23:59:59.998 | C132: 2 | D132: Tuesday | E132: 25051.19335 | F132: 24103.39684 | G132: 23697.58197 | H132: 23651.32733 | I132: 23827.79815 | J132: 24802.21148 | K132: 27745.37688 | L132: 31787.52863 | M132: 31736.06523 | N132: 31483.23821 | O132: 31092.77551 | P132: 31148.97384 | Q132: 30867.90215 | R132: 30458.77677 | S132: 30165.1754 | T132: 30227.63831 | U132: 30570.24913 | V132: 31012.66627 | W132: 32606.67345 | X132: 34181.00162 | Y132: 33232.60956 | Z132: 31691.01233 | AA132: 29179.26863 | AB132: 26406.35666 | AC132: 700726.7977 | AD132: 30568.33053 | AE132: s1 | AF132: d1 | AG132: s1d1
A133: 132 | B133: 2010-05-11T23:59:59.998 | C133: 3 | D133: Wednesday | E133: 24921.22394 | F133: 24176.95879 | G133: 23866.26789 | H133: 23668.01448 | I133: 23873.77845 | J133: 24728.96925 | K133: 27783.53555 | L133: 31866.81723 | M133: 31855.48485 | N133: 31753.0277 | O133: 31221.70363 | P133: 31171.20167 | Q133: 30914.33258 | R133: 30449.46065 | S133: 30058.15048 | T133: 30030.70303 | U133: 30446.56702 | V133: 30913.58553 | W133: 32530.3357 | X133: 34192.30523 | Y133: 33213.22034 | Z133: 31751.92124 | AA133: 29383.49677 | AB133: 26860.55141 | AC133: 701631.6134 | AD133: 30764.53105 | AE133: s1 | AF133: d1 | AG133: s1d1
A134: 133 | B134: 2010-05-12T23:59:59.998 | C134: 4 | D134: Thursday | E134: 25195.25721 | F134: 24294.60812 | G134: 23912.84732 | H134: 23756.5465 | I134: 23872.31743 | J134: 24859.51122 | K134: 27818.90499 | L134: 31947.723 | M134: 31903.17669 | N134: 31719.54731 | O134: 31208.72492 | P134: 31188.2397 | Q134: 30913.54241 | R134: 30505.93658 | S134: 30325.04858 | T134: 30361.64996 | U134: 30588.14994 | V134: 31105.64511 | W134: 32629.06834 | X134: 34203.76222 | Y134: 33268.12577 | Z134: 31753.09269 | AA134: 29446.10935 | AB134: 26808.27367 | AC134: 703585.809 | AD134: 30950.98478 | AE134: s1 | AF134: d1 | AG134: s1d1
A135: 134 | B135: 2010-05-13T23:59:59.997 | C135: 5 | D135: Friday | E135: 25290.18131 | F135: 24383.23014 | G135: 24052.8952 | H135: 23812.29788 | I135: 24036.72345 | J135: 24929.55683 | K135: 28019.39108 | L135: 31915.83968 | M135: 32300.34441 | N135: 32301.50196 | O135: 31831.69445 | P135: 31842.07332 | Q135: 31595.04483 | R135: 31158.02766 | S135: 30606.97325 | T135: 30238.53813 | U135: 29971.73114 | V135: 30107.64936 | W135: 31619.22815 | X135: 33200.85568 | Y135: 32238.67128 | Z135: 30866.96457 | AA135: 28888.2061 | AB135: 26848.34487 | AC135: 702055.9647 | AD135: 31017.80911 | AE135: s1 | AF135: d1 | AG135: s1d1
A136: 135 | B136: 2010-05-14T23:59:59.997 | C136: 6 | D136: Saturday | E136: 25548.48799 | F136: 24508.5892 | G136: 23892.11903 | H136: 23643.9646 | I136: 23541.05692 | J136: 23762.0104 | K136: 24540.31575 | L136: 26289.93895 | M136: 28509.65688 | N136: 30649.34056 | O136: 31151.17452 | P136: 30809.45121 | Q136: 30260.97844 | R136: 29748.63702 | S136: 28995.65931 | T136: 28304.60479 | U136: 27877.84828 | V136: 28112.63481 | W136: 30003.89885 | X136: 31649.76622 | Y136: 30696.27166 | Z136: 29227.35027 | AA136: 27422.1184 | AB136: 25446.04729 | AC136: 664591.9214 | AD136: 30916.41809 | AE136: s2 | AF136: d2 | AG136: s2d2
A137: 136 | B137: 2010-05-15T23:59:59.997 | C137: 7 | D137: Sunday | E137: 24048.01233 | F137: 23036.35687 | G137: 22478.85587 | H137: 22244.81092 | I137: 22185.61209 | J137: 22259.85353 | K137: 22823.9814 | L137: 24201.5729 | M137: 26701.72667 | N137: 28876.79056 | O137: 29598.39551 | P137: 29518.82988 | Q137: 29245.45775 | R137: 28774.47375 | S137: 27877.60647 | T137: 26927.67274 | U137: 26594.23143 | V137: 27035.30888 | W137: 29137.49724 | X137: 31548.45984 | Y137: 31098.37605 | Z137: 29365.33446 | AA137: 26898.8386 | AB137: 24969.35097 | AC137: 637447.4067 | AD137: 30738.526 | AE137: s2 | AF137: d2 | AG137: s2d2
A138: 137 | B138: 2010-05-16T23:59:59.997 | C138: 1 | D138: Monday | E138: 23497.55452 | F138: 22766.46622 | G138: 22513.14706 | H138: 22475.95451 | I138: 22651.32618 | J138: 23712.72859 | K138: 26863.69367 | L138: 31220.24959 | M138: 31656.89832 | N138: 31813.17987 | O138: 31760.69214 | P138: 31830.43083 | Q138: 31643.85747 | R138: 31210.36806 | S138: 30768.92421 | T138: 30767.2272 | U138: 30964.96616 | V138: 31479.70041 | W138: 33239.14784 | X138: 34670.14326 | Y138: 33841.7834 | Z138: 32379.53696 | AA138: 29654.92237 | AB138: 26836.77078 | AC138: 700219.6696 | AD138: 30988.58819 | AE138: s2 | AF138: d1 | AG138: s2d1
A139: 138 | B139: 2010-05-17T23:59:59.997 | C139: 2 | D139: Tuesday | E139: 25367.5255 | F139: 24487.59559 | G139: 24126.89709 | H139: 23935.1262 | I139: 24121.6418 | J139: 25120.48883 | K139: 28112.4675 | L139: 32278.86537 | M139: 32217.97664 | N139: 32082.56597 | O139: 31535.5718 | P139: 31429.96283 | Q139: 31134.42941 | R139: 30772.42925 | S139: 30456.73762 | T139: 30487.77056 | U139: 30808.02155 | V139: 31372.86827 | W139: 33173.72734 | X139: 34537.02012 | Y139: 33470.23103 | Z139: 32125.26129 | AA139: 29657.35722 | AB139: 26886.29444 | AC139: 709698.8332 | AD139: 31207.1021 | AE139: s2 | AF139: d1 | AG139: s2d1
A140: 139 | B140: 2010-05-18T23:59:59.997 | C140: 3 | D140: Wednesday | E140: 25187.6444 | F140: 24387.17855 | G140: 24077.3728 | H140: 23941.14268 | I140: 24127.70666 | J140: 25144.37712 | K140: 28128.39003 | L140: 32154.312 | M140: 32283.92558 | N140: 32285.23227 | O140: 31603.5522 | P140: 31537.83207 | Q140: 31366.53994 | R140: 30969.46765 | S140: 30574.04524 | T140: 30584.13864 | U140: 30900.70792 | V140: 31468.78682 | W140: 33200.11916 | X140: 34615.9067 | Y140: 33683.94502 | Z140: 32313.45705 | AA140: 29788.48259 | AB140: 27223.13482 | AC140: 711547.3979 | AD140: 31406.40381 | AE140: s2 | AF140: d1 | AG140: s2d1
A141: 140 | B141: 2010-05-19T23:59:59.997 | C141: 4 | D141: Thursday | E141: 25481.02803 | F141: 24538.8187 | G141: 24157.35308 | H141: 24094.00755 | I141: 24234.35393 | J141: 25249.10239 | K141: 28108.70979 | L141: 31987.57594 | M141: 32270.86391 | N141: 32344.02827 | O141: 31880.76777 | P141: 31829.26962 | Q141: 31671.39646 | R141: 31367.48814 | S141: 30930.52204 | T141: 30881.86981 | U141: 31166.94528 | V141: 31686.86557 | W141: 33421.26934 | X141: 34708.99379 | Y141: 33754.67339 | Z141: 32385.0659 | AA141: 29825.4251 | AB141: 27214.78616 | AC141: 715191.18 | AD141: =AD140*(1-$AH$1)+W141*$AH$1 -> 31607.89036 | AE141: s2 | AF141: d1 | AG141: s2d1
A142: 141 | B142: 2010-05-20T23:59:59.997 | C142: 5 | D142: Friday | E142: 25707.65032 | F142: 24798.7588 | G142: 24396.61539 | H142: 24162.54984 | I142: 24274.56454 | J142: 25332.0121 | K142: 28190.30303 | L142: 32282.20688 | M142: 32576.91182 | N142: 32685.99537 | O142: 32141.95866 | P142: 31987.61735 | Q142: 31583.09199 | R142: 31167.39023 | S142: 30461.72469 | T142: 30242.82782 | U142: 29976.27802 | V142: 30101.75951 | W142: 31895.28545 | X142: 33381.30536 | Y142: 32584.01197 | Z142: 31269.96913 | AA142: 29390.86196 | AB142: 27298.00714 | AC142: 707889.6574 | AD142: 31636.62987 | AE142: s2 | AF142: d1 | AG142: s2d1
A143: 142 | B143: 2010-05-21T23:59:59.997 | C143: 6 | D143: Saturday | E143: 25737.62533 | F143: 24807.32743 | G143: 24187.59017 | H143: 24001.40323 | I143: 23997.9174 | J143: 24216.09414 | K143: 24966.15157 | L143: 26800.78883 | M143: 29031.88418 | N143: 30889.94277 | O143: 31324.83909 | P143: 30761.58222 | Q143: 30156.36057 | R143: 29631.35766 | S143: 28881.21456 | T143: 28249.3421 | U143: 27784.54263 | V143: 28151.24476 | W143: 30343.06305 | X143: 32044.95112 | Y143: 31047.22808 | Z143: 29690.5122 | AA143: 27794.0458 | AB143: 26029.22696 | AC143: 670526.2358 | AD143: 31507.27319 | AE143: s2 | AF143: d2 | AG143: s2d2
A144: 143 | B144: 2010-05-22T23:59:59.997 | C144: 7 | D144: Sunday | E144: 24629.76896 | F144: 23537.53204 | G144: 22893.15476 | H144: 22566.06986 | I144: 22505.0422 | J144: 22573.92728 | K144: 23133.77175 | L144: 24609.78269 | M144: 26997.27212 | N144: 29419.16287 | O144: 30018.60592 | P144: 29941.03579 | Q144: 29881.68079 | R144: 29548.32259 | S144: 28898.31716 | T144: 28234.04588 | U144: 27932.07915 | V144: 28169.99493 | W144: 30344.17058 | X144: 32228.75162 | Y144: 31745.10131 | Z144: 30056.97798 | AA144: 27650.58275 | AB144: 25658.22793 | AC144: 653173.3789 | AD144: 31390.96293 | AE144: s2 | AF144: d2 | AG144: s2d2
A145: 144 | B145: 2010-05-23T23:59:59.997 | C145: 1 | D145: Monday | E145: 24291.29944 | F145: 23432.96892 | G145: 23165.22433 | H145: 23181.31466 | I145: 23400.37492 | J145: 24295.38462 | K145: 27222.14543 | L145: 31598.77175 | M145: 32090.88931 | N145: 32191.19489 | O145: 32108.0984 | P145: 32305.77924 | Q145: 32200.64886 | R145: 31756.06898 | S145: 31325.21935 | T145: 31324.4634 | U145: 31717.25537 | V145: 32204.7697 | W145: 33820.43573 | X145: 35162.91434 | Y145: 34325.94484 | Z145: 32820.81155 | AA145: 30121.55772 | AB145: 27330.56527 | AC145: 713394.101 | AD145: 31633.91021 | AE145: s2 | AF145: d1 | AG145: s2d1
A146: 145 | B146: 2010-05-24T23:59:59.997 | C146: 2 | D146: Tuesday | E146: 25654.15407 | F146: 24853.83269 | G146: 24348.30332 | H146: 24303.1006 | I146: 24452.41383 | J146: 25500.23851 | K146: 28499.67136 | L146: 32601.3327 | M146: 32908.0751 | N146: 32787.08695 | O146: 32242.02002 | P146: 32277.89227 | Q146: 32154.71521 | R146: 31913.51843 | S146: 31384.86691 | T146: 31222.89058 | U146: 31610.79611 | V146: 32231.22311 | W146: 33975.61883 | X146: 35185.11411 | Y146: 34344.20008 | Z146: 32948.69706 | AA146: 30425.3968 | AB146: 27662.92345 | AC146: 725488.0821 | AD146: 31868.08107 | AE146: s2 | AF146: d1 | AG146: s2d1
A147: 146 | B147: 2010-05-25T23:59:59.997 | C147: 3 | D147: Wednesday | E147: 26113.86292 | F147: 25270.73894 | G147: 24893.11508 | H147: 24656.33558 | I147: 24932.28737 | J147: 25848.83144 | K147: 28852.12656 | L147: 33021.01529 | M147: 33029.057 | N147: 32856.12887 | O147: 32386.67627 | P147: 32145.33118 | Q147: 31858.97161 | R147: 31241.78769 | S147: 30853.75976 | T147: 30829.4735 | U147: 31348.55027 | V147: 32155.49567 | W147: 34125.93371 | X147: 35232.66932 | Y147: 34407.35341 | Z147: 32968.83909 | AA147: 30516.78638 | AB147: 28003.68801 | AC147: 727548.8149 | AD147: 32093.86634 | AE147: s2 | AF147: d1 | AG147: s2d1
A148: 147 | B148: 2010-05-26T23:59:59.997 | C148: 4 | D148: Thursday | E148: 26220.57887 | F148: 25126.10589 | G148: 24739.78196 | H148: 24521.85981 | I148: 24743.66334 | J148: 25837.72644 | K148: 28837.41218 | L148: 32867.48051 | M148: 33050.05977 | N148: 32878.0861 | O148: 32162.00405 | P148: 32011.63372 | Q148: 31720.46354 | R148: 31144.31785 | S148: 30663.22805 | T148: 30689.82951 | U148: 31023.15769 | V148: 31664.92426 | W148: 33647.48284 | X148: 35002.19733 | Y148: 34158.45816 | Z148: 32844.13995 | AA148: 30442.8345 | AB148: 27836.92502 | AC148: 723834.3513 | AD148: 32249.22799 | AE148: s2 | AF148: d1 | AG148: s2d1
A149: 148 | B149: 2010-05-27T23:59:59.997 | C149: 5 | D149: Friday | E149: 26199.67564 | F149: 25133.86743 | G149: 24800.21257 | H149: 24599.06881 | I149: 24777.80067 | J149: 25835.17745 | K149: 28720.4081 | L149: 32692.25182 | M149: 33224.1856 | N149: 33214.76522 | O149: 32609.91949 | P149: 32425.8539 | Q149: 32082.89548 | R149: 31424.12599 | S149: 30589.15546 | T149: 30296.41669 | U149: 30037.08067 | V149: 30201.42628 | W149: 32054.77715 | X149: 33532.7096 | Y149: 32756.79969 | Z149: 31646.20806 | AA149: 29759.99784 | AB149: 27647.93657 | AC149: 716262.7161 | AD149: 32229.7829 | AE149: s2 | AF149: d1 | AG149: s2d1
A150: 149 | B150: 2010-05-28T23:59:59.997 | C150: 6 | D150: Saturday | E150: 26255.57994 | F150: 25100.51654 | G150: 24457.00673 | H150: 24214.64268 | I150: 24162.76026 | J150: 24410.97846 | K150: 25165.80531 | L150: 26817.24691 | M150: 29304.03944 | N150: 31080.83931 | O150: 31275.09933 | P150: 30496.30301 | Q150: 29864.70161 | R150: 29320.043 | S150: 28622.03092 | T150: 28067.61879 | U150: 27808.76854 | V150: 28262.00208 | W150: 30424.23651 | X150: 32143.87822 | Y150: 31334.1313 | Z150: 30064.02629 | AA150: 28195.25143 | AB150: 26403.94941 | AC150: 673251.456 | AD150: 32049.22826 | AE150: s2 | AF150: d2 | AG150: s2d2
A151: 150 | B151: 2010-05-29T23:59:59.997 | C151: 7 | D151: Sunday | E151: 24916.98849 | F151: 23798.00816 | G151: 23241.81947 | H151: 22897.12036 | I151: 22814.7698 | J151: 22856.22562 | K151: 23328.08566 | L151: 24712.94404 | M151: 27136.58831 | N151: 29376.95425 | O151: 30070.83045 | P151: 29802.68439 | Q151: 29509.83878 | R151: 29048.11047 | S151: 28225.69261 | T151: 27433.49715 | U151: 26957.43137 | V151: 27449.6063 | W151: 29833.80125 | X151: 32316.82999 | Y151: 32036.46691 | Z151: 30346.19749 | AA151: 27878.2197 | AB151: 25632.86933 | AC151: 651621.5803 | AD151: 31827.68556 | AE151: s2 | AF151: d2 | AG151: s2d2
A152: 151 | B152: 2010-05-30T23:59:59.997 | C152: 1 | D152: Monday | E152: 24047.26492 | F152: 23453.69978 | G152: 23128.09117 | H152: 23060.83238 | I152: 23204.2784 | J152: 24300.37744 | K152: 27444.37306 | L152: 31756.8295 | M152: 32322.69958 | N152: 32417.03654 | O152: 32133.68106 | P152: 32349.91733 | Q152: 32080.51458 | R152: 31593.75336 | S152: 31179.13681 | T152: 31083.88097 | U152: 31266.86373 | V152: 31802.9451 | W152: 34069.92247 | X152: 35623.42864 | Y152: 34732.1837 | Z152: 33295.10678 | AA152: 30528.05933 | AB152: 27684.84302 | AC152: 714559.7196 | AD152: 32051.90925 | AE152: s2 | AF152: d1 | AG152: s2d1
A153: 152 | B153: 2010-05-31T23:59:59.997 | C153: 2 | D153: Tuesday | E153: 25968.0703 | F153: 24932.94073 | G153: 24424.2848 | H153: 24223.33065 | I153: 24499.84256 | J153: 25444.82027 | K153: 28445.63379 | L153: 32694.02803 | M153: 33077.46252 | N153: 32723.14063 | O153: 32144.24923 | P153: 32094.86295 | Q153: 31920.8929 | R153: 31379.41315 | S153: 30908.37418 | T153: 31020.01984 | U153: 31463.7341 | V153: 32250.47541 | W153: 34523.9449 | X153: 35702.16144 | Y153: 34753.65066 | Z153: 33454.62489 | AA153: 30841.22396 | AB153: 27802.64133 | AC153: 726693.8232 | AD153: 32299.11282 | AE153: s2 | AF153: d1 | AG153: s2d1
A154: 153 | B154: 2010-06-01T23:59:59.997 | C154: 3 | D154: Wednesday | E154: 26025.32143 | F154: 25135.35908 | G154: 24671.8517 | H154: 24526.07496 | I154: 24685.62803 | J154: 25647.59662 | K154: 28624.5569 | L154: 32734.53033 | M154: 33024.1928 | N154: 33000.04708 | O154: 32686.91515 | P154: 32989.06017 | Q154: 32823.26986 | R154: 32339.95557 | S154: 31856.01023 | T154: 31808.40281 | U154: 31984.73144 | V154: 32596.74446 | W154: 34565.94109 | X154: 35630.96229 | Y154: 34699.80754 | Z154: 33542.36682 | AA154: 31056.41761 | AB154: 28078.11534 | AC154: 734733.8593 | AD154: 32525.79564 | AE154: s2 | AF154: d1 | AG154: s2d1
A155: 154 | B155: 2010-06-02T23:59:59.997 | C155: 4 | D155: Thursday | E155: 26205.45388 | F155: 25336.6297 | G155: 24873.04915 | H155: 24763.27244 | I155: 24923.58269 | J155: 25892.55034 | K155: 28773.655 | L155: 33094.83864 | M155: 33513.4849 | N155: 33344.29031 | O155: 32714.95635 | P155: 32733.99375 | Q155: 32430.61507 | R155: 31883.54404 | S155: 31252.13589 | T155: 31356.71486 | U155: 31640.19711 | V155: 32196.89935 | W155: 34375.77328 | X155: 35674.20585 | Y155: 35113.5619 | Z155: 33906.01947 | AA155: 31260.41944 | AB155: 28231.5302 | AC155: 735491.3736 | AD155: 32710.79341 | AE155: s2 | AF155: d1 | AG155: s2d1
A156: 155 | B156: 2010-06-03T23:59:59.997 | C156: 5 | D156: Friday | E156: 26320.18768 | F156: 25418.83003 | G156: 24976.97658 | H156: 24779.65656 | I156: 25054.91427 | J156: 26064.1466 | K156: 29201.64801 | L156: 33516.00448 | M156: 34024.04791 | N156: 34071.57867 | O156: 33389.58475 | P156: 33427.19009 | Q156: 32872.43785 | R156: 32255.3465 | S156: 31506.91413 | T156: 31177.9123 | U156: 30809.21325 | V156: 30986.24077 | W156: 33035.92655 | X156: 34465.58516 | Y156: 33760.35992 | Z156: 32749.28642 | AA156: 30513.03938 | AB156: 28366.96995 | AC156: 732743.9978 | AD156: 32743.30672 | AE156: s2 | AF156: d1 | AG156: s2d1
A157: 156 | B157: 2010-06-04T23:59:59.997 | C157: 6 | D157: Saturday | E157: 26648.75547 | F157: 25516.74695 | G157: 24894.16603 | H157: 24536.76367 | I157: 24452.71214 | J157: 24678.33883 | K157: 25561.33312 | L157: 27378.11597 | M157: 29950.70262 | N157: 31981.10804 | O157: 32319.82399 | P157: 31699.77248 | Q157: 30952.2246 | R157: 30474.63024 | S157: 29709.55561 | T157: 28983.69581 | U157: 28560.23115 | V157: 28873.17567 | W157: 31486.85308 | X157: 33163.37165 | Y157: 32258.84012 | Z157: 30817.68138 | AA157: 28738.7187 | AB157: 26659.91984 | AC157: 690297.2372 | AD157: 32617.66136 | AE157: s2 | AF157: d2 | AG157: s2d2
A158: 157 | B158: 2010-06-05T23:59:59.997 | C158: 7 | D158: Sunday | E158: 25010.78605 | F158: 23991.91921 | G158: 23285.95494 | H158: 23055.16926 | I158: 23045.90198 | J158: 23181.5094 | K158: 23647.84992 | L158: 25037.56022 | M158: 27596.30447 | N158: 30119.99521 | O158: 30835.08058 | P158: 30710.88127 | Q158: 30324.44984 | R158: 29918.50957 | S158: 28953.71001 | T158: 28073.35378 | U158: 27607.30466 | V158: 28280.73348 | W158: 30819.62202 | X158: 33147.84319 | Y158: 32769.59086 | Z158: 30984.02737 | AA158: 28282.67525 | AB158: 25955.71952 | AC158: 664636.4521 | AD158: 32437.85742 | AE158: s2 | AF158: d2 | AG158: s2d2
A159: 158 | B159: 2010-06-06T23:59:59.997 | C159: 1 | D159: Monday | E159: 24427.88126 | F159: 23506.37775 | G159: 23251.2248 | H159: 23174.98375 | I159: 23432.82194 | J159: 24489.80874 | K159: 27569.78633 | L159: 32114.50031 | M159: 33001.65578 | N159: 33377.36444 | O159: 33495.45636 | P159: 33908.68516 | Q159: 33873.293 | R159: 33545.85093 | S159: 33006.02964 | T159: 32880.16723 | U159: 33243.45113 | V159: 33712.45917 | W159: 35380.04457 | X159: 35847.34883 | Y159: 35096.59127 | Z159: 33793.44419 | AA159: 30982.75814 | AB159: 27978.2867 | AC159: 735090.2714 | AD159: 32732.07614 | AE159: s2 | AF159: d1 | AG159: s2d1
A160: 159 | B160: 2010-06-07T23:59:59.997 | C160: 2 | D160: Tuesday | E160: 26093.86878 | F160: 25268.95126 | G160: 24757.16027 | H160: 24563.49808 | I160: 24737.43826 | J160: 25838.37377 | K160: 28870.69528 | L160: 33145.76973 | M160: 33796.66154 | N160: 33925.03767 | O160: 33531.3487 | P160: 33855.03343 | Q160: 33659.93159 | R160: 33272.82115 | S160: 32710.15962 | T160: 32583.01332 | U160: 32944.51404 | V160: 33485.58547 | W160: 35318.69772 | X160: 36023.96833 | Y160: 35066.94731 | Z160: 33888.96029 | AA160: 31177.51021 | AB160: 28177.47137 | AC160: 746693.4172 | AD160: 32990.7383 | AE160: s2 | AF160: d1 | AG160: s2d1
A161: 160 | B161: 2010-06-08T23:59:59.997 | C161: 3 | D161: Wednesday | E161: 26308.77017 | F161: 25269.9913 | G161: 24788.21 | H161: 24657.16452 | I161: 24845.36795 | J161: 25945.60747 | K161: 28889.99446 | L161: 33321.43957 | M161: 33977.21543 | N161: 34170.13706 | O161: 33839.00707 | P161: 33855.12003 | Q161: 33633.78346 | R161: 33147.2816 | S161: 32669.21344 | T161: 32637.58079 | U161: 32947.54316 | V161: 33674.78777 | W161: 35393.55801 | X161: 35972.11043 | Y161: 35227.58143 | Z161: 34021.59254 | AA161: 31466.66689 | AB161: 28503.46765 | AC161: 749163.1922 | AD161: 33231.02027 | AE161: s2 | AF161: d1 | AG161: s2d1
A162: 161 | B162: 2010-06-09T23:59:59.997 | C162: 4 | D162: Thursday | E162: 26375.5405 | F162: 25470.6044 | G162: 25072.53361 | H162: 24864.81155 | I162: 25011.67949 | J162: 26068.79538 | K162: 29063.08588 | L162: 33227.65053 | M162: 33994.44853 | N162: 34090.32219 | O162: 33605.42725 | P162: 33780.40888 | Q162: 33498.74373 | R162: 32765.46571 | S162: 32253.64895 | T162: 32200.87709 | U162: 32508.33986 | V162: 33195.90313 | W162: 35105.95321 | X162: 36099.45273 | Y162: 35335.59602 | Z162: 34118.14537 | AA162: 31553.00028 | AB162: 28579.51146 | AC162: 747839.9457 | AD162: 33418.51356 | AE162: s2 | AF162: d1 | AG162: s2d1
A163: 162 | B163: 2010-06-10T23:59:59.997 | C163: 5 | D163: Friday | E163: 26610.94993 | F163: 25703.91978 | G163: 25065.25523 | H163: 24865.65078 | I163: 24997.80582 | J163: 25936.72234 | K163: 28705.17193 | L163: 32707.50552 | M163: 33871.4935 | N163: 34549.74699 | O163: 34208.291 | P163: 33998.61206 | Q163: 33827.63443 | R163: 33052.19725 | S163: 32143.21083 | T163: 31569.23457 | U163: 31337.30268 | V163: 31426.79456 | W163: 33313.65001 | X163: 34428.10305 | Y163: 33660.87437 | Z163: 32734.12263 | AA163: 30624.95108 | AB163: 28400.45292 | AC163: 737739.6532 | AD163: 33408.02721 | AE163: s2 | AF163: d1 | AG163: s2d1
A164: 163 | B164: 2010-06-11T23:59:59.997 | C164: 6 | D164: Saturday | E164: 26723.27764 | F164: 25584.35571 | G164: 24773.1445 | H164: 24470.92328 | I164: 24421.4912 | J164: 24826.46894 | K164: 25571.57284 | L164: 27107.02494 | M164: 29567.22407 | N164: 31858.51782 | O164: 32547.37982 | P164: 32192.55396 | Q164: 31399.93865 | R164: 30772.97204 | S164: 29834.09358 | T164: 29017.51223 | U164: 28590.50089 | V164: 28812.64985 | W164: 31223.22998 | X164: 32930.003 | Y164: 32330.88026 | Z164: 30989.85701 | AA164: 28934.86578 | AB164: 26882.45293 | AC164: 691362.8909 | AD164: 33189.54748 | AE164: s2 | AF164: d2 | AG164: s2d2
A165: 164 | B165: 2010-06-12T23:59:59.997 | C165: 7 | D165: Sunday | E165: 25164.4154 | F165: 24107.0148 | G165: 23531.98555 | H165: 23075.63788 | I165: 23037.71743 | J165: 23221.28139 | K165: 23653.51629 | L165: 25117.66879 | M165: 27428.89919 | N165: 30021.17325 | O165: 30937.01846 | P165: 30791.43482 | Q165: 30455.83509 | R165: 29961.58101 | S165: 29234.89173 | T165: 28235.77289 | U165: 27788.35097 | V165: 28260.67595 | W165: 30664.49315 | X165: 33159.59253 | Y165: 32754.4187 | Z165: 31260.02379 | AA165: 28919.08086 | AB165: 26722.92525 | AC165: 667505.4052 | AD165: 32937.04205 | AE165: s2 | AF165: d2 | AG165: s2d2
A166: 165 | B166: 2010-06-13T23:59:59.997 | C166: 1 | D166: Monday | E166: 24900.35099 | F166: 23776.17396 | G166: 23317.1538 | H166: 23179.05352 | I166: 23274.37632 | J166: 24333.51112 | K166: 26611.64832 | L166: 30010.60369 | M166: 32179.76692 | N166: 33782.4397 | O166: 33898.3961 | P166: 34256.07557 | Q166: 33814.40579 | R166: 33275.18143 | S166: 32595.74005 | T166: 32202.32701 | U166: 32259.91902 | V166: 32821.87821 | W166: 34849.35046 | X166: 36270.25942 | Y166: 35269.44535 | Z166: 34350.71598 | AA166: 31708.54157 | AB166: 28625.57589 | AC166: 731562.8902 | AD166: 33128.27289 | AE166: s2 | AF166: d1 | AG166: s2d1
A167: 166 | B167: 2010-06-14T23:59:59.997 | C167: 2 | D167: Tuesday | E167: 26612.50944 | F167: 25437.1361 | G167: 24784.38407 | H167: 24630.4216 | I167: 24628.91948 | J167: 25541.90079 | K167: 27746.45434 | L167: 31110.1151 | M167: 33127.22715 | N167: 33865.96651 | O167: 33413.2401 | P167: 33316.17373 | Q167: 32870.65513 | R167: 32303.96505 | S167: 31205.03212 | T167: 31023.67878 | U167: 31190.38704 | V167: 31695.81709 | W167: 33818.05118 | X167: 35227.76647 | Y167: 33961.8736 | Z167: 32813.1861 | AA167: 30522.47507 | AB167: 27996.59529 | AC167: 728843.9313 | AD167: 33197.25072 | AE167: s2 | AF167: d1 | AG167: s2d1
A168: 167 | B168: 2010-06-15T23:59:59.997 | C168: 3 | D168: Wednesday | E168: 26035.57203 | F168: 24704.55017 | G168: 24069.63573 | H168: 23761.70404 | I168: 23684.25654 | J168: 23987.87981 | K168: 24603.09258 | L168: 25928.68696 | M168: 27606.15845 | N168: 30072.75254 | O168: 31216.33575 | P168: 31492.71369 | Q168: 31016.8558 | R168: 30497.31588 | S168: 29531.73553 | T168: 28887.94072 | U168: 29003.5278 | V168: 29705.6521 | W168: 32466.46765 | X168: 34317.92265 | Y168: 33209.73845 | Z168: 31837.68115 | AA168: 29091.7745 | AB168: 26352.44113 | AC168: 683082.3916 | AD168: 33124.17241 | AE168: s2 | AF168: d2 | AG168: s2d2
A169: 168 | B169: 2010-06-16T23:59:59.997 | C169: 4 | D169: Thursday | E169: 24486.22946 | F169: 23655.94216 | G169: 23321.54019 | H169: 23245.58744 | I169: 23338.39636 | J169: 24332.67765 | K169: 27340.8987 | L169: 31041.42946 | M169: 33011.97857 | N169: 34139.30965 | O169: 34001.77966 | P169: 34152.72041 | Q169: 33818.18903 | R169: 32829.98013 | S169: 32369.80623 | T169: 32030.08557 | U169: 32293.75066 | V169: 32783.87463 | W169: 34766.49429 | X169: 36258.76002 | Y169: 35274.43336 | Z169: 34513.00489 | AA169: 32026.83737 | AB169: 29067.51712 | AC169: 734101.223 | AD169: 33288.4046 | AE169: s2 | AF169: d1 | AG169: s2d1
A170: 169 | B170: 2010-06-17T23:59:59.997 | C170: 5 | D170: Friday | E170: 26979.07958 | F170: 25671.58545 | G170: 25055.85723 | H170: 24816.83645 | I170: 24978.98161 | J170: 25975.70214 | K170: 28004.37643 | L170: 31285.83029 | M170: 33143.92973 | N170: 34517.27945 | O170: 34304.67146 | P170: 34423.48916 | Q170: 33882.08772 | R170: 32939.09767 | S170: 32088.7185 | T170: 31408.44371 | U170: 31026.38064 | V170: 31297.26869 | W170: 33403.37622 | X170: 34901.28319 | Y170: 33987.90889 | Z170: 33169.43557 | AA170: 31083.72194 | AB170: 28845.67263 | AC170: 737191.0143 | AD170: 33299.90176 | AE170: s2 | AF170: d1 | AG170: s2d1
A171: 170 | B171: 2010-06-18T23:59:59.997 | C171: 6 | D171: Saturday | E171: 27088.58972 | F171: 25590.08629 | G171: 24926.92358 | H171: 24499.87288 | I171: 24490.62897 | J171: 24631.90192 | K171: 25282.98831 | L171: 27250.74073 | M171: 29383.0546 | N171: 31875.28622 | O171: 32504.46914 | P171: 32051.22527 | Q171: 31426.53617 | R171: 30816.00741 | S171: 30130.87847 | T171: 29517.34327 | U171: 29255.60512 | V171: 29755.50816 | W171: 31654.02426 | X171: 33366.91538 | Y171: 32500.7944 | Z171: 31322.75964 | AA171: 29352.0777 | AB171: 27074.8417 | AC171: 695749.0593 | AD171: 33135.31401 | AE171: s2 | AF171: d2 | AG171: s2d2
A172: 171 | B172: 2010-06-19T23:59:59.997 | C172: 7 | D172: Sunday | E172: 25253.2222 | F172: 24099.86444 | G172: 23510.32373 | H172: 23170.59589 | I172: 23041.47196 | J172: 23220.93926 | K172: 23681.01502 | L172: 25006.64731 | M172: 27357.49416 | N172: 29977.02627 | O172: 31222.6443 | P172: 31398.93241 | Q172: 30914.00279 | R172: 30324.15777 | S172: 29536.94758 | T172: 28736.88452 | U172: 28617.1409 | V172: 28917.29485 | W172: 30965.44876 | X172: 33184.58532 | Y172: 32819.29838 | Z172: 31483.31796 | AA172: 28983.29957 | AB172: 26615.17032 | AC172: 672037.7257 | AD172: 32918.32749 | AE172: s2 | AF172: d2 | AG172: s2d2
A173: 172 | B173: 2010-06-20T23:59:59.997 | C173: 1 | D173: Monday | E173: 24744.82403 | F173: 23614.52662 | G173: 23303.89005 | H173: 23197.42282 | I173: 23211.69575 | J173: 24225.90868 | K173: 26332.06266 | L173: 29824.19122 | M173: 31736.41948 | N173: 33522.6287 | O173: 33852.51607 | P173: 34192.97889 | Q173: 33817.29029 | R173: 33237.76528 | S173: 32800.1506 | T173: 32680.25705 | U173: 32833.70776 | V173: 33280.69736 | W173: 35084.7368 | X173: 36443.2148 | Y173: 35471.92161 | Z173: 34335.48606 | AA173: 31806.10838 | AB173: 28567.78087 | AC173: 732118.1818 | AD173: 33134.96842 | AE173: s2 | AF173: d1 | AG173: s2d1
A174: 173 | B174: 2010-06-21T23:59:59.997 | C174: 2 | D174: Tuesday | E174: 26483.24803 | F174: 25284.29275 | G174: 24763.4319 | H174: 24626.91421 | I174: 24692.70711 | J174: 25612.07315 | K174: 27794.45622 | L174: 30980.94174 | M174: 32715.03088 | N174: 33909.51709 | O174: 33752.02575 | P174: 33831.61492 | Q174: 33448.73366 | R174: 32690.84498 | S174: 32107.6704 | T174: 31778.809 | U174: 31975.4044 | V174: 32679.73899 | W174: 34797.85556 | X174: 36310.41857 | Y174: 35368.72775 | Z174: 34120.3716 | AA174: 31695.22217 | AB174: 28823.56995 | AC174: 740243.6208 | AD174: 33301.25713 | AE174: s2 | AF174: d1 | AG174: s2d1
A175: 174 | B175: 2010-06-22T23:59:59.997 | C175: 3 | D175: Wednesday | E175: 26672.58887 | F175: 25352.5155 | G175: 24824.47578 | H175: 24543.19834 | I175: 24690.78486 | J175: 25581.88721 | K175: 27746.94237 | L175: 31114.00587 | M175: 32908.63087 | N175: 34021.09738 | O175: 33749.9338 | P175: 33872.33825 | Q175: 33392.67507 | R175: 32839.37136 | S175: 32158.08411 | T175: 31799.58012 | U175: 32080.01479 | V175: 32516.08601 | W175: 34707.39597 | X175: 36227.65024 | Y175: 35075.03828 | Z175: 34166.92541 | AA175: 31774.81784 | AB175: 28689.5973 | AC175: 740505.6356 | AD175: 33441.87102 | AE175: s2 | AF175: d1 | AG175: s2d1
A176: 175 | B176: 2010-06-23T23:59:59.997 | C176: 4 | D176: Thursday | E176: 26551.84342 | F176: 25504.08152 | G176: 24904.35404 | H176: 24620.64029 | I176: 24813.34312 | J176: 25631.53186 | K176: 27973.51491 | L176: 30965.08806 | M176: 32841.11719 | N176: 34040.0196 | O176: 33731.02606 | P176: 33736.09647 | Q176: 33371.58879 | R176: 32591.27255 | S176: 32045.25396 | T176: 31731.50007 | U176: 31903.61642 | V176: 32480.40743 | W176: 34510.27216 | X176: 36295.21443 | Y176: 35405.80354 | Z176: 34241.42153 | AA176: 31742.71049 | AB176: 28880.79565 | AC176: 740512.5136 | AD176: 33548.71113 | AE176: s2 | AF176: d1 | AG176: s2d1
A177: 176 | B177: 2010-06-24T23:59:59.997 | C177: 5 | D177: Friday | E177: 26616.16576 | F177: 25477.15416 | G177: 24796.12299 | H177: 24652.0228 | I177: 24757.89729 | J177: 25616.8167 | K177: 27689.69352 | L177: 31052.78739 | M177: 33145.31724 | N177: 34374.77461 | O177: 34096.90534 | P177: 34181.81081 | Q177: 33662.44572 | R177: 32884.32071 | S177: 31917.67198 | T177: 31293.59062 | U177: 30876.36224 | V177: 31135.98823 | W177: 33298.68687 | X177: 34866.6098 | Y177: 34061.66054 | Z177: 33177.75946 | AA177: 31059.37167 | AB177: 28804.18669 | AC177: 733496.1231 | AD177: 33523.7087 | AE177: s2 | AF177: d1 | AG177: s2d1
A178: 177 | B178: 2010-06-25T23:59:59.997 | C178: 6 | D178: Saturday | E178: 26916.25726 | F178: 25606.79844 | G178: 24835.18727 | H178: 24352.71759 | I178: 24384.62155 | J178: 24713.22354 | K178: 25349.09764 | L178: 27012.57512 | M178: 29189.83142 | N178: 31483.24908 | O178: 32100.8099 | P178: 31645.70262 | Q178: 30922.60698 | R178: 30299.29304 | S178: 29525.98291 | T178: 28897.67253 | U178: 28587.93621 | V178: 29192.64126 | W178: 31412.02108 | X178: 33498.82732 | Y178: 32749.8775 | Z178: 31315.67136 | AA178: 29291.50155 | AB178: 27040.92761 | AC178: 690325.0308 | AD178: 33312.53994 | AE178: s2 | AF178: d2 | AG178: s2d2
A179: 178 | B179: 2010-06-26T23:59:59.997 | C179: 7 | D179: Sunday | E179: 25454.86952 | F179: 24227.61136 | G179: 23447.61891 | H179: 23138.63544 | I179: 23026.85819 | J179: 23180.09943 | K179: 23651.50231 | L179: 25017.09289 | M179: 27335.17333 | N179: 29971.87175 | O179: 30994.00233 | P179: 30971.70201 | Q179: 30713.71875 | R179: 30081.65143 | S179: 29022.50617 | T179: 27977.44082 | U179: 27856.39558 | V179: 28401.55665 | W179: 30834.35241 | X179: 33400.14429 | Y179: 33050.8561 | Z179: 31535.62359 | AA179: 28996.81724 | AB179: 26451.66318 | AC179: 668739.7637 | AD179: 33064.72119 | AE179: s2 | AF179: d2 | AG179: s2d2
A180: 179 | B180: 2010-06-27T23:59:59.997 | C180: 1 | D180: Monday | E180: 24772.8344 | F180: 23765.8013 | G180: 23429.27038 | H180: 23297.25664 | I180: 23404.34294 | J180: 24297.14671 | K180: 26360.51396 | L180: 29788.6643 | M180: 31855.11568 | N180: 33669.228 | O180: 33849.15788 | P180: 34168.18429 | Q180: 33781.78797 | R180: 33113.86187 | S180: 32663.37482 | T180: 32535.33657 | U180: 32659.54889 | V180: 33106.1389 | W180: 35041.45039 | X180: 36590.57879 | Y180: 35688.82472 | Z180: 34441.01404 | AA180: 31806.29257 | AB180: 28569.73095 | AC180: 732655.4569 | AD180: 33262.39411 | AE180: s2 | AF180: d1 | AG180: s2d1
A181: 180 | B181: 2010-06-28T23:59:59.997 | C181: 2 | D181: Tuesday | E181: 26524.17155 | F181: 25220.34389 | G181: 24737.1596 | H181: 24658.75892 | I181: 24734.71332 | J181: 25600.97867 | K181: 27621.32159 | L181: 30596.31412 | M181: 32557.12906 | N181: 33966.14151 | O181: 33749.3619 | P181: 33830.56348 | Q181: 33408.72816 | R181: 32652.80952 | S181: 32153.68878 | T181: 31866.36359 | U181: 32100.80174 | V181: 32784.20687 | W181: 34944.94426 | X181: 36537.02995 | Y181: 35616.17048 | Z181: 34250.24659 | AA181: 31780.46529 | AB181: 28815.8231 | AC181: 740708.236 | AD181: 33430.64912 | AE181: s2 | AF181: d1 | AG181: s2d1
A182: 181 | B182: 2010-06-29T23:59:59.997 | C182: 3 | D182: Wednesday | E182: 26603.85075 | F182: 25276.07269 | G182: 24752.15342 | H182: 24530.08233 | I182: 24618.06514 | J182: 25442.67404 | K182: 27542.9045 | L182: 30809.42931 | M182: 32729.83682 | N182: 34003.76973 | O182: 33769.86668 | P182: 33945.73264 | Q182: 33491.40505 | R182: 32859.59276 | S182: 32209.1196 | T182: 31803.787 | U182: 32113.63741 | V182: 32689.09242 | W182: 34854.15237 | X182: 36514.78145 | Y182: 35340.47315 | Z182: 34338.92507 | AA182: 31826.46637 | AB182: 28738.55521 | AC182: 740804.4259 | AD182: 33572.99945 | AE182: s2 | AF182: d1 | AG182: s2d1
A183: 182 | B183: 2010-06-30T23:59:59.997 | C183: 4 | D183: Thursday | E183: 26640.29545 | F183: 25417.83056 | G183: 24855.13302 | H183: 24595.14563 | I183: 24868.93794 | J183: 25693.52696 | K183: 27915.71708 | L183: 30771.58031 | M183: 32695.00081 | N183: 34026.72086 | O183: 33756.56077 | P183: 33784.27645 | Q183: 33413.05813 | R183: 32638.85955 | S183: 32098.4334 | T183: 31786.9391 | U183: 32007.87717 | V183: 32579.42344 | W183: 34582.57528 | X183: 36396.97733 | Y183: 35590.97373 | Z183: 34367.07732 | AA183: 31850.79039 | AB183: 28899.93642 | AC183: 741233.6471 | AD183: 33673.95703 | AE183: s2 | AF183: d1 | AG183: s2d1
A184: 183 | B184: 2010-07-01T23:59:59.997 | C184: 5 | D184: Friday | E184: 26657.90699 | F184: 25501.45935 | G184: 24926.70379 | H184: 24778.73614 | I184: 24879.35468 | J184: 25690.93159 | K184: 27649.64423 | L184: 30892.76052 | M184: 32995.89968 | N184: 34349.99372 | O184: 34192.13399 | P184: 34296.4124 | Q184: 33869.27106 | R184: 33092.92221 | S184: 32104.97508 | T184: 31481.54112 | U184: 31140.71346 | V184: 31377.2545 | W184: 33373.66742 | X184: 34899.35627 | Y184: 34048.0295 | Z184: 33193.67542 | AA184: 31088.82031 | AB184: 28816.29606 | AC184: 735298.4595 | AD184: 33643.92807 | AE184: s2 | AF184: d1 | AG184: s2d1
A185: 184 | B185: 2010-07-02T23:59:59.997 | C185: 6 | D185: Saturday | E185: 26871.95651 | F185: 25608.72707 | G185: 24847.83543 | H185: 24395.4873 | I185: 24393.96695 | J185: 24727.93351 | K185: 25395.53386 | L185: 27061.49427 | M185: 29391.34416 | N185: 31734.43993 | O185: 32381.78581 | P185: 31970.97261 | Q185: 31192.79288 | R185: 30653.67126 | S185: 29833.46883 | T185: 29155.12326 | U185: 28843.20396 | V185: 29403.37099 | W185: 31629.62369 | X185: 33780.10318 | Y185: 33001.48201 | Z185: 31447.21285 | AA185: 29399.77357 | AB185: 27141.18106 | AC185: 694262.485 | AD185: 33442.49763 | AE185: s2 | AF185: d2 | AG185: s2d2
A186: 185 | B186: 2010-07-03T23:59:59.997 | C186: 7 | D186: Sunday | E186: 25569.87616 | F186: 24309.17661 | G186: 23473.60507 | H186: 23229.37853 | I186: 23092.04393 | J186: 23236.41984 | K186: 23745.87718 | L186: 25159.37473 | M186: 27465.35032 | N186: 30065.7041 | O186: 31147.12962 | P186: 31272.86719 | Q186: 31021.26203 | R186: 30381.40594 | S186: 29372.24598 | T186: 28282.98396 | U186: 28133.96702 | V186: 28699.86474 | W186: 31099.85158 | X186: 33805.85602 | Y186: 33392.35749 | Z186: 31822.69022 | AA186: 29213.98176 | AB186: 26577.4019 | AC186: 673570.6719 | AD186: 33208.23303 | AE186: s2 | AF186: d2 | AG186: s2d2
A187: 186 | B187: 2010-07-04T23:59:59.997 | C187: 1 | D187: Monday | E187: 24855.90106 | F187: 23796.90945 | G187: 23457.4462 | H187: 23295.20015 | I187: 23416.7664 | J187: 24406.10993 | K187: 26574.05495 | L187: 30009.61549 | M187: 32079.24732 | N187: 33831.14244 | O187: 34093.26767 | P187: 34423.76431 | Q187: 34073.40839 | R187: 33335.86971 | S187: 32900.27864 | T187: 32717.41438 | U187: 32858.68921 | V187: 33392.92171 | W187: 35357.2469 | X187: 36880.8916 | Y187: 36019.28022 | Z187: 34737.77659 | AA187: 32102.17481 | AB187: 28791.98496 | AC187: 737407.3625 | AD187: 33423.13441 | AE187: s2 | AF187: d1 | AG187: s2d1
A188: 187 | B188: 2010-07-05T23:59:59.997 | C188: 2 | D188: Tuesday | E188: 26625.47033 | F188: 25354.33552 | G188: 24881.5701 | H188: 24634.60885 | I188: 24845.87079 | J188: 25814.17248 | K188: 27794.3547 | L188: 30860.96625 | M188: 32876.52443 | N188: 34425.05013 | O188: 34461.00935 | P188: 34733.95548 | Q188: 34331.89374 | R188: 33671.28956 | S188: 33155.12084 | T188: 32882.23118 | U188: 32959.31823 | V188: 33517.16757 | W188: 35560.71526 | X188: 36878.66809 | Y188: 35848.80744 | Z188: 34773.66914 | AA188: 32208.56622 | AB188: 28917.49459 | AC188: 752012.8303 | AD188: 33636.8925 | AE188: s2 | AF188: d1 | AG188: s2d1
A189: 188 | B189: 2010-07-06T23:59:59.997 | C189: 3 | D189: Wednesday | E189: 26792.76583 | F189: 25539.74928 | G189: 25093.14113 | H189: 24891.872 | I189: 25047.00868 | J189: 25810.77948 | K189: 27798.37626 | L189: 30665.58714 | M189: 32681.17101 | N189: 34185.39493 | O189: 34254.04575 | P189: 34435.61053 | Q189: 34250.03974 | R189: 33404.75966 | S189: 32843.83561 | T189: 32798.91324 | U189: 32914.53592 | V189: 33541.67283 | W189: 35375.8116 | X189: 36788.40097 | Y189: 35987.47822 | Z189: 34901.60312 | AA189: 32446.67879 | AB189: 29229.7921 | AC189: 751679.0238 | AD189: 33810.78441 | AE189: s2 | AF189: d1 | AG189: s2d1
A190: 189 | B190: 2010-07-07T23:59:59.997 | C190: 4 | D190: Thursday | E190: 26896.45771 | F190: 25455.92721 | G190: 24996.97784 | H190: 24781.10066 | I190: 24901.68764 | J190: 25728.28606 | K190: 27967.10252 | L190: 30888.32042 | M190: 32933.85001 | N190: 34620.21049 | O190: 34718.81445 | P190: 34912.17834 | Q190: 34606.41131 | R190: 33918.34883 | S190: 33044.17718 | T190: 32792.20803 | U190: 32968.6088 | V190: 33592.76855 | W190: 35382.78632 | X190: 36974.6575 | Y190: 36085.06709 | Z190: 35046.77891 | AA190: 32524.53074 | AB190: 29507.74335 | AC190: 755245 | AD190: 33967.9846 | AE190: s2 | AF190: d1 | AG190: s2d1
A191: 190 | B191: 2010-07-08T23:59:59.997 | C191: 5 | D191: Friday | E191: 27403.94109 | F191: 26041.88325 | G191: 25504.62377 | H191: 25220.82129 | I191: 25321.40895 | J191: 26273.35792 | K191: 28425.10134 | L191: 31560.82363 | M191: 33556.79254 | N191: 35273.35329 | O191: 35583.60415 | P191: 35589.95816 | Q191: 35169.1097 | R191: 34351.14541 | S191: 33556.21367 | T191: 32852.68589 | U191: 32367.93926 | V191: 32631.01399 | W191: 34144.50575 | X191: 35919.01867 | Y191: 35259.78147 | Z191: 34213.73037 | AA191: 31989.84134 | AB191: 29667.8736 | AC191: 757878.5285 | AD191: 33985.63672 | AE191: s2 | AF191: d1 | AG191: s2d1
A192: 191 | B192: 2010-07-09T23:59:59.997 | C192: 6 | D192: Saturday | E192: 27732.68921 | F192: 26266.48509 | G192: 25482.37324 | H192: 25137.66109 | I192: 24992.89122 | J192: 25308.42444 | K192: 25965.29465 | L192: 27720.79587 | M192: 30115.08909 | N192: 32761.9508 | O192: 33838.3335 | P192: 33582.12799 | Q192: 32930.18314 | R192: 32225.09944 | S192: 31333.88343 | T192: 30532.9263 | U192: 30205.2958 | V192: 30732.0722 | W192: 32890.39945 | X192: 34766.3327 | Y192: 34065.50659 | Z192: 32648.6115 | AA192: 30393.72909 | AB192: 28103.39905 | AC192: 719731.5549 | AD192: 33876.11299 | AE192: s2 | AF192: d2 | AG192: s2d2
A193: 192 | B193: 2010-07-10T23:59:59.997 | C193: 7 | D193: Sunday | E193: 26220.27964 | F193: 24776.33616 | G193: 24070.74641 | H193: 23611.02065 | I193: 23572.25735 | J193: 23769.98152 | K193: 24160.51877 | L193: 25457.1658 | M193: 28023.55074 | N193: 30936.73899 | O193: 32049.36897 | P193: 31995.84842 | Q193: 31639.32328 | R193: 31108.09482 | S193: 29984.78039 | T193: 28971.136 | U193: 28554.24363 | V193: 28986.45411 | W193: 31548.49224 | X193: 34692.2144 | Y193: 34561.69285 | Z193: 32692.56629 | AA193: 29708.66861 | AB193: 27044.00939 | AC193: 688135.4894 | AD193: 33643.35091 | AE193: s2 | AF193: d2 | AG193: s2d2
A194: 193 | B194: 2010-07-11T23:59:59.997 | C194: 1 | D194: Monday | E194: 25156.21783 | F194: 23877.12354 | G194: 23610.5294 | H194: 23474.52463 | I194: 23766.58572 | J194: 24897.58682 | K194: 28028.37481 | L194: 32580.20486 | M194: 33508.50045 | N194: 34146.53088 | O194: 34113.28118 | P194: 34325.47926 | Q194: 33793.00205 | R194: 33006.04682 | S194: 32409.40277 | T194: 32117.57654 | U194: 32459.28911 | V194: 33002.18426 | W194: 35021.99309 | X194: 37240.22764 | Y194: 36661.2247 | Z194: 35232.70098 | AA194: 32048.33426 | AB194: 28620.47162 | AC194: =SUM(E194:AB194) -> 743097.3932 | AD194: 33781.21513 | AE194: s2 | AF194: d1 | AG194: s2d1
A195: 194 | B195: 2010-07-12T23:59:59.997 | C195: 2 | D195: Tuesday | E195: 26472.95638 | F195: 25198.85006 | G195: 24844.46675 | H195: 24698.24903 | I195: 24926.10371 | J195: 25938.80936 | K195: 29004.35773 | L195: 33552.23441 | M195: 34258.15842 | N195: 34546.85233 | O195: 33969.91247 | P195: 33853.12554 | Q195: 33377.10702 | R195: 32872.29176 | S195: 32052.46847 | T195: 31899.63513 | U195: 32306.3093 | V195: 33025.1763 | W195: 34822.19634 | X195: 37098.2829 | Y195: 36288.20225 | Z195: 34858.74141 | AA195: 32275.58897 | AB195: 29206.05202 | AC195: 751346.1281 | AD195: 33885.31325 | AE195: =IF(AND(A195>$AJ$6,A195<$AJ$7),"s2",IF(A195<=$AJ$6,"s1","s3")) -> s2 | AF195: d1 | AG195: =AE195&AF195 -> s2d1
A196: =A195+1 -> 195 | B196: 2010-07-13T23:59:59.997 | C196: 3 | D196: Wednesday | E196: 26977.87097 | F196: 25485.94404 | G196: 24996.65712 | H196: 24783.65155 | I196: 24951.80509 | J196: 25918.75798 | K196: 29013.69102 | L196: 33417.40641 | M196: 34109.00947 | N196: 34504.18835 | O196: 34106.13796 | P196: 34077.07724 | Q196: 33735.11094 | R196: 33046.44005 | S196: 32450.16946 | T196: 32198.85461 | U196: 32342.51983 | V196: 32962.95266 | W196: 34883.43977 | X196: 37083.5363 | Y196: 36446.4866 | Z196: 35110.67159 | AA196: 32202.83456 | AB196: 28938.19042 | AC196: 753743.404 | AD196: 33985.1259 | AE196: s2 | AF196: d1 | AG196: s2d1
A197: 196 | B197: 2010-07-14T23:59:59.997 | C197: 4 | D197: Thursday | E197: 26823.0568 | F197: 25622.63771 | G197: 25153.64506 | H197: 24903.02523 | I197: 25146.11795 | J197: 26096.60639 | K197: 29266.22977 | L197: 33605.25363 | M197: 34392.68946 | N197: 34503.54243 | O197: 33915.01552 | P197: 33867.68285 | Q197: 33445.88064 | R197: 32881.66566 | S197: 32303.45421 | T197: 32132.41589 | U197: 32343.01234 | V197: 32952.36284 | W197: 34828.60266 | X197: 37133.57399 | Y197: 36531.05699 | Z197: 35294.22694 | AA197: 32857.48412 | AB197: 29876.29043 | AC197: 755875.5295 | AD197: 34069.47358 | AE197: s2 | AF197: d1 | AG197: s2d1
A198: 197 | B198: 2010-07-15T23:59:59.997 | C198: 5 | D198: Friday | E198: 27541.59477 | F198: 25806.53431 | G198: 25356.9066 | H198: 25182.42841 | I198: 25317.07957 | J198: 26379.1679 | K198: 29348.96954 | L198: 33771.50201 | M198: 34742.68667 | N198: 35145.64098 | O198: 34846.71362 | P198: 34684.14062 | Q198: 34151.52657 | R198: 33045.83741 | S198: 32257.16133 | T198: 31589.36432 | U198: 31405.00583 | V198: 31766.60268 | W198: 33470.70377 | X198: 35605.89651 | Y198: 35098.70626 | Z198: 33866.85148 | AA198: 31501.96189 | AB198: 28984.02158 | AC198: 750867.0046 | AD198: 34009.5966 | AE198: s2 | AF198: d1 | AG198: s2d1
A199: 198 | B199: 2010-07-16T23:59:59.997 | C199: 6 | D199: Saturday | E199: 27095.38547 | F199: 25929.92982 | G199: 25283.20169 | H199: 25008.60932 | I199: 24899.09875 | J199: 25191.79934 | K199: 26277.66262 | L199: 28415.61529 | M199: 30625.22669 | N199: 32874.97927 | O199: 33369.01701 | P199: 32765.16675 | Q199: 31876.90468 | R199: 31330.73651 | S199: 30347.90328 | T199: 29619.50902 | U199: 29133.94914 | V199: 29509.19841 | W199: 31717.92417 | X199: 34467.63846 | Y199: 33905.64308 | Z199: 32117.52197 | AA199: 30192.70358 | AB199: 27733.11966 | AC199: 709688.444 | AD199: 33780.42936 | AE199: s2 | AF199: d2 | AG199: s2d2
A200: 199 | B200: 2010-07-17T23:59:59.997 | C200: 7 | D200: Sunday | E200: 25737.55538 | F200: 24660.87308 | G200: 23909.17479 | H200: 23478.11881 | I200: 23392.57651 | J200: 23566.68166 | K200: 24210.61615 | L200: 25675.96836 | M200: 28443.59951 | N200: 31089.51144 | O200: 31905.07957 | P200: 31700.42761 | Q200: 31142.25917 | R200: 30415.23695 | S200: 29505.87289 | T200: 28461.32819 | U200: 28097.82468 | V200: 28649.83773 | W200: 30826.04353 | X200: 34150.91839 | Y200: 34124.60405 | Z200: 32361.94186 | AA200: 29395.64766 | AB200: 26661.04144 | AC200: 681562.7394 | AD200: 33484.99077 | AE200: s2 | AF200: d2 | AG200: s2d2
... 166 more rows

Sheet LoadVector
C1: up | D1: 1 | E1: Blck index
A2: day | B2: hr | C2: Vector index | D2: Load vector | F2: Sorted load duration curve | G2: Sorted Agg load
A3: =ROUNDDOWN((C3-1)/24,0)+1 -> 1 | B3: 1 | C3: 1 | D3: =OFFSET('Load Data'!$D$1,IF($D$1,A3,366-A3),B3) -> 22116.21805 | E3: 1 | F3: 37240.22764 | G3: =SUMIF('Load Data'!$AQ$51:$AQ$90,E3,'Load Data'!$BJ$51:$BJ$90) -> 37240.22764
A4: =ROUNDDOWN((C4-1)/24,0)+1 -> 1 | B4: =C4 -> 2 | C4: =C3+1 -> 2 | D4: =OFFSET('Load Data'!$D$1,IF($D$1,A4,366-A4),B4) -> 22116.21805 | E4: =IF(C4=SUMIF('Load Data'!$AQ$51:$AQ$90,E3,'Load Data'!$BK$51:$BK$90),E3+1,E3) -> 1 | F4: 37133.57399 | G4: =SUMIF('Load Data'!$AQ$51:$AQ$90,E4,'Load Data'!$BJ$51:$BJ$90) -> 37240.22764
A5: 1 | B5: =C5 -> 3 | C5: =C4+1 -> 3 | D5: =OFFSET('Load Data'!$D$1,IF($D$1,A5,366-A5),B5) -> 21389.04755 | E5: =IF(C5=SUMIF('Load Data'!$AQ$51:$AQ$90,E4,'Load Data'!$BK$51:$BK$90),E4+1,E4) -> 1 | F5: 37098.2829 | G5: =SUMIF('Load Data'!$AQ$51:$AQ$90,E5,'Load Data'!$BJ$51:$BJ$90) -> 37240.22764
A6: 1 | B6: 4 | C6: 4 | D6: =OFFSET('Load Data'!$D$1,IF($D$1,A6,366-A6),B6) -> 20722.3791 | E6: =IF(C6=SUMIF('Load Data'!$AQ$51:$AQ$90,E5,'Load Data'!$BK$51:$BK$90),E5+1,E5) -> 1 | F6: 37083.5363 | G6: =SUMIF('Load Data'!$AQ$51:$AQ$90,E6,'Load Data'!$BJ$51:$BJ$90) -> 37240.22764
A7: 1 | B7: 5 | C7: 5 | D7: =OFFSET('Load Data'!$D$1,IF($D$1,A7,366-A7),B7) -> 20123.47802 | E7: =IF(C7=SUMIF('Load Data'!$AQ$51:$AQ$90,E6,'Load Data'!$BK$51:$BK$90),E6+1,E6) -> 1 | F7: 37038.96728 | G7: =SUMIF('Load Data'!$AQ$51:$AQ$90,E7,'Load Data'!$BJ$51:$BJ$90) -> 37240.22764
A8: 1 | B8: 6 | C8: 6 | D8: =OFFSET('Load Data'!$D$1,IF($D$1,A8,366-A8),B8) -> 20061.47911 | E8: =IF(C8=SUMIF('Load Data'!$AQ$51:$AQ$90,E7,'Load Data'!$BK$51:$BK$90),E7+1,E7) -> 1 | F8: 36974.6575 | G8: =SUMIF('Load Data'!$AQ$51:$AQ$90,E8,'Load Data'!$BJ$51:$BJ$90) -> 37240.22764
A9: 1 | B9: 7 | C9: 7 | D9: =OFFSET('Load Data'!$D$1,IF($D$1,A9,366-A9),B9) -> 20039.17671 | E9: =IF(C9=SUMIF('Load Data'!$AQ$51:$AQ$90,E8,'Load Data'!$BK$51:$BK$90),E8+1,E8) -> 1 | F9: 36880.8916 | G9: =SUMIF('Load Data'!$AQ$51:$AQ$90,E9,'Load Data'!$BJ$51:$BJ$90) -> 37240.22764
A10: 1 | B10: 8 | C10: 8 | D10: =OFFSET('Load Data'!$D$1,IF($D$1,A10,366-A10),B10) -> 20284.83792 | E10: =IF(C10=SUMIF('Load Data'!$AQ$51:$AQ$90,E9,'Load Data'!$BK$51:$BK$90),E9+1,E9) -> 1 | F10: 36878.66809 | G10: =SUMIF('Load Data'!$AQ$51:$AQ$90,E10,'Load Data'!$BJ$51:$BJ$90) -> 37240.22764
A11: 1 | B11: 9 | C11: 9 | D11: =OFFSET('Load Data'!$D$1,IF($D$1,A11,366-A11),B11) -> 21506.40246 | E11: =IF(C11=SUMIF('Load Data'!$AQ$51:$AQ$90,E10,'Load Data'!$BK$51:$BK$90),E10+1,E10) -> 1 | F11: 36788.40097 | G11: =SUMIF('Load Data'!$AQ$51:$AQ$90,E11,'Load Data'!$BJ$51:$BJ$90) -> 37240.22764
A12: 1 | B12: 10 | C12: 10 | D12: =OFFSET('Load Data'!$D$1,IF($D$1,A12,366-A12),B12) -> 23005.80737 | E12: =IF(C12=SUMIF('Load Data'!$AQ$51:$AQ$90,E11,'Load Data'!$BK$51:$BK$90),E11+1,E11) -> 1 | F12: 36759.13298 | G12: =SUMIF('Load Data'!$AQ$51:$AQ$90,E12,'Load Data'!$BJ$51:$BJ$90) -> 37240.22764
A13: 1 | B13: 11 | C13: 11 | D13: =OFFSET('Load Data'!$D$1,IF($D$1,A13,366-A13),B13) -> 23860.8794 | E13: =IF(C13=SUMIF('Load Data'!$AQ$51:$AQ$90,E12,'Load Data'!$BK$51:$BK$90),E12+1,E12) -> 1 | F13: 36723.9524 | G13: =SUMIF('Load Data'!$AQ$51:$AQ$90,E13,'Load Data'!$BJ$51:$BJ$90) -> 37240.22764
A14: 1 | B14: 12 | C14: 12 | D14: =OFFSET('Load Data'!$D$1,IF($D$1,A14,366-A14),B14) -> 24208.79383 | E14: =IF(C14=SUMIF('Load Data'!$AQ$51:$AQ$90,E13,'Load Data'!$BK$51:$BK$90),E13+1,E13) -> 1 | F14: 36667.38456 | G14: =SUMIF('Load Data'!$AQ$51:$AQ$90,E14,'Load Data'!$BJ$51:$BJ$90) -> 37240.22764
A15: 1 | B15: 13 | C15: 13 | D15: =OFFSET('Load Data'!$D$1,IF($D$1,A15,366-A15),B15) -> 24138.53158 | E15: =IF(C15=SUMIF('Load Data'!$AQ$51:$AQ$90,E14,'Load Data'!$BK$51:$BK$90),E14+1,E14) -> 1 | F15: 36661.2247 | G15: =SUMIF('Load Data'!$AQ$51:$AQ$90,E15,'Load Data'!$BJ$51:$BJ$90) -> 37240.22764
A16: 1 | B16: 14 | C16: 14 | D16: =OFFSET('Load Data'!$D$1,IF($D$1,A16,366-A16),B16) -> 23863.43016 | E16: =IF(C16=SUMIF('Load Data'!$AQ$51:$AQ$90,E15,'Load Data'!$BK$51:$BK$90),E15+1,E15) -> 1 | F16: 36617.87467 | G16: =SUMIF('Load Data'!$AQ$51:$AQ$90,E16,'Load Data'!$BJ$51:$BJ$90) -> 37240.22764
A17: 1 | B17: 15 | C17: 15 | D17: =OFFSET('Load Data'!$D$1,IF($D$1,A17,366-A17),B17) -> 23308.45041 | E17: =IF(C17=SUMIF('Load Data'!$AQ$51:$AQ$90,E16,'Load Data'!$BK$51:$BK$90),E16+1,E16) -> 1 | F17: 36590.57879 | G17: =SUMIF('Load Data'!$AQ$51:$AQ$90,E17,'Load Data'!$BJ$51:$BJ$90) -> 37240.22764
A18: 1 | B18: 16 | C18: 16 | D18: =OFFSET('Load Data'!$D$1,IF($D$1,A18,366-A18),B18) -> 22556.88485 | E18: =IF(C18=SUMIF('Load Data'!$AQ$51:$AQ$90,E17,'Load Data'!$BK$51:$BK$90),E17+1,E17) -> 1 | F18: 36559.85747 | G18: =SUMIF('Load Data'!$AQ$51:$AQ$90,E18,'Load Data'!$BJ$51:$BJ$90) -> 37240.22764
A19: 1 | B19: 17 | C19: 17 | D19: =OFFSET('Load Data'!$D$1,IF($D$1,A19,366-A19),B19) -> 22213.85099 | E19: =IF(C19=SUMIF('Load Data'!$AQ$51:$AQ$90,E18,'Load Data'!$BK$51:$BK$90),E18+1,E18) -> 1 | F19: 36537.02995 | G19: =SUMIF('Load Data'!$AQ$51:$AQ$90,E19,'Load Data'!$BJ$51:$BJ$90) -> 37240.22764
A20: 1 | B20: 18 | C20: 18 | D20: =OFFSET('Load Data'!$D$1,IF($D$1,A20,366-A20),B20) -> 22118.39484 | E20: =IF(C20=SUMIF('Load Data'!$AQ$51:$AQ$90,E19,'Load Data'!$BK$51:$BK$90),E19+1,E19) -> 1 | F20: 36531.05699 | G20: =SUMIF('Load Data'!$AQ$51:$AQ$90,E20,'Load Data'!$BJ$51:$BJ$90) -> 37240.22764
A21: 1 | B21: 19 | C21: 19 | D21: =OFFSET('Load Data'!$D$1,IF($D$1,A21,366-A21),B21) -> 22209.81502 | E21: =IF(C21=SUMIF('Load Data'!$AQ$51:$AQ$90,E20,'Load Data'!$BK$51:$BK$90),E20+1,E20) -> 1 | F21: 36514.78145 | G21: =SUMIF('Load Data'!$AQ$51:$AQ$90,E21,'Load Data'!$BJ$51:$BJ$90) -> 37240.22764
A22: 1 | B22: 20 | C22: 20 | D22: =OFFSET('Load Data'!$D$1,IF($D$1,A22,366-A22),B22) -> 22647.84284 | E22: =IF(C22=SUMIF('Load Data'!$AQ$51:$AQ$90,E21,'Load Data'!$BK$51:$BK$90),E21+1,E21) -> 1 | F22: 36493.58017 | G22: =SUMIF('Load Data'!$AQ$51:$AQ$90,E22,'Load Data'!$BJ$51:$BJ$90) -> 37240.22764
A23: 1 | B23: 21 | C23: 21 | D23: =OFFSET('Load Data'!$D$1,IF($D$1,A23,366-A23),B23) -> 24450.54327 | E23: =IF(C23=SUMIF('Load Data'!$AQ$51:$AQ$90,E22,'Load Data'!$BK$51:$BK$90),E22+1,E22) -> 1 | F23: 36446.4866 | G23: =SUMIF('Load Data'!$AQ$51:$AQ$90,E23,'Load Data'!$BJ$51:$BJ$90) -> 37240.22764
A24: 1 | B24: 22 | C24: 22 | D24: =OFFSET('Load Data'!$D$1,IF($D$1,A24,366-A24),B24) -> 24799.69392 | E24: =IF(C24=SUMIF('Load Data'!$AQ$51:$AQ$90,E23,'Load Data'!$BK$51:$BK$90),E23+1,E23) -> 1 | F24: 36443.2148 | G24: =SUMIF('Load Data'!$AQ$51:$AQ$90,E24,'Load Data'!$BJ$51:$BJ$90) -> 37240.22764
A25: 1 | B25: 23 | C25: 23 | D25: =OFFSET('Load Data'!$D$1,IF($D$1,A25,366-A25),B25) -> 23444.73963 | E25: =IF(C25=SUMIF('Load Data'!$AQ$51:$AQ$90,E24,'Load Data'!$BK$51:$BK$90),E24+1,E24) -> 1 | F25: 36415.54095 | G25: =SUMIF('Load Data'!$AQ$51:$AQ$90,E25,'Load Data'!$BJ$51:$BJ$90) -> 37240.22764
A26: 1 | B26: 24 | C26: 24 | D26: =OFFSET('Load Data'!$D$1,IF($D$1,A26,366-A26),B26) -> 21929.03642 | E26: =IF(C26=SUMIF('Load Data'!$AQ$51:$AQ$90,E25,'Load Data'!$BK$51:$BK$90),E25+1,E25) -> 1 | F26: 36408.9974 | G26: =SUMIF('Load Data'!$AQ$51:$AQ$90,E26,'Load Data'!$BJ$51:$BJ$90) -> 37240.22764
A27: 2 | B27: =B3 -> 1 | C27: 25 | D27: =OFFSET('Load Data'!$D$1,IF($D$1,A27,366-A27),B27) -> 20902.55392 | E27: =IF(C27=SUMIF('Load Data'!$AQ$51:$AQ$90,E26,'Load Data'!$BK$51:$BK$90),E26+1,E26) -> 1 | F27: 36396.97733 | G27: =SUMIF('Load Data'!$AQ$51:$AQ$90,E27,'Load Data'!$BJ$51:$BJ$90) -> 37240.22764
A28: =ROUNDDOWN((C28-1)/24,0)+1 -> 2 | B28: =B4 -> 2 | C28: 26 | D28: =OFFSET('Load Data'!$D$1,IF($D$1,A28,366-A28),B28) -> 20512.02438 | E28: =IF(C28=SUMIF('Load Data'!$AQ$51:$AQ$90,E27,'Load Data'!$BK$51:$BK$90),E27+1,E27) -> 1 | F28: 36396.26839 | G28: =SUMIF('Load Data'!$AQ$51:$AQ$90,E28,'Load Data'!$BJ$51:$BJ$90) -> 37240.22764
A29: 2 | B29: 3 | C29: 27 | D29: =OFFSET('Load Data'!$D$1,IF($D$1,A29,366-A29),B29) -> 20200.61976 | E29: =IF(C29=SUMIF('Load Data'!$AQ$51:$AQ$90,E28,'Load Data'!$BK$51:$BK$90),E28+1,E28) -> 1 | F29: 36369.8577 | G29: =SUMIF('Load Data'!$AQ$51:$AQ$90,E29,'Load Data'!$BJ$51:$BJ$90) -> 37240.22764
A30: 2 | B30: 4 | C30: 28 | D30: =OFFSET('Load Data'!$D$1,IF($D$1,A30,366-A30),B30) -> 19997.03666 | E30: =IF(C30=SUMIF('Load Data'!$AQ$51:$AQ$90,E29,'Load Data'!$BK$51:$BK$90),E29+1,E29) -> 1 | F30: 36310.41857 | G30: =SUMIF('Load Data'!$AQ$51:$AQ$90,E30,'Load Data'!$BJ$51:$BJ$90) -> 37240.22764
A31: 2 | B31: 5 | C31: 29 | D31: =OFFSET('Load Data'!$D$1,IF($D$1,A31,366-A31),B31) -> 19955.56656 | E31: =IF(C31=SUMIF('Load Data'!$AQ$51:$AQ$90,E30,'Load Data'!$BK$51:$BK$90),E30+1,E30) -> 1 | F31: 36303.05225 | G31: =SUMIF('Load Data'!$AQ$51:$AQ$90,E31,'Load Data'!$BJ$51:$BJ$90) -> 37240.22764
A32: 2 | B32: 6 | C32: 30 | D32: =OFFSET('Load Data'!$D$1,IF($D$1,A32,366-A32),B32) -> 20038.05777 | E32: =IF(C32=SUMIF('Load Data'!$AQ$51:$AQ$90,E31,'Load Data'!$BK$51:$BK$90),E31+1,E31) -> 1 | F32: 36295.21443 | G32: =SUMIF('Load Data'!$AQ$51:$AQ$90,E32,'Load Data'!$BJ$51:$BJ$90) -> 37240.22764
A33: 2 | B33: 7 | C33: 31 | D33: =OFFSET('Load Data'!$D$1,IF($D$1,A33,366-A33),B33) -> 20303.77729 | E33: =IF(C33=SUMIF('Load Data'!$AQ$51:$AQ$90,E32,'Load Data'!$BK$51:$BK$90),E32+1,E32) -> 1 | F33: 36288.20225 | G33: =SUMIF('Load Data'!$AQ$51:$AQ$90,E33,'Load Data'!$BJ$51:$BJ$90) -> 37240.22764
A34: =ROUNDDOWN((C34-1)/24,0)+1 -> 2 | B34: 8 | C34: 32 | D34: =OFFSET('Load Data'!$D$1,IF($D$1,A34,366-A34),B34) -> 21018.24939 | E34: =IF(C34=SUMIF('Load Data'!$AQ$51:$AQ$90,E33,'Load Data'!$BK$51:$BK$90),E33+1,E33) -> 1 | F34: 36278.45195 | G34: =SUMIF('Load Data'!$AQ$51:$AQ$90,E34,'Load Data'!$BJ$51:$BJ$90) -> 37240.22764
A35: 2 | B35: 9 | C35: 33 | D35: =OFFSET('Load Data'!$D$1,IF($D$1,A35,366-A35),B35) -> 22595.87738 | E35: =IF(C35=SUMIF('Load Data'!$AQ$51:$AQ$90,E34,'Load Data'!$BK$51:$BK$90),E34+1,E34) -> 1 | F35: 36270.25942 | G35: =SUMIF('Load Data'!$AQ$51:$AQ$90,E35,'Load Data'!$BJ$51:$BJ$90) -> 37240.22764
A36: 2 | B36: 10 | C36: 34 | D36: =OFFSET('Load Data'!$D$1,IF($D$1,A36,366-A36),B36) -> 24238.32739 | E36: =IF(C36=SUMIF('Load Data'!$AQ$51:$AQ$90,E35,'Load Data'!$BK$51:$BK$90),E35+1,E35) -> 1 | F36: 36258.76002 | G36: =SUMIF('Load Data'!$AQ$51:$AQ$90,E36,'Load Data'!$BJ$51:$BJ$90) -> 37240.22764
A37: 2 | B37: 11 | C37: 35 | D37: =OFFSET('Load Data'!$D$1,IF($D$1,A37,366-A37),B37) -> 25017.71101 | E37: =IF(C37=SUMIF('Load Data'!$AQ$51:$AQ$90,E36,'Load Data'!$BK$51:$BK$90),E36+1,E36) -> 1 | F37: 36227.65024 | G37: =SUMIF('Load Data'!$AQ$51:$AQ$90,E37,'Load Data'!$BJ$51:$BJ$90) -> 37240.22764
A38: 2 | B38: 12 | C38: 36 | D38: =OFFSET('Load Data'!$D$1,IF($D$1,A38,366-A38),B38) -> 25027.80331 | E38: =IF(C38=SUMIF('Load Data'!$AQ$51:$AQ$90,E37,'Load Data'!$BK$51:$BK$90),E37+1,E37) -> 1 | F38: 36160.96871 | G38: =SUMIF('Load Data'!$AQ$51:$AQ$90,E38,'Load Data'!$BJ$51:$BJ$90) -> 37240.22764
A39: 2 | B39: 13 | C39: 37 | D39: =OFFSET('Load Data'!$D$1,IF($D$1,A39,366-A39),B39) -> 24918.57651 | E39: =IF(C39=SUMIF('Load Data'!$AQ$51:$AQ$90,E38,'Load Data'!$BK$51:$BK$90),E38+1,E38) -> 1 | F39: 36099.45273 | G39: =SUMIF('Load Data'!$AQ$51:$AQ$90,E39,'Load Data'!$BJ$51:$BJ$90) -> 37240.22764
A40: 2 | B40: 14 | C40: 38 | D40: =OFFSET('Load Data'!$D$1,IF($D$1,A40,366-A40),B40) -> 24704.3566 | E40: =IF(C40=SUMIF('Load Data'!$AQ$51:$AQ$90,E39,'Load Data'!$BK$51:$BK$90),E39+1,E39) -> 1 | F40: 36092.63269 | G40: =SUMIF('Load Data'!$AQ$51:$AQ$90,E40,'Load Data'!$BJ$51:$BJ$90) -> 37240.22764
A41: 2 | B41: 15 | C41: 39 | D41: =OFFSET('Load Data'!$D$1,IF($D$1,A41,366-A41),B41) -> 24030.187 | E41: =IF(C41=SUMIF('Load Data'!$AQ$51:$AQ$90,E40,'Load Data'!$BK$51:$BK$90),E40+1,E40) -> 1 | F41: 36085.06709 | G41: =SUMIF('Load Data'!$AQ$51:$AQ$90,E41,'Load Data'!$BJ$51:$BJ$90) -> 37240.22764
A42: 2 | B42: 16 | C42: 40 | D42: =OFFSET('Load Data'!$D$1,IF($D$1,A42,366-A42),B42) -> 23487.02553 | E42: =IF(C42=SUMIF('Load Data'!$AQ$51:$AQ$90,E41,'Load Data'!$BK$51:$BK$90),E41+1,E41) -> 1 | F42: 36053.44638 | G42: =SUMIF('Load Data'!$AQ$51:$AQ$90,E42,'Load Data'!$BJ$51:$BJ$90) -> 37240.22764
A43: 2 | B43: 17 | C43: 41 | D43: =OFFSET('Load Data'!$D$1,IF($D$1,A43,366-A43),B43) -> 23276.23451 | E43: =IF(C43=SUMIF('Load Data'!$AQ$51:$AQ$90,E42,'Load Data'!$BK$51:$BK$90),E42+1,E42) -> 1 | F43: 36046.32391 | G43: =SUMIF('Load Data'!$AQ$51:$AQ$90,E43,'Load Data'!$BJ$51:$BJ$90) -> 37240.22764
A44: 2 | B44: 18 | C44: 42 | D44: =OFFSET('Load Data'!$D$1,IF($D$1,A44,366-A44),B44) -> 23358.72041 | E44: =IF(C44=SUMIF('Load Data'!$AQ$51:$AQ$90,E43,'Load Data'!$BK$51:$BK$90),E43+1,E43) -> 1 | F44: 36046.19604 | G44: =SUMIF('Load Data'!$AQ$51:$AQ$90,E44,'Load Data'!$BJ$51:$BJ$90) -> 37240.22764
A45: 2 | B45: 19 | C45: 43 | D45: =OFFSET('Load Data'!$D$1,IF($D$1,A45,366-A45),B45) -> 23829.34211 | E45: =IF(C45=SUMIF('Load Data'!$AQ$51:$AQ$90,E44,'Load Data'!$BK$51:$BK$90),E44+1,E44) -> 1 | F45: 36036.46832 | G45: =SUMIF('Load Data'!$AQ$51:$AQ$90,E45,'Load Data'!$BJ$51:$BJ$90) -> 37240.22764
A46: 2 | B46: 20 | C46: 44 | D46: =OFFSET('Load Data'!$D$1,IF($D$1,A46,366-A46),B46) -> 24459.20405 | E46: =IF(C46=SUMIF('Load Data'!$AQ$51:$AQ$90,E45,'Load Data'!$BK$51:$BK$90),E45+1,E45) -> 1 | F46: 36036.32581 | G46: =SUMIF('Load Data'!$AQ$51:$AQ$90,E46,'Load Data'!$BJ$51:$BJ$90) -> 37240.22764
A47: 2 | B47: 21 | C47: 45 | D47: =OFFSET('Load Data'!$D$1,IF($D$1,A47,366-A47),B47) -> 25788.75016 | E47: =IF(C47=SUMIF('Load Data'!$AQ$51:$AQ$90,E46,'Load Data'!$BK$51:$BK$90),E46+1,E46) -> 1 | F47: 36023.96833 | G47: =SUMIF('Load Data'!$AQ$51:$AQ$90,E47,'Load Data'!$BJ$51:$BJ$90) -> 37240.22764
A48: 2 | B48: 22 | C48: 46 | D48: =OFFSET('Load Data'!$D$1,IF($D$1,A48,366-A48),B48) -> 25543.55126 | E48: =IF(C48=SUMIF('Load Data'!$AQ$51:$AQ$90,E47,'Load Data'!$BK$51:$BK$90),E47+1,E47) -> 1 | F48: 36019.28022 | G48: =SUMIF('Load Data'!$AQ$51:$AQ$90,E48,'Load Data'!$BJ$51:$BJ$90) -> 37240.22764
A49: 2 | B49: 23 | C49: 47 | D49: =OFFSET('Load Data'!$D$1,IF($D$1,A49,366-A49),B49) -> 23933.77488 | E49: =IF(C49=SUMIF('Load Data'!$AQ$51:$AQ$90,E48,'Load Data'!$BK$51:$BK$90),E48+1,E48) -> 1 | F49: 36011.81052 | G49: =SUMIF('Load Data'!$AQ$51:$AQ$90,E49,'Load Data'!$BJ$51:$BJ$90) -> 37240.22764
A50: 2 | B50: 24 | C50: 48 | D50: =OFFSET('Load Data'!$D$1,IF($D$1,A50,366-A50),B50) -> 22572.78257 | E50: =IF(C50=SUMIF('Load Data'!$AQ$51:$AQ$90,E49,'Load Data'!$BK$51:$BK$90),E49+1,E49) -> 1 | F50: 35987.47822 | G50: =SUMIF('Load Data'!$AQ$51:$AQ$90,E50,'Load Data'!$BJ$51:$BJ$90) -> 37240.22764
A51: 3 | B51: 1 | C51: 49 | D51: =OFFSET('Load Data'!$D$1,IF($D$1,A51,366-A51),B51) -> 21345.28876 | E51: =IF(C51=SUMIF('Load Data'!$AQ$51:$AQ$90,E50,'Load Data'!$BK$51:$BK$90),E50+1,E50) -> 1 | F51: 35972.11043 | G51: =SUMIF('Load Data'!$AQ$51:$AQ$90,E51,'Load Data'!$BJ$51:$BJ$90) -> 37240.22764
A52: 3 | B52: 2 | C52: 50 | D52: =OFFSET('Load Data'!$D$1,IF($D$1,A52,366-A52),B52) -> 20524.06347 | E52: =IF(C52=SUMIF('Load Data'!$AQ$51:$AQ$90,E51,'Load Data'!$BK$51:$BK$90),E51+1,E51) -> 1 | F52: 35944.95728 | G52: =SUMIF('Load Data'!$AQ$51:$AQ$90,E52,'Load Data'!$BJ$51:$BJ$90) -> 37240.22764
A53: 3 | B53: 3 | C53: 51 | D53: =OFFSET('Load Data'!$D$1,IF($D$1,A53,366-A53),B53) -> 20096.4094 | E53: =IF(C53=SUMIF('Load Data'!$AQ$51:$AQ$90,E52,'Load Data'!$BK$51:$BK$90),E52+1,E52) -> 1 | F53: 35933.65377 | G53: =SUMIF('Load Data'!$AQ$51:$AQ$90,E53,'Load Data'!$BJ$51:$BJ$90) -> 37240.22764
A54: 3 | B54: 4 | C54: 52 | D54: =OFFSET('Load Data'!$D$1,IF($D$1,A54,366-A54),B54) -> 19798.6902 | E54: =IF(C54=SUMIF('Load Data'!$AQ$51:$AQ$90,E53,'Load Data'!$BK$51:$BK$90),E53+1,E53) -> 1 | F54: 35919.01867 | G54: =SUMIF('Load Data'!$AQ$51:$AQ$90,E54,'Load Data'!$BJ$51:$BJ$90) -> 37240.22764
A55: 3 | B55: 5 | C55: 53 | D55: =OFFSET('Load Data'!$D$1,IF($D$1,A55,366-A55),B55) -> 19758.74621 | E55: =IF(C55=SUMIF('Load Data'!$AQ$51:$AQ$90,E54,'Load Data'!$BK$51:$BK$90),E54+1,E54) -> 1 | F55: 35912.33625 | G55: =SUMIF('Load Data'!$AQ$51:$AQ$90,E55,'Load Data'!$BJ$51:$BJ$90) -> 37240.22764
A56: 3 | B56: 6 | C56: 54 | D56: =OFFSET('Load Data'!$D$1,IF($D$1,A56,366-A56),B56) -> 19788.6794 | E56: =IF(C56=SUMIF('Load Data'!$AQ$51:$AQ$90,E55,'Load Data'!$BK$51:$BK$90),E55+1,E55) -> 1 | F56: 35852.09522 | G56: =SUMIF('Load Data'!$AQ$51:$AQ$90,E56,'Load Data'!$BJ$51:$BJ$90) -> 37240.22764
A57: 3 | B57: 7 | C57: 55 | D57: =OFFSET('Load Data'!$D$1,IF($D$1,A57,366-A57),B57) -> 20070.12085 | E57: =IF(C57=SUMIF('Load Data'!$AQ$51:$AQ$90,E56,'Load Data'!$BK$51:$BK$90),E56+1,E56) -> 1 | F57: 35848.80744 | G57: =SUMIF('Load Data'!$AQ$51:$AQ$90,E57,'Load Data'!$BJ$51:$BJ$90) -> 37240.22764
A58: 3 | B58: 8 | C58: 56 | D58: =OFFSET('Load Data'!$D$1,IF($D$1,A58,366-A58),B58) -> 20803.84157 | E58: =IF(C58=SUMIF('Load Data'!$AQ$51:$AQ$90,E57,'Load Data'!$BK$51:$BK$90),E57+1,E57) -> 1 | F58: 35847.34883 | G58: =SUMIF('Load Data'!$AQ$51:$AQ$90,E58,'Load Data'!$BJ$51:$BJ$90) -> 37240.22764
A59: 3 | B59: 9 | C59: 57 | D59: =OFFSET('Load Data'!$D$1,IF($D$1,A59,366-A59),B59) -> 22624.65648 | E59: =IF(C59=SUMIF('Load Data'!$AQ$51:$AQ$90,E58,'Load Data'!$BK$51:$BK$90),E58+1,E58) -> 1 | F59: 35821.35202 | G59: =SUMIF('Load Data'!$AQ$51:$AQ$90,E59,'Load Data'!$BJ$51:$BJ$90) -> 37240.22764
A60: 3 | B60: 10 | C60: 58 | D60: =OFFSET('Load Data'!$D$1,IF($D$1,A60,366-A60),B60) -> 24289.24211 | E60: =IF(C60=SUMIF('Load Data'!$AQ$51:$AQ$90,E59,'Load Data'!$BK$51:$BK$90),E59+1,E59) -> 1 | F60: 35807.0347 | G60: =SUMIF('Load Data'!$AQ$51:$AQ$90,E60,'Load Data'!$BJ$51:$BJ$90) -> 37240.22764
A61: 3 | B61: 11 | C61: 59 | D61: =OFFSET('Load Data'!$D$1,IF($D$1,A61,366-A61),B61) -> 25054.72563 | E61: =IF(C61=SUMIF('Load Data'!$AQ$51:$AQ$90,E60,'Load Data'!$BK$51:$BK$90),E60+1,E60) -> 1 | F61: 35788.75731 | G61: =SUMIF('Load Data'!$AQ$51:$AQ$90,E61,'Load Data'!$BJ$51:$BJ$90) -> 37240.22764
A62: 3 | B62: 12 | C62: 60 | D62: =OFFSET('Load Data'!$D$1,IF($D$1,A62,366-A62),B62) -> 24920.43936 | E62: =IF(C62=SUMIF('Load Data'!$AQ$51:$AQ$90,E61,'Load Data'!$BK$51:$BK$90),E61+1,E61) -> 1 | F62: 35703.50623 | G62: =SUMIF('Load Data'!$AQ$51:$AQ$90,E62,'Load Data'!$BJ$51:$BJ$90) -> 37240.22764
A63: 3 | B63: 13 | C63: 61 | D63: =OFFSET('Load Data'!$D$1,IF($D$1,A63,366-A63),B63) -> 24859.06225 | E63: =IF(C63=SUMIF('Load Data'!$AQ$51:$AQ$90,E62,'Load Data'!$BK$51:$BK$90),E62+1,E62) -> 1 | F63: 35702.16144 | G63: =SUMIF('Load Data'!$AQ$51:$AQ$90,E63,'Load Data'!$BJ$51:$BJ$90) -> 37240.22764
A64: 3 | B64: 14 | C64: 62 | D64: =OFFSET('Load Data'!$D$1,IF($D$1,A64,366-A64),B64) -> 24532.53755 | E64: =IF(C64=SUMIF('Load Data'!$AQ$51:$AQ$90,E63,'Load Data'!$BK$51:$BK$90),E63+1,E63) -> 1 | F64: 35689.07353 | G64: =SUMIF('Load Data'!$AQ$51:$AQ$90,E64,'Load Data'!$BJ$51:$BJ$90) -> 37240.22764
A65: 3 | B65: 15 | C65: 63 | D65: =OFFSET('Load Data'!$D$1,IF($D$1,A65,366-A65),B65) -> 23889.46251 | E65: =IF(C65=SUMIF('Load Data'!$AQ$51:$AQ$90,E64,'Load Data'!$BK$51:$BK$90),E64+1,E64) -> 1 | F65: 35688.82472 | G65: =SUMIF('Load Data'!$AQ$51:$AQ$90,E65,'Load Data'!$BJ$51:$BJ$90) -> 37240.22764
A66: 3 | B66: 16 | C66: 64 | D66: =OFFSET('Load Data'!$D$1,IF($D$1,A66,366-A66),B66) -> 23284.83671 | E66: =IF(C66=SUMIF('Load Data'!$AQ$51:$AQ$90,E65,'Load Data'!$BK$51:$BK$90),E65+1,E65) -> 1 | F66: 35674.20585 | G66: =SUMIF('Load Data'!$AQ$51:$AQ$90,E66,'Load Data'!$BJ$51:$BJ$90) -> 37240.22764
A67: 3 | B67: 17 | C67: 65 | D67: =OFFSET('Load Data'!$D$1,IF($D$1,A67,366-A67),B67) -> 22957.32096 | E67: =IF(C67=SUMIF('Load Data'!$AQ$51:$AQ$90,E66,'Load Data'!$BK$51:$BK$90),E66+1,E66) -> 1 | F67: 35630.96229 | G67: =SUMIF('Load Data'!$AQ$51:$AQ$90,E67,'Load Data'!$BJ$51:$BJ$90) -> 37240.22764
A68: 3 | B68: 18 | C68: 66 | D68: =OFFSET('Load Data'!$D$1,IF($D$1,A68,366-A68),B68) -> 22858.96094 | E68: =IF(C68=SUMIF('Load Data'!$AQ$51:$AQ$90,E67,'Load Data'!$BK$51:$BK$90),E67+1,E67) -> 1 | F68: 35623.42864 | G68: =SUMIF('Load Data'!$AQ$51:$AQ$90,E68,'Load Data'!$BJ$51:$BJ$90) -> 37240.22764
A69: 3 | B69: 19 | C69: =C68+1 -> 67 | D69: =OFFSET('Load Data'!$D$1,IF($D$1,A69,366-A69),B69) -> 23145.40544 | E69: =IF(C69=SUMIF('Load Data'!$AQ$51:$AQ$90,E68,'Load Data'!$BK$51:$BK$90),E68+1,E68) -> 1 | F69: 35616.17048 | G69: =SUMIF('Load Data'!$AQ$51:$AQ$90,E69,'Load Data'!$BJ$51:$BJ$90) -> 37240.22764
A70: 3 | B70: 20 | C70: 68 | D70: =OFFSET('Load Data'!$D$1,IF($D$1,A70,366-A70),B70) -> 24190.27597 | E70: =IF(C70=SUMIF('Load Data'!$AQ$51:$AQ$90,E69,'Load Data'!$BK$51:$BK$90),E69+1,E69) -> 1 | F70: 35608.7656 | G70: =SUMIF('Load Data'!$AQ$51:$AQ$90,E70,'Load Data'!$BJ$51:$BJ$90) -> 37240.22764
A71: 3 | B71: 21 | C71: 69 | D71: =OFFSET('Load Data'!$D$1,IF($D$1,A71,366-A71),B71) -> 26120.94497 | E71: =IF(C71=SUMIF('Load Data'!$AQ$51:$AQ$90,E70,'Load Data'!$BK$51:$BK$90),E70+1,E70) -> 1 | F71: 35605.89651 | G71: =SUMIF('Load Data'!$AQ$51:$AQ$90,E71,'Load Data'!$BJ$51:$BJ$90) -> 37240.22764
A72: 3 | B72: 22 | C72: 70 | D72: =OFFSET('Load Data'!$D$1,IF($D$1,A72,366-A72),B72) -> 26018.55803 | E72: =IF(C72=SUMIF('Load Data'!$AQ$51:$AQ$90,E71,'Load Data'!$BK$51:$BK$90),E71+1,E71) -> 1 | F72: 35590.97373 | G72: =SUMIF('Load Data'!$AQ$51:$AQ$90,E72,'Load Data'!$BJ$51:$BJ$90) -> 37240.22764
A73: 3 | B73: 23 | C73: 71 | D73: =OFFSET('Load Data'!$D$1,IF($D$1,A73,366-A73),B73) -> 24320.78152 | E73: =IF(C73=SUMIF('Load Data'!$AQ$51:$AQ$90,E72,'Load Data'!$BK$51:$BK$90),E72+1,E72) -> 1 | F73: 35589.95816 | G73: =SUMIF('Load Data'!$AQ$51:$AQ$90,E73,'Load Data'!$BJ$51:$BJ$90) -> 37240.22764
A74: 3 | B74: 24 | C74: 72 | D74: =OFFSET('Load Data'!$D$1,IF($D$1,A74,366-A74),B74) -> 22881.8596 | E74: =IF(C74=SUMIF('Load Data'!$AQ$51:$AQ$90,E73,'Load Data'!$BK$51:$BK$90),E73+1,E73) -> 1 | F74: 35583.60415 | G74: =SUMIF('Load Data'!$AQ$51:$AQ$90,E74,'Load Data'!$BJ$51:$BJ$90) -> 37240.22764
A75: 4 | B75: 1 | C75: 73 | D75: =OFFSET('Load Data'!$D$1,IF($D$1,A75,366-A75),B75) -> 21508.33419 | E75: =IF(C75=SUMIF('Load Data'!$AQ$51:$AQ$90,E74,'Load Data'!$BK$51:$BK$90),E74+1,E74) -> 1 | F75: 35567.96503 | G75: =SUMIF('Load Data'!$AQ$51:$AQ$90,E75,'Load Data'!$BJ$51:$BJ$90) -> 37240.22764
A76: 4 | B76: 2 | C76: 74 | D76: =OFFSET('Load Data'!$D$1,IF($D$1,A76,366-A76),B76) -> 21169.26075 | E76: =IF(C76=SUMIF('Load Data'!$AQ$51:$AQ$90,E75,'Load Data'!$BK$51:$BK$90),E75+1,E75) -> 1 | F76: 35567.19786 | G76: =SUMIF('Load Data'!$AQ$51:$AQ$90,E76,'Load Data'!$BJ$51:$BJ$90) -> 37240.22764
A77: 4 | B77: 3 | C77: 75 | D77: =OFFSET('Load Data'!$D$1,IF($D$1,A77,366-A77),B77) -> 20868.42812 | E77: =IF(C77=SUMIF('Load Data'!$AQ$51:$AQ$90,E76,'Load Data'!$BK$51:$BK$90),E76+1,E76) -> 1 | F77: 35563.26612 | G77: =SUMIF('Load Data'!$AQ$51:$AQ$90,E77,'Load Data'!$BJ$51:$BJ$90) -> 37240.22764
A78: 4 | B78: 4 | C78: 76 | D78: =OFFSET('Load Data'!$D$1,IF($D$1,A78,366-A78),B78) -> 20690.14721 | E78: =IF(C78=SUMIF('Load Data'!$AQ$51:$AQ$90,E77,'Load Data'!$BK$51:$BK$90),E77+1,E77) -> 1 | F78: 35560.71526 | G78: =SUMIF('Load Data'!$AQ$51:$AQ$90,E78,'Load Data'!$BJ$51:$BJ$90) -> 37240.22764
A79: 4 | B79: 5 | C79: 77 | D79: =OFFSET('Load Data'!$D$1,IF($D$1,A79,366-A79),B79) -> 20673.66699 | E79: =IF(C79=SUMIF('Load Data'!$AQ$51:$AQ$90,E78,'Load Data'!$BK$51:$BK$90),E78+1,E78) -> 1 | F79: 35556.79967 | G79: =SUMIF('Load Data'!$AQ$51:$AQ$90,E79,'Load Data'!$BJ$51:$BJ$90) -> 37240.22764
A80: 4 | B80: 6 | C80: 78 | D80: =OFFSET('Load Data'!$D$1,IF($D$1,A80,366-A80),B80) -> 21252.15316 | E80: =IF(C80=SUMIF('Load Data'!$AQ$51:$AQ$90,E79,'Load Data'!$BK$51:$BK$90),E79+1,E79) -> 1 | F80: 35471.92161 | G80: =SUMIF('Load Data'!$AQ$51:$AQ$90,E80,'Load Data'!$BJ$51:$BJ$90) -> 37240.22764
A81: 4 | B81: 7 | C81: 79 | D81: =OFFSET('Load Data'!$D$1,IF($D$1,A81,366-A81),B81) -> 22574.59626 | E81: =IF(C81=SUMIF('Load Data'!$AQ$51:$AQ$90,E80,'Load Data'!$BK$51:$BK$90),E80+1,E80) -> 1 | F81: 35405.80354 | G81: =SUMIF('Load Data'!$AQ$51:$AQ$90,E81,'Load Data'!$BJ$51:$BJ$90) -> 37240.22764
A82: 4 | B82: 8 | C82: 80 | D82: =OFFSET('Load Data'!$D$1,IF($D$1,A82,366-A82),B82) -> 24168.47463 | E82: =IF(C82=SUMIF('Load Data'!$AQ$51:$AQ$90,E81,'Load Data'!$BK$51:$BK$90),E81+1,E81) -> 1 | F82: 35393.55801 | G82: =SUMIF('Load Data'!$AQ$51:$AQ$90,E82,'Load Data'!$BJ$51:$BJ$90) -> 37240.22764
A83: 4 | B83: 9 | C83: 81 | D83: =OFFSET('Load Data'!$D$1,IF($D$1,A83,366-A83),B83) -> 26145.63953 | E83: =IF(C83=SUMIF('Load Data'!$AQ$51:$AQ$90,E82,'Load Data'!$BK$51:$BK$90),E82+1,E82) -> 1 | F83: 35382.78632 | G83: =SUMIF('Load Data'!$AQ$51:$AQ$90,E83,'Load Data'!$BJ$51:$BJ$90) -> 37240.22764
A84: 4 | B84: 10 | C84: 82 | D84: =OFFSET('Load Data'!$D$1,IF($D$1,A84,366-A84),B84) -> 27957.89595 | E84: =IF(C84=SUMIF('Load Data'!$AQ$51:$AQ$90,E83,'Load Data'!$BK$51:$BK$90),E83+1,E83) -> 1 | F84: 35380.04457 | G84: =SUMIF('Load Data'!$AQ$51:$AQ$90,E84,'Load Data'!$BJ$51:$BJ$90) -> 37240.22764
A85: 4 | B85: 11 | C85: 83 | D85: =OFFSET('Load Data'!$D$1,IF($D$1,A85,366-A85),B85) -> 28658.62378 | E85: =IF(C85=SUMIF('Load Data'!$AQ$51:$AQ$90,E84,'Load Data'!$BK$51:$BK$90),E84+1,E84) -> 1 | F85: 35375.8116 | G85: =SUMIF('Load Data'!$AQ$51:$AQ$90,E85,'Load Data'!$BJ$51:$BJ$90) -> 37240.22764
A86: 4 | B86: 12 | C86: 84 | D86: =OFFSET('Load Data'!$D$1,IF($D$1,A86,366-A86),B86) -> 29086.0908 | E86: =IF(C86=SUMIF('Load Data'!$AQ$51:$AQ$90,E85,'Load Data'!$BK$51:$BK$90),E85+1,E85) -> 1 | F86: 35368.72775 | G86: =SUMIF('Load Data'!$AQ$51:$AQ$90,E86,'Load Data'!$BJ$51:$BJ$90) -> 37240.22764
A87: 4 | B87: 13 | C87: 85 | D87: =OFFSET('Load Data'!$D$1,IF($D$1,A87,366-A87),B87) -> 29100.44262 | E87: =IF(C87=SUMIF('Load Data'!$AQ$51:$AQ$90,E86,'Load Data'!$BK$51:$BK$90),E86+1,E86) -> 1 | F87: 35357.2469 | G87: =SUMIF('Load Data'!$AQ$51:$AQ$90,E87,'Load Data'!$BJ$51:$BJ$90) -> 37240.22764
A88: 4 | B88: 14 | C88: 86 | D88: =OFFSET('Load Data'!$D$1,IF($D$1,A88,366-A88),B88) -> 28852.51346 | E88: =IF(C88=SUMIF('Load Data'!$AQ$51:$AQ$90,E87,'Load Data'!$BK$51:$BK$90),E87+1,E87) -> 1 | F88: 35340.47315 | G88: =SUMIF('Load Data'!$AQ$51:$AQ$90,E88,'Load Data'!$BJ$51:$BJ$90) -> 37240.22764
A89: 4 | B89: 15 | C89: 87 | D89: =OFFSET('Load Data'!$D$1,IF($D$1,A89,366-A89),B89) -> 28547.34129 | E89: =IF(C89=SUMIF('Load Data'!$AQ$51:$AQ$90,E88,'Load Data'!$BK$51:$BK$90),E88+1,E88) -> 1 | F89: 35335.59602 | G89: =SUMIF('Load Data'!$AQ$51:$AQ$90,E89,'Load Data'!$BJ$51:$BJ$90) -> 37240.22764
A90: 4 | B90: 16 | C90: 88 | D90: =OFFSET('Load Data'!$D$1,IF($D$1,A90,366-A90),B90) -> 28440.43542 | E90: =IF(C90=SUMIF('Load Data'!$AQ$51:$AQ$90,E89,'Load Data'!$BK$51:$BK$90),E89+1,E89) -> 1 | F90: 35318.69772 | G90: =SUMIF('Load Data'!$AQ$51:$AQ$90,E90,'Load Data'!$BJ$51:$BJ$90) -> 37240.22764
A91: 4 | B91: 17 | C91: 89 | D91: =OFFSET('Load Data'!$D$1,IF($D$1,A91,366-A91),B91) -> 28491.01863 | E91: =IF(C91=SUMIF('Load Data'!$AQ$51:$AQ$90,E90,'Load Data'!$BK$51:$BK$90),E90+1,E90) -> 1 | F91: 35294.22694 | G91: =SUMIF('Load Data'!$AQ$51:$AQ$90,E91,'Load Data'!$BJ$51:$BJ$90) -> 37240.22764
A92: 4 | B92: =B68 -> 18 | C92: 90 | D92: =OFFSET('Load Data'!$D$1,IF($D$1,A92,366-A92),B92) -> 28432.6388 | E92: =IF(C92=SUMIF('Load Data'!$AQ$51:$AQ$90,E91,'Load Data'!$BK$51:$BK$90),E91+1,E91) -> 1 | F92: 35292.50499 | G92: =SUMIF('Load Data'!$AQ$51:$AQ$90,E92,'Load Data'!$BJ$51:$BJ$90) -> 37240.22764
A93: 4 | B93: 19 | C93: 91 | D93: =OFFSET('Load Data'!$D$1,IF($D$1,A93,366-A93),B93) -> 28404.25989 | E93: =IF(C93=SUMIF('Load Data'!$AQ$51:$AQ$90,E92,'Load Data'!$BK$51:$BK$90),E92+1,E92) -> 1 | F93: 35291.51458 | G93: =SUMIF('Load Data'!$AQ$51:$AQ$90,E93,'Load Data'!$BJ$51:$BJ$90) -> 37240.22764
A94: 4 | B94: 20 | C94: 92 | D94: =OFFSET('Load Data'!$D$1,IF($D$1,A94,366-A94),B94) -> 28211.46671 | E94: =IF(C94=SUMIF('Load Data'!$AQ$51:$AQ$90,E93,'Load Data'!$BK$51:$BK$90),E93+1,E93) -> 1 | F94: 35283.61456 | G94: =SUMIF('Load Data'!$AQ$51:$AQ$90,E94,'Load Data'!$BJ$51:$BJ$90) -> 37240.22764
A95: 4 | B95: 21 | C95: 93 | D95: =OFFSET('Load Data'!$D$1,IF($D$1,A95,366-A95),B95) -> 29001.19414 | E95: =IF(C95=SUMIF('Load Data'!$AQ$51:$AQ$90,E94,'Load Data'!$BK$51:$BK$90),E94+1,E94) -> 1 | F95: 35274.43336 | G95: =SUMIF('Load Data'!$AQ$51:$AQ$90,E95,'Load Data'!$BJ$51:$BJ$90) -> 37240.22764
A96: 4 | B96: 22 | C96: 94 | D96: =OFFSET('Load Data'!$D$1,IF($D$1,A96,366-A96),B96) -> 28970.85406 | E96: =IF(C96=SUMIF('Load Data'!$AQ$51:$AQ$90,E95,'Load Data'!$BK$51:$BK$90),E95+1,E95) -> 1 | F96: 35273.35329 | G96: =SUMIF('Load Data'!$AQ$51:$AQ$90,E96,'Load Data'!$BJ$51:$BJ$90) -> 37240.22764
A97: 4 | B97: 23 | C97: 95 | D97: =OFFSET('Load Data'!$D$1,IF($D$1,A97,366-A97),B97) -> 27110.4679 | E97: =IF(C97=SUMIF('Load Data'!$AQ$51:$AQ$90,E96,'Load Data'!$BK$51:$BK$90),E96+1,E96) -> 1 | F97: 35269.44535 | G97: =SUMIF('Load Data'!$AQ$51:$AQ$90,E97,'Load Data'!$BJ$51:$BJ$90) -> 37240.22764
A98: =ROUNDDOWN((C98-1)/24,0)+1 -> 4 | B98: 24 | C98: 96 | D98: =OFFSET('Load Data'!$D$1,IF($D$1,A98,366-A98),B98) -> 24862.17608 | E98: =IF(C98=SUMIF('Load Data'!$AQ$51:$AQ$90,E97,'Load Data'!$BK$51:$BK$90),E97+1,E97) -> 1 | F98: 35259.78147 | G98: =SUMIF('Load Data'!$AQ$51:$AQ$90,E98,'Load Data'!$BJ$51:$BJ$90) -> 37240.22764
A99: 5 | B99: 1 | C99: 97 | D99: =OFFSET('Load Data'!$D$1,IF($D$1,A99,366-A99),B99) -> 23336.60323 | E99: =IF(C99=SUMIF('Load Data'!$AQ$51:$AQ$90,E98,'Load Data'!$BK$51:$BK$90),E98+1,E98) -> 1 | F99: 35258.5617 | G99: =SUMIF('Load Data'!$AQ$51:$AQ$90,E99,'Load Data'!$BJ$51:$BJ$90) -> 37240.22764
A100: 5 | B100: 2 | C100: 98 | D100: =OFFSET('Load Data'!$D$1,IF($D$1,A100,366-A100),B100) -> 22306.95184 | E100: =IF(C100=SUMIF('Load Data'!$AQ$51:$AQ$90,E99,'Load Data'!$BK$51:$BK$90),E99+1,E99) -> 1 | F100: 35232.70098 | G100: =SUMIF('Load Data'!$AQ$51:$AQ$90,E100,'Load Data'!$BJ$51:$BJ$90) -> 37240.22764
A101: 5 | B101: 3 | C101: 99 | D101: =OFFSET('Load Data'!$D$1,IF($D$1,A101,366-A101),B101) -> 21913.36196 | E101: =IF(C101=SUMIF('Load Data'!$AQ$51:$AQ$90,E100,'Load Data'!$BK$51:$BK$90),E100+1,E100) -> 1 | F101: 35232.66932 | G101: =SUMIF('Load Data'!$AQ$51:$AQ$90,E101,'Load Data'!$BJ$51:$BJ$90) -> 37240.22764
A102: 5 | B102: 4 | C102: 100 | D102: =OFFSET('Load Data'!$D$1,IF($D$1,A102,366-A102),B102) -> 21724.7857 | E102: =IF(C102=SUMIF('Load Data'!$AQ$51:$AQ$90,E101,'Load Data'!$BK$51:$BK$90),E101+1,E101) -> 1 | F102: 35227.76647 | G102: =SUMIF('Load Data'!$AQ$51:$AQ$90,E102,'Load Data'!$BJ$51:$BJ$90) -> 37240.22764
A103: 5 | B103: 5 | C103: 101 | D103: =OFFSET('Load Data'!$D$1,IF($D$1,A103,366-A103),B103) -> 21810.00288 | E103: =IF(C103=SUMIF('Load Data'!$AQ$51:$AQ$90,E102,'Load Data'!$BK$51:$BK$90),E102+1,E102) -> 1 | F103: 35227.58143 | G103: =SUMIF('Load Data'!$AQ$51:$AQ$90,E103,'Load Data'!$BJ$51:$BJ$90) -> 37240.22764
A104: 5 | B104: 6 | C104: 102 | D104: =OFFSET('Load Data'!$D$1,IF($D$1,A104,366-A104),B104) -> 22260.82355 | E104: =IF(C104=SUMIF('Load Data'!$AQ$51:$AQ$90,E103,'Load Data'!$BK$51:$BK$90),E103+1,E103) -> 1 | F104: 35185.11411 | G104: =SUMIF('Load Data'!$AQ$51:$AQ$90,E104,'Load Data'!$BJ$51:$BJ$90) -> 37240.22764
A105: 5 | B105: 7 | C105: 103 | D105: =OFFSET('Load Data'!$D$1,IF($D$1,A105,366-A105),B105) -> 23512.48683 | E105: =IF(C105=SUMIF('Load Data'!$AQ$51:$AQ$90,E104,'Load Data'!$BK$51:$BK$90),E104+1,E104) -> 1 | F105: 35169.1097 | G105: =SUMIF('Load Data'!$AQ$51:$AQ$90,E105,'Load Data'!$BJ$51:$BJ$90) -> 37240.22764
A106: 5 | B106: 8 | C106: 104 | D106: =OFFSET('Load Data'!$D$1,IF($D$1,A106,366-A106),B106) -> 25069.73195 | E106: =IF(C106=SUMIF('Load Data'!$AQ$51:$AQ$90,E105,'Load Data'!$BK$51:$BK$90),E105+1,E105) -> 1 | F106: 35162.91434 | G106: =SUMIF('Load Data'!$AQ$51:$AQ$90,E106,'Load Data'!$BJ$51:$BJ$90) -> 37240.22764
A107: 5 | B107: 9 | C107: 105 | D107: =OFFSET('Load Data'!$D$1,IF($D$1,A107,366-A107),B107) -> 26911.52513 | E107: =IF(C107=SUMIF('Load Data'!$AQ$51:$AQ$90,E106,'Load Data'!$BK$51:$BK$90),E106+1,E106) -> 1 | F107: 35145.64098 | G107: =SUMIF('Load Data'!$AQ$51:$AQ$90,E107,'Load Data'!$BJ$51:$BJ$90) -> 37240.22764
A108: 5 | B108: 10 | C108: 106 | D108: =OFFSET('Load Data'!$D$1,IF($D$1,A108,366-A108),B108) -> 28518.20309 | E108: =IF(C108=SUMIF('Load Data'!$AQ$51:$AQ$90,E107,'Load Data'!$BK$51:$BK$90),E107+1,E107) -> 1 | F108: 35128.39245 | G108: =SUMIF('Load Data'!$AQ$51:$AQ$90,E108,'Load Data'!$BJ$51:$BJ$90) -> 37240.22764
A109: 5 | B109: 11 | C109: 107 | D109: =OFFSET('Load Data'!$D$1,IF($D$1,A109,366-A109),B109) -> 28849.41209 | E109: =IF(C109=SUMIF('Load Data'!$AQ$51:$AQ$90,E108,'Load Data'!$BK$51:$BK$90),E108+1,E108) -> 1 | F109: 35113.5619 | G109: =SUMIF('Load Data'!$AQ$51:$AQ$90,E109,'Load Data'!$BJ$51:$BJ$90) -> 37240.22764
A110: 5 | B110: 12 | C110: 108 | D110: =OFFSET('Load Data'!$D$1,IF($D$1,A110,366-A110),B110) -> 29170.19636 | E110: =IF(C110=SUMIF('Load Data'!$AQ$51:$AQ$90,E109,'Load Data'!$BK$51:$BK$90),E109+1,E109) -> 1 | F110: 35110.67159 | G110: =SUMIF('Load Data'!$AQ$51:$AQ$90,E110,'Load Data'!$BJ$51:$BJ$90) -> 37240.22764
A111: 5 | B111: 13 | C111: 109 | D111: =OFFSET('Load Data'!$D$1,IF($D$1,A111,366-A111),B111) -> 29218.26526 | E111: =IF(C111=SUMIF('Load Data'!$AQ$51:$AQ$90,E110,'Load Data'!$BK$51:$BK$90),E110+1,E110) -> 1 | F111: 35105.95321 | G111: =SUMIF('Load Data'!$AQ$51:$AQ$90,E111,'Load Data'!$BJ$51:$BJ$90) -> 37240.22764
A112: 5 | B112: 14 | C112: 110 | D112: =OFFSET('Load Data'!$D$1,IF($D$1,A112,366-A112),B112) -> 29058.54304 | E112: =IF(C112=SUMIF('Load Data'!$AQ$51:$AQ$90,E111,'Load Data'!$BK$51:$BK$90),E111+1,E111) -> 1 | F112: 35098.70626 | G112: =SUMIF('Load Data'!$AQ$51:$AQ$90,E112,'Load Data'!$BJ$51:$BJ$90) -> 37240.22764
A113: 5 | B113: 15 | C113: 111 | D113: =OFFSET('Load Data'!$D$1,IF($D$1,A113,366-A113),B113) -> 28749.86014 | E113: =IF(C113=SUMIF('Load Data'!$AQ$51:$AQ$90,E112,'Load Data'!$BK$51:$BK$90),E112+1,E112) -> 1 | F113: 35096.59127 | G113: =SUMIF('Load Data'!$AQ$51:$AQ$90,E113,'Load Data'!$BJ$51:$BJ$90) -> 37240.22764
A114: 5 | B114: 16 | C114: 112 | D114: =OFFSET('Load Data'!$D$1,IF($D$1,A114,366-A114),B114) -> 28826.09879 | E114: =IF(C114=SUMIF('Load Data'!$AQ$51:$AQ$90,E113,'Load Data'!$BK$51:$BK$90),E113+1,E113) -> 1 | F114: 35084.7368 | G114: =SUMIF('Load Data'!$AQ$51:$AQ$90,E114,'Load Data'!$BJ$51:$BJ$90) -> 37240.22764
A115: 5 | B115: 17 | C115: 113 | D115: =OFFSET('Load Data'!$D$1,IF($D$1,A115,366-A115),B115) -> 28858.28785 | E115: =IF(C115=SUMIF('Load Data'!$AQ$51:$AQ$90,E114,'Load Data'!$BK$51:$BK$90),E114+1,E114) -> 1 | F115: 35075.33975 | G115: =SUMIF('Load Data'!$AQ$51:$AQ$90,E115,'Load Data'!$BJ$51:$BJ$90) -> 37240.22764
A116: 5 | B116: 18 | C116: 114 | D116: =OFFSET('Load Data'!$D$1,IF($D$1,A116,366-A116),B116) -> 28879.23344 | E116: =IF(C116=SUMIF('Load Data'!$AQ$51:$AQ$90,E115,'Load Data'!$BK$51:$BK$90),E115+1,E115) -> 1 | F116: 35075.03828 | G116: =SUMIF('Load Data'!$AQ$51:$AQ$90,E116,'Load Data'!$BJ$51:$BJ$90) -> 37240.22764
A117: 5 | B117: 19 | C117: 115 | D117: =OFFSET('Load Data'!$D$1,IF($D$1,A117,366-A117),B117) -> 28591.73873 | E117: =IF(C117=SUMIF('Load Data'!$AQ$51:$AQ$90,E116,'Load Data'!$BK$51:$BK$90),E116+1,E116) -> 1 | F117: 35066.94731 | G117: =SUMIF('Load Data'!$AQ$51:$AQ$90,E117,'Load Data'!$BJ$51:$BJ$90) -> 37240.22764
A118: 5 | B118: 20 | C118: 116 | D118: =OFFSET('Load Data'!$D$1,IF($D$1,A118,366-A118),B118) -> 28485.99687 | E118: =IF(C118=SUMIF('Load Data'!$AQ$51:$AQ$90,E117,'Load Data'!$BK$51:$BK$90),E117+1,E117) -> 1 | F118: 35046.77891 | G118: =SUMIF('Load Data'!$AQ$51:$AQ$90,E118,'Load Data'!$BJ$51:$BJ$90) -> 37240.22764
A119: 5 | B119: 21 | C119: 117 | D119: =OFFSET('Load Data'!$D$1,IF($D$1,A119,366-A119),B119) -> 29641.46071 | E119: =IF(C119=SUMIF('Load Data'!$AQ$51:$AQ$90,E118,'Load Data'!$BK$51:$BK$90),E118+1,E118) -> 1 | F119: 35045.45017 | G119: =SUMIF('Load Data'!$AQ$51:$AQ$90,E119,'Load Data'!$BJ$51:$BJ$90) -> 37240.22764
A120: 5 | B120: 22 | C120: 118 | D120: =OFFSET('Load Data'!$D$1,IF($D$1,A120,366-A120),B120) -> 29352.62459 | E120: =IF(C120=SUMIF('Load Data'!$AQ$51:$AQ$90,E119,'Load Data'!$BK$51:$BK$90),E119+1,E119) -> 1 | F120: 35041.45039 | G120: =SUMIF('Load Data'!$AQ$51:$AQ$90,E120,'Load Data'!$BJ$51:$BJ$90) -> 37240.22764
A121: 5 | B121: 23 | C121: 119 | D121: =OFFSET('Load Data'!$D$1,IF($D$1,A121,366-A121),B121) -> 27485.83562 | E121: =IF(C121=SUMIF('Load Data'!$AQ$51:$AQ$90,E120,'Load Data'!$BK$51:$BK$90),E120+1,E120) -> 1 | F121: 35021.99309 | G121: =SUMIF('Load Data'!$AQ$51:$AQ$90,E121,'Load Data'!$BJ$51:$BJ$90) -> 37240.22764
A122: 5 | B122: 24 | C122: 120 | D122: =OFFSET('Load Data'!$D$1,IF($D$1,A122,366-A122),B122) -> 25293.97699 | E122: =IF(C122=SUMIF('Load Data'!$AQ$51:$AQ$90,E121,'Load Data'!$BK$51:$BK$90),E121+1,E121) -> 1 | F122: 35002.19733 | G122: =SUMIF('Load Data'!$AQ$51:$AQ$90,E122,'Load Data'!$BJ$51:$BJ$90) -> 37240.22764
A123: 6 | B123: 1 | C123: 121 | D123: =OFFSET('Load Data'!$D$1,IF($D$1,A123,366-A123),B123) -> 23607.55562 | E123: =IF(C123=SUMIF('Load Data'!$AQ$51:$AQ$90,E122,'Load Data'!$BK$51:$BK$90),E122+1,E122) -> 1 | F123: 34971.72501 | G123: =SUMIF('Load Data'!$AQ$51:$AQ$90,E123,'Load Data'!$BJ$51:$BJ$90) -> 37240.22764
A124: 6 | B124: 2 | C124: 122 | D124: =OFFSET('Load Data'!$D$1,IF($D$1,A124,366-A124),B124) -> 22766.99674 | E124: =IF(C124=SUMIF('Load Data'!$AQ$51:$AQ$90,E123,'Load Data'!$BK$51:$BK$90),E123+1,E123) -> 1 | F124: 34969.52485 | G124: =SUMIF('Load Data'!$AQ$51:$AQ$90,E124,'Load Data'!$BJ$51:$BJ$90) -> 37240.22764
A125: 6 | B125: 3 | C125: 123 | D125: =OFFSET('Load Data'!$D$1,IF($D$1,A125,366-A125),B125) -> 22449.46067 | E125: =IF(C125=SUMIF('Load Data'!$AQ$51:$AQ$90,E124,'Load Data'!$BK$51:$BK$90),E124+1,E124) -> 1 | F125: 34968.77422 | G125: =SUMIF('Load Data'!$AQ$51:$AQ$90,E125,'Load Data'!$BJ$51:$BJ$90) -> 37240.22764
A126: 6 | B126: 4 | C126: 124 | D126: =OFFSET('Load Data'!$D$1,IF($D$1,A126,366-A126),B126) -> 22261.39386 | E126: =IF(C126=SUMIF('Load Data'!$AQ$51:$AQ$90,E125,'Load Data'!$BK$51:$BK$90),E125+1,E125) -> 1 | F126: 34944.94426 | G126: =SUMIF('Load Data'!$AQ$51:$AQ$90,E126,'Load Data'!$BJ$51:$BJ$90) -> 37240.22764
A127: 6 | B127: 5 | C127: 125 | D127: =OFFSET('Load Data'!$D$1,IF($D$1,A127,366-A127),B127) -> 22247.75717 | E127: =IF(C127=SUMIF('Load Data'!$AQ$51:$AQ$90,E126,'Load Data'!$BK$51:$BK$90),E126+1,E126) -> 1 | F127: 34925.67905 | G127: =SUMIF('Load Data'!$AQ$51:$AQ$90,E127,'Load Data'!$BJ$51:$BJ$90) -> 37240.22764
A128: 6 | B128: 6 | C128: 126 | D128: =OFFSET('Load Data'!$D$1,IF($D$1,A128,366-A128),B128) -> 22734.13454 | E128: =IF(C128=SUMIF('Load Data'!$AQ$51:$AQ$90,E127,'Load Data'!$BK$51:$BK$90),E127+1,E127) -> 1 | F128: 34912.17834 | G128: =SUMIF('Load Data'!$AQ$51:$AQ$90,E128,'Load Data'!$BJ$51:$BJ$90) -> 37240.22764
A129: 6 | B129: 7 | C129: 127 | D129: =OFFSET('Load Data'!$D$1,IF($D$1,A129,366-A129),B129) -> 24392.09946 | E129: =IF(C129=SUMIF('Load Data'!$AQ$51:$AQ$90,E128,'Load Data'!$BK$51:$BK$90),E128+1,E128) -> 1 | F129: 34901.60312 | G129: =SUMIF('Load Data'!$AQ$51:$AQ$90,E129,'Load Data'!$BJ$51:$BJ$90) -> 37240.22764
A130: 6 | B130: 8 | C130: 128 | D130: =OFFSET('Load Data'!$D$1,IF($D$1,A130,366-A130),B130) -> 25968.36804 | E130: =IF(C130=SUMIF('Load Data'!$AQ$51:$AQ$90,E129,'Load Data'!$BK$51:$BK$90),E129+1,E129) -> 1 | F130: 34901.28319 | G130: =SUMIF('Load Data'!$AQ$51:$AQ$90,E130,'Load Data'!$BJ$51:$BJ$90) -> 37240.22764
A131: 6 | B131: 9 | C131: 129 | D131: =OFFSET('Load Data'!$D$1,IF($D$1,A131,366-A131),B131) -> 27378.67165 | E131: =IF(C131=SUMIF('Load Data'!$AQ$51:$AQ$90,E130,'Load Data'!$BK$51:$BK$90),E130+1,E130) -> 1 | F131: 34899.35627 | G131: =SUMIF('Load Data'!$AQ$51:$AQ$90,E131,'Load Data'!$BJ$51:$BJ$90) -> 37240.22764
A132: 6 | B132: 10 | C132: 130 | D132: =OFFSET('Load Data'!$D$1,IF($D$1,A132,366-A132),B132) -> 28902.99156 | E132: =IF(C132=SUMIF('Load Data'!$AQ$51:$AQ$90,E131,'Load Data'!$BK$51:$BK$90),E131+1,E131) -> 1 | F132: 34883.43977 | G132: =SUMIF('Load Data'!$AQ$51:$AQ$90,E132,'Load Data'!$BJ$51:$BJ$90) -> 37240.22764
A133: 6 | B133: 11 | C133: =C132+1 -> 131 | D133: =OFFSET('Load Data'!$D$1,IF($D$1,A133,366-A133),B133) -> 29167.85085 | E133: =IF(C133=SUMIF('Load Data'!$AQ$51:$AQ$90,E132,'Load Data'!$BK$51:$BK$90),E132+1,E132) -> 1 | F133: 34866.6098 | G133: =SUMIF('Load Data'!$AQ$51:$AQ$90,E133,'Load Data'!$BJ$51:$BJ$90) -> 37240.22764
A134: 6 | B134: 12 | C134: 132 | D134: =OFFSET('Load Data'!$D$1,IF($D$1,A134,366-A134),B134) -> 29570.46966 | E134: =IF(C134=SUMIF('Load Data'!$AQ$51:$AQ$90,E133,'Load Data'!$BK$51:$BK$90),E133+1,E133) -> 1 | F134: 34859.63726 | G134: =SUMIF('Load Data'!$AQ$51:$AQ$90,E134,'Load Data'!$BJ$51:$BJ$90) -> 37240.22764
A135: 6 | B135: 13 | C135: 133 | D135: =OFFSET('Load Data'!$D$1,IF($D$1,A135,366-A135),B135) -> 29403.34061 | E135: =IF(C135=SUMIF('Load Data'!$AQ$51:$AQ$90,E134,'Load Data'!$BK$51:$BK$90),E134+1,E134) -> 1 | F135: 34858.74141 | G135: =SUMIF('Load Data'!$AQ$51:$AQ$90,E135,'Load Data'!$BJ$51:$BJ$90) -> 37240.22764
A136: 6 | B136: 14 | C136: 134 | D136: =OFFSET('Load Data'!$D$1,IF($D$1,A136,366-A136),B136) -> 29352.20434 | E136: =IF(C136=SUMIF('Load Data'!$AQ$51:$AQ$90,E135,'Load Data'!$BK$51:$BK$90),E135+1,E135) -> 1 | F136: 34857.70423 | G136: =SUMIF('Load Data'!$AQ$51:$AQ$90,E136,'Load Data'!$BJ$51:$BJ$90) -> 37240.22764
A137: 6 | B137: 15 | C137: 135 | D137: =OFFSET('Load Data'!$D$1,IF($D$1,A137,366-A137),B137) -> 29010.24756 | E137: =IF(C137=SUMIF('Load Data'!$AQ$51:$AQ$90,E136,'Load Data'!$BK$51:$BK$90),E136+1,E136) -> 1 | F137: 34854.15237 | G137: =SUMIF('Load Data'!$AQ$51:$AQ$90,E137,'Load Data'!$BJ$51:$BJ$90) -> 37240.22764
A138: 6 | B138: 16 | C138: 136 | D138: =OFFSET('Load Data'!$D$1,IF($D$1,A138,366-A138),B138) -> 29172.33062 | E138: =IF(C138=SUMIF('Load Data'!$AQ$51:$AQ$90,E137,'Load Data'!$BK$51:$BK$90),E137+1,E137) -> 1 | F138: 34849.35046 | G138: =SUMIF('Load Data'!$AQ$51:$AQ$90,E138,'Load Data'!$BJ$51:$BJ$90) -> 37240.22764
A139: 6 | B139: 17 | C139: 137 | D139: =OFFSET('Load Data'!$D$1,IF($D$1,A139,366-A139),B139) -> 29338.14919 | E139: =IF(C139=SUMIF('Load Data'!$AQ$51:$AQ$90,E138,'Load Data'!$BK$51:$BK$90),E138+1,E138) -> 1 | F139: 34846.71362 | G139: =SUMIF('Load Data'!$AQ$51:$AQ$90,E139,'Load Data'!$BJ$51:$BJ$90) -> 37240.22764
A140: 6 | B140: 18 | C140: 138 | D140: =OFFSET('Load Data'!$D$1,IF($D$1,A140,366-A140),B140) -> 29317.03169 | E140: =IF(C140=SUMIF('Load Data'!$AQ$51:$AQ$90,E139,'Load Data'!$BK$51:$BK$90),E139+1,E139) -> 1 | F140: 34837.14617 | G140: =SUMIF('Load Data'!$AQ$51:$AQ$90,E140,'Load Data'!$BJ$51:$BJ$90) -> 37240.22764
A141: 6 | B141: 19 | C141: 139 | D141: =OFFSET('Load Data'!$D$1,IF($D$1,A141,366-A141),B141) -> 28915.46987 | E141: =IF(C141=SUMIF('Load Data'!$AQ$51:$AQ$90,E140,'Load Data'!$BK$51:$BK$90),E140+1,E140) -> 1 | F141: 34835.10129 | G141: =SUMIF('Load Data'!$AQ$51:$AQ$90,E141,'Load Data'!$BJ$51:$BJ$90) -> 37240.22764
A142: 6 | B142: 20 | C142: 140 | D142: =OFFSET('Load Data'!$D$1,IF($D$1,A142,366-A142),B142) -> 28838.78028 | E142: =IF(C142=SUMIF('Load Data'!$AQ$51:$AQ$90,E141,'Load Data'!$BK$51:$BK$90),E141+1,E141) -> 1 | F142: 34828.60266 | G142: =SUMIF('Load Data'!$AQ$51:$AQ$90,E142,'Load Data'!$BJ$51:$BJ$90) -> 37240.22764
A143: 6 | B143: 21 | C143: 141 | D143: =OFFSET('Load Data'!$D$1,IF($D$1,A143,366-A143),B143) -> 29871.34084 | E143: =IF(C143=SUMIF('Load Data'!$AQ$51:$AQ$90,E142,'Load Data'!$BK$51:$BK$90),E142+1,E142) -> 1 | F143: 34827.84643 | G143: =SUMIF('Load Data'!$AQ$51:$AQ$90,E143,'Load Data'!$BJ$51:$BJ$90) -> 37240.22764
A144: 6 | B144: 22 | C144: 142 | D144: =OFFSET('Load Data'!$D$1,IF($D$1,A144,366-A144),B144) -> 29644.61185 | E144: =IF(C144=SUMIF('Load Data'!$AQ$51:$AQ$90,E143,'Load Data'!$BK$51:$BK$90),E143+1,E143) -> 1 | F144: 34822.19634 | G144: =SUMIF('Load Data'!$AQ$51:$AQ$90,E144,'Load Data'!$BJ$51:$BJ$90) -> 37240.22764
A145: 6 | B145: 23 | C145: 143 | D145: =OFFSET('Load Data'!$D$1,IF($D$1,A145,366-A145),B145) -> 27722.89467 | E145: =IF(C145=SUMIF('Load Data'!$AQ$51:$AQ$90,E144,'Load Data'!$BK$51:$BK$90),E144+1,E144) -> 1 | F145: 34797.85556 | G145: =SUMIF('Load Data'!$AQ$51:$AQ$90,E145,'Load Data'!$BJ$51:$BJ$90) -> 37240.22764
A146: 6 | B146: 24 | C146: 144 | D146: =OFFSET('Load Data'!$D$1,IF($D$1,A146,366-A146),B146) -> 25359.63369 | E146: =IF(C146=SUMIF('Load Data'!$AQ$51:$AQ$90,E145,'Load Data'!$BK$51:$BK$90),E145+1,E145) -> 1 | F146: 34784.16282 | G146: =SUMIF('Load Data'!$AQ$51:$AQ$90,E146,'Load Data'!$BJ$51:$BJ$90) -> 37240.22764
A147: 7 | B147: 1 | C147: 145 | D147: =OFFSET('Load Data'!$D$1,IF($D$1,A147,366-A147),B147) -> 23962.15906 | E147: =IF(C147=SUMIF('Load Data'!$AQ$51:$AQ$90,E146,'Load Data'!$BK$51:$BK$90),E146+1,E146) -> 1 | F147: 34773.66914 | G147: =SUMIF('Load Data'!$AQ$51:$AQ$90,E147,'Load Data'!$BJ$51:$BJ$90) -> 37240.22764
A148: 7 | B148: 2 | C148: 146 | D148: =OFFSET('Load Data'!$D$1,IF($D$1,A148,366-A148),B148) -> 22983.99246 | E148: =IF(C148=SUMIF('Load Data'!$AQ$51:$AQ$90,E147,'Load Data'!$BK$51:$BK$90),E147+1,E147) -> 1 | F148: 34766.49429 | G148: =SUMIF('Load Data'!$AQ$51:$AQ$90,E148,'Load Data'!$BJ$51:$BJ$90) -> 37240.22764
A149: 7 | B149: 3 | C149: 147 | D149: =OFFSET('Load Data'!$D$1,IF($D$1,A149,366-A149),B149) -> 22577.82122 | E149: =IF(C149=SUMIF('Load Data'!$AQ$51:$AQ$90,E148,'Load Data'!$BK$51:$BK$90),E148+1,E148) -> 1 | F149: 34766.3327 | G149: =SUMIF('Load Data'!$AQ$51:$AQ$90,E149,'Load Data'!$BJ$51:$BJ$90) -> 37240.22764
A150: 7 | B150: 4 | C150: 148 | D150: =OFFSET('Load Data'!$D$1,IF($D$1,A150,366-A150),B150) -> 22403.4058 | E150: =IF(C150=SUMIF('Load Data'!$AQ$51:$AQ$90,E149,'Load Data'!$BK$51:$BK$90),E149+1,E149) -> 1 | F150: 34753.65066 | G150: =SUMIF('Load Data'!$AQ$51:$AQ$90,E150,'Load Data'!$BJ$51:$BJ$90) -> 37240.22764
A151: 7 | B151: 5 | C151: 149 | D151: =OFFSET('Load Data'!$D$1,IF($D$1,A151,366-A151),B151) -> 22397.36726 | E151: =IF(C151=SUMIF('Load Data'!$AQ$51:$AQ$90,E150,'Load Data'!$BK$51:$BK$90),E150+1,E150) -> 1 | F151: 34742.68667 | G151: =SUMIF('Load Data'!$AQ$51:$AQ$90,E151,'Load Data'!$BJ$51:$BJ$90) -> 37240.22764
A152: 7 | B152: 6 | C152: 150 | D152: =OFFSET('Load Data'!$D$1,IF($D$1,A152,366-A152),B152) -> 22906.99595 | E152: =IF(C152=SUMIF('Load Data'!$AQ$51:$AQ$90,E151,'Load Data'!$BK$51:$BK$90),E151+1,E151) -> 1 | F152: 34737.77659 | G152: =SUMIF('Load Data'!$AQ$51:$AQ$90,E152,'Load Data'!$BJ$51:$BJ$90) -> 37240.22764
A153: 7 | B153: 7 | C153: 151 | D153: =OFFSET('Load Data'!$D$1,IF($D$1,A153,366-A153),B153) -> 24419.47194 | E153: =IF(C153=SUMIF('Load Data'!$AQ$51:$AQ$90,E152,'Load Data'!$BK$51:$BK$90),E152+1,E152) -> 1 | F153: 34733.95548 | G153: =SUMIF('Load Data'!$AQ$51:$AQ$90,E153,'Load Data'!$BJ$51:$BJ$90) -> 37240.22764
A154: 7 | B154: 8 | C154: 152 | D154: =OFFSET('Load Data'!$D$1,IF($D$1,A154,366-A154),B154) -> 26141.68169 | E154: =IF(C154=SUMIF('Load Data'!$AQ$51:$AQ$90,E153,'Load Data'!$BK$51:$BK$90),E153+1,E153) -> 1 | F154: 34732.1837 | G154: =SUMIF('Load Data'!$AQ$51:$AQ$90,E154,'Load Data'!$BJ$51:$BJ$90) -> 37240.22764
A155: 7 | B155: 9 | C155: 153 | D155: =OFFSET('Load Data'!$D$1,IF($D$1,A155,366-A155),B155) -> 27579.79951 | E155: =IF(C155=SUMIF('Load Data'!$AQ$51:$AQ$90,E154,'Load Data'!$BK$51:$BK$90),E154+1,E154) -> 1 | F155: 34718.81445 | G155: =SUMIF('Load Data'!$AQ$51:$AQ$90,E155,'Load Data'!$BJ$51:$BJ$90) -> 37240.22764
A156: 7 | B156: =B132 -> 10 | C156: 154 | D156: =OFFSET('Load Data'!$D$1,IF($D$1,A156,366-A156),B156) -> 29129.17264 | E156: =IF(C156=SUMIF('Load Data'!$AQ$51:$AQ$90,E155,'Load Data'!$BK$51:$BK$90),E155+1,E155) -> 1 | F156: 34708.99379 | G156: =SUMIF('Load Data'!$AQ$51:$AQ$90,E156,'Load Data'!$BJ$51:$BJ$90) -> 37240.22764
A157: 7 | B157: 11 | C157: 155 | D157: =OFFSET('Load Data'!$D$1,IF($D$1,A157,366-A157),B157) -> 29565.82947 | E157: =IF(C157=SUMIF('Load Data'!$AQ$51:$AQ$90,E156,'Load Data'!$BK$51:$BK$90),E156+1,E156) -> 1 | F157: 34707.39597 | G157: =SUMIF('Load Data'!$AQ$51:$AQ$90,E157,'Load Data'!$BJ$51:$BJ$90) -> 37240.22764
A158: 7 | B158: 12 | C158: 156 | D158: =OFFSET('Load Data'!$D$1,IF($D$1,A158,366-A158),B158) -> 30155.68488 | E158: =IF(C158=SUMIF('Load Data'!$AQ$51:$AQ$90,E157,'Load Data'!$BK$51:$BK$90),E157+1,E157) -> 1 | F158: 34699.80754 | G158: =SUMIF('Load Data'!$AQ$51:$AQ$90,E158,'Load Data'!$BJ$51:$BJ$90) -> 37240.22764
A159: 7 | B159: 13 | C159: 157 | D159: =OFFSET('Load Data'!$D$1,IF($D$1,A159,366-A159),B159) -> 30047.7815 | E159: =IF(C159=SUMIF('Load Data'!$AQ$51:$AQ$90,E158,'Load Data'!$BK$51:$BK$90),E158+1,E158) -> 1 | F159: 34692.2144 | G159: =SUMIF('Load Data'!$AQ$51:$AQ$90,E159,'Load Data'!$BJ$51:$BJ$90) -> 37240.22764
A160: 7 | B160: 14 | C160: 158 | D160: =OFFSET('Load Data'!$D$1,IF($D$1,A160,366-A160),B160) -> 29810.55633 | E160: =IF(C160=SUMIF('Load Data'!$AQ$51:$AQ$90,E159,'Load Data'!$BK$51:$BK$90),E159+1,E159) -> 1 | F160: 34689.45441 | G160: =SUMIF('Load Data'!$AQ$51:$AQ$90,E160,'Load Data'!$BJ$51:$BJ$90) -> 37240.22764
A161: 7 | B161: 15 | C161: 159 | D161: =OFFSET('Load Data'!$D$1,IF($D$1,A161,366-A161),B161) -> 29617.6919 | E161: =IF(C161=SUMIF('Load Data'!$AQ$51:$AQ$90,E160,'Load Data'!$BK$51:$BK$90),E160+1,E160) -> 1 | F161: 34684.14062 | G161: =SUMIF('Load Data'!$AQ$51:$AQ$90,E161,'Load Data'!$BJ$51:$BJ$90) -> 37240.22764
A162: =ROUNDDOWN((C162-1)/24,0)+1 -> 7 | B162: 16 | C162: 160 | D162: =OFFSET('Load Data'!$D$1,IF($D$1,A162,366-A162),B162) -> 29615.39473 | E162: =IF(C162=SUMIF('Load Data'!$AQ$51:$AQ$90,E161,'Load Data'!$BK$51:$BK$90),E161+1,E161) -> 1 | F162: 34670.14326 | G162: =SUMIF('Load Data'!$AQ$51:$AQ$90,E162,'Load Data'!$BJ$51:$BJ$90) -> 37240.22764
A163: 7 | B163: 17 | C163: 161 | D163: =OFFSET('Load Data'!$D$1,IF($D$1,A163,366-A163),B163) -> 29747.47021 | E163: =IF(C163=SUMIF('Load Data'!$AQ$51:$AQ$90,E162,'Load Data'!$BK$51:$BK$90),E162+1,E162) -> 1 | F163: 34653.81708 | G163: =SUMIF('Load Data'!$AQ$51:$AQ$90,E163,'Load Data'!$BJ$51:$BJ$90) -> 37240.22764
A164: 7 | B164: 18 | C164: 162 | D164: =OFFSET('Load Data'!$D$1,IF($D$1,A164,366-A164),B164) -> 29717.64824 | E164: =IF(C164=SUMIF('Load Data'!$AQ$51:$AQ$90,E163,'Load Data'!$BK$51:$BK$90),E163+1,E163) -> 1 | F164: 34640.06298 | G164: =SUMIF('Load Data'!$AQ$51:$AQ$90,E164,'Load Data'!$BJ$51:$BJ$90) -> 37240.22764
A165: 7 | B165: 19 | C165: 163 | D165: =OFFSET('Load Data'!$D$1,IF($D$1,A165,366-A165),B165) -> 29535.1731 | E165: =IF(C165=SUMIF('Load Data'!$AQ$51:$AQ$90,E164,'Load Data'!$BK$51:$BK$90),E164+1,E164) -> 1 | F165: 34620.21049 | G165: =SUMIF('Load Data'!$AQ$51:$AQ$90,E165,'Load Data'!$BJ$51:$BJ$90) -> 37240.22764
A166: 7 | B166: 20 | C166: 164 | D166: =OFFSET('Load Data'!$D$1,IF($D$1,A166,366-A166),B166) -> 29269.42503 | E166: =IF(C166=SUMIF('Load Data'!$AQ$51:$AQ$90,E165,'Load Data'!$BK$51:$BK$90),E165+1,E165) -> 1 | F166: 34615.9067 | G166: =SUMIF('Load Data'!$AQ$51:$AQ$90,E166,'Load Data'!$BJ$51:$BJ$90) -> 37240.22764
A167: 7 | B167: 21 | C167: 165 | D167: =OFFSET('Load Data'!$D$1,IF($D$1,A167,366-A167),B167) -> 30345.58422 | E167: =IF(C167=SUMIF('Load Data'!$AQ$51:$AQ$90,E166,'Load Data'!$BK$51:$BK$90),E166+1,E166) -> 1 | F167: 34607.97659 | G167: =SUMIF('Load Data'!$AQ$51:$AQ$90,E167,'Load Data'!$BJ$51:$BJ$90) -> 37240.22764
A168: 7 | B168: 22 | C168: 166 | D168: =OFFSET('Load Data'!$D$1,IF($D$1,A168,366-A168),B168) -> 29844.76681 | E168: =IF(C168=SUMIF('Load Data'!$AQ$51:$AQ$90,E167,'Load Data'!$BK$51:$BK$90),E167+1,E167) -> 1 | F168: 34606.41131 | G168: =SUMIF('Load Data'!$AQ$51:$AQ$90,E168,'Load Data'!$BJ$51:$BJ$90) -> 37240.22764
A169: 7 | B169: 23 | C169: 167 | D169: =OFFSET('Load Data'!$D$1,IF($D$1,A169,366-A169),B169) -> 27964.11131 | E169: =IF(C169=SUMIF('Load Data'!$AQ$51:$AQ$90,E168,'Load Data'!$BK$51:$BK$90),E168+1,E168) -> 1 | F169: 34582.57528 | G169: =SUMIF('Load Data'!$AQ$51:$AQ$90,E169,'Load Data'!$BJ$51:$BJ$90) -> 37240.22764
A170: 7 | B170: 24 | C170: 168 | D170: =OFFSET('Load Data'!$D$1,IF($D$1,A170,366-A170),B170) -> 25856.42791 | E170: =IF(C170=SUMIF('Load Data'!$AQ$51:$AQ$90,E169,'Load Data'!$BK$51:$BK$90),E169+1,E169) -> 1 | F170: 34565.94109 | G170: =SUMIF('Load Data'!$AQ$51:$AQ$90,E170,'Load Data'!$BJ$51:$BJ$90) -> 37240.22764
A171: 8 | B171: 1 | C171: 169 | D171: =OFFSET('Load Data'!$D$1,IF($D$1,A171,366-A171),B171) -> 24293.10039 | E171: =IF(C171=SUMIF('Load Data'!$AQ$51:$AQ$90,E170,'Load Data'!$BK$51:$BK$90),E170+1,E170) -> 1 | F171: 34561.69285 | G171: =SUMIF('Load Data'!$AQ$51:$AQ$90,E171,'Load Data'!$BJ$51:$BJ$90) -> 37240.22764
A172: 8 | B172: 2 | C172: 170 | D172: =OFFSET('Load Data'!$D$1,IF($D$1,A172,366-A172),B172) -> 23327.52289 | E172: =IF(C172=SUMIF('Load Data'!$AQ$51:$AQ$90,E171,'Load Data'!$BK$51:$BK$90),E171+1,E171) -> 1 | F172: 34549.74699 | G172: =SUMIF('Load Data'!$AQ$51:$AQ$90,E172,'Load Data'!$BJ$51:$BJ$90) -> 37240.22764
A173: 8 | B173: 3 | C173: 171 | D173: =OFFSET('Load Data'!$D$1,IF($D$1,A173,366-A173),B173) -> 22975.00674 | E173: =IF(C173=SUMIF('Load Data'!$AQ$51:$AQ$90,E172,'Load Data'!$BK$51:$BK$90),E172+1,E172) -> 1 | F173: 34546.85233 | G173: =SUMIF('Load Data'!$AQ$51:$AQ$90,E173,'Load Data'!$BJ$51:$BJ$90) -> 37240.22764
A174: 8 | B174: 4 | C174: 172 | D174: =OFFSET('Load Data'!$D$1,IF($D$1,A174,366-A174),B174) -> 22841.97614 | E174: =IF(C174=SUMIF('Load Data'!$AQ$51:$AQ$90,E173,'Load Data'!$BK$51:$BK$90),E173+1,E173) -> 1 | F174: 34542.27944 | G174: =SUMIF('Load Data'!$AQ$51:$AQ$90,E174,'Load Data'!$BJ$51:$BJ$90) -> 37240.22764
A175: 8 | B175: 5 | C175: 173 | D175: =OFFSET('Load Data'!$D$1,IF($D$1,A175,366-A175),B175) -> 22797.99748 | E175: =IF(C175=SUMIF('Load Data'!$AQ$51:$AQ$90,E174,'Load Data'!$BK$51:$BK$90),E174+1,E174) -> 1 | F175: 34537.02012 | G175: =SUMIF('Load Data'!$AQ$51:$AQ$90,E175,'Load Data'!$BJ$51:$BJ$90) -> 37240.22764
A176: 8 | B176: 6 | C176: 174 | D176: =OFFSET('Load Data'!$D$1,IF($D$1,A176,366-A176),B176) -> 23310.19263 | E176: =IF(C176=SUMIF('Load Data'!$AQ$51:$AQ$90,E175,'Load Data'!$BK$51:$BK$90),E175+1,E175) -> 1 | F176: 34523.9449 | G176: =SUMIF('Load Data'!$AQ$51:$AQ$90,E176,'Load Data'!$BJ$51:$BJ$90) -> 37240.22764
A177: 8 | B177: 7 | C177: 175 | D177: =OFFSET('Load Data'!$D$1,IF($D$1,A177,366-A177),B177) -> 24833.88631 | E177: =IF(C177=SUMIF('Load Data'!$AQ$51:$AQ$90,E176,'Load Data'!$BK$51:$BK$90),E176+1,E176) -> 1 | F177: 34517.27945 | G177: =SUMIF('Load Data'!$AQ$51:$AQ$90,E177,'Load Data'!$BJ$51:$BJ$90) -> 37240.22764
A178: 8 | B178: 8 | C178: 176 | D178: =OFFSET('Load Data'!$D$1,IF($D$1,A178,366-A178),B178) -> 26644.90694 | E178: =IF(C178=SUMIF('Load Data'!$AQ$51:$AQ$90,E177,'Load Data'!$BK$51:$BK$90),E177+1,E177) -> 1 | F178: 34513.00489 | G178: =SUMIF('Load Data'!$AQ$51:$AQ$90,E178,'Load Data'!$BJ$51:$BJ$90) -> 37240.22764
A179: 8 | B179: 9 | C179: 177 | D179: =OFFSET('Load Data'!$D$1,IF($D$1,A179,366-A179),B179) -> 28269.40758 | E179: =IF(C179=SUMIF('Load Data'!$AQ$51:$AQ$90,E178,'Load Data'!$BK$51:$BK$90),E178+1,E178) -> 1 | F179: 34510.27216 | G179: =SUMIF('Load Data'!$AQ$51:$AQ$90,E179,'Load Data'!$BJ$51:$BJ$90) -> 37240.22764
A180: 8 | B180: 10 | C180: 178 | D180: =OFFSET('Load Data'!$D$1,IF($D$1,A180,366-A180),B180) -> 29999.36294 | E180: =IF(C180=SUMIF('Load Data'!$AQ$51:$AQ$90,E179,'Load Data'!$BK$51:$BK$90),E179+1,E179) -> 1 | F180: 34504.18835 | G180: =SUMIF('Load Data'!$AQ$51:$AQ$90,E180,'Load Data'!$BJ$51:$BJ$90) -> 37240.22764
A181: 8 | B181: 11 | C181: 179 | D181: =OFFSET('Load Data'!$D$1,IF($D$1,A181,366-A181),B181) -> 30356.23393 | E181: =IF(C181=SUMIF('Load Data'!$AQ$51:$AQ$90,E180,'Load Data'!$BK$51:$BK$90),E180+1,E180) -> 1 | F181: 34503.54243 | G181: =SUMIF('Load Data'!$AQ$51:$AQ$90,E181,'Load Data'!$BJ$51:$BJ$90) -> 37240.22764
A182: 8 | B182: 12 | C182: 180 | D182: =OFFSET('Load Data'!$D$1,IF($D$1,A182,366-A182),B182) -> 30579.49066 | E182: =IF(C182=SUMIF('Load Data'!$AQ$51:$AQ$90,E181,'Load Data'!$BK$51:$BK$90),E181+1,E181) -> 1 | F182: 34489.06669 | G182: =SUMIF('Load Data'!$AQ$51:$AQ$90,E182,'Load Data'!$BJ$51:$BJ$90) -> 37240.22764
A183: 8 | B183: 13 | C183: 181 | D183: =OFFSET('Load Data'!$D$1,IF($D$1,A183,366-A183),B183) -> 30619.21202 | E183: =IF(C183=SUMIF('Load Data'!$AQ$51:$AQ$90,E182,'Load Data'!$BK$51:$BK$90),E182+1,E182) -> 1 | F183: 34486.33359 | G183: =SUMIF('Load Data'!$AQ$51:$AQ$90,E183,'Load Data'!$BJ$51:$BJ$90) -> 37240.22764
A184: 8 | B184: 14 | C184: 182 | D184: =OFFSET('Load Data'!$D$1,IF($D$1,A184,366-A184),B184) -> 30294.38293 | E184: =IF(C184=SUMIF('Load Data'!$AQ$51:$AQ$90,E183,'Load Data'!$BK$51:$BK$90),E183+1,E183) -> 1 | F184: 34474.71865 | G184: =SUMIF('Load Data'!$AQ$51:$AQ$90,E184,'Load Data'!$BJ$51:$BJ$90) -> 37240.22764
A185: 8 | B185: 15 | C185: 183 | D185: =OFFSET('Load Data'!$D$1,IF($D$1,A185,366-A185),B185) -> 29740.81345 | E185: =IF(C185=SUMIF('Load Data'!$AQ$51:$AQ$90,E184,'Load Data'!$BK$51:$BK$90),E184+1,E184) -> 1 | F185: 34467.63846 | G185: =SUMIF('Load Data'!$AQ$51:$AQ$90,E185,'Load Data'!$BJ$51:$BJ$90) -> 37240.22764
A186: 8 | B186: 16 | C186: 184 | D186: =OFFSET('Load Data'!$D$1,IF($D$1,A186,366-A186),B186) -> 29502.29762 | E186: =IF(C186=SUMIF('Load Data'!$AQ$51:$AQ$90,E185,'Load Data'!$BK$51:$BK$90),E185+1,E185) -> 1 | F186: 34465.58516 | G186: =SUMIF('Load Data'!$AQ$51:$AQ$90,E186,'Load Data'!$BJ$51:$BJ$90) -> 37240.22764
A187: 8 | B187: 17 | C187: 185 | D187: =OFFSET('Load Data'!$D$1,IF($D$1,A187,366-A187),B187) -> 29380.32181 | E187: =IF(C187=SUMIF('Load Data'!$AQ$51:$AQ$90,E186,'Load Data'!$BK$51:$BK$90),E186+1,E186) -> 1 | F187: 34461.00935 | G187: =SUMIF('Load Data'!$AQ$51:$AQ$90,E187,'Load Data'!$BJ$51:$BJ$90) -> 37240.22764
A188: 8 | B188: 18 | C188: 186 | D188: =OFFSET('Load Data'!$D$1,IF($D$1,A188,366-A188),B188) -> 29084.25811 | E188: =IF(C188=SUMIF('Load Data'!$AQ$51:$AQ$90,E187,'Load Data'!$BK$51:$BK$90),E187+1,E187) -> 1 | F188: 34453.37467 | G188: =SUMIF('Load Data'!$AQ$51:$AQ$90,E188,'Load Data'!$BJ$51:$BJ$90) -> 37240.22764
A189: 8 | B189: 19 | C189: 187 | D189: =OFFSET('Load Data'!$D$1,IF($D$1,A189,366-A189),B189) -> 28787.06013 | E189: =IF(C189=SUMIF('Load Data'!$AQ$51:$AQ$90,E188,'Load Data'!$BK$51:$BK$90),E188+1,E188) -> 1 | F189: 34441.01404 | G189: =SUMIF('Load Data'!$AQ$51:$AQ$90,E189,'Load Data'!$BJ$51:$BJ$90) -> 37240.22764
A190: 8 | B190: 20 | C190: 188 | D190: =OFFSET('Load Data'!$D$1,IF($D$1,A190,366-A190),B190) -> 28440.98392 | E190: =IF(C190=SUMIF('Load Data'!$AQ$51:$AQ$90,E189,'Load Data'!$BK$51:$BK$90),E189+1,E189) -> 1 | F190: 34435.61053 | G190: =SUMIF('Load Data'!$AQ$51:$AQ$90,E190,'Load Data'!$BJ$51:$BJ$90) -> 37240.22764
A191: 8 | B191: 21 | C191: 189 | D191: =OFFSET('Load Data'!$D$1,IF($D$1,A191,366-A191),B191) -> 29578.90053 | E191: =IF(C191=SUMIF('Load Data'!$AQ$51:$AQ$90,E190,'Load Data'!$BK$51:$BK$90),E190+1,E190) -> 1 | F191: 34428.29007 | G191: =SUMIF('Load Data'!$AQ$51:$AQ$90,E191,'Load Data'!$BJ$51:$BJ$90) -> 37240.22764
A192: 8 | B192: 22 | C192: 190 | D192: =OFFSET('Load Data'!$D$1,IF($D$1,A192,366-A192),B192) -> 29217.92653 | E192: =IF(C192=SUMIF('Load Data'!$AQ$51:$AQ$90,E191,'Load Data'!$BK$51:$BK$90),E191+1,E191) -> 1 | F192: 34428.10305 | G192: =SUMIF('Load Data'!$AQ$51:$AQ$90,E192,'Load Data'!$BJ$51:$BJ$90) -> 37240.22764
A193: 8 | B193: 23 | C193: 191 | D193: =OFFSET('Load Data'!$D$1,IF($D$1,A193,366-A193),B193) -> 27509.79364 | E193: =IF(C193=SUMIF('Load Data'!$AQ$51:$AQ$90,E192,'Load Data'!$BK$51:$BK$90),E192+1,E192) -> 1 | F193: 34425.05013 | G193: =SUMIF('Load Data'!$AQ$51:$AQ$90,E193,'Load Data'!$BJ$51:$BJ$90) -> 37240.22764
A194: 8 | B194: 24 | C194: 192 | D194: =OFFSET('Load Data'!$D$1,IF($D$1,A194,366-A194),B194) -> 25556.03449 | E194: =IF(C194=SUMIF('Load Data'!$AQ$51:$AQ$90,E193,'Load Data'!$BK$51:$BK$90),E193+1,E193) -> 1 | F194: 34423.76431 | G194: =SUMIF('Load Data'!$AQ$51:$AQ$90,E194,'Load Data'!$BJ$51:$BJ$90) -> 37240.22764
A195: 9 | B195: 1 | C195: 193 | D195: =OFFSET('Load Data'!$D$1,IF($D$1,A195,366-A195),B195) -> 24408.31526 | E195: =IF(C195=SUMIF('Load Data'!$AQ$51:$AQ$90,E194,'Load Data'!$BK$51:$BK$90),E194+1,E194) -> 1 | F195: 34423.48916 | G195: =SUMIF('Load Data'!$AQ$51:$AQ$90,E195,'Load Data'!$BJ$51:$BJ$90) -> 37240.22764
A196: 9 | B196: 2 | C196: 194 | D196: =OFFSET('Load Data'!$D$1,IF($D$1,A196,366-A196),B196) -> 23484.58191 | E196: =IF(C196=SUMIF('Load Data'!$AQ$51:$AQ$90,E195,'Load Data'!$BK$51:$BK$90),E195+1,E195) -> 1 | F196: 34414.63593 | G196: =SUMIF('Load Data'!$AQ$51:$AQ$90,E196,'Load Data'!$BJ$51:$BJ$90) -> 37240.22764
A197: 9 | B197: 3 | C197: =C196+1 -> 195 | D197: =OFFSET('Load Data'!$D$1,IF($D$1,A197,366-A197),B197) -> 23016.42147 | E197: =IF(C197=SUMIF('Load Data'!$AQ$51:$AQ$90,E196,'Load Data'!$BK$51:$BK$90),E196+1,E196) -> 1 | F197: 34412.72346 | G197: =SUMIF('Load Data'!$AQ$51:$AQ$90,E197,'Load Data'!$BJ$51:$BJ$90) -> 37240.22764
A198: 9 | B198: 4 | C198: 196 | D198: =OFFSET('Load Data'!$D$1,IF($D$1,A198,366-A198),B198) -> 22720.15759 | E198: =IF(C198=SUMIF('Load Data'!$AQ$51:$AQ$90,E197,'Load Data'!$BK$51:$BK$90),E197+1,E197) -> 1 | F198: 34407.35341 | G198: =SUMIF('Load Data'!$AQ$51:$AQ$90,E198,'Load Data'!$BJ$51:$BJ$90) -> 37240.22764
A199: 9 | B199: 5 | C199: 197 | D199: =OFFSET('Load Data'!$D$1,IF($D$1,A199,366-A199),B199) -> 22688.40244 | E199: =IF(C199=SUMIF('Load Data'!$AQ$51:$AQ$90,E198,'Load Data'!$BK$51:$BK$90),E198+1,E198) -> 1 | F199: 34404.36455 | G199: =SUMIF('Load Data'!$AQ$51:$AQ$90,E199,'Load Data'!$BJ$51:$BJ$90) -> 37240.22764
A200: 9 | B200: 6 | C200: 198 | D200: =OFFSET('Load Data'!$D$1,IF($D$1,A200,366-A200),B200) -> 22805.99182 | E200: =IF(C200=SUMIF('Load Data'!$AQ$51:$AQ$90,E199,'Load Data'!$BK$51:$BK$90),E199+1,E199) -> 1 | F200: 34398.89162 | G200: =SUMIF('Load Data'!$AQ$51:$AQ$90,E200,'Load Data'!$BJ$51:$BJ$90) -> 37240.22764
... 8563 more rows

Sheet Load Calibration
S1: 7 | AA1: Residential High Income | AG1: Residential Middle Income Electrified | AM1: Residential Low Income Electrified | AS1: Commercial | BB1: Industry | BL1: Agriculture | BQ1: Transport
C2: Loss Factor | D2: =LossesCalib!F11 -> 1.196072099 | E2: =LossesCalib!G11 -> 1.196072099 | F2: =LossesCalib!H11 -> 1.07055836 | G2: =LossesCalib!I11 -> 1.196072099 | H2: =LossesCalib!K11 -> 1.196072099 | AA2: Suburban | AG2: Township | AM2: Township | AS2: =AS1 -> Commercial | BB2: =BB1 -> Industry | BL2: =BL1 -> Agriculture | BQ2: =BQ1 -> Transport
D3: Sectoral Energy | K3: Sectoral Power | T3: ENERGY% | U3: AGR | V3: COM | W3: IND | X3: RES | Y3: TRN | AA3: =TRANSPOSE([1]RES!B$103:B$109) -> RHEL | AB3: RHEK | AC3: RHEH | AD3: RHEW | AE3: RHER | AF3: RHEO | AG3: =TRANSPOSE([1]RES!$B$94:$B$100) -> RMEL | AH3: RMEK | AI3: RMEH | AJ3: RMEW | AK3: RMER | AL3: RMEO | AM3: =TRANSPOSE([1]RES!$B$85:$B$91) -> RLEL | AN3: RLEK | AO3: RLEH | AP3: RLEW | AQ3: RLER | AR3: RLEO | AS3: =TRANSPOSE([2]COM!$B$43:$B$51) -> CEC | AT3: CEH | AU3: CEK | AV3: CEL | AW3: CER | AX3: CEW | AY3: CEG | AZ3: CET | BA3: CEO | BB3: =TRANSPOSE([3]IND!$B$61:$B$70) -> K | BC3: A | BD3: L | BE3: C | BF3: H | BG3: P | BH3: F | BI3: O | BJ3: E | BK3: S | BL3: =TRANSPOSE([4]AGR!$B$28:$B$36) -> AH | BM3: AP | BN3: AT | BO3: AI | BP3: AO
B4: # | C4: max | D4: =U4 -> Agriculture | E4: =V4 -> Commerial | F4: =W4 -> Industial | G4: =X4 -> Residential | H4: =Y4 -> Transport | I4: W.Sum.Losses | J4: Load Data | K4: =D4 -> Agriculture | L4: =E4 -> Commerial | M4: =F4 -> Industial | N4: =G4 -> Residential | O4: =H4 -> Transport | P4: Total | Q4: Load Data | R4: Duration | S4: Load data | T4: W.Sum.Losses | U4: Agriculture | V4: Commerial | W4: Industial | X4: Residential | Y4: Transport | AA4: =Suburban!AS2 -> Lighting | AB4: =Suburban!AT2 -> Cooking | AC4: =Suburban!AU2 -> Space Heating | AD4: =Suburban!AV2 -> Water Heating | AE4: =Suburban!AW2 -> Refrigeration | AF4: =Suburban!AX2 -> Other | AG4: =Township!AS2 -> Lighting | AH4: =Township!AT2 -> Cooking | AI4: =Township!AU2 -> Space Heating | AJ4: =Township!AV2 -> Water Heating | AK4: =Township!AW2 -> Refrigeration | AL4: =Township!AX2 -> Other | AM4: =Township!AS2 -> Lighting | AN4: =Township!AT2 -> Cooking | AO4: =Township!AU2 -> Space Heating | AP4: =Township!AV2 -> Water Heating | AQ4: =Township!AW2 -> Refrigeration | AR4: =Township!AX2 -> Other | AS4: Cooling | AT4: Space Heating | AU4: Cooking | AV4: Lighting | AW4: Refrigeration | AX4: Water Heating | AY4: Public lights | AZ4: Public water | BA4: Other | BB4: =TRANSPOSE([3]IND!$A$61:$A$70) -> Elec Heating | BC4: Compressed air | BD4: Lighting | BE4: Cooling | BF4: HVAC | BG4: Pumping | BH4: Fans | BI4: Other motive | BJ4: Electrochemical | BK4: boiler/process heating | BL4: =TRANSPOSE([4]AGR!$A$19:$A$23) -> Heating | BM4: Processing | BN4: Traction | BO4: Irrigation | BP4: Other | BQ4: =[5]TRP!$A$49 -> Transport Passenger Metro Rail | BR4: Freight Rail | BS4: Pipeline
A5: Energy (GWh) | D5: =U5*D2 -> 6986.852775 | E5: =V5*E2 -> 34553.19398 | F5: =W5*F2 -> 127611.6496 | G5: =X5*G2 -> 52648.85526 | H5: =Y5*H2 -> 4078.406946 | I5: =SUM(D5:H5) -> 225878.9586 | J5: =I5 -> 225878.9586 | K5: =SUM(BR5:BV5) -> 2751.500362 | L5: =SUM(BA5:BG5) -> 61912.59268 | M5: =SUM(BH5:BQ5) -> 67125.96535 | N5: =SUM(AG5:AX5) -> 45895.37841 | P5: =SUM(K5:N5) -> 177685.4368 | S5: ='Load Data'!AM19 -> 250420.931 | T5: =SUM(U5:Y5) -> 201359.37 | U5: =SUM(BL5:BP5) -> 5841.498 | V5: =SUM(AS5:BA5) -> 28888.88889 | W5: =SUM(BB5:BK5) -> 119201.021 | X5: =SUM(AA5:AR5) -> 44018.12841 | Y5: =SUM(BQ5:BS5) -> 3409.833695 | AA5: =TRANSPOSE([1]RES!$C$103:$C$109)/0.0036 -> 3194.808018 | AB5: 1262.859822 | AC5: 2506.132492 | AD5: 9168.922821 | AE5: 1876.924596 | AF5: 4038.983196 | AG5: =TRANSPOSE([1]RES!$C$94:$C$100)/0.0036 -> 1854.986225 | AH5: 1203.952723 | AI5: 1959.015606 | AJ5: 4821.26237 | AK5: 1556.969418 | AL5: 2846.942324 | AM5: =TRANSPOSE([1]RES!$C$85:$C$91)/0.0036 -> 1691.699035 | AN5: 1834.939098 | AO5: 1190.86294 | AP5: 1266.580079 | AQ5: 1325.557477 | AR5: 416.7301743 | AS5: =TRANSPOSE([2]COM!$E$43:$E$51/0.0036) -> 8647.387138 | AT5: 1397.28176 | AU5: 55.55555556 | AV5: 10835.21889 | AW5: 2044.558241 | AX5: 945.8793528 | AY5: 745.3477986 | AZ5: 879.9544523 | BA5: 3337.7057 | BB5: =TRANSPOSE([3]IND!$K$61:$K$70)/0.0036 -> 12861.64919 | BC5: 12740.63366 | BD5: 4964.848896 | BE5: 5955.505633 | BF5: 5292.492271 | BG5: 16759.75733 | BH5: 5732.032003 | BI5: 32956.0513 | BJ5: 21520.59444 | BK5: 417.4562783 | BL5: =TRANSPOSE([4]AGR!$E$36:$E$40/0.0036) -> 0 | BM5: 1523.655285 | BN5: 0 | BO5: 1910.618533 | BP5: 2407.224182 | BQ5: =[5]TRP!$E$49/0.0036 -> 658.3333333 | BR5: =[5]TRP!$E$59/0.0036 -> 2622 | BS5: =[5]TRP!$E$61/0.0036 -> 129.500362
A6: Energy share (%) | B6: ='Load Data'!AQ28 -> 20 | U6: =U5/$T$5 -> 0.02901031127 | V6: =V5/$T$5 -> 0.1434693051 | W6: =W5/$T$5 -> 0.5919814956 | X6: =X5/$T$5 -> 0.2186048179 | Y6: =Y5/$T$5 -> 0.01693407014 | AA6: =AA5/SUM($AA$5:$AF$5) -> 0.1448982491 | AB6: 0.0572761105 | AC6: 0.1136638596 | AD6: 0.4158499838 | AE6: 0.08512658228 | AF6: 0.1831852148 | AG6: =AG5/SUM($AG$5:$AL$5) -> 0.1302372722 | AH6: 0.08452867 | AI6: 0.1375411015 | AJ6: 0.3384974245 | AK6: 0.1093137228 | AL6: 0.1998818091 | AM6: =AM5/SUM($AM$5:$AR$5) -> 0.2189513701 | AN6: 0.237490488 | AO6: 0.1541297045 | AP6: 0.1639295394 | AQ6: 0.1715628015 | AR6: 0.05393609661 | AS6: =AS5/SUM($AS$5:$BA$5) -> 0.2993326317 | AT6: 0.04836744555 | AU6: 0.001923076923 | AV6: 0.3750652693 | AW6: 0.07077316989 | AX6: 0.0327419776 | AY6: =AY5/SUM($AS$5:$BA$5) -> 0.02580050072 | AZ6: 0.03045996181 | BA6: =BA5/SUM($AS$5:$BA$5) -> 0.1155359665 | BB6: =BB5/SUM($BB$5:$BK$5) -> 0.1078988173 | BC6: =BC5/SUM($BB$5:$BK$5) -> 0.106883595 | BD6: 0.04165106016 | BE6: 0.04996186764 | BF6: 0.04439972265 | BG6: =BG5/SUM($BB$5:$BK$5) -> 0.1406007867 | BH6: 0.04808710492 | BI6: 0.2764745723 | BJ6: 0.1805403532 | BK6: =BK5/SUM($BB$5:$BK$5) -> 0.003502119989 | BL6: =(BL5+eps)/SUM($BL$5:$BP$5) -> 1.711889656e-12 | BM6: =BM5/SUM($BL$5:$BP$5) -> 0.2608329721 | BN6: =BN5/SUM($BL$5:$BP$5) -> 0 | BO6: =BO5/SUM($BL$5:$BP$5) -> 0.3270768102 | BP6: =BP5/SUM($BL$5:$BP$5) -> 0.4120902177 | BQ6: =BQ5/SUM($BQ$5:$BS$5) -> 0.1930690445 | BR6: =BR5/SUM($BQ$5:$BS$5) -> 0.7689524576 | BS6: =BS5/SUM($BQ$5:$BS$5) -> 0.03797849795
A7: ='Load Data'!AH6 -> s1 | B7: 1 | D7: =U7*$D$5 -> 2491.171098 | E7: =V7*$E$5 -> 12319.98454 | F7: =W7*$F$5 -> 45500.09331 | G7: =X7*$G$5 -> 18772.01521 | H7: =$H$5*Y7 -> 1454.161099 | I7: =IF(SUM(D7:H7)>0,SUM(D7:H7),"") -> 80537.42525 | J7: =$J$5*S7 -> 80537.42525 | P7: =IF(SUM(K7:N7)>0,SUM(K7:N7),"") ->  | R7: ='Load Data'!AL6 -> 0.3671232877 | S7: ='Load Data'!AN6 -> 0.356551251 | T7: =IF(I7/$I$5=0,"",I7/$I$5) -> 0.356551251 | U7: =SUMPRODUCT($BL7:$BP7,$BL$5:$BP$5)/$U$5 -> 0.356551251 | V7: 0.356551251 | W7: 0.356551251 | X7: 0.356551251 | Y7: 0.356551251 | Z7: =RIGHT(A7,1) -> 1 | AA7: =1-AA8-AA9 -> 0.356551251 | AB7: =1-AB8-AB9 -> 0.356551251 | AC7: 0.356551251 | AD7: 0.356551251 | AE7: 0.356551251 | AF7: 0.356551251 | AG7: 0.356551251 | AH7: 0.356551251 | AI7: 0.356551251 | AJ7: 0.356551251 | AK7: 0.356551251 | AL7: 0.356551251 | AM7: 0.356551251 | AN7: 0.356551251 | AO7: 0.356551251 | AP7: 0.356551251 | AQ7: 0.356551251 | AR7: 0.356551251 | AS7: 0.376551251 | AT7: 0.256551251 | AU7: 0.356551251 | AV7: 0.356551251 | AW7: 0.356551251 | AX7: 0.356551251 | AY7: 0.33 | AZ7: 0.33 | BA7: 0.356551251 | BB7: 0.356551251 | BC7: 0.356551251 | BD7: 0.356551251 | BE7: 0.356551251 | BF7: 0.356551251 | BG7: 0.356551251 | BH7: 0.356551251 | BI7: 0.356551251 | BJ7: 0.356551251 | BK7: 0.356551251 | BL7: =1-BL8-BL9 -> 0.356551251 | BM7: 0.356551251 | BN7: =1-BN8-BN9 -> 0.356551251 | BO7: 0.356551251 | BP7: 0.356551251 | BQ7: =V7 -> 0.356551251 | BR7: =$R7 -> 0.3671232877 | BS7: =$R7 -> 0.3671232877
A8: ='Load Data'!AH7 -> s2 | B8: =B7+1 -> 2 | D8: =U8*$D$5 -> 2137.602633 | E8: =V8*$E$5 -> 10571.42619 | F8: =W8*$F$5 -> 39042.32807 | G8: =X8*$G$5 -> 16107.72908 | H8: =$H$5*Y8 -> 1247.774028 | I8: 69106.86 | J8: =$J$5*S8 -> 69106.86 | R8: ='Load Data'!AL7 -> 0.295890411 | S8: ='Load Data'!AN7 -> 0.3059464257 | T8: =IF(I8/$I$5=0,"",I8/$I$5) -> 0.3059464257 | U8: 0.3059464257 | V8: 0.3059464257 | W8: 0.3059464257 | X8: 0.3059464257 | Y8: 0.3059464257 | Z8: 2 | AA8: =$S8 -> 0.3059464257 | AB8: =$S8 -> 0.3059464257 | AC8: 0.3059464257 | AD8: 0.3059464257 | AE8: 0.3059464257 | AF8: 0.3059464257 | AG8: 0.3059464257 | AH8: 0.3059464257 | AI8: 0.3059464257 | AJ8: 0.3059464257 | AK8: 0.3059464257 | AL8: 0.3059464257 | AM8: 0.3059464257 | AN8: 0.3059464257 | AO8: 0.3059464257 | AP8: 0.3059464257 | AQ8: 0.3059464257 | AR8: =$S8 -> 0.3059464257 | AS8: =$S8+AS58 -> 0.2559464257 | AT8: =$S8+AT58 -> 0.4559464257 | AU8: 0.3059464257 | AV8: 0.3059464257 | AW8: 0.3059464257 | AX8: 0.3059464257 | AY8: 0.34 | AZ8: 0.34 | BA8: 0.3059464257 | BB8: 0.3059464257 | BC8: 0.3059464257 | BD8: 0.3059464257 | BE8: 0.3059464257 | BF8: 0.3059464257 | BG8: 0.3059464257 | BH8: 0.3059464257 | BI8: 0.3059464257 | BJ8: =$S8 -> 0.3059464257 | BK8: 0.3059464257 | BL8: 0.3059464257 | BM8: 0.3059464257 | BN8: 0.3059464257 | BO8: 0.3059464257 | BP8: 0.3059464257 | BQ8: =V8 -> 0.3059464257 | BR8: =$R8 -> 0.295890411 | BS8: 0.295890411
A9: ='Load Data'!AH8 -> s3 | B9: =B8+1 -> 3 | D9: =U9*$D$5 -> 2358.079044 | E9: =V9*$E$5 -> 11661.78324 | F9: =W9*$F$5 -> 43069.22822 | G9: =X9*$G$5 -> 17769.11097 | H9: =$H$5*Y9 -> 1376.47182 | I9: 76234.6733 | J9: =$J$5*S9 -> 76234.6733 | R9: ='Load Data'!AL8 -> 0.3369863014 | S9: ='Load Data'!AN8 -> 0.3375023233 | T9: =IF(I9/$I$5=0,"",I9/$I$5) -> 0.3375023233 | U9: 0.3375023233 | V9: 0.3375023233 | W9: 0.3375023233 | X9: 0.3375023233 | Y9: 0.3375023233 | Z9: 3 | AA9: =$S9 -> 0.3375023233 | AB9: 0.3375023233 | AC9: 0.3375023233 | AD9: 0.3375023233 | AE9: 0.3375023233 | AF9: 0.3375023233 | AG9: 0.3375023233 | AH9: 0.3375023233 | AI9: 0.3375023233 | AJ9: 0.3375023233 | AK9: 0.3375023233 | AL9: 0.3375023233 | AM9: 0.3375023233 | AN9: 0.3375023233 | AO9: 0.3375023233 | AP9: 0.3375023233 | AQ9: 0.3375023233 | AR9: 0.3375023233 | AS9: =$S9+AS59 -> 0.3675023233 | AT9: 0.2875023233 | AU9: 0.3375023233 | AV9: 0.3375023233 | AW9: 0.3375023233 | AX9: 0.3375023233 | AY9: 0.33 | AZ9: 0.33 | BA9: 0.3375023233 | BB9: 0.3375023233 | BC9: 0.3375023233 | BD9: 0.3375023233 | BE9: 0.3375023233 | BF9: 0.3375023233 | BG9: 0.3375023233 | BH9: 0.3375023233 | BI9: 0.3375023233 | BJ9: 0.3375023233 | BK9: 0.3375023233 | BL9: 0.3375023233 | BM9: 0.3375023233 | BN9: 0.3375023233 | BO9: 0.3375023233 | BP9: 0.3375023233 | BQ9: 0.3375023233 | BR9: 0.3369863014 | BS9: 0.3369863014
A10: ='Load Data'!AR13 -> s1d1 | B10: 1 | D10: =U10*SUMIF($A$7:$A$9,LEFT(A10,2),$D$7:$D$9) -> 1743.334925 | E10: =V10*SUMIF($A$7:$A$9,LEFT(A10,2),$E$7:$E$9) -> 8621.591403 | F10: =W10*SUMIF($A$7:$A$9,LEFT(A10,2),$F$7:$F$9) -> 31841.20987 | G10: =X10*SUMIF($A$7:$A$9,LEFT(A10,2),$G$7:$G$9) -> 13136.75714 | H10: =Y10*SUMIF($A$7:$A$9,LEFT(A10,2),$H$7:$H$9) -> 1017.629753 | I10: 56360.52309 | J10: =S10*SUMIF($A$7:$A$9,LEFT(A10,2),$J$7:$J$9) -> 56360.52309 | R10: ='Load Data'!AL13 -> 0.6791044776 | S10: ='Load Data'!AO13 -> 0.6998053752 | T10: =IFERROR(I10/I7,"") -> 0.6998053752 | U10: =SUMPRODUCT($BL10:$BP10,$BL$5:$BP$5,OFFSET($BL$6,MID($A10,2,1),0,1,5))/($U$5*OFFSET($U$6,MID($A10,2,1),0)) -> 0.6998053752 | V10: =SUMPRODUCT($BL10:$BP10,$BL$5:$BP$5,OFFSET($BL$6,MID($A10,2,1),0,1,5))/($U$5*OFFSET($U$6,MID($A10,2,1),0)) -> 0.6998053752 | W10: 0.6998053752 | X10: 0.6998053752 | Y10: 0.6998053752 | Z10: 1 | AA10: =1-AA11 -> 0.6998053752 | AB10: 0.6998053752 | AC10: 0.6998053752 | AD10: 0.6998053752 | AE10: 0.6998053752 | AF10: 0.6998053752 | AG10: 0.6998053752 | AH10: 0.6998053752 | AI10: 0.6998053752 | AJ10: 0.6998053752 | AK10: 0.6998053752 | AL10: 0.6998053752 | AM10: =AG10 -> 0.6998053752 | AN10: 0.6998053752 | AO10: 0.6998053752 | AP10: 0.6998053752 | AQ10: 0.6998053752 | AR10: 0.6998053752 | AS10: =1-AS11 -> 0.6998053752 | AT10: 0.6998053752 | AU10: 0.6998053752 | AV10: 0.6998053752 | AW10: 0.6998053752 | AX10: 0.6998053752 | AY10: 0.33 | AZ10: 0.33 | BA10: 0.6998053752 | BB10: 0.6998053752 | BC10: 0.6998053752 | BD10: 0.6998053752 | BE10: 0.6998053752 | BF10: 0.6998053752 | BG10: 0.6998053752 | BH10: 0.6998053752 | BI10: 0.6998053752 | BJ10: 0.6998053752 | BK10: 0.6998053752 | BL10: 0.6998053752 | BM10: 0.6998053752 | BN10: 0.6998053752 | BO10: 0.6998053752 | BP10: 0.6998053752 | BQ10: 0.6998053752 | BR10: 0.6791044776 | BS10: 0.6791044776
A11: ='Load Data'!AR14 -> s1d2 | B11: =B10+1 -> 2 | D11: 747.8361731 | E11: 3698.393137 | F11: 13658.88344 | G11: 5635.258062 | H11: 436.5313455 | I11: 24176.90216 | J11: 24176.90216 | R11: ='Load Data'!AL14 -> 0.3208955224 | S11: ='Load Data'!AO14 -> 0.3001946248 | T11: =IFERROR(I11/I7,"") -> 0.3001946248 | U11: 0.3001946248 | V11: 0.3001946248 | W11: 0.3001946248 | X11: 0.3001946248 | Y11: 0.3001946248 | Z11: 2 | AA11: =$S11 -> 0.3001946248 | AB11: =$S11 -> 0.3001946248 | AC11: 0.3001946248 | AD11: 0.3001946248 | AE11: 0.3001946248 | AF11: 0.3001946248 | AG11: 0.3001946248 | AH11: 0.3001946248 | AI11: 0.3001946248 | AJ11: 0.3001946248 | AK11: 0.3001946248 | AL11: 0.3001946248 | AM11: 0.3001946248 | AN11: 0.3001946248 | AO11: 0.3001946248 | AP11: 0.3001946248 | AQ11: 0.3001946248 | AR11: =$S11 -> 0.3001946248 | AS11: 0.3001946248 | AT11: 0.3001946248 | AU11: 0.3001946248 | AV11: 0.3001946248 | AW11: 0.3001946248 | AX11: 0.3001946248 | AY11: 0.34 | AZ11: 0.34 | BA11: 0.3001946248 | BB11: 0.3001946248 | BC11: 0.3001946248 | BD11: 0.3001946248 | BE11: 0.3001946248 | BF11: 0.3001946248 | BG11: 0.3001946248 | BH11: 0.3001946248 | BI11: 0.3001946248 | BJ11: =$S11 -> 0.3001946248 | BK11: 0.3001946248 | BL11: 0.3001946248 | BM11: 0.3001946248 | BN11: 0.3001946248 | BO11: 0.3001946248 | BP11: 0.3001946248 | BQ11: 0.3001946248 | BR11: 0.3208955224 | BS11: 0.3208955224
A12: ='Load Data'!AR15 -> s2d1 | B12: =B11+1 -> 3 | D12: 1494.662933 | E12: 7391.794263 | F12: 27299.33042 | G12: 11262.90978 | H12: 872.4734704 | I12: 48321.17086 | J12: 48321.17086 | R12: ='Load Data'!AL15 -> 0.6822429907 | S12: ='Load Data'!AO15 -> 0.6992239389 | T12: =IFERROR(I12/I8,"") -> 0.6992239389 | U12: 0.6992239389 | V12: 0.6992239389 | W12: 0.6992239389 | X12: 0.6992239389 | Y12: 0.6992239389 | Z12: 1 | AA12: =1-AA13 -> 0.6992239389 | AB12: 0.6992239389 | AC12: 0.6992239389 | AD12: 0.6992239389 | AE12: 0.6992239389 | AF12: 0.6992239389 | AG12: 0.6992239389 | AH12: 0.6992239389 | AI12: 0.6992239389 | AJ12: 0.6992239389 | AK12: 0.6992239389 | AL12: 0.6992239389 | AM12: 0.6992239389 | AN12: 0.6992239389 | AO12: 0.6992239389 | AP12: 0.6992239389 | AQ12: 0.6992239389 | AR12: 0.6992239389 | AS12: 0.6992239389 | AT12: 0.6992239389 | AU12: 0.6992239389 | AV12: 0.6992239389 | AW12: 0.6992239389 | AX12: 0.6992239389 | AY12: 0.33 | AZ12: 0.33 | BA12: 0.6992239389 | BB12: 0.6992239389 | BC12: 0.6992239389 | BD12: 0.6992239389 | BE12: 0.6992239389 | BF12: 0.6992239389 | BG12: 0.6992239389 | BH12: 0.6992239389 | BI12: 0.6992239389 | BJ12: 0.6992239389 | BK12: 0.6992239389 | BL12: 0.6992239389 | BM12: 0.6992239389 | BN12: 0.6992239389 | BO12: 0.6992239389 | BP12: 0.6992239389 | BQ12: 0.6992239389 | BR12: 0.6822429907 | BS12: 0.6822429907
A13: ='Load Data'!AR16 -> s2d2 | B13: =B12+1 -> 4 | D13: 642.9397002 | E13: 3179.63193 | F13: 11742.99765 | G13: 4844.819306 | H13: 375.3005571 | I13: 20785.68914 | J13: 20785.68914 | R13: ='Load Data'!AL16 -> 0.3177570093 | S13: ='Load Data'!AO16 -> 0.3007760611 | T13: =IFERROR(I13/I8,"") -> 0.3007760611 | U13: 0.3007760611 | V13: 0.3007760611 | W13: 0.3007760611 | X13: 0.3007760611 | Y13: 0.3007760611 | Z13: 2 | AA13: =$S13 -> 0.3007760611 | AB13: 0.3007760611 | AC13: 0.3007760611 | AD13: 0.3007760611 | AE13: 0.3007760611 | AF13: 0.3007760611 | AG13: 0.3007760611 | AH13: 0.3007760611 | AI13: 0.3007760611 | AJ13: 0.3007760611 | AK13: 0.3007760611 | AL13: 0.3007760611 | AM13: 0.3007760611 | AN13: 0.3007760611 | AO13: 0.3007760611 | AP13: 0.3007760611 | AQ13: 0.3007760611 | AR13: 0.3007760611 | AS13: 0.3007760611 | AT13: 0.3007760611 | AU13: 0.3007760611 | AV13: 0.3007760611 | AW13: 0.3007760611 | AX13: 0.3007760611 | AY13: 0.33 | AZ13: 0.33 | BA13: 0.3007760611 | BB13: 0.3007760611 | BC13: 0.3007760611 | BD13: 0.3007760611 | BE13: 0.3007760611 | BF13: 0.3007760611 | BG13: 0.3007760611 | BH13: 0.3007760611 | BI13: 0.3007760611 | BJ13: =$S13 -> 0.3007760611 | BK13: 0.3007760611 | BL13: 0.3007760611 | BM13: 0.3007760611 | BN13: 0.3007760611 | BO13: 0.3007760611 | BP13: 0.3007760611 | BQ13: 0.3007760611 | BR13: 0.3177570093 | BS13: 0.3177570093
A14: ='Load Data'!AR17 -> s3d1 | B14: =B13+1 -> 5 | D14: 1693.966398 | E14: 8377.44138 | F14: 30939.51646 | G14: 12764.74467 | H14: 988.8120657 | I14: 54764.48098 | J14: 54764.48098 | R14: ='Load Data'!AL17 -> 0.7016129032 | S14: ='Load Data'!AO17 -> 0.7183670974 | T14: =IFERROR(I14/I9,"") -> 0.7183670974 | U14: 0.7183670974 | V14: 0.7183670974 | W14: 0.7183670974 | X14: 0.7183670974 | Y14: 0.7183670974 | Z14: 1 | AA14: =1-AA15 -> 0.7183670974 | AB14: 0.7183670974 | AC14: 0.7183670974 | AD14: 0.7183670974 | AE14: 0.7183670974 | AF14: 0.7183670974 | AG14: 0.7183670974 | AH14: 0.7183670974 | AI14: 0.7183670974 | AJ14: 0.7183670974 | AK14: 0.7183670974 | AL14: 0.7183670974 | AM14: 0.7183670974 | AN14: 0.7183670974 | AO14: 0.7183670974 | AP14: 0.7183670974 | AQ14: 0.7183670974 | AR14: 0.7183670974 | AS14: 0.7183670974 | AT14: 0.7183670974 | AU14: 0.7183670974 | AV14: 0.7183670974 | AW14: 0.7183670974 | AX14: 0.7183670974 | AY14: 0.34 | AZ14: 0.34 | BA14: 0.7183670974 | BB14: 0.7183670974 | BC14: 0.7183670974 | BD14: 0.7183670974 | BE14: 0.7183670974 | BF14: 0.7183670974 | BG14: 0.7183670974 | BH14: 0.7183670974 | BI14: 0.7183670974 | BJ14: 0.7183670974 | BK14: 0.7183670974 | BL14: 0.7183670974 | BM14: 0.7183670974 | BN14: 0.7183670974 | BO14: 0.7183670974 | BP14: 0.7183670974 | BQ14: 0.7183670974 | BR14: 0.7016129032 | BS14: 0.7016129032
A15: ='Load Data'!AR18 -> s3d2 | B15: =B14+1 -> 6 | D15: 664.1126458 | E15: 3284.341865 | F15: 12129.71176 | G15: 5004.366299 | H15: 387.6597539 | I15: 21470.19232 | J15: 21470.19232 | R15: ='Load Data'!AL18 -> 0.2983870968 | S15: ='Load Data'!AO18 -> 0.2816329026 | T15: =IFERROR(I15/I9,"") -> 0.2816329026 | U15: 0.2816329026 | V15: 0.2816329026 | W15: 0.2816329026 | X15: 0.2816329026 | Y15: 0.2816329026 | Z15: 2 | AA15: =$S15 -> 0.2816329026 | AB15: 0.2816329026 | AC15: 0.2816329026 | AD15: 0.2816329026 | AE15: 0.2816329026 | AF15: 0.2816329026 | AG15: 0.2816329026 | AH15: 0.2816329026 | AI15: 0.2816329026 | AJ15: 0.2816329026 | AK15: 0.2816329026 | AL15: 0.2816329026 | AM15: 0.2816329026 | AN15: 0.2816329026 | AO15: 0.2816329026 | AP15: 0.2816329026 | AQ15: 0.2816329026 | AR15: 0.2816329026 | AS15: 0.2816329026 | AT15: 0.2816329026 | AU15: 0.2816329026 | AV15: 0.2816329026 | AW15: 0.2816329026 | AX15: 0.2816329026 | AY15: 0.33 | AZ15: 0.33 | BA15: 0.2816329026 | BB15: 0.2816329026 | BC15: 0.2816329026 | BD15: 0.2816329026 | BE15: 0.2816329026 | BF15: 0.2816329026 | BG15: 0.2816329026 | BH15: 0.2816329026 | BI15: 0.2816329026 | BJ15: =$S15 -> 0.2816329026 | BK15: 0.2816329026 | BL15: 0.2816329026 | BM15: 0.2816329026 | BN15: 0.2816329026 | BO15: 0.2816329026 | BP15: 0.2816329026 | BQ15: 0.2816329026 | BR15: 0.2983870968 | BS15: 0.2983870968
A16: ='Load Data'!AR51 -> s1d1b1 | B16: 1 | C16: =SUMIF('Load Data'!$AR$22:$AR$27,LEFT(A16,4),'Load Data'!$AQ$22:$AQ$27) -> 3 | D16: =IF(B16>$B$6,"", U16*SUMIF($A$10:$A$15,LEFT($A16,4),$D$10:$D$15)) -> 481.4922789 | E16: =IF(B16>$B$6,"", V16*SUMIF($A$10:$A$15,LEFT($A16,4),$E$10:$E$15)) -> 2344.533022 | F16: =IF(B16>$B$6,"", W16*SUMIF($A$10:$A$15,LEFT($A16,4),$F$10:$F$15)) -> 10828.29655 | G16: =IF(B16>$B$6,"", X16*SUMIF($A$10:$A$15,LEFT($A16,4),$G$10:$G$15)) -> 4394.344486 | H16: =IF(B16>$B$6,"", Y16*SUMIF($A$10:$A$15,LEFT($A16,4),$H$10:$H$15)) -> 361.1135877 | I16: 18409.77993 | J16: =IF(B16>$B$6,"", S16*SUMIF($A$10:$A$15,LEFT($A16,4),$J$10:$J$15)) -> 18497.0515 | K16: =IF($B16>$B$6,"",D16/(8.76*$R114)) -> 587.9026605 | L16: =IF($B16>$B$6,"",E16/(8.76*$R114)) -> 2862.677683 | M16: =IF($B16>$B$6,"",F16/(8.76*$R114)) -> 13221.36331 | N16: =IF($B16>$B$6,"",G16/(8.76*$R114)) -> 5365.499983 | O16: =IF($B16>$B$6,"",H16/(8.76*$R114)) -> 440.9201315 | P16: =IF(SUM(K16:O16)>0,SUM(K16:O16),"") -> 22478.36377 | Q16: =IF($B16>$B$6,"",J16/(8.76*$R114)) -> 22584.92247 | R16: ='Load Data'!AZ51 -> 0.375 | S16: ='Load Data'!BG51 -> 0.3281916222 | T16: =IF(B16>$B$6,"",I16/SUMIF($A$10:$A$15,LEFT(A16,4),$I$10:$I$15)) -> 0.32664317 | U16: =IF(B16>$B$6,"",SUMPRODUCT($BL16:$BP16,$BL$5:$BP$5,OFFSET($BL$6,MID($A16,2,1),0,1,5),OFFSET($BL$9,SUMIF($A$10:$A$15,LEFT($A16,4),$B$10:$B$15),0,1,5))/($U$5*OFFSET($U$6,MID($A16,2,1),0)*OFFSET($U$9,SUMIF($A$10:$A$15,LEFT($A16,4),$B$10:$B$15),0))) -> 0.2761903477 | V16: =IF(B16>$B$6,"",SUMPRODUCT($AS16:$BA16,$AS$5:$BA$5,OFFSET($AS$6,MID($A16,2,1),0,1,9),OFFSET($AS$9,SUMIF($A$10:$A$15,LEFT($A16,4),$B$10:$B$15),0,1,9))/($V$5*OFFSET($V$6,MID($A16,2,1),0)*OFFSET($V$9,SUMIF($A$10:$A$15,LEFT($A16,4),$B$10:$B$15),0))) -> 0.2719373852 | W16: =IF(B16>$B$6,"",SUMPRODUCT($BB16:$BK16,$BB$5:$BK$5,OFFSET($BB$6,MID($A16,2,1),0,1,10),OFFSET($BB$9,SUMIF($A$10:$A$15,LEFT($A16,4),$B$10:$B$15),0,1,10))/($W$5*OFFSET($W$6,MID($A16,2,1),0)*OFFSET($W$9,SUMIF($A$10:$A$15,LEFT($A16,4),$B$10:$B$15),0))) -> 0.3400717685 | X16: =IF(B16>$B$6,"",SUMPRODUCT($AA16:$AR16,$AA$5:$AR$5,OFFSET($AA$6,MID($A16,2,1),0,1,18),OFFSET($AA$9,SUMIF($A$10:$A$15,LEFT($A16,4),$B$10:$B$15),0,1,18))/($X$5*OFFSET($X$6,MID($A16,2,1),0)*OFFSET($X$9,SUMIF($A$10:$A$15,LEFT($A16,4),$B$10:$B$15),0))) -> 0.334507553 | Y16: =IF(B16>$B$6,"",SUMPRODUCT($BQ16:$BS16,$BQ$5:$BS$5,OFFSET($BQ$6,MID($A16,2,1),0,1,3),OFFSET($BQ$9,SUMIF($A$10:$A$15,LEFT($A16,4),$B$10:$B$15),0,1,3))/($Y$5*OFFSET($Y$6,MID($A16,2,1),0)*OFFSET($Y$9,SUMIF($A$10:$A$15,LEFT($A16,4),$B$10:$B$15),0))) -> 0.3548575368 | Z16: 1 | AA16: =IF($B16>$B$6,"",IF(RIGHT($A16,1)="1",1-SUM(OFFSET(AA17,0,0,$C16-1,1)),Suburban!AS3+AA70)) -> 0.3354546097 | AB16: =IF($B16>$B$6,"",IF(RIGHT($A16,1)="1",1-SUM(OFFSET(AB17,0,0,$C16-1,1)),Suburban!AT3+AB70)) -> 0.1874485998 | AC16: =IF($B16>$B$6,"",IF(RIGHT($A16,1)="1",1-SUM(OFFSET(AC17,0,0,$C16-1,1)),Suburban!AU3+AC70)) -> 0.97 | AD16: =IF($B16>$B$6,"",IF(RIGHT($A16,1)="1",1-SUM(OFFSET(AD17,0,0,$C16-1,1)),Suburban!AV3+AD70)) -> 0.2291352792 | AE16: =IF($B16>$B$6,"",IF(RIGHT($A16,1)="1",1-SUM(OFFSET(AE17,0,0,$C16-1,1)),Suburban!AW3+AE70)) -> 0.308528277 | AF16: =IF($B16>$B$6,"",IF(RIGHT($A16,1)="1",1-SUM(OFFSET(AF17,0,0,$C16-1,1)),Suburban!AX3+AF70)) -> 0.1113613664 | AG16: =IF($B16>$B$6,"",IF(RIGHT($A16,1)="1",1-SUM(OFFSET(AG17,0,0,$C16-1,1)),Township!AS3+AG70)) -> 0.2961434872 | AH16: =IF($B16>$B$6,"",IF(RIGHT($A16,1)="1",1-SUM(OFFSET(AH17,0,0,$C16-1,1)),Township!AT3+AH70)) -> 0.1330416284 | AI16: =IF($B16>$B$6,"",IF(RIGHT($A16,1)="1",1-SUM(OFFSET(AI17,0,0,$C16-1,1)),Township!AU3+AI70)) -> 0.97 | AJ16: =IF($B16>$B$6,"",IF(RIGHT($A16,1)="1",1-SUM(OFFSET(AJ17,0,0,$C16-1,1)),Township!AV3+AJ70)) -> 0.3138588965 | AK16: =IF($B16>$B$6,"",IF(RIGHT($A16,1)="1",1-SUM(OFFSET(AK17,0,0,$C16-1,1)),Township!AW3+AK70)) -> 0.3085282748 | AL16: =IF($B16>$B$6,"",IF(RIGHT($A16,1)="1",1-SUM(OFFSET(AL17,0,0,$C16-1,1)),Township!AX3+AL70)) -> 0.167034291 | AM16: 0.2961434872 | AN16: 0.1330416284 | AO16: 0.97 | AP16: 0.3138588965 | AQ16: 0.3085282748 | AR16: 0.167034291 | AS16: =IF($B16>$B$6,"",IF(RIGHT($A16,1)="1",1-SUM(OFFSET(AS17,0,0,$C16-1,1)),Commercial!AX3+AS70)) -> 0.2739053559 | AT16: =IF($B16>$B$6,"",IF(RIGHT($A16,1)="1",1-SUM(OFFSET(AT17,0,0,$C16-1,1)),Commercial!AY3+AT70)) -> 0.2739053553 | AU16: =IF($B16>$B$6,"",IF(RIGHT($A16,1)="1",1-SUM(OFFSET(AU17,0,0,$C16-1,1)),Commercial!AZ3+AU70)) -> 0.249639731 | AV16: =IF($B16>$B$6,"",IF(RIGHT($A16,1)="1",1-SUM(OFFSET(AV17,0,0,$C16-1,1)),Commercial!BA3+AV70)) -> 0.2683282846 | AW16: =IF($B16>$B$6,"",IF(RIGHT($A16,1)="1",1-SUM(OFFSET(AW17,0,0,$C16-1,1)),Commercial!BB3+AW70)) -> 0.3640332125 | AX16: =IF($B16>$B$6,"",IF(RIGHT($A16,1)="1",1-SUM(OFFSET(AX17,0,0,$C16-1,1)),Commercial!BC3+AX70)) -> 0.3850000262 | AY16: 0.6666666667 | AZ16: 0.3333333333 | BA16: =IF($B16>$B$6,"",IF(RIGHT($A16,1)="1",1-SUM(OFFSET(BA17,0,0,$C16-1,1)),Commercial!BF3+BA70)) -> 0.2110911405 | BB16: =IF($B16>$B$6,"",IF(RIGHT($A16,1)="1",1-SUM(OFFSET(BB17,0,0,$C16-1,1)),Industry!BG3+BB70)) -> 0.3913172015 | BC16: =IF($B16>$B$6,"",IF(RIGHT($A16,1)="1",1-SUM(OFFSET(BC17,0,0,$C16-1,1)),Industry!BH3+BC70)) -> 0.3746566099 | BD16: =IF($B16>$B$6,"",IF(RIGHT($A16,1)="1",1-SUM(OFFSET(BD17,0,0,$C16-1,1)),Industry!BI3+BD70)) -> 0.3145524411 | BE16: =IF($B16>$B$6,"",IF(RIGHT($A16,1)="1",1-SUM(OFFSET(BE17,0,0,$C16-1,1)),Industry!BJ3+BE70)) -> 0.3325325214 | BF16: =IF($B16>$B$6,"",IF(RIGHT($A16,1)="1",1-SUM(OFFSET(BF17,0,0,$C16-1,1)),Industry!BK3+BF70)) -> 0.2823180522 | BG16: =IF($B16>$B$6,"",IF(RIGHT($A16,1)="1",1-SUM(OFFSET(BG17,0,0,$C16-1,1)),Industry!BL3+BG70)) -> 0.3405277804 | BH16: =IF($B16>$B$6,"",IF(RIGHT($A16,1)="1",1-SUM(OFFSET(BH17,0,0,$C16-1,1)),Industry!BM3+BH70)) -> 0.3950000269 | BI16: =IF($B16>$B$6,"",IF(RIGHT($A16,1)="1",1-SUM(OFFSET(BI17,0,0,$C16-1,1)),Industry!BN3+BI70)) -> 0.3261007866 | BJ16: =IF($B16>$B$6,"",IF(RIGHT($A16,1)="1",1-SUM(OFFSET(BJ17,0,0,$C16-1,1)),Industry!BO3+BJ70)) -> 0.3193601026 | BK16: =IF($B16>$B$6,"",IF(RIGHT($A16,1)="1",1-SUM(OFFSET(BK17,0,0,$C16-1,1)),Industry!BP3+BK70)) -> 0.2471033 | BL16: =IF($B16>$B$6,"",IF(RIGHT($A16,1)="1",1-SUM(OFFSET(BL17,0,0,$C16-1,1)),Agric!AP3)) -> 0.2199861971 | BM16: =IF($B16>$B$6,"",IF(RIGHT($A16,1)="1",1-SUM(OFFSET(BM17,0,0,$C16-1,1)),Agric!AQ3)) -> 0.2585992477 | BN16: =IF($B16>$B$6,"",IF(RIGHT($A16,1)="1",1-SUM(OFFSET(BN17,0,0,$C16-1,1)),Agric!AR3)) -> 0.2268705079 | BO16: =IF($B16>$B$6,"",IF(RIGHT($A16,1)="1",1-SUM(OFFSET(BO17,0,0,$C16-1,1)),Agric!AS3)) -> 0.248179642 | BP16: =IF($B16>$B$6,"",IF(RIGHT($A16,1)="1",1-SUM(OFFSET(BP17,0,0,$C16-1,1)),Agric!AT3)) -> 0.3095568062 | BQ16: 0.2719373852 | BR16: 0.375 | BS16: 0.375
A17: ='Load Data'!AR52 -> s1d1b2 | B17: =B16+1 -> 2 | C17: =SUMIF('Load Data'!$AR$22:$AR$27,LEFT(A17,4),'Load Data'!$AQ$22:$AQ$27) -> 3 | D17: =IF(B17>$B$6," ", U17*SUMIF($A$10:$A$15,LEFT($A17,4),$D$10:$D$15)) -> 1003.476611 | E17: =IF(B17>$B$6,"", V17*SUMIF($A$10:$A$15,LEFT($A17,4),$E$10:$E$15)) -> 4364.904886 | F17: 15966.27424 | G17: 5544.051487 | H17: =IF(B17>$B$6,"", Y17*SUMIF($A$10:$A$15,LEFT($A17,4),$H$10:$H$15)) -> 475.5292624 | I17: =IF(SUM(D17:H17)>0,SUM(D17:H17),"") -> 27354.23648 | J17: =IF(B17>$B$6,"", S17*SUMIF($A$10:$A$15,LEFT($A17,4),$J$10:$J$15)) -> 27577.12394 | K17: 1002.474137 | L17: =IF($B17>$B$6,"",E17/(8.76*$R115)) -> 4360.544341 | M17: 15950.32391 | N17: 5538.512974 | O17: 475.0542082 | P17: =IF(SUM(K17:O17)>0,SUM(K17:O17),"") -> 27326.90957 | Q17: 27549.57437 | R17: ='Load Data'!AZ52 -> 0.4583333333 | S17: ='Load Data'!BG52 -> 0.4892985804 | T17: =IF(B17>$B$6,"",I17/SUMIF($A$10:$A$15,LEFT(A17,4),$I$10:$I$15)) -> 0.485343907 | U17: =IF(B17>$B$6,"",SUMPRODUCT($BL17:$BP17,$BL$5:$BP$5,OFFSET($BL$6,MID($A17,2,1),0,1,5),OFFSET($BL$9,SUMIF($A$10:$A$15,LEFT($A17,4),$B$10:$B$15),0,1,5))/($U$5*OFFSET($U$6,MID($A17,2,1),0)*OFFSET($U$9,SUMIF($A$10:$A$15,LEFT($A17,4),$B$10:$B$15),0))) -> 0.5756074732 | V17: =IF(B17>$B$6,"",SUMPRODUCT($AS17:$BA17,$AS$5:$BA$5,OFFSET($AS$6,MID($A17,2,1),0,1,9),OFFSET($AS$9,SUMIF($A$10:$A$15,LEFT($A17,4),$B$10:$B$15),0,1,9))/($V$5*OFFSET($V$6,MID($A17,2,1),0)*OFFSET($V$9,SUMIF($A$10:$A$15,LEFT($A17,4),$B$10:$B$15),0))) -> 0.5062760089 | W17: =IF(B17>$B$6,"",SUMPRODUCT($BB17:$BK17,$BB$5:$BK$5,OFFSET($BB$6,MID($A17,2,1),0,1,10),OFFSET($BB$9,SUMIF($A$10:$A$15,LEFT($A17,4),$B$10:$B$15),0,1,10))/($W$5*OFFSET($W$6,MID($A17,2,1),0)*OFFSET($W$9,SUMIF($A$10:$A$15,LEFT($A17,4),$B$10:$B$15),0))) -> 0.5014342828 | X17: =IF(B17>$B$6,"",SUMPRODUCT($AA17:$AR17,$AA$5:$AR$5,OFFSET($AA$6,MID($A17,2,1),0,1,18),OFFSET($AA$9,SUMIF($A$10:$A$15,LEFT($A17,4),$B$10:$B$15),0,1,18))/($X$5*OFFSET($X$6,MID($A17,2,1),0)*OFFSET($X$9,SUMIF($A$10:$A$15,LEFT($A17,4),$B$10:$B$15),0))) -> 0.4220258795 | Y17: =IF(B17>$B$6,"",SUMPRODUCT($BQ17:$BS17,$BQ$5:$BS$5,OFFSET($BQ$6,MID($A17,2,1),0,1,3),OFFSET($BQ$9,SUMIF($A$10:$A$15,LEFT($A17,4),$B$10:$B$15),0,1,3))/($Y$5*OFFSET($Y$6,MID($A17,2,1),0)*OFFSET($Y$9,SUMIF($A$10:$A$15,LEFT($A17,4),$B$10:$B$15),0))) -> 0.4672910367 | Z17: 2 | AA17: =IF($B17>$B$6,"",IF(RIGHT($A17,1)="1",1-SUM(OFFSET(AA18,0,0,$C17-1,1)),Suburban!AS4+AA71)) -> 0.287576487 | AB17: =IF($B17>$B$6,"",IF(RIGHT($A17,1)="1",1-SUM(OFFSET(AB18,0,0,$C17-1,1)),Suburban!AT4+AB71)) -> 0.5479418114 | AC17: =IF($B17>$B$6,"",IF(RIGHT($A17,1)="1",1-SUM(OFFSET(AC18,0,0,$C17-1,1)),Suburban!AU4+AC71)) -> 0.02 | AD17: =IF($B17>$B$6,"",IF(RIGHT($A17,1)="1",1-SUM(OFFSET(AD18,0,0,$C17-1,1)),Suburban!AV4+AD71)) -> 0.5049562837 | AE17: =IF($B17>$B$6,"",IF(RIGHT($A17,1)="1",1-SUM(OFFSET(AE18,0,0,$C17-1,1)),Suburban!AW4+AE71)) -> 0.4801546483 | AF17: =IF($B17>$B$6,"",IF(RIGHT($A17,1)="1",1-SUM(OFFSET(AF18,0,0,$C17-1,1)),Suburban!AX4+AF71)) -> 0.6611702171 | AG17: =IF($B17>$B$6,"",IF(RIGHT($A17,1)="1",1-SUM(OFFSET(AG18,0,0,$C17-1,1)),Township!AS4+AG71)) -> 0.3117966911 | AH17: =IF($B17>$B$6,"",IF(RIGHT($A17,1)="1",1-SUM(OFFSET(AH18,0,0,$C17-1,1)),Township!AT4+AH71)) -> 0.6150805452 | AI17: =IF($B17>$B$6,"",IF(RIGHT($A17,1)="1",1-SUM(OFFSET(AI18,0,0,$C17-1,1)),Township!AU4+AI71)) -> 0.02 | AJ17: =IF($B17>$B$6,"",IF(RIGHT($A17,1)="1",1-SUM(OFFSET(AJ18,0,0,$C17-1,1)),Township!AV4+AJ71)) -> 0.442031035 | AK17: =IF($B17>$B$6,"",IF(RIGHT($A17,1)="1",1-SUM(OFFSET(AK18,0,0,$C17-1,1)),Township!AW4+AK71)) -> 0.4801546498 | AL17: =IF($B17>$B$6,"",IF(RIGHT($A17,1)="1",1-SUM(OFFSET(AL18,0,0,$C17-1,1)),Township!AX4+AL71)) -> 0.490639657 | AM17: 0.3117966911 | AN17: 0.6150805452 | AO17: 0.02 | AP17: 0.442031035 | AQ17: 0.4801546498 | AR17: 0.490639657 | AS17: =IF($B17>$B$6,"",IF(RIGHT($A17,1)="1",1-SUM(OFFSET(AS18,0,0,$C17-1,1)),Commercial!AX4+AS71)) -> 0.527810629 | AT17: =IF($B17>$B$6,"",IF(RIGHT($A17,1)="1",1-SUM(OFFSET(AT18,0,0,$C17-1,1)),Commercial!AY4+AT71)) -> 0.5278106295 | AU17: =IF($B17>$B$6,"",IF(RIGHT($A17,1)="1",1-SUM(OFFSET(AU18,0,0,$C17-1,1)),Commercial!AZ4+AU71)) -> 0.5666335353 | AV17: =IF($B17>$B$6,"",IF(RIGHT($A17,1)="1",1-SUM(OFFSET(AV18,0,0,$C17-1,1)),Commercial!BA4+AV71)) -> 0.5196713599 | AW17: =IF($B17>$B$6,"",IF(RIGHT($A17,1)="1",1-SUM(OFFSET(AW18,0,0,$C17-1,1)),Commercial!BB4+AW71)) -> 0.4330693378 | AX17: =IF($B17>$B$6,"",IF(RIGHT($A17,1)="1",1-SUM(OFFSET(AX18,0,0,$C17-1,1)),Commercial!BC4+AX71)) -> 0.4583333141 | AY17: 0 | AZ17: 0.5 | BA17: =IF($B17>$B$6,"",IF(RIGHT($A17,1)="1",1-SUM(OFFSET(BA18,0,0,$C17-1,1)),Commercial!BF4+BA71)) -> 0.6296753951 | BB17: =IF($B17>$B$6,"",IF(RIGHT($A17,1)="1",1-SUM(OFFSET(BB18,0,0,$C17-1,1)),Industry!BG4+BB71)) -> 0.4582216932 | BC17: =IF($B17>$B$6,"",IF(RIGHT($A17,1)="1",1-SUM(OFFSET(BC18,0,0,$C17-1,1)),Industry!BH4+BC71)) -> 0.4642874546 | BD17: =IF($B17>$B$6,"",IF(RIGHT($A17,1)="1",1-SUM(OFFSET(BD18,0,0,$C17-1,1)),Industry!BI4+BD71)) -> 0.4991596922 | BE17: =IF($B17>$B$6,"",IF(RIGHT($A17,1)="1",1-SUM(OFFSET(BE18,0,0,$C17-1,1)),Industry!BJ4+BE71)) -> 0.5192460081 | BF17: =IF($B17>$B$6,"",IF(RIGHT($A17,1)="1",1-SUM(OFFSET(BF18,0,0,$C17-1,1)),Industry!BK4+BF71)) -> 0.5274710648 | BG17: =IF($B17>$B$6,"",IF(RIGHT($A17,1)="1",1-SUM(OFFSET(BG18,0,0,$C17-1,1)),Industry!BL4+BG71)) -> 0.485562438 | BH17: =IF($B17>$B$6,"",IF(RIGHT($A17,1)="1",1-SUM(OFFSET(BH18,0,0,$C17-1,1)),Industry!BM4+BH71)) -> 0.4383333136 | BI17: =IF($B17>$B$6,"",IF(RIGHT($A17,1)="1",1-SUM(OFFSET(BI18,0,0,$C17-1,1)),Industry!BN4+BI71)) -> 0.5242783017 | BJ17: =IF($B17>$B$6,"",IF(RIGHT($A17,1)="1",1-SUM(OFFSET(BJ18,0,0,$C17-1,1)),Industry!BO4+BJ71)) -> 0.5303626274 | BK17: =IF($B17>$B$6,"",IF(RIGHT($A17,1)="1",1-SUM(OFFSET(BK18,0,0,$C17-1,1)),Industry!BP4+BK71)) -> 0.6182757763 | BL17: =IF($B17>$B$6,"",IF(RIGHT($A17,1)="1",1-SUM(OFFSET(BL18,0,0,$C17-1,1)),Agric!AP4)) -> 0.6797056504 | BM17: =IF($B17>$B$6,"",IF(RIGHT($A17,1)="1",1-SUM(OFFSET(BM18,0,0,$C17-1,1)),Agric!AQ4)) -> 0.6099923469 | BN17: =IF($B17>$B$6,"",IF(RIGHT($A17,1)="1",1-SUM(OFFSET(BN18,0,0,$C17-1,1)),Agric!AR4)) -> 0.4951575773 | BO17: =IF($B17>$B$6,"",IF(RIGHT($A17,1)="1",1-SUM(OFFSET(BO18,0,0,$C17-1,1)),Agric!AS4)) -> 0.5740291031 | BP17: =IF($B17>$B$6,"",IF(RIGHT($A17,1)="1",1-SUM(OFFSET(BP18,0,0,$C17-1,1)),Agric!AT4)) -> 0.5550962838 | BQ17: 0.5062760089 | BR17: 0.4583333333 | BS17: 0.4583333333
A18: ='Load Data'!AR53 -> s1d1b3 | B18: =B17+1 -> 3 | C18: =SUMIF('Load Data'!$AR$22:$AR$27,LEFT(A18,4),'Load Data'!$AQ$22:$AQ$27) -> 3 | D18: 258.3660348 | E18: 1666.603417 | F18: 5046.639082 | G18: 3198.361171 | H18: 174.7283443 | I18: 10344.69805 | J18: 10286.34765 | K18: 709.7967988 | L18: 4578.580817 | M18: 13864.39308 | N18: 8786.706514 | O18: 480.022924 | P18: 28419.50014 | Q18: 28259.19685 | R18: ='Load Data'!AZ53 -> 0.1666666667 | S18: ='Load Data'!BG53 -> 0.1825097974 | T18: 0.1835451036 | U18: 0.1482021791 | V18: 0.1933057761 | W18: 0.1584939487 | X18: 0.2434665676 | Y18: 0.1717012929 | Z18: 3 | AA18: =IF($B18>$B$6,"",IF(RIGHT($A18,1)="1",1-SUM(OFFSET(AA19,0,0,$C18-1,1)),Suburban!AS5+AA72)) -> 0.3769689033 | AB18: =IF($B18>$B$6,"",IF(RIGHT($A18,1)="1",1-SUM(OFFSET(AB19,0,0,$C18-1,1)),Suburban!AT5+AB72)) -> 0.2646095888 | AC18: =IF($B18>$B$6,"",IF(RIGHT($A18,1)="1",1-SUM(OFFSET(AC19,0,0,$C18-1,1)),Suburban!AU5+AC72)) -> 0.01 | AD18: =IF($B18>$B$6,"",IF(RIGHT($A18,1)="1",1-SUM(OFFSET(AD19,0,0,$C18-1,1)),Suburban!AV5+AD72)) -> 0.2659084371 | AE18: =IF($B18>$B$6,"",IF(RIGHT($A18,1)="1",1-SUM(OFFSET(AE19,0,0,$C18-1,1)),Suburban!AW5+AE72)) -> 0.2113170747 | AF18: =IF($B18>$B$6,"",IF(RIGHT($A18,1)="1",1-SUM(OFFSET(AF19,0,0,$C18-1,1)),Suburban!AX5+AF72)) -> 0.2274684165 | AG18: =IF($B18>$B$6,"",IF(RIGHT($A18,1)="1",1-SUM(OFFSET(AG19,0,0,$C18-1,1)),Township!AS5+AG72)) -> 0.3920598218 | AH18: =IF($B18>$B$6,"",IF(RIGHT($A18,1)="1",1-SUM(OFFSET(AH19,0,0,$C18-1,1)),Township!AT5+AH72)) -> 0.2518778264 | AI18: =IF($B18>$B$6,"",IF(RIGHT($A18,1)="1",1-SUM(OFFSET(AI19,0,0,$C18-1,1)),Township!AU5+AI72)) -> 0.01 | AJ18: =IF($B18>$B$6,"",IF(RIGHT($A18,1)="1",1-SUM(OFFSET(AJ19,0,0,$C18-1,1)),Township!AV5+AJ72)) -> 0.2441100685 | AK18: =IF($B18>$B$6,"",IF(RIGHT($A18,1)="1",1-SUM(OFFSET(AK19,0,0,$C18-1,1)),Township!AW5+AK72)) -> 0.2113170753 | AL18: =IF($B18>$B$6,"",IF(RIGHT($A18,1)="1",1-SUM(OFFSET(AL19,0,0,$C18-1,1)),Township!AX5+AL72)) -> 0.3423260519 | AM18: 0.3920598218 | AN18: 0.2518778264 | AO18: 0.01 | AP18: 0.2441100685 | AQ18: 0.2113170753 | AR18: 0.3423260519 | AS18: =IF($B18>$B$6,"",IF(RIGHT($A18,1)="1",1-SUM(OFFSET(AS19,0,0,$C18-1,1)),Commercial!AX5+AS72)) -> 0.198284015 | AT18: =IF($B18>$B$6,"",IF(RIGHT($A18,1)="1",1-SUM(OFFSET(AT19,0,0,$C18-1,1)),Commercial!AY5+AT72)) -> 0.1982840152 | AU18: =IF($B18>$B$6,"",IF(RIGHT($A18,1)="1",1-SUM(OFFSET(AU19,0,0,$C18-1,1)),Commercial!AZ5+AU72)) -> 0.1837267338 | AV18: =IF($B18>$B$6,"",IF(RIGHT($A18,1)="1",1-SUM(OFFSET(AV19,0,0,$C18-1,1)),Commercial!BA5+AV72)) -> 0.2120003555 | AW18: =IF($B18>$B$6,"",IF(RIGHT($A18,1)="1",1-SUM(OFFSET(AW19,0,0,$C18-1,1)),Commercial!BB5+AW72)) -> 0.2028974497 | AX18: =IF($B18>$B$6,"",IF(RIGHT($A18,1)="1",1-SUM(OFFSET(AX19,0,0,$C18-1,1)),Commercial!BC5+AX72)) -> 0.1566666597 | AY18: 0.3333333333 | AZ18: 0.1666666667 | BA18: =IF($B18>$B$6,"",IF(RIGHT($A18,1)="1",1-SUM(OFFSET(BA19,0,0,$C18-1,1)),Commercial!BF5+BA72)) -> 0.1592334643 | BB18: =IF($B18>$B$6,"",IF(RIGHT($A18,1)="1",1-SUM(OFFSET(BB19,0,0,$C18-1,1)),Industry!BG5+BB72)) -> 0.1504611054 | BC18: =IF($B18>$B$6,"",IF(RIGHT($A18,1)="1",1-SUM(OFFSET(BC19,0,0,$C18-1,1)),Industry!BH5+BC72)) -> 0.1610559356 | BD18: =IF($B18>$B$6,"",IF(RIGHT($A18,1)="1",1-SUM(OFFSET(BD19,0,0,$C18-1,1)),Industry!BI5+BD72)) -> 0.1862878666 | BE18: =IF($B18>$B$6,"",IF(RIGHT($A18,1)="1",1-SUM(OFFSET(BE19,0,0,$C18-1,1)),Industry!BJ5+BE72)) -> 0.1482214705 | BF18: =IF($B18>$B$6,"",IF(RIGHT($A18,1)="1",1-SUM(OFFSET(BF19,0,0,$C18-1,1)),Industry!BK5+BF72)) -> 0.190210883 | BG18: =IF($B18>$B$6,"",IF(RIGHT($A18,1)="1",1-SUM(OFFSET(BG19,0,0,$C18-1,1)),Industry!BL5+BG72)) -> 0.1739097816 | BH18: =IF($B18>$B$6,"",IF(RIGHT($A18,1)="1",1-SUM(OFFSET(BH19,0,0,$C18-1,1)),Industry!BM5+BH72)) -> 0.1666666595 | BI18: =IF($B18>$B$6,"",IF(RIGHT($A18,1)="1",1-SUM(OFFSET(BI19,0,0,$C18-1,1)),Industry!BN5+BI72)) -> 0.1496209117 | BJ18: =IF($B18>$B$6,"",IF(RIGHT($A18,1)="1",1-SUM(OFFSET(BJ19,0,0,$C18-1,1)),Industry!BO5+BJ72)) -> 0.15027727 | BK18: =IF($B18>$B$6,"",IF(RIGHT($A18,1)="1",1-SUM(OFFSET(BK19,0,0,$C18-1,1)),Industry!BP5+BK72)) -> 0.1346209237 | BL18: =IF($B18>$B$6,"",IF(RIGHT($A18,1)="1",1-SUM(OFFSET(BL19,0,0,$C18-1,1)),Agric!AP5)) -> 0.1003081525 | BM18: =IF($B18>$B$6,"",IF(RIGHT($A18,1)="1",1-SUM(OFFSET(BM19,0,0,$C18-1,1)),Agric!AQ5)) -> 0.1314084054 | BN18: =IF($B18>$B$6,"",IF(RIGHT($A18,1)="1",1-SUM(OFFSET(BN19,0,0,$C18-1,1)),Agric!AR5)) -> 0.2779719149 | BO18: =IF($B18>$B$6,"",IF(RIGHT($A18,1)="1",1-SUM(OFFSET(BO19,0,0,$C18-1,1)),Agric!AS5)) -> 0.177791255 | BP18: =IF($B18>$B$6,"",IF(RIGHT($A18,1)="1",1-SUM(OFFSET(BP19,0,0,$C18-1,1)),Agric!AT5)) -> 0.13534691 | BQ18: 0.1933057761 | BR18: 0.1666666667 | BS18: 0.1666666667
A19: ='Load Data'!AR54 -> s1d2b1 | B19: 4 | C19: =SUMIF('Load Data'!$AR$22:$AR$27,LEFT(A19,4),'Load Data'!$AQ$22:$AQ$27) -> 3 | D19: 258.6117855 | E19: 1244.462773 | F19: 5251.63856 | G19: 2233.203115 | H19: 189.9035598 | I19: 9177.819792 | J19: 9176.811258 | K19: 601.4227569 | L19: 2894.099471 | M19: 12213.11293 | N19: 5193.495616 | O19: 441.6361857 | P19: 21343.76696 | Q19: 21341.42153 | R19: ='Load Data'!AZ54 -> 0.4166666667 | S19: ='Load Data'!BG54 -> 0.3795693591 | T19: 0.3796110739 | U19: 0.3458134211 | V19: 0.3364874221 | W19: 0.3844852021 | X19: 0.3962911885 | Y19: 0.435028462 | Z19: 1 | AA19: =IF($B19>$B$6,"",IF(RIGHT($A19,1)="1",1-SUM(OFFSET(AA20,0,0,$C19-1,1)),Suburban!AS6+AA73)) -> 0.3975048906 | AB19: =IF($B19>$B$6,"",IF(RIGHT($A19,1)="1",1-SUM(OFFSET(AB20,0,0,$C19-1,1)),Suburban!AT6+AB73)) -> 0.2427058361 | AC19: =IF($B19>$B$6,"",IF(RIGHT($A19,1)="1",1-SUM(OFFSET(AC20,0,0,$C19-1,1)),Suburban!AU6+AC73)) -> 0.99 | AD19: =IF($B19>$B$6,"",IF(RIGHT($A19,1)="1",1-SUM(OFFSET(AD20,0,0,$C19-1,1)),Suburban!AV6+AD73)) -> 0.3043267451 | AE19: =IF($B19>$B$6,"",IF(RIGHT($A19,1)="1",1-SUM(OFFSET(AE20,0,0,$C19-1,1)),Suburban!AW6+AE73)) -> 0.3491827859 | AF19: =IF($B19>$B$6,"",IF(RIGHT($A19,1)="1",1-SUM(OFFSET(AF20,0,0,$C19-1,1)),Suburban!AX6+AF73)) -> 0.2097713744 | AG19: =IF($B19>$B$6,"",IF(RIGHT($A19,1)="1",1-SUM(OFFSET(AG20,0,0,$C19-1,1)),Township!AS6+AG73)) -> 0.3592729913 | AH19: =IF($B19>$B$6,"",IF(RIGHT($A19,1)="1",1-SUM(OFFSET(AH20,0,0,$C19-1,1)),Township!AT6+AH73)) -> 0.2142006275 | AI19: =IF($B19>$B$6,"",IF(RIGHT($A19,1)="1",1-SUM(OFFSET(AI20,0,0,$C19-1,1)),Township!AU6+AI73)) -> 0.99 | AJ19: =IF($B19>$B$6,"",IF(RIGHT($A19,1)="1",1-SUM(OFFSET(AJ20,0,0,$C19-1,1)),Township!AV6+AJ73)) -> 0.355340551 | AK19: =IF($B19>$B$6,"",IF(RIGHT($A19,1)="1",1-SUM(OFFSET(AK20,0,0,$C19-1,1)),Township!AW6+AK73)) -> 0.3676982795 | AL19: =IF($B19>$B$6,"",IF(RIGHT($A19,1)="1",1-SUM(OFFSET(AL20,0,0,$C19-1,1)),Township!AX6+AL73)) -> 0.2533252817 | AM19: 0.3592729913 | AN19: 0.2142006275 | AO19: 0.99 | AP19: 0.355340551 | AQ19: 0.3676982795 | AR19: 0.2533252817 | AS19: =IF($B19>$B$6,"",IF(RIGHT($A19,1)="1",1-SUM(OFFSET(AS20,0,0,$C19-1,1)),Commercial!AX6+AS73)) -> 0.2963906644 | AT19: =IF($B19>$B$6,"",IF(RIGHT($A19,1)="1",1-SUM(OFFSET(AT20,0,0,$C19-1,1)),Commercial!AY6+AT73)) -> 0.2963906618 | AU19: =IF($B19>$B$6,"",IF(RIGHT($A19,1)="1",1-SUM(OFFSET(AU20,0,0,$C19-1,1)),Commercial!AZ6+AU73)) -> 0.3125291203 | AV19: =IF($B19>$B$6,"",IF(RIGHT($A19,1)="1",1-SUM(OFFSET(AV20,0,0,$C19-1,1)),Commercial!BA6+AV73)) -> 0.3222627853 | AW19: =IF($B19>$B$6,"",IF(RIGHT($A19,1)="1",1-SUM(OFFSET(AW20,0,0,$C19-1,1)),Commercial!BB6+AW73)) -> 0.4000883426 | AX19: =IF($B19>$B$6,"",IF(RIGHT($A19,1)="1",1-SUM(OFFSET(AX20,0,0,$C19-1,1)),Commercial!BC6+AX73)) -> 0.4266667279 | AY19: 0.6666666667 | AZ19: 0.375 | BA19: =IF($B19>$B$6,"",IF(RIGHT($A19,1)="1",1-SUM(OFFSET(BA20,0,0,$C19-1,1)),Commercial!BF6+BA73)) -> 0.3351022841 | BB19: =IF($B19>$B$6,"",IF(RIGHT($A19,1)="1",1-SUM(OFFSET(BB20,0,0,$C19-1,1)),Industry!BG6+BB73)) -> 0.4051170441 | BC19: =IF($B19>$B$6,"",IF(RIGHT($A19,1)="1",1-SUM(OFFSET(BC20,0,0,$C19-1,1)),Industry!BH6+BC73)) -> 0.4065525666 | BD19: =IF($B19>$B$6,"",IF(RIGHT($A19,1)="1",1-SUM(OFFSET(BD20,0,0,$C19-1,1)),Industry!BI6+BD73)) -> 0.3511415158 | BE19: =IF($B19>$B$6,"",IF(RIGHT($A19,1)="1",1-SUM(OFFSET(BE20,0,0,$C19-1,1)),Industry!BJ6+BE73)) -> 0.3826764096 | BF19: =IF($B19>$B$6,"",IF(RIGHT($A19,1)="1",1-SUM(OFFSET(BF20,0,0,$C19-1,1)),Industry!BK6+BF73)) -> 0.3031568693 | BG19: =IF($B19>$B$6,"",IF(RIGHT($A19,1)="1",1-SUM(OFFSET(BG20,0,0,$C19-1,1)),Industry!BL6+BG73)) -> 0.3725224194 | BH19: =IF($B19>$B$6,"",IF(RIGHT($A19,1)="1",1-SUM(OFFSET(BH20,0,0,$C19-1,1)),Industry!BM6+BH73)) -> 0.4166667312 | BI19: =IF($B19>$B$6,"",IF(RIGHT($A19,1)="1",1-SUM(OFFSET(BI20,0,0,$C19-1,1)),Industry!BN6+BI73)) -> 0.3855801433 | BJ19: =IF($B19>$B$6,"",IF(RIGHT($A19,1)="1",1-SUM(OFFSET(BJ20,0,0,$C19-1,1)),Industry!BO6+BJ73)) -> 0.3870588637 | BK19: =IF($B19>$B$6,"",IF(RIGHT($A19,1)="1",1-SUM(OFFSET(BK20,0,0,$C19-1,1)),Industry!BP6+BK73)) -> 0.3480564755 | BL19: =IF($B19>$B$6,"",IF(RIGHT($A19,1)="1",1-SUM(OFFSET(BL20,0,0,$C19-1,1)),Agric!AP6)) -> 0.3462254057 | BM19: =IF($B19>$B$6,"",IF(RIGHT($A19,1)="1",1-SUM(OFFSET(BM20,0,0,$C19-1,1)),Agric!AQ6)) -> 0.3515118297 | BN19: =IF($B19>$B$6,"",IF(RIGHT($A19,1)="1",1-SUM(OFFSET(BN20,0,0,$C19-1,1)),Agric!AR6)) -> 0.2756509314 | BO19: =IF($B19>$B$6,"",IF(RIGHT($A19,1)="1",1-SUM(OFFSET(BO20,0,0,$C19-1,1)),Agric!AS6)) -> 0.2894418755 | BP19: =IF($B19>$B$6,"",IF(RIGHT($A19,1)="1",1-SUM(OFFSET(BP20,0,0,$C19-1,1)),Agric!AT6)) -> 0.3869488127 | BQ19: 0.3364874221 | BR19: 0.4166666667 | BS19: 0.4166666667
A20: ='Load Data'!AR55 -> s1d2b2 | B20: 5 | C20: =SUMIF('Load Data'!$AR$22:$AR$27,LEFT(A20,4),'Load Data'!$AQ$22:$AQ$27) -> 3 | D20: 369.4109083 | E20: 1728.408924 | F20: 6163.195976 | G20: 2122.938232 | H20: 200.9319481 | I20: 10584.88599 | J20: 10608.70399 | K20: 859.0951356 | L20: 4019.555637 | M20: 14333.0139 | N20: 4937.065656 | O20: 467.2836002 | P20: 24616.01393 | Q20: 24671.40463 | R20: ='Load Data'!AZ55 -> 0.4166666667 | S20: ='Load Data'!BG55 -> 0.4387950086 | T20: 0.4378098533 | U20: 0.4939730406 | V20: 0.4673405071 | W20: 0.4512225324 | X20: 0.376724226 | Y20: 0.4602921421 | Z20: 2 | AA20: =IF($B20>$B$6,"",IF(RIGHT($A20,1)="1",1-SUM(OFFSET(AA21,0,0,$C20-1,1)),Suburban!AS7+AA74)) -> 0.2627739821 | AB20: =IF($B20>$B$6,"",IF(RIGHT($A20,1)="1",1-SUM(OFFSET(AB21,0,0,$C20-1,1)),Suburban!AT7+AB74)) -> 0.5760549724 | AC20: =IF($B20>$B$6,"",IF(RIGHT($A20,1)="1",1-SUM(OFFSET(AC21,0,0,$C20-1,1)),Suburban!AU7+AC74)) -> 0.02 | AD20: =IF($B20>$B$6,"",IF(RIGHT($A20,1)="1",1-SUM(OFFSET(AD21,0,0,$C20-1,1)),Suburban!AV7+AD74)) -> 0.4518523398 | AE20: =IF($B20>$B$6,"",IF(RIGHT($A20,1)="1",1-SUM(OFFSET(AE21,0,0,$C20-1,1)),Suburban!AW7+AE74)) -> 0.451714864 | AF20: =IF($B20>$B$6,"",IF(RIGHT($A20,1)="1",1-SUM(OFFSET(AF21,0,0,$C20-1,1)),Suburban!AX7+AF74)) -> 0.554014602 | AG20: =IF($B20>$B$6,"",IF(RIGHT($A20,1)="1",1-SUM(OFFSET(AG21,0,0,$C20-1,1)),Township!AS7+AG74)) -> 0.2874193722 | AH20: =IF($B20>$B$6,"",IF(RIGHT($A20,1)="1",1-SUM(OFFSET(AH21,0,0,$C20-1,1)),Township!AT7+AH74)) -> 0.5472396405 | AI20: =IF($B20>$B$6,"",IF(RIGHT($A20,1)="1",1-SUM(OFFSET(AI21,0,0,$C20-1,1)),Township!AU7+AI74)) -> 0.02 | AJ20: =IF($B20>$B$6,"",IF(RIGHT($A20,1)="1",1-SUM(OFFSET(AJ21,0,0,$C20-1,1)),Township!AV7+AJ74)) -> 0.3906290194 | AK20: =IF($B20>$B$6,"",IF(RIGHT($A20,1)="1",1-SUM(OFFSET(AK21,0,0,$C20-1,1)),Township!AW7+AK74)) -> 0.4392410827 | AL20: =IF($B20>$B$6,"",IF(RIGHT($A20,1)="1",1-SUM(OFFSET(AL21,0,0,$C20-1,1)),Township!AX7+AL74)) -> 0.4128772476 | AM20: 0.2874193722 | AN20: 0.5472396405 | AO20: 0.02 | AP20: 0.3906290194 | AQ20: 0.4392410827 | AR20: 0.4128772476 | AS20: =IF($B20>$B$6,"",IF(RIGHT($A20,1)="1",1-SUM(OFFSET(AS21,0,0,$C20-1,1)),Commercial!AX7+AS74)) -> 0.5053253504 | AT20: =IF($B20>$B$6,"",IF(RIGHT($A20,1)="1",1-SUM(OFFSET(AT21,0,0,$C20-1,1)),Commercial!AY7+AT74)) -> 0.5053253523 | AU20: =IF($B20>$B$6,"",IF(RIGHT($A20,1)="1",1-SUM(OFFSET(AU21,0,0,$C20-1,1)),Commercial!AZ7+AU74)) -> 0.5059339597 | AV20: =IF($B20>$B$6,"",IF(RIGHT($A20,1)="1",1-SUM(OFFSET(AV21,0,0,$C20-1,1)),Commercial!BA7+AV74)) -> 0.4650866712 | AW20: =IF($B20>$B$6,"",IF(RIGHT($A20,1)="1",1-SUM(OFFSET(AW21,0,0,$C20-1,1)),Commercial!BB7+AW74)) -> 0.3924413582 | AX20: =IF($B20>$B$6,"",IF(RIGHT($A20,1)="1",1-SUM(OFFSET(AX21,0,0,$C20-1,1)),Commercial!BC7+AX74)) -> 0.4166666229 | AY20: 0 | AZ20: 0.4583333333 | BA20: =IF($B20>$B$6,"",IF(RIGHT($A20,1)="1",1-SUM(OFFSET(BA21,0,0,$C20-1,1)),Commercial!BF7+BA74)) -> 0.5067424684 | BB20: =IF($B20>$B$6,"",IF(RIGHT($A20,1)="1",1-SUM(OFFSET(BB21,0,0,$C20-1,1)),Industry!BG7+BB74)) -> 0.4305939802 | BC20: =IF($B20>$B$6,"",IF(RIGHT($A20,1)="1",1-SUM(OFFSET(BC21,0,0,$C20-1,1)),Industry!BH7+BC74)) -> 0.4302928835 | BD20: =IF($B20>$B$6,"",IF(RIGHT($A20,1)="1",1-SUM(OFFSET(BD21,0,0,$C20-1,1)),Industry!BI7+BD74)) -> 0.465948244 | BE20: =IF($B20>$B$6,"",IF(RIGHT($A20,1)="1",1-SUM(OFFSET(BE21,0,0,$C20-1,1)),Industry!BJ7+BE74)) -> 0.4623875841 | BF20: =IF($B20>$B$6,"",IF(RIGHT($A20,1)="1",1-SUM(OFFSET(BF21,0,0,$C20-1,1)),Industry!BK7+BF74)) -> 0.5089839111 | BG20: =IF($B20>$B$6,"",IF(RIGHT($A20,1)="1",1-SUM(OFFSET(BG21,0,0,$C20-1,1)),Industry!BL7+BG74)) -> 0.4556383266 | BH20: =IF($B20>$B$6,"",IF(RIGHT($A20,1)="1",1-SUM(OFFSET(BH21,0,0,$C20-1,1)),Industry!BM7+BH74)) -> 0.4166666205 | BI20: =IF($B20>$B$6,"",IF(RIGHT($A20,1)="1",1-SUM(OFFSET(BI21,0,0,$C20-1,1)),Industry!BN7+BI74)) -> 0.456257588 | BJ20: =IF($B20>$B$6,"",IF(RIGHT($A20,1)="1",1-SUM(OFFSET(BJ21,0,0,$C20-1,1)),Industry!BO7+BJ74)) -> 0.4523697101 | BK20: =IF($B20>$B$6,"",IF(RIGHT($A20,1)="1",1-SUM(OFFSET(BK21,0,0,$C20-1,1)),Industry!BP7+BK74)) -> 0.4994013223 | BL20: =IF($B20>$B$6,"",IF(RIGHT($A20,1)="1",1-SUM(OFFSET(BL21,0,0,$C20-1,1)),Agric!AP7)) -> 0.5143843622 | BM20: =IF($B20>$B$6,"",IF(RIGHT($A20,1)="1",1-SUM(OFFSET(BM21,0,0,$C20-1,1)),Agric!AQ7)) -> 0.4971145691 | BN20: =IF($B20>$B$6,"",IF(RIGHT($A20,1)="1",1-SUM(OFFSET(BN21,0,0,$C20-1,1)),Agric!AR7)) -> 0.461748576 | BO20: =IF($B20>$B$6,"",IF(RIGHT($A20,1)="1",1-SUM(OFFSET(BO21,0,0,$C20-1,1)),Agric!AS7)) -> 0.5327668943 | BP20: =IF($B20>$B$6,"",IF(RIGHT($A20,1)="1",1-SUM(OFFSET(BP21,0,0,$C20-1,1)),Agric!AT7)) -> 0.4611938491 | BQ20: 0.4673405071 | BR20: 0.4166666667 | BS20: 0.4166666667
A21: ='Load Data'!AR56 -> s1d2b3 | B21: 6 | C21: =SUMIF('Load Data'!$AR$22:$AR$27,LEFT(A21,4),'Load Data'!$AQ$22:$AQ$27) -> 3 | D21: 119.8134793 | E21: 747.4901712 | F21: 2244.048905 | G21: 1279.116715 | H21: 81.65181814 | I21: 4472.121089 | J21: 4391.38691 | K21: 696.5899961 | L21: 4345.873089 | M21: 13046.79596 | N21: 7436.725089 | O21: 474.7198729 | P21: 26000.70401 | Q21: 25531.31924 | R21: ='Load Data'!AZ56 -> 0.1666666667 | S21: ='Load Data'!BG56 -> 0.1816356323 | T21: 0.1849749426 | U21: 0.1602135383 | V21: 0.2021121454 | W21: 0.1642922655 | X21: 0.2269845855 | Y21: 0.1870468615 | Z21: 3 | AA21: =IF($B21>$B$6,"",IF(RIGHT($A21,1)="1",1-SUM(OFFSET(AA22,0,0,$C21-1,1)),Suburban!AS8+AA75)) -> 0.3397211273 | AB21: =IF($B21>$B$6,"",IF(RIGHT($A21,1)="1",1-SUM(OFFSET(AB22,0,0,$C21-1,1)),Suburban!AT8+AB75)) -> 0.1812391915 | AC21: =IF($B21>$B$6,"",IF(RIGHT($A21,1)="1",1-SUM(OFFSET(AC22,0,0,$C21-1,1)),Suburban!AU8+AC75)) -> -0.01 | AD21: =IF($B21>$B$6,"",IF(RIGHT($A21,1)="1",1-SUM(OFFSET(AD22,0,0,$C21-1,1)),Suburban!AV8+AD75)) -> 0.2438209151 | AE21: =IF($B21>$B$6,"",IF(RIGHT($A21,1)="1",1-SUM(OFFSET(AE22,0,0,$C21-1,1)),Suburban!AW8+AE75)) -> 0.1991023501 | AF21: =IF($B21>$B$6,"",IF(RIGHT($A21,1)="1",1-SUM(OFFSET(AF22,0,0,$C21-1,1)),Suburban!AX8+AF75)) -> 0.2362140236 | AG21: =IF($B21>$B$6,"",IF(RIGHT($A21,1)="1",1-SUM(OFFSET(AG22,0,0,$C21-1,1)),Township!AS8+AG75)) -> 0.3533076365 | AH21: =IF($B21>$B$6,"",IF(RIGHT($A21,1)="1",1-SUM(OFFSET(AH22,0,0,$C21-1,1)),Township!AT8+AH75)) -> 0.238559732 | AI21: =IF($B21>$B$6,"",IF(RIGHT($A21,1)="1",1-SUM(OFFSET(AI22,0,0,$C21-1,1)),Township!AU8+AI75)) -> -0.01 | AJ21: =IF($B21>$B$6,"",IF(RIGHT($A21,1)="1",1-SUM(OFFSET(AJ22,0,0,$C21-1,1)),Township!AV8+AJ75)) -> 0.2540304297 | AK21: =IF($B21>$B$6,"",IF(RIGHT($A21,1)="1",1-SUM(OFFSET(AK22,0,0,$C21-1,1)),Township!AW8+AK75)) -> 0.1930606378 | AL21: =IF($B21>$B$6,"",IF(RIGHT($A21,1)="1",1-SUM(OFFSET(AL22,0,0,$C21-1,1)),Township!AX8+AL75)) -> 0.3337974708 | AM21: 0.3533076365 | AN21: 0.238559732 | AO21: -0.01 | AP21: 0.2540304297 | AQ21: 0.1930606378 | AR21: 0.3337974708 | AS21: =IF($B21>$B$6,"",IF(RIGHT($A21,1)="1",1-SUM(OFFSET(AS22,0,0,$C21-1,1)),Commercial!AX8+AS75)) -> 0.1982839852 | AT21: =IF($B21>$B$6,"",IF(RIGHT($A21,1)="1",1-SUM(OFFSET(AT22,0,0,$C21-1,1)),Commercial!AY8+AT75)) -> 0.198283986 | AU21: =IF($B21>$B$6,"",IF(RIGHT($A21,1)="1",1-SUM(OFFSET(AU22,0,0,$C21-1,1)),Commercial!AZ8+AU75)) -> 0.18153692 | AV21: =IF($B21>$B$6,"",IF(RIGHT($A21,1)="1",1-SUM(OFFSET(AV22,0,0,$C21-1,1)),Commercial!BA8+AV75)) -> 0.2126505436 | AW21: =IF($B21>$B$6,"",IF(RIGHT($A21,1)="1",1-SUM(OFFSET(AW22,0,0,$C21-1,1)),Commercial!BB8+AW75)) -> 0.2074702993 | AX21: =IF($B21>$B$6,"",IF(RIGHT($A21,1)="1",1-SUM(OFFSET(AX22,0,0,$C21-1,1)),Commercial!BC8+AX75)) -> 0.1566666492 | AY21: 0.3333333333 | AZ21: 0.1666666667 | BA21: =IF($B21>$B$6,"",IF(RIGHT($A21,1)="1",1-SUM(OFFSET(BA22,0,0,$C21-1,1)),Commercial!BF8+BA75)) -> 0.1581552475 | BB21: =IF($B21>$B$6,"",IF(RIGHT($A21,1)="1",1-SUM(OFFSET(BB22,0,0,$C21-1,1)),Industry!BG8+BB75)) -> 0.1642889757 | BC21: =IF($B21>$B$6,"",IF(RIGHT($A21,1)="1",1-SUM(OFFSET(BC22,0,0,$C21-1,1)),Industry!BH8+BC75)) -> 0.1631545499 | BD21: =IF($B21>$B$6,"",IF(RIGHT($A21,1)="1",1-SUM(OFFSET(BD22,0,0,$C21-1,1)),Industry!BI8+BD75)) -> 0.1829102402 | BE21: =IF($B21>$B$6,"",IF(RIGHT($A21,1)="1",1-SUM(OFFSET(BE22,0,0,$C21-1,1)),Industry!BJ8+BE75)) -> 0.1549360063 | BF21: =IF($B21>$B$6,"",IF(RIGHT($A21,1)="1",1-SUM(OFFSET(BF22,0,0,$C21-1,1)),Industry!BK8+BF75)) -> 0.1878592196 | BG21: =IF($B21>$B$6,"",IF(RIGHT($A21,1)="1",1-SUM(OFFSET(BG22,0,0,$C21-1,1)),Industry!BL8+BG75)) -> 0.171839254 | BH21: =IF($B21>$B$6,"",IF(RIGHT($A21,1)="1",1-SUM(OFFSET(BH22,0,0,$C21-1,1)),Industry!BM8+BH75)) -> 0.1666666482 | BI21: =IF($B21>$B$6,"",IF(RIGHT($A21,1)="1",1-SUM(OFFSET(BI22,0,0,$C21-1,1)),Industry!BN8+BI75)) -> 0.1581622688 | BJ21: =IF($B21>$B$6,"",IF(RIGHT($A21,1)="1",1-SUM(OFFSET(BJ22,0,0,$C21-1,1)),Industry!BO8+BJ75)) -> 0.1605714263 | BK21: =IF($B21>$B$6,"",IF(RIGHT($A21,1)="1",1-SUM(OFFSET(BK22,0,0,$C21-1,1)),Industry!BP8+BK75)) -> 0.1525422023 | BL21: =IF($B21>$B$6,"",IF(RIGHT($A21,1)="1",1-SUM(OFFSET(BL22,0,0,$C21-1,1)),Agric!AP8)) -> 0.1393902321 | BM21: =IF($B21>$B$6,"",IF(RIGHT($A21,1)="1",1-SUM(OFFSET(BM22,0,0,$C21-1,1)),Agric!AQ8)) -> 0.1513736011 | BN21: =IF($B21>$B$6,"",IF(RIGHT($A21,1)="1",1-SUM(OFFSET(BN22,0,0,$C21-1,1)),Agric!AR8)) -> 0.2626004926 | BO21: =IF($B21>$B$6,"",IF(RIGHT($A21,1)="1",1-SUM(OFFSET(BO22,0,0,$C21-1,1)),Agric!AS8)) -> 0.1777912301 | BP21: =IF($B21>$B$6,"",IF(RIGHT($A21,1)="1",1-SUM(OFFSET(BP22,0,0,$C21-1,1)),Agric!AT8)) -> 0.1518573382 | BQ21: 0.2021121454 | BR21: 0.1666666667 | BS21: 0.1666666667
A22: ='Load Data'!AR57 -> s2d1b1 | B22: 7 | C22: =SUMIF('Load Data'!$AR$22:$AR$27,LEFT(A22,4),'Load Data'!$AQ$22:$AQ$27) -> 5 | D22: 362.5963198 | E22: 1859.366232 | F22: 8263.587615 | G22: 2362.439261 | H22: 263.8220796 | I22: 13111.81151 | J22: 13448.9072 | K22: 620.8841093 | L22: 3183.846288 | M22: 14149.97879 | N22: 4045.272706 | O22: 451.7501363 | P22: 22451.73203 | Q22: 23028.95069 | R22: ='Load Data'!AZ57 -> 0.3333333333 | S22: ='Load Data'!BG57 -> 0.278323289 | T22: 0.2713471399 | U22: 0.2425940403 | V22: 0.2515446407 | W22: 0.3027029414 | X22: 0.2097539009 | Y22: 0.3023840707 | Z22: 1 | AA22: =IF($B22>$B$6,"",IF(RIGHT($A22,1)="1",1-SUM(OFFSET(AA23,0,0,$C22-1,1)),Suburban!AS9+AA76)) -> 0.296523174 | AB22: =IF($B22>$B$6,"",IF(RIGHT($A22,1)="1",1-SUM(OFFSET(AB23,0,0,$C22-1,1)),Suburban!AT9+AB76)) -> 0.1411949982 | AC22: =IF($B22>$B$6,"",IF(RIGHT($A22,1)="1",1-SUM(OFFSET(AC23,0,0,$C22-1,1)),Suburban!AU9+AC76)) -> 0.2411299843 | AD22: =IF($B22>$B$6,"",IF(RIGHT($A22,1)="1",1-SUM(OFFSET(AD23,0,0,$C22-1,1)),Suburban!AV9+AD76)) -> 0.2221215977 | AE22: =IF($B22>$B$6,"",IF(RIGHT($A22,1)="1",1-SUM(OFFSET(AE23,0,0,$C22-1,1)),Suburban!AW9+AE76)) -> 0.2889311941 | AF22: =IF($B22>$B$6,"",IF(RIGHT($A22,1)="1",1-SUM(OFFSET(AF23,0,0,$C22-1,1)),Suburban!AX9+AF76)) -> 0.1517391523 | AG22: =IF($B22>$B$6,"",IF(RIGHT($A22,1)="1",1-SUM(OFFSET(AG23,0,0,$C22-1,1)),Township!AS9+AG76)) -> 0.2549019876 | AH22: =IF($B22>$B$6,"",IF(RIGHT($A22,1)="1",1-SUM(OFFSET(AH23,0,0,$C22-1,1)),Township!AT9+AH76)) -> 0.132861211 | AI22: =IF($B22>$B$6,"",IF(RIGHT($A22,1)="1",1-SUM(OFFSET(AI23,0,0,$C22-1,1)),Township!AU9+AI76)) -> 0.1200402632 | AJ22: =IF($B22>$B$6,"",IF(RIGHT($A22,1)="1",1-SUM(OFFSET(AJ23,0,0,$C22-1,1)),Township!AV9+AJ76)) -> 0.1935098435 | AK22: =IF($B22>$B$6,"",IF(RIGHT($A22,1)="1",1-SUM(OFFSET(AK23,0,0,$C22-1,1)),Township!AW9+AK76)) -> 0.2889311996 | AL22: =IF($B22>$B$6,"",IF(RIGHT($A22,1)="1",1-SUM(OFFSET(AL23,0,0,$C22-1,1)),Township!AX9+AL76)) -> 0.1882563284 | AM22: 0.2549019876 | AN22: 0.132861211 | AO22: 0.1200402632 | AP22: 0.1935098435 | AQ22: 0.2889311996 | AR22: 0.1882563284 | AS22: =IF($B22>$B$6,"",IF(RIGHT($A22,1)="1",1-SUM(OFFSET(AS23,0,0,$C22-1,1)),Commercial!AX9+AS76)) -> 0.256301801 | AT22: =IF($B22>$B$6,"",IF(RIGHT($A22,1)="1",1-SUM(OFFSET(AT23,0,0,$C22-1,1)),Commercial!AY9+AT76)) -> 0.2563018019 | AU22: =IF($B22>$B$6,"",IF(RIGHT($A22,1)="1",1-SUM(OFFSET(AU23,0,0,$C22-1,1)),Commercial!AZ9+AU76)) -> 0.2389707653 | AV22: =IF($B22>$B$6,"",IF(RIGHT($A22,1)="1",1-SUM(OFFSET(AV23,0,0,$C22-1,1)),Commercial!BA9+AV76)) -> 0.2483578016 | AW22: =IF($B22>$B$6,"",IF(RIGHT($A22,1)="1",1-SUM(OFFSET(AW23,0,0,$C22-1,1)),Commercial!BB9+AW76)) -> 0.3389124499 | AX22: =IF($B22>$B$6,"",IF(RIGHT($A22,1)="1",1-SUM(OFFSET(AX23,0,0,$C22-1,1)),Commercial!BC9+AX76)) -> 0.3683333613 | AY22: 0.6666666667 | AZ22: 0.3333333333 | BA22: =IF($B22>$B$6,"",IF(RIGHT($A22,1)="1",1-SUM(OFFSET(BA23,0,0,$C22-1,1)),Commercial!BF9+BA76)) -> 0.2153991557 | BB22: =IF($B22>$B$6,"",IF(RIGHT($A22,1)="1",1-SUM(OFFSET(BB23,0,0,$C22-1,1)),Industry!BG9+BB76)) -> 0.3539613797 | BC22: =IF($B22>$B$6,"",IF(RIGHT($A22,1)="1",1-SUM(OFFSET(BC23,0,0,$C22-1,1)),Industry!BH9+BC76)) -> 0.3370045982 | BD22: =IF($B22>$B$6,"",IF(RIGHT($A22,1)="1",1-SUM(OFFSET(BD23,0,0,$C22-1,1)),Industry!BI9+BD76)) -> 0.2763265259 | BE22: =IF($B22>$B$6,"",IF(RIGHT($A22,1)="1",1-SUM(OFFSET(BE23,0,0,$C22-1,1)),Industry!BJ9+BE76)) -> 0.2979121389 | BF22: =IF($B22>$B$6,"",IF(RIGHT($A22,1)="1",1-SUM(OFFSET(BF23,0,0,$C22-1,1)),Industry!BK9+BF76)) -> 0.2539208503 | BG22: =IF($B22>$B$6,"",IF(RIGHT($A22,1)="1",1-SUM(OFFSET(BG23,0,0,$C22-1,1)),Industry!BL9+BG76)) -> 0.299979874 | BH22: =IF($B22>$B$6,"",IF(RIGHT($A22,1)="1",1-SUM(OFFSET(BH23,0,0,$C22-1,1)),Industry!BM9+BH76)) -> 0.3533333608 | BI22: =IF($B22>$B$6,"",IF(RIGHT($A22,1)="1",1-SUM(OFFSET(BI23,0,0,$C22-1,1)),Industry!BN9+BI76)) -> 0.2895375614 | BJ22: =IF($B22>$B$6,"",IF(RIGHT($A22,1)="1",1-SUM(OFFSET(BJ23,0,0,$C22-1,1)),Industry!BO9+BJ76)) -> 0.2815169519 | BK22: =IF($B22>$B$6,"",IF(RIGHT($A22,1)="1",1-SUM(OFFSET(BK23,0,0,$C22-1,1)),Industry!BP9+BK76)) -> 0.2227168509 | BL22: =IF($B22>$B$6,"",IF(RIGHT($A22,1)="1",1-SUM(OFFSET(BL23,0,0,$C22-1,1)),Agric!AP9)) -> 0.1981007773 | BM22: =IF($B22>$B$6,"",IF(RIGHT($A22,1)="1",1-SUM(OFFSET(BM23,0,0,$C22-1,1)),Agric!AQ9)) -> 0.2374377366 | BN22: =IF($B22>$B$6,"",IF(RIGHT($A22,1)="1",1-SUM(OFFSET(BN23,0,0,$C22-1,1)),Agric!AR9)) -> 0.1776511873 | BO22: =IF($B22>$B$6,"",IF(RIGHT($A22,1)="1",1-SUM(OFFSET(BO23,0,0,$C22-1,1)),Agric!AS9)) -> 0.2087378916 | BP22: =IF($B22>$B$6,"",IF(RIGHT($A22,1)="1",1-SUM(OFFSET(BP23,0,0,$C22-1,1)),Agric!AT9)) -> 0.2727294199 | BQ22: 0.2515446407 | BR22: 0.3333333333 | BS22: 0.3333333333
A23: ='Load Data'!AR58 -> s2d1b2 | B23: 8 | C23: =SUMIF('Load Data'!$AR$22:$AR$27,LEFT(A23,4),'Load Data'!$AQ$22:$AQ$27) -> 5 | D23: 318.5117583 | E23: 1299.824787 | F23: 4826.645223 | G23: 2166.072509 | H23: 140.345999 | I23: 8751.400276 | J23: 8631.883611 | K23: 1090.793693 | L23: 4451.454749 | M23: 16529.60693 | N23: 7418.056538 | O23: 480.636983 | P23: 29970.54889 | Q23: 29561.24524 | R23: ='Load Data'!AZ58 -> 0.1666666667 | S23: ='Load Data'!BG58 -> 0.1786356468 | T23: 0.1811090278 | U23: 0.2130993894 | V23: 0.175846992 | W23: 0.1768045278 | X23: 0.1923190856 | Y23: 0.1608599044 | Z23: 2 | AA23: =IF($B23>$B$6,"",IF(RIGHT($A23,1)="1",1-SUM(OFFSET(AA24,0,0,$C23-1,1)),Suburban!AS10+AA77)) -> 0.1149594798 | AB23: =IF($B23>$B$6,"",IF(RIGHT($A23,1)="1",1-SUM(OFFSET(AB24,0,0,$C23-1,1)),Suburban!AT10+AB77)) -> 0.1403928576 | AC23: =IF($B23>$B$6,"",IF(RIGHT($A23,1)="1",1-SUM(OFFSET(AC24,0,0,$C23-1,1)),Suburban!AU10+AC77)) -> 0.1401818121 | AD23: =IF($B23>$B$6,"",IF(RIGHT($A23,1)="1",1-SUM(OFFSET(AD24,0,0,$C23-1,1)),Suburban!AV10+AD77)) -> 0.2797004671 | AE23: =IF($B23>$B$6,"",IF(RIGHT($A23,1)="1",1-SUM(OFFSET(AE24,0,0,$C23-1,1)),Suburban!AW10+AE77)) -> 0.1233893939 | AF23: =IF($B23>$B$6,"",IF(RIGHT($A23,1)="1",1-SUM(OFFSET(AF24,0,0,$C23-1,1)),Suburban!AX10+AF77)) -> 0.2708864761 | AG23: =IF($B23>$B$6,"",IF(RIGHT($A23,1)="1",1-SUM(OFFSET(AG24,0,0,$C23-1,1)),Township!AS10+AG77)) -> 0.130579284 | AH23: =IF($B23>$B$6,"",IF(RIGHT($A23,1)="1",1-SUM(OFFSET(AH24,0,0,$C23-1,1)),Township!AT10+AH77)) -> 0.2452055659 | AI23: =IF($B23>$B$6,"",IF(RIGHT($A23,1)="1",1-SUM(OFFSET(AI24,0,0,$C23-1,1)),Township!AU10+AI77)) -> 0.03399271392 | AJ23: =IF($B23>$B$6,"",IF(RIGHT($A23,1)="1",1-SUM(OFFSET(AJ24,0,0,$C23-1,1)),Township!AV10+AJ77)) -> 0.2543797098 | AK23: =IF($B23>$B$6,"",IF(RIGHT($A23,1)="1",1-SUM(OFFSET(AK24,0,0,$C23-1,1)),Township!AW10+AK77)) -> 0.123389393 | AL23: =IF($B23>$B$6,"",IF(RIGHT($A23,1)="1",1-SUM(OFFSET(AL24,0,0,$C23-1,1)),Township!AX10+AL77)) -> 0.1408673713 | AM23: 0.130579284 | AN23: 0.2452055659 | AO23: 0.03399271392 | AP23: 0.2543797098 | AQ23: 0.123389393 | AR23: 0.1408673713 | AS23: =IF($B23>$B$6,"",IF(RIGHT($A23,1)="1",1-SUM(OFFSET(AS24,0,0,$C23-1,1)),Commercial!AX10+AS77)) -> 0.1139940786 | AT23: =IF($B23>$B$6,"",IF(RIGHT($A23,1)="1",1-SUM(OFFSET(AT24,0,0,$C23-1,1)),Commercial!AY10+AT77)) -> 0.1139940784 | AU23: =IF($B23>$B$6,"",IF(RIGHT($A23,1)="1",1-SUM(OFFSET(AU24,0,0,$C23-1,1)),Commercial!AZ10+AU77)) -> 0.1361703587 | AV23: =IF($B23>$B$6,"",IF(RIGHT($A23,1)="1",1-SUM(OFFSET(AV24,0,0,$C23-1,1)),Commercial!BA10+AV77)) -> 0.2743081612 | AW23: =IF($B23>$B$6,"",IF(RIGHT($A23,1)="1",1-SUM(OFFSET(AW24,0,0,$C23-1,1)),Commercial!BB10+AW77)) -> 0.1047183999 | AX23: =IF($B23>$B$6,"",IF(RIGHT($A23,1)="1",1-SUM(OFFSET(AX24,0,0,$C23-1,1)),Commercial!BC10+AX77)) -> 0.1516666597 | AY23: 0 | AZ23: 0.25 | BA23: =IF($B23>$B$6,"",IF(RIGHT($A23,1)="1",1-SUM(OFFSET(BA24,0,0,$C23-1,1)),Commercial!BF10+BA77)) -> 0.1693683184 | BB23: =IF($B23>$B$6,"",IF(RIGHT($A23,1)="1",1-SUM(OFFSET(BB24,0,0,$C23-1,1)),Industry!BG10+BB77)) -> 0.1657959436 | BC23: =IF($B23>$B$6,"",IF(RIGHT($A23,1)="1",1-SUM(OFFSET(BC24,0,0,$C23-1,1)),Industry!BH10+BC77)) -> 0.1689512232 | BD23: =IF($B23>$B$6,"",IF(RIGHT($A23,1)="1",1-SUM(OFFSET(BD24,0,0,$C23-1,1)),Industry!BI10+BD77)) -> 0.1553585166 | BE23: =IF($B23>$B$6,"",IF(RIGHT($A23,1)="1",1-SUM(OFFSET(BE24,0,0,$C23-1,1)),Industry!BJ10+BE77)) -> 0.1864681669 | BF23: =IF($B23>$B$6,"",IF(RIGHT($A23,1)="1",1-SUM(OFFSET(BF24,0,0,$C23-1,1)),Industry!BK10+BF77)) -> 0.1561785866 | BG23: =IF($B23>$B$6,"",IF(RIGHT($A23,1)="1",1-SUM(OFFSET(BG24,0,0,$C23-1,1)),Industry!BL10+BG77)) -> 0.1684202659 | BH23: =IF($B23>$B$6,"",IF(RIGHT($A23,1)="1",1-SUM(OFFSET(BH24,0,0,$C23-1,1)),Industry!BM10+BH77)) -> 0.1616666598 | BI23: =IF($B23>$B$6,"",IF(RIGHT($A23,1)="1",1-SUM(OFFSET(BI24,0,0,$C23-1,1)),Industry!BN10+BI77)) -> 0.1873995787 | BJ23: =IF($B23>$B$6,"",IF(RIGHT($A23,1)="1",1-SUM(OFFSET(BJ24,0,0,$C23-1,1)),Industry!BO10+BJ77)) -> 0.189043188 | BK23: =IF($B23>$B$6,"",IF(RIGHT($A23,1)="1",1-SUM(OFFSET(BK24,0,0,$C23-1,1)),Industry!BP10+BK77)) -> 0.2114578791 | BL23: =IF($B23>$B$6,"",IF(RIGHT($A23,1)="1",1-SUM(OFFSET(BL24,0,0,$C23-1,1)),Agric!AP10)) -> 0.248097595 | BM23: =IF($B23>$B$6,"",IF(RIGHT($A23,1)="1",1-SUM(OFFSET(BM24,0,0,$C23-1,1)),Agric!AQ10)) -> 0.2243033786 | BN23: =IF($B23>$B$6,"",IF(RIGHT($A23,1)="1",1-SUM(OFFSET(BN24,0,0,$C23-1,1)),Agric!AR10)) -> 0.2352227421 | BO23: =IF($B23>$B$6,"",IF(RIGHT($A23,1)="1",1-SUM(OFFSET(BO24,0,0,$C23-1,1)),Agric!AS10)) -> 0.2135922256 | BP23: =IF($B23>$B$6,"",IF(RIGHT($A23,1)="1",1-SUM(OFFSET(BP24,0,0,$C23-1,1)),Agric!AT10)) -> 0.2056166466 | BQ23: 0.175846992 | BR23: 0.1666666667 | BS23: 0.1666666667
A24: ='Load Data'!AR59 -> s2d1b3 | B24: 9 | C24: =SUMIF('Load Data'!$AR$22:$AR$27,LEFT(A24,4),'Load Data'!$AQ$22:$AQ$27) -> 5 | D24: 547.3508531 | E24: 2223.913611 | F24: 8498.119323 | G24: 2912.343117 | H24: 244.4483056 | I24: 14426.17521 | J24: 14710.24877 | K24: 1071.136699 | L24: 4352.081431 | M24: 16630.37049 | N24: 5699.301599 | O24: 478.3724179 | P24: 28231.26264 | Q24: 28787.17959 | R24: ='Load Data'!AZ59 -> 0.2916666667 | S24: ='Load Data'!BG59 -> 0.3044265796 | T24: 0.2985477163 | U24: 0.3662035373 | V24: 0.3008624878 | W24: 0.3112940571 | X24: 0.258578216 | Y24: 0.2801784969 | Z24: 3 | AA24: =IF($B24>$B$6,"",IF(RIGHT($A24,1)="1",1-SUM(OFFSET(AA25,0,0,$C24-1,1)),Suburban!AS11+AA78)) -> 0.1478677118 | AB24: =IF($B24>$B$6,"",IF(RIGHT($A24,1)="1",1-SUM(OFFSET(AB25,0,0,$C24-1,1)),Suburban!AT11+AB78)) -> 0.5168918775 | AC24: =IF($B24>$B$6,"",IF(RIGHT($A24,1)="1",1-SUM(OFFSET(AC25,0,0,$C24-1,1)),Suburban!AU11+AC78)) -> 0.2702272771 | AD24: =IF($B24>$B$6,"",IF(RIGHT($A24,1)="1",1-SUM(OFFSET(AD25,0,0,$C24-1,1)),Suburban!AV11+AD78)) -> 0.1979171588 | AE24: =IF($B24>$B$6,"",IF(RIGHT($A24,1)="1",1-SUM(OFFSET(AE25,0,0,$C24-1,1)),Suburban!AW11+AE78)) -> 0.3367652559 | AF24: =IF($B24>$B$6,"",IF(RIGHT($A24,1)="1",1-SUM(OFFSET(AF25,0,0,$C24-1,1)),Suburban!AX11+AF78)) -> 0.2785237323 | AG24: =IF($B24>$B$6,"",IF(RIGHT($A24,1)="1",1-SUM(OFFSET(AG25,0,0,$C24-1,1)),Township!AS11+AG78)) -> 0.1472521906 | AH24: =IF($B24>$B$6,"",IF(RIGHT($A24,1)="1",1-SUM(OFFSET(AH25,0,0,$C24-1,1)),Township!AT11+AH78)) -> 0.3498749945 | AI24: =IF($B24>$B$6,"",IF(RIGHT($A24,1)="1",1-SUM(OFFSET(AI25,0,0,$C24-1,1)),Township!AU11+AI78)) -> 0.2949388886 | AJ24: =IF($B24>$B$6,"",IF(RIGHT($A24,1)="1",1-SUM(OFFSET(AJ25,0,0,$C24-1,1)),Township!AV11+AJ78)) -> 0.2428510849 | AK24: =IF($B24>$B$6,"",IF(RIGHT($A24,1)="1",1-SUM(OFFSET(AK25,0,0,$C24-1,1)),Township!AW11+AK78)) -> 0.3367652533 | AL24: =IF($B24>$B$6,"",IF(RIGHT($A24,1)="1",1-SUM(OFFSET(AL25,0,0,$C24-1,1)),Township!AX11+AL78)) -> 0.3199845724 | AM24: 0.1472521906 | AN24: 0.3498749945 | AO24: 0.2949388886 | AP24: 0.2428510849 | AQ24: 0.3367652533 | AR24: 0.3199845724 | AS24: =IF($B24>$B$6,"",IF(RIGHT($A24,1)="1",1-SUM(OFFSET(AS25,0,0,$C24-1,1)),Commercial!AX11+AS78)) -> 0.3988165548 | AT24: =IF($B24>$B$6,"",IF(RIGHT($A24,1)="1",1-SUM(OFFSET(AT25,0,0,$C24-1,1)),Commercial!AY11+AT78)) -> 0.3988165543 | AU24: =IF($B24>$B$6,"",IF(RIGHT($A24,1)="1",1-SUM(OFFSET(AU25,0,0,$C24-1,1)),Commercial!AZ11+AU78)) -> 0.4168757238 | AV24: =IF($B24>$B$6,"",IF(RIGHT($A24,1)="1",1-SUM(OFFSET(AV25,0,0,$C24-1,1)),Commercial!BA11+AV78)) -> 0.2257843151 | AW24: =IF($B24>$B$6,"",IF(RIGHT($A24,1)="1",1-SUM(OFFSET(AW25,0,0,$C24-1,1)),Commercial!BB11+AW78)) -> 0.3133509393 | AX24: =IF($B24>$B$6,"",IF(RIGHT($A24,1)="1",1-SUM(OFFSET(AX25,0,0,$C24-1,1)),Commercial!BC11+AX78)) -> 0.2916666544 | AY24: 0.0004166666667 | AZ24: 0.25 | BA24: =IF($B24>$B$6,"",IF(RIGHT($A24,1)="1",1-SUM(OFFSET(BA25,0,0,$C24-1,1)),Commercial!BF11+BA78)) -> 0.4417204379 | BB24: =IF($B24>$B$6,"",IF(RIGHT($A24,1)="1",1-SUM(OFFSET(BB25,0,0,$C24-1,1)),Industry!BG11+BB78)) -> 0.2795403486 | BC24: =IF($B24>$B$6,"",IF(RIGHT($A24,1)="1",1-SUM(OFFSET(BC25,0,0,$C24-1,1)),Industry!BH11+BC78)) -> 0.2779107499 | BD24: =IF($B24>$B$6,"",IF(RIGHT($A24,1)="1",1-SUM(OFFSET(BD25,0,0,$C24-1,1)),Industry!BI11+BD78)) -> 0.3285454589 | BE24: =IF($B24>$B$6,"",IF(RIGHT($A24,1)="1",1-SUM(OFFSET(BE25,0,0,$C24-1,1)),Industry!BJ11+BE78)) -> 0.3177778446 | BF24: =IF($B24>$B$6,"",IF(RIGHT($A24,1)="1",1-SUM(OFFSET(BF25,0,0,$C24-1,1)),Industry!BK11+BF78)) -> 0.3496718161 | BG24: =IF($B24>$B$6,"",IF(RIGHT($A24,1)="1",1-SUM(OFFSET(BG25,0,0,$C24-1,1)),Industry!BL11+BG78)) -> 0.3008375685 | BH24: =IF($B24>$B$6,"",IF(RIGHT($A24,1)="1",1-SUM(OFFSET(BH25,0,0,$C24-1,1)),Industry!BM11+BH78)) -> 0.2616666546 | BI24: =IF($B24>$B$6,"",IF(RIGHT($A24,1)="1",1-SUM(OFFSET(BI25,0,0,$C24-1,1)),Industry!BN11+BI78)) -> 0.325431316 | BJ24: =IF($B24>$B$6,"",IF(RIGHT($A24,1)="1",1-SUM(OFFSET(BJ25,0,0,$C24-1,1)),Industry!BO11+BJ78)) -> 0.3329815585 | BK24: =IF($B24>$B$6,"",IF(RIGHT($A24,1)="1",1-SUM(OFFSET(BK25,0,0,$C24-1,1)),Industry!BP11+BK78)) -> 0.3913710496 | BL24: =IF($B24>$B$6,"",IF(RIGHT($A24,1)="1",1-SUM(OFFSET(BL25,0,0,$C24-1,1)),Agric!AP11)) -> 0.4316080594 | BM24: =IF($B24>$B$6,"",IF(RIGHT($A24,1)="1",1-SUM(OFFSET(BM25,0,0,$C24-1,1)),Agric!AQ11)) -> 0.3907082642 | BN24: =IF($B24>$B$6,"",IF(RIGHT($A24,1)="1",1-SUM(OFFSET(BN25,0,0,$C24-1,1)),Agric!AR11)) -> 0.2599348469 | BO24: =IF($B24>$B$6,"",IF(RIGHT($A24,1)="1",1-SUM(OFFSET(BO25,0,0,$C24-1,1)),Agric!AS11)) -> 0.3604368807 | BP24: =IF($B24>$B$6,"",IF(RIGHT($A24,1)="1",1-SUM(OFFSET(BP25,0,0,$C24-1,1)),Agric!AT11)) -> 0.3552702491 | BQ24: 0.3008624878 | BR24: 0.2916666667 | BS24: 0.2916666667
A25: ='Load Data'!AR60 -> s2d1b4 | B25: 10 | C25: =SUMIF('Load Data'!$AR$22:$AR$27,LEFT(A25,4),'Load Data'!$AQ$22:$AQ$27) -> 5 | D25: 164.3297163 | E25: 990.3577687 | F25: 3447.659121 | G25: 2603.432196 | H25: 105.6124738 | I25: 7311.391276 | J25: 7298.879919 | K25: 750.3640014 | L25: 4522.181592 | M25: 15742.73571 | N25: 11887.81825 | O25: 482.2487389 | P25: 33385.34829 | Q25: 33328.21881 | R25: ='Load Data'!AZ60 -> 0.125 | S25: ='Load Data'!BG60 -> 0.1510493183 | T25: 0.1513082392 | U25: 0.109944331 | V25: 0.1339806999 | W25: 0.1262909774 | X25: 0.2311509413 | Y25: 0.1210494959 | Z25: 4 | AA25: =IF($B25>$B$6,"",IF(RIGHT($A25,1)="1",1-SUM(OFFSET(AA26,0,0,$C25-1,1)),Suburban!AS12+AA79)) -> 0.3150646117 | AB25: =IF($B25>$B$6,"",IF(RIGHT($A25,1)="1",1-SUM(OFFSET(AB26,0,0,$C25-1,1)),Suburban!AT12+AB79)) -> 0.1531581661 | AC25: =IF($B25>$B$6,"",IF(RIGHT($A25,1)="1",1-SUM(OFFSET(AC26,0,0,$C25-1,1)),Suburban!AU12+AC79)) -> 0.2243010911 | AD25: =IF($B25>$B$6,"",IF(RIGHT($A25,1)="1",1-SUM(OFFSET(AD26,0,0,$C25-1,1)),Suburban!AV12+AD79)) -> 0.1793619018 | AE25: =IF($B25>$B$6,"",IF(RIGHT($A25,1)="1",1-SUM(OFFSET(AE26,0,0,$C25-1,1)),Suburban!AW12+AE79)) -> 0.1511963149 | AF25: =IF($B25>$B$6,"",IF(RIGHT($A25,1)="1",1-SUM(OFFSET(AF26,0,0,$C25-1,1)),Suburban!AX12+AF79)) -> 0.2086282543 | AG25: =IF($B25>$B$6,"",IF(RIGHT($A25,1)="1",1-SUM(OFFSET(AG26,0,0,$C25-1,1)),Township!AS12+AG79)) -> 0.3440563464 | AH25: =IF($B25>$B$6,"",IF(RIGHT($A25,1)="1",1-SUM(OFFSET(AH26,0,0,$C25-1,1)),Township!AT12+AH79)) -> 0.1950694931 | AI25: =IF($B25>$B$6,"",IF(RIGHT($A25,1)="1",1-SUM(OFFSET(AI26,0,0,$C25-1,1)),Township!AU12+AI79)) -> 0.3774016502 | AJ25: =IF($B25>$B$6,"",IF(RIGHT($A25,1)="1",1-SUM(OFFSET(AJ26,0,0,$C25-1,1)),Township!AV12+AJ79)) -> 0.1967421366 | AK25: =IF($B25>$B$6,"",IF(RIGHT($A25,1)="1",1-SUM(OFFSET(AK26,0,0,$C25-1,1)),Township!AW12+AK79)) -> 0.1511963137 | AL25: =IF($B25>$B$6,"",IF(RIGHT($A25,1)="1",1-SUM(OFFSET(AL26,0,0,$C25-1,1)),Township!AX12+AL79)) -> 0.3083468703 | AM25: 0.3440563464 | AN25: 0.1950694931 | AO25: 0.3774016502 | AP25: 0.1967421366 | AQ25: 0.1511963137 | AR25: 0.3083468703 | AS25: =IF($B25>$B$6,"",IF(RIGHT($A25,1)="1",1-SUM(OFFSET(AS26,0,0,$C25-1,1)),Commercial!AX12+AS79)) -> 0.154497036 | AT25: =IF($B25>$B$6,"",IF(RIGHT($A25,1)="1",1-SUM(OFFSET(AT26,0,0,$C25-1,1)),Commercial!AY12+AT79)) -> 0.1544970358 | AU25: =IF($B25>$B$6,"",IF(RIGHT($A25,1)="1",1-SUM(OFFSET(AU26,0,0,$C25-1,1)),Commercial!AZ12+AU79)) -> 0.1464831103 | AV25: =IF($B25>$B$6,"",IF(RIGHT($A25,1)="1",1-SUM(OFFSET(AV26,0,0,$C25-1,1)),Commercial!BA12+AV79)) -> 0.1320535921 | AW25: =IF($B25>$B$6,"",IF(RIGHT($A25,1)="1",1-SUM(OFFSET(AW26,0,0,$C25-1,1)),Commercial!BB12+AW79)) -> 0.1640115698 | AX25: =IF($B25>$B$6,"",IF(RIGHT($A25,1)="1",1-SUM(OFFSET(AX26,0,0,$C25-1,1)),Commercial!BC12+AX79)) -> 0.1149999948 | AY25: 0.1664583333 | AZ25: 0.08333333333 | BA25: =IF($B25>$B$6,"",IF(RIGHT($A25,1)="1",1-SUM(OFFSET(BA26,0,0,$C25-1,1)),Commercial!BF12+BA79)) -> 0.1331971687 | BB25: =IF($B25>$B$6,"",IF(RIGHT($A25,1)="1",1-SUM(OFFSET(BB26,0,0,$C25-1,1)),Industry!BG12+BB79)) -> 0.1199250298 | BC25: =IF($B25>$B$6,"",IF(RIGHT($A25,1)="1",1-SUM(OFFSET(BC26,0,0,$C25-1,1)),Industry!BH12+BC79)) -> 0.1269678058 | BD25: =IF($B25>$B$6,"",IF(RIGHT($A25,1)="1",1-SUM(OFFSET(BD26,0,0,$C25-1,1)),Industry!BI12+BD79)) -> 0.147848053 | BE25: =IF($B25>$B$6,"",IF(RIGHT($A25,1)="1",1-SUM(OFFSET(BE26,0,0,$C25-1,1)),Industry!BJ12+BE79)) -> 0.1185021779 | BF25: =IF($B25>$B$6,"",IF(RIGHT($A25,1)="1",1-SUM(OFFSET(BF26,0,0,$C25-1,1)),Industry!BK12+BF79)) -> 0.1510506724 | BG25: =IF($B25>$B$6,"",IF(RIGHT($A25,1)="1",1-SUM(OFFSET(BG26,0,0,$C25-1,1)),Industry!BL12+BG79)) -> 0.1354993598 | BH25: =IF($B25>$B$6,"",IF(RIGHT($A25,1)="1",1-SUM(OFFSET(BH26,0,0,$C25-1,1)),Industry!BM12+BH79)) -> 0.1299999948 | BI25: =IF($B25>$B$6,"",IF(RIGHT($A25,1)="1",1-SUM(OFFSET(BI26,0,0,$C25-1,1)),Industry!BN12+BI79)) -> 0.1205948241 | BJ25: =IF($B25>$B$6,"",IF(RIGHT($A25,1)="1",1-SUM(OFFSET(BJ26,0,0,$C25-1,1)),Industry!BO12+BJ79)) -> 0.1215769173 | BK25: =IF($B25>$B$6,"",IF(RIGHT($A25,1)="1",1-SUM(OFFSET(BK26,0,0,$C25-1,1)),Industry!BP12+BK79)) -> 0.1146804737 | BL25: =IF($B25>$B$6,"",IF(RIGHT($A25,1)="1",1-SUM(OFFSET(BL26,0,0,$C25-1,1)),Agric!AP12)) -> 0.07861140525 | BM25: =IF($B25>$B$6,"",IF(RIGHT($A25,1)="1",1-SUM(OFFSET(BM26,0,0,$C25-1,1)),Agric!AQ12)) -> 0.09191506697 | BN25: =IF($B25>$B$6,"",IF(RIGHT($A25,1)="1",1-SUM(OFFSET(BN26,0,0,$C25-1,1)),Agric!AR12)) -> 0.2172524927 | BO25: =IF($B25>$B$6,"",IF(RIGHT($A25,1)="1",1-SUM(OFFSET(BO26,0,0,$C25-1,1)),Agric!AS12)) -> 0.1353155293 | BP25: =IF($B25>$B$6,"",IF(RIGHT($A25,1)="1",1-SUM(OFFSET(BP26,0,0,$C25-1,1)),Agric!AT12)) -> 0.1012188047 | BQ25: 0.1339806999 | BR25: 0.125 | BS25: 0.125
A26: ='Load Data'!AR61 -> s2d1b5 | B26: 11 | C26: =SUMIF('Load Data'!$AR$22:$AR$27,LEFT(A26,4),'Load Data'!$AQ$22:$AQ$27) -> 5 | D26: 101.8742855 | E26: 634.2670692 | F26: 2263.319135 | G26: 1218.622693 | H26: 69.81646665 | I26: 4287.899649 | J26: 4231.251361 | K26: 697.7690788 | L26: 4344.294994 | M26: 15502.18585 | N26: 8346.730771 | O26: 478.194977 | P26: 29369.17567 | Q26: 28981.1737 | R26: ='Load Data'!AZ61 -> 0.08333333333 | S26: ='Load Data'!BG61 -> 0.08756516627 | T26: 0.08873749482 | U26: 0.06815870203 | V26: 0.08580691597 | W26: 0.08290749627 | X26: 0.1081978562 | Y26: 0.08002130611 | Z26: 5 | AA26: =IF($B26>$B$6,"",IF(RIGHT($A26,1)="1",1-SUM(OFFSET(AA27,0,0,$C26-1,1)),Suburban!AS13+AA80)) -> 0.1255850226 | AB26: =IF($B26>$B$6,"",IF(RIGHT($A26,1)="1",1-SUM(OFFSET(AB27,0,0,$C26-1,1)),Suburban!AT13+AB80)) -> 0.04836210054 | AC26: =IF($B26>$B$6,"",IF(RIGHT($A26,1)="1",1-SUM(OFFSET(AC27,0,0,$C26-1,1)),Suburban!AU13+AC80)) -> 0.1241598354 | AD26: =IF($B26>$B$6,"",IF(RIGHT($A26,1)="1",1-SUM(OFFSET(AD27,0,0,$C26-1,1)),Suburban!AV13+AD80)) -> 0.1208988746 | AE26: =IF($B26>$B$6,"",IF(RIGHT($A26,1)="1",1-SUM(OFFSET(AE27,0,0,$C26-1,1)),Suburban!AW13+AE80)) -> 0.09971784116 | AF26: =IF($B26>$B$6,"",IF(RIGHT($A26,1)="1",1-SUM(OFFSET(AF27,0,0,$C26-1,1)),Suburban!AX13+AF80)) -> 0.09022238513 | AG26: =IF($B26>$B$6,"",IF(RIGHT($A26,1)="1",1-SUM(OFFSET(AG27,0,0,$C26-1,1)),Township!AS13+AG80)) -> 0.1232101914 | AH26: =IF($B26>$B$6,"",IF(RIGHT($A26,1)="1",1-SUM(OFFSET(AH27,0,0,$C26-1,1)),Township!AT13+AH80)) -> 0.07698873557 | AI26: =IF($B26>$B$6,"",IF(RIGHT($A26,1)="1",1-SUM(OFFSET(AI27,0,0,$C26-1,1)),Township!AU13+AI80)) -> 0.1736264841 | AJ26: =IF($B26>$B$6,"",IF(RIGHT($A26,1)="1",1-SUM(OFFSET(AJ27,0,0,$C26-1,1)),Township!AV13+AJ80)) -> 0.1125172252 | AK26: =IF($B26>$B$6,"",IF(RIGHT($A26,1)="1",1-SUM(OFFSET(AK27,0,0,$C26-1,1)),Township!AW13+AK80)) -> 0.09971784039 | AL26: =IF($B26>$B$6,"",IF(RIGHT($A26,1)="1",1-SUM(OFFSET(AL27,0,0,$C26-1,1)),Township!AX13+AL80)) -> 0.04254485758 | AM26: 0.1232101914 | AN26: 0.07698873557 | AO26: 0.1736264841 | AP26: 0.1125172252 | AQ26: 0.09971784039 | AR26: 0.04254485758 | AS26: =IF($B26>$B$6,"",IF(RIGHT($A26,1)="1",1-SUM(OFFSET(AS27,0,0,$C26-1,1)),Commercial!AX13+AS80)) -> 0.07639052968 | AT26: =IF($B26>$B$6,"",IF(RIGHT($A26,1)="1",1-SUM(OFFSET(AT27,0,0,$C26-1,1)),Commercial!AY13+AT80)) -> 0.07639052957 | AU26: =IF($B26>$B$6,"",IF(RIGHT($A26,1)="1",1-SUM(OFFSET(AU27,0,0,$C26-1,1)),Commercial!AZ13+AU80)) -> 0.06150004191 | AV26: =IF($B26>$B$6,"",IF(RIGHT($A26,1)="1",1-SUM(OFFSET(AV27,0,0,$C26-1,1)),Commercial!BA13+AV80)) -> 0.11949613 | AW26: =IF($B26>$B$6,"",IF(RIGHT($A26,1)="1",1-SUM(OFFSET(AW27,0,0,$C26-1,1)),Commercial!BB13+AW80)) -> 0.07900664103 | AX26: =IF($B26>$B$6,"",IF(RIGHT($A26,1)="1",1-SUM(OFFSET(AX27,0,0,$C26-1,1)),Commercial!BC13+AX80)) -> 0.07333332983 | AY26: 0.1664583333 | AZ26: 0.08333333333 | BA26: =IF($B26>$B$6,"",IF(RIGHT($A26,1)="1",1-SUM(OFFSET(BA27,0,0,$C26-1,1)),Commercial!BF13+BA80)) -> 0.04031491925 | BB26: =IF($B26>$B$6,"",IF(RIGHT($A26,1)="1",1-SUM(OFFSET(BB27,0,0,$C26-1,1)),Industry!BG13+BB80)) -> 0.08077729832 | BC26: =IF($B26>$B$6,"",IF(RIGHT($A26,1)="1",1-SUM(OFFSET(BC27,0,0,$C26-1,1)),Industry!BH13+BC80)) -> 0.0891656229 | BD26: =IF($B26>$B$6,"",IF(RIGHT($A26,1)="1",1-SUM(OFFSET(BD27,0,0,$C26-1,1)),Industry!BI13+BD80)) -> 0.09192144569 | BE26: =IF($B26>$B$6,"",IF(RIGHT($A26,1)="1",1-SUM(OFFSET(BE27,0,0,$C26-1,1)),Industry!BJ13+BE80)) -> 0.07933967172 | BF26: =IF($B26>$B$6,"",IF(RIGHT($A26,1)="1",1-SUM(OFFSET(BF27,0,0,$C26-1,1)),Industry!BK13+BF80)) -> 0.08917807465 | BG26: =IF($B26>$B$6,"",IF(RIGHT($A26,1)="1",1-SUM(OFFSET(BG27,0,0,$C26-1,1)),Industry!BL13+BG80)) -> 0.09526293175 | BH26: =IF($B26>$B$6,"",IF(RIGHT($A26,1)="1",1-SUM(OFFSET(BH27,0,0,$C26-1,1)),Industry!BM13+BH80)) -> 0.0933333299 | BI26: =IF($B26>$B$6,"",IF(RIGHT($A26,1)="1",1-SUM(OFFSET(BI27,0,0,$C26-1,1)),Industry!BN13+BI80)) -> 0.07703671988 | BJ26: =IF($B26>$B$6,"",IF(RIGHT($A26,1)="1",1-SUM(OFFSET(BJ27,0,0,$C26-1,1)),Industry!BO13+BJ80)) -> 0.07488138429 | BK26: =IF($B26>$B$6,"",IF(RIGHT($A26,1)="1",1-SUM(OFFSET(BK27,0,0,$C26-1,1)),Industry!BP13+BK80)) -> 0.05977374673 | BL26: =IF($B26>$B$6,"",IF(RIGHT($A26,1)="1",1-SUM(OFFSET(BL27,0,0,$C26-1,1)),Agric!AP13)) -> 0.04358216307 | BM26: =IF($B26>$B$6,"",IF(RIGHT($A26,1)="1",1-SUM(OFFSET(BM27,0,0,$C26-1,1)),Agric!AQ13)) -> 0.05563555367 | BN26: =IF($B26>$B$6,"",IF(RIGHT($A26,1)="1",1-SUM(OFFSET(BN27,0,0,$C26-1,1)),Agric!AR13)) -> 0.1099387312 | BO26: =IF($B26>$B$6,"",IF(RIGHT($A26,1)="1",1-SUM(OFFSET(BO27,0,0,$C26-1,1)),Agric!AS13)) -> 0.08191747288 | BP26: =IF($B26>$B$6,"",IF(RIGHT($A26,1)="1",1-SUM(OFFSET(BP27,0,0,$C26-1,1)),Agric!AT13)) -> 0.06516487975 | BQ26: 0.08580691597 | BR26: 0.08333333333 | BS26: 0.08333333333
A27: ='Load Data'!AR62 -> s2d2b1 | B27: 12 | C27: =SUMIF('Load Data'!$AR$22:$AR$27,LEFT(A27,4),'Load Data'!$AQ$22:$AQ$27) -> 3 | D27: 224.6970793 | E27: 1091.114404 | F27: 4692.993544 | G27: 1455.184824 | H27: 153.791179 | I27: 7617.78103 | J27: 7725.54048 | K27: 660.8737628 | L27: 3209.160012 | M27: 13802.92219 | N27: 4279.955365 | O27: 452.3269972 | P27: 22405.23832 | Q27: 22722.17788 | R27: ='Load Data'!AZ62 -> 0.4166666667 | S27: ='Load Data'!BG62 -> 0.3716759366 | T27: 0.3664916269 | U27: 0.3494839085 | V27: 0.343157456 | W27: 0.3996418703 | X27: 0.3003589468 | Y27: 0.4097813769 | Z27: 1 | AA27: =IF($B27>$B$6,"",IF(RIGHT($A27,1)="1",1-SUM(OFFSET(AA28,0,0,$C27-1,1)),Suburban!AS14+AA81)) -> 0.3754869533 | AB27: =IF($B27>$B$6,"",IF(RIGHT($A27,1)="1",1-SUM(OFFSET(AB28,0,0,$C27-1,1)),Suburban!AT14+AB81)) -> 0.1781774617 | AC27: =IF($B27>$B$6,"",IF(RIGHT($A27,1)="1",1-SUM(OFFSET(AC28,0,0,$C27-1,1)),Suburban!AU14+AC81)) -> 0.3185307732 | AD27: =IF($B27>$B$6,"",IF(RIGHT($A27,1)="1",1-SUM(OFFSET(AD28,0,0,$C27-1,1)),Suburban!AV14+AD81)) -> 0.3370280523 | AE27: =IF($B27>$B$6,"",IF(RIGHT($A27,1)="1",1-SUM(OFFSET(AE28,0,0,$C27-1,1)),Suburban!AW14+AE81)) -> 0.3744117461 | AF27: =IF($B27>$B$6,"",IF(RIGHT($A27,1)="1",1-SUM(OFFSET(AF28,0,0,$C27-1,1)),Suburban!AX14+AF81)) -> 0.2077954099 | AG27: =IF($B27>$B$6,"",IF(RIGHT($A27,1)="1",1-SUM(OFFSET(AG28,0,0,$C27-1,1)),Township!AS14+AG81)) -> 0.3338968488 | AH27: =IF($B27>$B$6,"",IF(RIGHT($A27,1)="1",1-SUM(OFFSET(AH28,0,0,$C27-1,1)),Township!AT14+AH81)) -> 0.2242005696 | AI27: =IF($B27>$B$6,"",IF(RIGHT($A27,1)="1",1-SUM(OFFSET(AI28,0,0,$C27-1,1)),Township!AU14+AI81)) -> 0.2208666543 | AJ27: =IF($B27>$B$6,"",IF(RIGHT($A27,1)="1",1-SUM(OFFSET(AJ28,0,0,$C27-1,1)),Township!AV14+AJ81)) -> 0.3068706048 | AK27: =IF($B27>$B$6,"",IF(RIGHT($A27,1)="1",1-SUM(OFFSET(AK28,0,0,$C27-1,1)),Township!AW14+AK81)) -> 0.3776982933 | AL27: =IF($B27>$B$6,"",IF(RIGHT($A27,1)="1",1-SUM(OFFSET(AL28,0,0,$C27-1,1)),Township!AX14+AL81)) -> 0.2598210054 | AM27: 0.3338968488 | AN27: 0.2242005696 | AO27: 0.2208666543 | AP27: 0.3068706048 | AQ27: 0.3776982933 | AR27: 0.2598210054 | AS27: =IF($B27>$B$6,"",IF(RIGHT($A27,1)="1",1-SUM(OFFSET(AS28,0,0,$C27-1,1)),Commercial!AX14+AS81)) -> 0.2963906383 | AT27: =IF($B27>$B$6,"",IF(RIGHT($A27,1)="1",1-SUM(OFFSET(AT28,0,0,$C27-1,1)),Commercial!AY14+AT81)) -> 0.2963906421 | AU27: =IF($B27>$B$6,"",IF(RIGHT($A27,1)="1",1-SUM(OFFSET(AU28,0,0,$C27-1,1)),Commercial!AZ14+AU81)) -> 0.3130733719 | AV27: =IF($B27>$B$6,"",IF(RIGHT($A27,1)="1",1-SUM(OFFSET(AV28,0,0,$C27-1,1)),Commercial!BA14+AV81)) -> 0.3468717471 | AW27: =IF($B27>$B$6,"",IF(RIGHT($A27,1)="1",1-SUM(OFFSET(AW28,0,0,$C27-1,1)),Commercial!BB14+AW81)) -> 0.4145828351 | AX27: =IF($B27>$B$6,"",IF(RIGHT($A27,1)="1",1-SUM(OFFSET(AX28,0,0,$C27-1,1)),Commercial!BC14+AX81)) -> 0.4266667279 | AY27: 0.6666666667 | AZ27: 0.375 | BA27: =IF($B27>$B$6,"",IF(RIGHT($A27,1)="1",1-SUM(OFFSET(BA28,0,0,$C27-1,1)),Commercial!BF14+BA81)) -> 0.3346222878 | BB27: =IF($B27>$B$6,"",IF(RIGHT($A27,1)="1",1-SUM(OFFSET(BB28,0,0,$C27-1,1)),Industry!BG14+BB81)) -> 0.4196284125 | BC27: =IF($B27>$B$6,"",IF(RIGHT($A27,1)="1",1-SUM(OFFSET(BC28,0,0,$C27-1,1)),Industry!BH14+BC81)) -> 0.4225651251 | BD27: =IF($B27>$B$6,"",IF(RIGHT($A27,1)="1",1-SUM(OFFSET(BD28,0,0,$C27-1,1)),Industry!BI14+BD81)) -> 0.366529483 | BE27: =IF($B27>$B$6,"",IF(RIGHT($A27,1)="1",1-SUM(OFFSET(BE28,0,0,$C27-1,1)),Industry!BJ14+BE81)) -> 0.3976763991 | BF27: =IF($B27>$B$6,"",IF(RIGHT($A27,1)="1",1-SUM(OFFSET(BF28,0,0,$C27-1,1)),Industry!BK14+BF81)) -> 0.3311233733 | BG27: =IF($B27>$B$6,"",IF(RIGHT($A27,1)="1",1-SUM(OFFSET(BG28,0,0,$C27-1,1)),Industry!BL14+BG81)) -> 0.3890657127 | BH27: =IF($B27>$B$6,"",IF(RIGHT($A27,1)="1",1-SUM(OFFSET(BH28,0,0,$C27-1,1)),Industry!BM14+BH81)) -> 0.4316667285 | BI27: =IF($B27>$B$6,"",IF(RIGHT($A27,1)="1",1-SUM(OFFSET(BI28,0,0,$C27-1,1)),Industry!BN14+BI81)) -> 0.399665512 | BJ27: =IF($B27>$B$6,"",IF(RIGHT($A27,1)="1",1-SUM(OFFSET(BJ28,0,0,$C27-1,1)),Industry!BO14+BJ81)) -> 0.3995351028 | BK27: =IF($B27>$B$6,"",IF(RIGHT($A27,1)="1",1-SUM(OFFSET(BK28,0,0,$C27-1,1)),Industry!BP14+BK81)) -> 0.3632912017 | BL27: =IF($B27>$B$6,"",IF(RIGHT($A27,1)="1",1-SUM(OFFSET(BL28,0,0,$C27-1,1)),Agric!AP14)) -> 0.3462253917 | BM27: =IF($B27>$B$6,"",IF(RIGHT($A27,1)="1",1-SUM(OFFSET(BM28,0,0,$C27-1,1)),Agric!AQ14)) -> 0.3676711356 | BN27: =IF($B27>$B$6,"",IF(RIGHT($A27,1)="1",1-SUM(OFFSET(BN28,0,0,$C27-1,1)),Agric!AR14)) -> 0.2756508916 | BO27: =IF($B27>$B$6,"",IF(RIGHT($A27,1)="1",1-SUM(OFFSET(BO28,0,0,$C27-1,1)),Agric!AS14)) -> 0.2894418578 | BP27: =IF($B27>$B$6,"",IF(RIGHT($A27,1)="1",1-SUM(OFFSET(BP28,0,0,$C27-1,1)),Agric!AT14)) -> 0.3856277752 | BQ27: 0.343157456 | BR27: 0.4166666667 | BS27: 0.4166666667
A28: ='Load Data'!AR63 -> s2d2b2 | B28: 13 | C28: =SUMIF('Load Data'!$AR$22:$AR$27,LEFT(A28,4),'Load Data'!$AQ$22:$AQ$27) -> 3 | D28: 316.0528124 | E28: 1439.280318 | F28: 5181.732806 | G28: 1982.440339 | H28: 161.7253446 | I28: 9081.23162 | J28: 9145.20415 | K28: 929.5670954 | L28: 4233.177404 | M28: 15240.39061 | N28: 5830.70688 | O28: 475.6627781 | P28: 26709.50476 | Q28: 26897.65927 | R28: ='Load Data'!AZ63 -> 0.4166666667 | S28: ='Load Data'!BG63 -> 0.4399759896 | T28: 0.4368982696 | U28: 0.491574579 | V28: 0.4526562662 | W28: 0.4412615041 | X28: 0.4091876733 | Y28: 0.4309222075 | Z28: 2 | AA28: =IF($B28>$B$6,"",IF(RIGHT($A28,1)="1",1-SUM(OFFSET(AA29,0,0,$C28-1,1)),Suburban!AS15+AA82)) -> 0.2500662421 | AB28: =IF($B28>$B$6,"",IF(RIGHT($A28,1)="1",1-SUM(OFFSET(AB29,0,0,$C28-1,1)),Suburban!AT15+AB82)) -> 0.6849344183 | AC28: =IF($B28>$B$6,"",IF(RIGHT($A28,1)="1",1-SUM(OFFSET(AC29,0,0,$C28-1,1)),Suburban!AU15+AC82)) -> 0.3949859714 | AD28: =IF($B28>$B$6,"",IF(RIGHT($A28,1)="1",1-SUM(OFFSET(AD29,0,0,$C28-1,1)),Suburban!AV15+AD82)) -> 0.4350210933 | AE28: =IF($B28>$B$6,"",IF(RIGHT($A28,1)="1",1-SUM(OFFSET(AE29,0,0,$C28-1,1)),Suburban!AW15+AE82)) -> 0.4214552013 | AF28: =IF($B28>$B$6,"",IF(RIGHT($A28,1)="1",1-SUM(OFFSET(AF29,0,0,$C28-1,1)),Suburban!AX15+AF82)) -> 0.5115784078 | AG28: =IF($B28>$B$6,"",IF(RIGHT($A28,1)="1",1-SUM(OFFSET(AG29,0,0,$C28-1,1)),Township!AS15+AG82)) -> 0.2642071326 | AH28: =IF($B28>$B$6,"",IF(RIGHT($A28,1)="1",1-SUM(OFFSET(AH29,0,0,$C28-1,1)),Township!AT15+AH82)) -> 0.5272396798 | AI28: =IF($B28>$B$6,"",IF(RIGHT($A28,1)="1",1-SUM(OFFSET(AI29,0,0,$C28-1,1)),Township!AU15+AI82)) -> 0.2928300922 | AJ28: =IF($B28>$B$6,"",IF(RIGHT($A28,1)="1",1-SUM(OFFSET(AJ29,0,0,$C28-1,1)),Township!AV15+AJ82)) -> 0.4246314042 | AK28: =IF($B28>$B$6,"",IF(RIGHT($A28,1)="1",1-SUM(OFFSET(AK29,0,0,$C28-1,1)),Township!AW15+AK82)) -> 0.4192410734 | AL28: =IF($B28>$B$6,"",IF(RIGHT($A28,1)="1",1-SUM(OFFSET(AL29,0,0,$C28-1,1)),Township!AX15+AL82)) -> 0.3850575225 | AM28: 0.2642071326 | AN28: 0.5272396798 | AO28: 0.2928300922 | AP28: 0.4246314042 | AQ28: 0.4192410734 | AR28: 0.3850575225 | AS28: =IF($B28>$B$6,"",IF(RIGHT($A28,1)="1",1-SUM(OFFSET(AS29,0,0,$C28-1,1)),Commercial!AX15+AS82)) -> 0.5053253689 | AT28: =IF($B28>$B$6,"",IF(RIGHT($A28,1)="1",1-SUM(OFFSET(AT29,0,0,$C28-1,1)),Commercial!AY15+AT82)) -> 0.5053253662 | AU28: =IF($B28>$B$6,"",IF(RIGHT($A28,1)="1",1-SUM(OFFSET(AU29,0,0,$C28-1,1)),Commercial!AZ15+AU82)) -> 0.5059544999 | AV28: =IF($B28>$B$6,"",IF(RIGHT($A28,1)="1",1-SUM(OFFSET(AV29,0,0,$C28-1,1)),Commercial!BA15+AV82)) -> 0.459650928 | AW28: =IF($B28>$B$6,"",IF(RIGHT($A28,1)="1",1-SUM(OFFSET(AW29,0,0,$C28-1,1)),Commercial!BB15+AW82)) -> 0.3831150266 | AX28: =IF($B28>$B$6,"",IF(RIGHT($A28,1)="1",1-SUM(OFFSET(AX29,0,0,$C28-1,1)),Commercial!BC15+AX82)) -> 0.4166666229 | AY28: 0 | AZ28: 0.4583333333 | BA28: =IF($B28>$B$6,"",IF(RIGHT($A28,1)="1",1-SUM(OFFSET(BA29,0,0,$C28-1,1)),Commercial!BF15+BA82)) -> 0.5066866335 | BB28: =IF($B28>$B$6,"",IF(RIGHT($A28,1)="1",1-SUM(OFFSET(BB29,0,0,$C28-1,1)),Industry!BG15+BB82)) -> 0.4211832033 | BC28: =IF($B28>$B$6,"",IF(RIGHT($A28,1)="1",1-SUM(OFFSET(BC29,0,0,$C28-1,1)),Industry!BH15+BC82)) -> 0.4189287163 | BD28: =IF($B28>$B$6,"",IF(RIGHT($A28,1)="1",1-SUM(OFFSET(BD29,0,0,$C28-1,1)),Industry!BI15+BD82)) -> 0.4556135798 | BE28: =IF($B28>$B$6,"",IF(RIGHT($A28,1)="1",1-SUM(OFFSET(BE29,0,0,$C28-1,1)),Industry!BJ15+BE82)) -> 0.452387592 | BF28: =IF($B28>$B$6,"",IF(RIGHT($A28,1)="1",1-SUM(OFFSET(BF29,0,0,$C28-1,1)),Industry!BK15+BF82)) -> 0.4884382874 | BG28: =IF($B28>$B$6,"",IF(RIGHT($A28,1)="1",1-SUM(OFFSET(BG29,0,0,$C28-1,1)),Industry!BL15+BG82)) -> 0.4442758675 | BH28: =IF($B28>$B$6,"",IF(RIGHT($A28,1)="1",1-SUM(OFFSET(BH29,0,0,$C28-1,1)),Industry!BM15+BH82)) -> 0.4066666225 | BI28: =IF($B28>$B$6,"",IF(RIGHT($A28,1)="1",1-SUM(OFFSET(BI29,0,0,$C28-1,1)),Industry!BN15+BI82)) -> 0.4471490876 | BJ28: =IF($B28>$B$6,"",IF(RIGHT($A28,1)="1",1-SUM(OFFSET(BJ29,0,0,$C28-1,1)),Industry!BO15+BJ82)) -> 0.445413023 | BK28: =IF($B28>$B$6,"",IF(RIGHT($A28,1)="1",1-SUM(OFFSET(BK29,0,0,$C28-1,1)),Industry!BP15+BK82)) -> 0.4891182739 | BL28: =IF($B28>$B$6,"",IF(RIGHT($A28,1)="1",1-SUM(OFFSET(BL29,0,0,$C28-1,1)),Agric!AP15)) -> 0.5143843733 | BM28: =IF($B28>$B$6,"",IF(RIGHT($A28,1)="1",1-SUM(OFFSET(BM29,0,0,$C28-1,1)),Agric!AQ15)) -> 0.4854240621 | BN28: =IF($B28>$B$6,"",IF(RIGHT($A28,1)="1",1-SUM(OFFSET(BN29,0,0,$C28-1,1)),Agric!AR15)) -> 0.4617486014 | BO28: =IF($B28>$B$6,"",IF(RIGHT($A28,1)="1",1-SUM(OFFSET(BO29,0,0,$C28-1,1)),Agric!AS15)) -> 0.5327669076 | BP28: =IF($B28>$B$6,"",IF(RIGHT($A28,1)="1",1-SUM(OFFSET(BP29,0,0,$C28-1,1)),Agric!AT15)) -> 0.462773124 | BQ28: =V28 -> 0.4526562662 | BR28: 0.4166666667 | BS28: 0.4166666667
A29: ='Load Data'!AR64 -> s2d2b3 | B29: 14 | C29: =SUMIF('Load Data'!$AR$22:$AR$27,LEFT(A29,4),'Load Data'!$AQ$22:$AQ$27) -> 3 | D29: 102.1898084 | E29: 608.3200261 | F29: 1868.271301 | G29: 1407.194143 | H29: 65.43322168 | I29: 4051.4085 | J29: 3914.944515 | K29: 751.3956501 | L29: 4472.941368 | M29: 13737.28898 | N29: 10347.01575 | O29: 481.12663 | P29: 29789.76838 | Q29: 28786.35673 | R29: ='Load Data'!AZ64 -> 0.1666666667 | S29: ='Load Data'!BG64 -> 0.1883480739 | T29: 0.1949133595 | U29: 0.1589415125 | V29: 0.1913177498 | W29: 0.1590966257 | X29: 0.29045338 | Y29: 0.174348853 | Z29: 3 | AA29: =IF($B29>$B$6,"",IF(RIGHT($A29,1)="1",1-SUM(OFFSET(AA30,0,0,$C29-1,1)),Suburban!AS16+AA83)) -> 0.3744468046 | AB29: =IF($B29>$B$6,"",IF(RIGHT($A29,1)="1",1-SUM(OFFSET(AB30,0,0,$C29-1,1)),Suburban!AT16+AB83)) -> 0.13688812 | AC29: =IF($B29>$B$6,"",IF(RIGHT($A29,1)="1",1-SUM(OFFSET(AC30,0,0,$C29-1,1)),Suburban!AU16+AC83)) -> 0.2864832554 | AD29: =IF($B29>$B$6,"",IF(RIGHT($A29,1)="1",1-SUM(OFFSET(AD30,0,0,$C29-1,1)),Suburban!AV16+AD83)) -> 0.2279508544 | AE29: =IF($B29>$B$6,"",IF(RIGHT($A29,1)="1",1-SUM(OFFSET(AE30,0,0,$C29-1,1)),Suburban!AW16+AE83)) -> 0.2041330526 | AF29: =IF($B29>$B$6,"",IF(RIGHT($A29,1)="1",1-SUM(OFFSET(AF30,0,0,$C29-1,1)),Suburban!AX16+AF83)) -> 0.2806261823 | AG29: =IF($B29>$B$6,"",IF(RIGHT($A29,1)="1",1-SUM(OFFSET(AG30,0,0,$C29-1,1)),Township!AS16+AG83)) -> 0.4018960185 | AH29: =IF($B29>$B$6,"",IF(RIGHT($A29,1)="1",1-SUM(OFFSET(AH30,0,0,$C29-1,1)),Township!AT16+AH83)) -> 0.2485597506 | AI29: =IF($B29>$B$6,"",IF(RIGHT($A29,1)="1",1-SUM(OFFSET(AI30,0,0,$C29-1,1)),Township!AU16+AI83)) -> 0.4863032534 | AJ29: =IF($B29>$B$6,"",IF(RIGHT($A29,1)="1",1-SUM(OFFSET(AJ30,0,0,$C29-1,1)),Township!AV16+AJ83)) -> 0.268497991 | AK29: =IF($B29>$B$6,"",IF(RIGHT($A29,1)="1",1-SUM(OFFSET(AK30,0,0,$C29-1,1)),Township!AW16+AK83)) -> 0.2030606333 | AL29: =IF($B29>$B$6,"",IF(RIGHT($A29,1)="1",1-SUM(OFFSET(AL30,0,0,$C29-1,1)),Township!AX16+AL83)) -> 0.3551214721 | AM29: 0.4018960185 | AN29: 0.2485597506 | AO29: 0.4863032534 | AP29: 0.268497991 | AQ29: 0.2030606333 | AR29: 0.3551214721 | AS29: =IF($B29>$B$6,"",IF(RIGHT($A29,1)="1",1-SUM(OFFSET(AS30,0,0,$C29-1,1)),Commercial!AX16+AS83)) -> 0.1982839928 | AT29: =IF($B29>$B$6,"",IF(RIGHT($A29,1)="1",1-SUM(OFFSET(AT30,0,0,$C29-1,1)),Commercial!AY16+AT83)) -> 0.1982839917 | AU29: =IF($B29>$B$6,"",IF(RIGHT($A29,1)="1",1-SUM(OFFSET(AU30,0,0,$C29-1,1)),Commercial!AZ16+AU83)) -> 0.1809721282 | AV29: =IF($B29>$B$6,"",IF(RIGHT($A29,1)="1",1-SUM(OFFSET(AV30,0,0,$C29-1,1)),Commercial!BA16+AV83)) -> 0.1934773249 | AW29: =IF($B29>$B$6,"",IF(RIGHT($A29,1)="1",1-SUM(OFFSET(AW30,0,0,$C29-1,1)),Commercial!BB16+AW83)) -> 0.2023021383 | AX29: =IF($B29>$B$6,"",IF(RIGHT($A29,1)="1",1-SUM(OFFSET(AX30,0,0,$C29-1,1)),Commercial!BC16+AX83)) -> 0.1566666492 | AY29: 0.3333333333 | AZ29: 0.1666666667 | BA29: =IF($B29>$B$6,"",IF(RIGHT($A29,1)="1",1-SUM(OFFSET(BA30,0,0,$C29-1,1)),Commercial!BF16+BA83)) -> 0.1586910787 | BB29: =IF($B29>$B$6,"",IF(RIGHT($A29,1)="1",1-SUM(OFFSET(BB30,0,0,$C29-1,1)),Industry!BG16+BB83)) -> 0.1591883842 | BC29: =IF($B29>$B$6,"",IF(RIGHT($A29,1)="1",1-SUM(OFFSET(BC30,0,0,$C29-1,1)),Industry!BH16+BC83)) -> 0.1585061585 | BD29: =IF($B29>$B$6,"",IF(RIGHT($A29,1)="1",1-SUM(OFFSET(BD30,0,0,$C29-1,1)),Industry!BI16+BD83)) -> 0.1778569372 | BE29: =IF($B29>$B$6,"",IF(RIGHT($A29,1)="1",1-SUM(OFFSET(BE30,0,0,$C29-1,1)),Industry!BJ16+BE83)) -> 0.1499360089 | BF29: =IF($B29>$B$6,"",IF(RIGHT($A29,1)="1",1-SUM(OFFSET(BF30,0,0,$C29-1,1)),Industry!BK16+BF83)) -> 0.1804383393 | BG29: =IF($B29>$B$6,"",IF(RIGHT($A29,1)="1",1-SUM(OFFSET(BG30,0,0,$C29-1,1)),Industry!BL16+BG83)) -> 0.1666584198 | BH29: =IF($B29>$B$6,"",IF(RIGHT($A29,1)="1",1-SUM(OFFSET(BH30,0,0,$C29-1,1)),Industry!BM16+BH83)) -> 0.161666649 | BI29: =IF($B29>$B$6,"",IF(RIGHT($A29,1)="1",1-SUM(OFFSET(BI30,0,0,$C29-1,1)),Industry!BN16+BI83)) -> 0.1531854004 | BJ29: =IF($B29>$B$6,"",IF(RIGHT($A29,1)="1",1-SUM(OFFSET(BJ30,0,0,$C29-1,1)),Industry!BO16+BJ83)) -> 0.1550518742 | BK29: =IF($B29>$B$6,"",IF(RIGHT($A29,1)="1",1-SUM(OFFSET(BK30,0,0,$C29-1,1)),Industry!BP16+BK83)) -> 0.1475905245 | BL29: =IF($B29>$B$6,"",IF(RIGHT($A29,1)="1",1-SUM(OFFSET(BL30,0,0,$C29-1,1)),Agric!AP16)) -> 0.1393902351 | BM29: =IF($B29>$B$6,"",IF(RIGHT($A29,1)="1",1-SUM(OFFSET(BM30,0,0,$C29-1,1)),Agric!AQ16)) -> 0.1469048023 | BN29: =IF($B29>$B$6,"",IF(RIGHT($A29,1)="1",1-SUM(OFFSET(BN30,0,0,$C29-1,1)),Agric!AR16)) -> 0.262600507 | BO29: =IF($B29>$B$6,"",IF(RIGHT($A29,1)="1",1-SUM(OFFSET(BO30,0,0,$C29-1,1)),Agric!AS16)) -> 0.1777912346 | BP29: =IF($B29>$B$6,"",IF(RIGHT($A29,1)="1",1-SUM(OFFSET(BP30,0,0,$C29-1,1)),Agric!AT16)) -> 0.1515991008 | BQ29: 0.1913177498 | BR29: 0.1666666667 | BS29: 0.1666666667
A30: ='Load Data'!AR65 -> s3d1b1 | B30: 15 | C30: =SUMIF('Load Data'!$AR$22:$AR$27,LEFT(A30,4),'Load Data'!$AQ$22:$AQ$27) -> 3 | D30: 547.5736226 | E30: 2648.125653 | F30: 11576.55118 | G30: 4925.885311 | H30: 384.5560381 | I30: 20082.6918 | J30: 20349.18953 | K30: 629.3949685 | L30: 3043.822589 | M30: 13306.38067 | N30: 5661.937139 | O30: 442.0184346 | P30: 23083.5538 | Q30: 23389.87302 | R30: ='Load Data'!AZ65 -> 0.4166666667 | S30: ='Load Data'!BG65 -> 0.3715764153 | T30: 0.3667101641 | U30: 0.3232494004 | V30: 0.3161019615 | W30: 0.3741671656 | X30: 0.3858976766 | Y30: 0.3889071053 | Z30: 1 | AA30: =IF($B30>$B$6,"",IF(RIGHT($A30,1)="1",1-SUM(OFFSET(AA31,0,0,$C30-1,1)),Suburban!AS17+AA84)) -> 0.3692845199 | AB30: =IF($B30>$B$6,"",IF(RIGHT($A30,1)="1",1-SUM(OFFSET(AB31,0,0,$C30-1,1)),Suburban!AT17+AB84)) -> 0.2278126072 | AC30: =IF($B30>$B$6,"",IF(RIGHT($A30,1)="1",1-SUM(OFFSET(AC31,0,0,$C30-1,1)),Suburban!AU17+AC84)) -> 0.97 | AD30: =IF($B30>$B$6,"",IF(RIGHT($A30,1)="1",1-SUM(OFFSET(AD31,0,0,$C30-1,1)),Suburban!AV17+AD84)) -> 0.314148725 | AE30: =IF($B30>$B$6,"",IF(RIGHT($A30,1)="1",1-SUM(OFFSET(AE31,0,0,$C30-1,1)),Suburban!AW17+AE84)) -> 0.3316796767 | AF30: =IF($B30>$B$6,"",IF(RIGHT($A30,1)="1",1-SUM(OFFSET(AF31,0,0,$C30-1,1)),Suburban!AX17+AF84)) -> 0.1997095622 | AG30: =IF($B30>$B$6,"",IF(RIGHT($A30,1)="1",1-SUM(OFFSET(AG31,0,0,$C30-1,1)),Township!AS17+AG84)) -> 0.3337369937 | AH30: =IF($B30>$B$6,"",IF(RIGHT($A30,1)="1",1-SUM(OFFSET(AH31,0,0,$C30-1,1)),Township!AT17+AH84)) -> 0.1922103768 | AI30: =IF($B30>$B$6,"",IF(RIGHT($A30,1)="1",1-SUM(OFFSET(AI31,0,0,$C30-1,1)),Township!AU17+AI84)) -> 0.97 | AJ30: =IF($B30>$B$6,"",IF(RIGHT($A30,1)="1",1-SUM(OFFSET(AJ31,0,0,$C30-1,1)),Township!AV17+AJ84)) -> 0.366564928 | AK30: =IF($B30>$B$6,"",IF(RIGHT($A30,1)="1",1-SUM(OFFSET(AK31,0,0,$C30-1,1)),Township!AW17+AK84)) -> 0.3316796746 | AL30: =IF($B30>$B$6,"",IF(RIGHT($A30,1)="1",1-SUM(OFFSET(AL31,0,0,$C30-1,1)),Township!AX17+AL84)) -> 0.23521839 | AM30: 0.3337369937 | AN30: 0.1922103768 | AO30: 0.97 | AP30: 0.366564928 | AQ30: 0.3316796746 | AR30: 0.23521839 | AS30: =IF($B30>$B$6,"",IF(RIGHT($A30,1)="1",1-SUM(OFFSET(AS31,0,0,$C30-1,1)),Commercial!AX17+AS84)) -> 0.2963905586 | AT30: =IF($B30>$B$6,"",IF(RIGHT($A30,1)="1",1-SUM(OFFSET(AT31,0,0,$C30-1,1)),Commercial!AY17+AT84)) -> 0.296390558 | AU30: =IF($B30>$B$6,"",IF(RIGHT($A30,1)="1",1-SUM(OFFSET(AU31,0,0,$C30-1,1)),Commercial!AZ17+AU84)) -> 0.2731031232 | AV30: =IF($B30>$B$6,"",IF(RIGHT($A30,1)="1",1-SUM(OFFSET(AV31,0,0,$C30-1,1)),Commercial!BA17+AV84)) -> 0.3322933651 | AW30: =IF($B30>$B$6,"",IF(RIGHT($A30,1)="1",1-SUM(OFFSET(AW31,0,0,$C30-1,1)),Commercial!BB17+AW84)) -> 0.3986490373 | AX30: =IF($B30>$B$6,"",IF(RIGHT($A30,1)="1",1-SUM(OFFSET(AX31,0,0,$C30-1,1)),Commercial!BC17+AX84)) -> 0.4266666912 | AY30: 0.6666666667 | AZ30: 0.3333333333 | BA30: =IF($B30>$B$6,"",IF(RIGHT($A30,1)="1",1-SUM(OFFSET(BA31,0,0,$C30-1,1)),Commercial!BF17+BA84)) -> 0.2361651524 | BB30: =IF($B30>$B$6,"",IF(RIGHT($A30,1)="1",1-SUM(OFFSET(BB31,0,0,$C30-1,1)),Industry!BG17+BB84)) -> 0.4235117449 | BC30: =IF($B30>$B$6,"",IF(RIGHT($A30,1)="1",1-SUM(OFFSET(BC31,0,0,$C30-1,1)),Industry!BH17+BC84)) -> 0.4133900704 | BD30: =IF($B30>$B$6,"",IF(RIGHT($A30,1)="1",1-SUM(OFFSET(BD31,0,0,$C30-1,1)),Industry!BI17+BD84)) -> 0.341450553 | BE30: =IF($B30>$B$6,"",IF(RIGHT($A30,1)="1",1-SUM(OFFSET(BE31,0,0,$C30-1,1)),Industry!BJ17+BE84)) -> 0.3708448644 | BF30: =IF($B30>$B$6,"",IF(RIGHT($A30,1)="1",1-SUM(OFFSET(BF31,0,0,$C30-1,1)),Industry!BK17+BF84)) -> 0.3072030487 | BG30: =IF($B30>$B$6,"",IF(RIGHT($A30,1)="1",1-SUM(OFFSET(BG31,0,0,$C30-1,1)),Industry!BL17+BG84)) -> 0.3715750368 | BH30: =IF($B30>$B$6,"",IF(RIGHT($A30,1)="1",1-SUM(OFFSET(BH31,0,0,$C30-1,1)),Industry!BM17+BH84)) -> 0.4316666905 | BI30: =IF($B30>$B$6,"",IF(RIGHT($A30,1)="1",1-SUM(OFFSET(BI31,0,0,$C30-1,1)),Industry!BN17+BI84)) -> 0.3643413876 | BJ30: =IF($B30>$B$6,"",IF(RIGHT($A30,1)="1",1-SUM(OFFSET(BJ31,0,0,$C30-1,1)),Industry!BO17+BJ84)) -> 0.3499071545 | BK30: =IF($B30>$B$6,"",IF(RIGHT($A30,1)="1",1-SUM(OFFSET(BK31,0,0,$C30-1,1)),Industry!BP17+BK84)) -> 0.2831679274 | BL30: =IF($B30>$B$6,"",IF(RIGHT($A30,1)="1",1-SUM(OFFSET(BL31,0,0,$C30-1,1)),Agric!AP17)) -> 0.2784730786 | BM30: =IF($B30>$B$6,"",IF(RIGHT($A30,1)="1",1-SUM(OFFSET(BM31,0,0,$C30-1,1)),Agric!AQ17)) -> 0.3083363812 | BN30: =IF($B30>$B$6,"",IF(RIGHT($A30,1)="1",1-SUM(OFFSET(BN31,0,0,$C30-1,1)),Agric!AR17)) -> 0.2915639384 | BO30: =IF($B30>$B$6,"",IF(RIGHT($A30,1)="1",1-SUM(OFFSET(BO31,0,0,$C30-1,1)),Agric!AS17)) -> 0.2894417728 | BP30: =IF($B30>$B$6,"",IF(RIGHT($A30,1)="1",1-SUM(OFFSET(BP31,0,0,$C30-1,1)),Agric!AT17)) -> 0.3595217929 | BQ30: 0.3161019615 | BR30: 0.4166666667 | BS30: 0.4166666667
